Workbook

Sheet 目次
B1: ValidationｰSupport処理プログラム Ver7.1 ＜マクロ機能を有効にして下さい。＞ (2026.02.10)
B2: アンダーラインのあるセルはクリックによって目的とするシートへ移動します．
B3: 特異性，選択性 （共存物質の影響試験） [特異性・選択性シート]
B4: 真度，正確さ 評価法 （1から3濃度以上に対応） [正確さの評価シート]
B5: 比較対照法との比較実験による方法 [相関分析シート]
B6: 併行精度 （同時再現性） [併行精度シート]
B7: 室内再現精度 (日間変動と日内変動)と不確かさ [室内精度シート]
B8: 検出限界 定量限界 測定 [検出限界と定量限界シート]
B9: 直線性 [直線性シート]
B10: 許容限界の指針 [許容限界シート]
B11: 報告書 検討結果のまとめ [報告書シート]
B12: バージョンアップ情報
B15: バージョンアップ履歴
B16: ･Ver1188の変更点 20120818
B17: 書式辺境を許可し、書式の変更を可能にした。したがって、桁数変更の機能が不要になった。また、グラフの桁数表示も連動する様に変更を行った。
B18: また、並べ替えについても許可とした。
B19: ・Ver1181からの変更点 2012.01
B20: 各種用語の解説をポップアップ形式からシート上に表記するように変更した。また、線形関係式の信頼区間計算を近年有用性が評価されているブートストラップ法を使用してできるようにした。
B21: 日内日間精密度シート名称を室内精度に改め、3濃度に対応するためシートを３つにした。
B22: ・Ver118からの変更点 2011.11
B23: ランダマイズ２回測定シートに偏差図を追加。日内日差精密度シートのUCL・LCL計算バグの修正。正確さの評価で１濃度に対応。定量限界値の許容誤差限界に任意値を入力可能に。
B24: ・Ver8.82からの変更点 2011.09
B25: 日本臨床化学会クオリティマネジメント専門委員会 定量測定法に関するバリデーション指針に従い、「相関図」「検出限界と定量限界」を大幅に改造し、STSSV/EXCELに改名する。 新シートへの書き出しを削除。セルの選択制限強化。
B26: 回帰分析シートを大幅強化した。従来マクロ機能を使用してグラフ作成を行っていたが、データ入力時に即座に作画するようにした。ただし、従来可能であった信頼区間算出のためのブートストラップ計算ができなくなった。
B27: ・Ver8.8からの変更点 2010.02
B28: 回帰分析において「標準主軸回帰式」を追加
B29: ・Ver７.8 からの変更点
B30: 同時再現性シートで標本集団のヒストグラムを表示。
B31: ・Ver7.5からの変更点 200712
B32: 同時再現シートにて母標準偏差の推定
B33: ・Ver7.3からの変更点 200707
B34: 不確かさ算出のために日内日間精密度計算のできる日数を９０日まで拡大
B35: ・Ver7.1からの変更点 2006.6
B36: 日内日間精密度において３０日までの計算を６０日まで拡大
B37: ·Ver 5.8 からの変更点 2005.11
B38: 同時再現性に解説文を追加。ブートストラップにおけるバグの改善。
B39: ·Ver 5.6 からの変更点 2005.01
B40: 正確さの評価においてばらつきが全くない場合（Ｓｙｘ＝０）の不具合を修正
B41: ·Ver 5.5 からの変更点 2003.09
B42: 日内日間精密度の分散分析表の計算式についてコメント表示を行った。
B43: ·Ver 5.0 からの変更点 2003.07
B44: 相関図作成において、日常検査の性能試験法マニュアル（2002.9.12)に則り、標準化残差式を変更。なお従来通りのＳｙｘによるグラフ表示機能も残す。
B45: ·Ver 4.5 からの変更点 2003.05
B46: 正規分布型検定と反復切断法においてべき乗変換と階級数最適値の検索＆許容範囲の検索および信頼区間の算出プログラムの追加を行った。べき乗変換して正規化を行ったデータに対して、信頼区間が容易に求められる。また、日内日間精密度において管理限界値の計算の不具合を改善した。
B47: Ver 4.2 からの変更点 2002.11
B48: ・ 同時再現性シートの追加 ・ 解説の変更 ・検出限界シートの2SD法への対応
B49: Ver 4.1 からの変更点 2002.10
B50: ブートストラップ法による回帰式の区間推定を古典的回帰式から線形回帰式へ変更した。
B51: データ容量低減のため、変更を行った。
B52: Ver 4.0 からの変更点 2002.10
B53: ブートストラップ法のおける信頼区間を線形回帰式より算出するように変更
B54: Ｖｅｒ 3.6 からの変更点 2002.0７
B55: 日内日間の精密度において管理図に使用する予備データの計算を行えるようにした．また、日差と日内の精密度比較グラフを追加した。
B56: 相関図において９５％等確率楕円の表示が行えるようになった。
B57: 各種検定におけるサンプル数の計算を行えるようにした。
B58: 分布型シートで分布型検定後のデータセルロック状態を修正した。
B59: Ｖｅｒ 2.0 からの変更点 2000.08
B60: ・「精密さの評価」において，患者試料による評価を追加
B61: (多数の患者試料の二重測定値 ; ランダマイズ２回測定）
B62: ・「正確さの評価」において「１種類の濃度の血清標準物質による評価」の95％信頼区間を表示するように変更。
B63: ・比較対照法との比較実験による方法において，ブートストラップ法での傾き・切片の信頼区間を求めることが可能となった。
B64: Ｖｅｒ 1.5 からの変更点
B65: ･「分布型検定」 および 「反復切断法」 を加えデータの分布について調査出来るようにした。
B66: ・「正確さの評価」における「比較対照法との比較実験による方法」において，外れ値検出のための「相対的な差の平均値」をグラフ上部に表示するようにした。
B67: Ｖｅｒ 1.0 からの変更点
B68: ＥＸＣＥＬ―Ｂｏｏｋの最初にシートへ［はじめに］を加え，ＳＴＳＳ／ＥＸＣＥＬの使用方法などの解説を表示するようにした。

Sheet 選択性
B1: タイトル | C1: 溶血の影響 | E1: 解説 | N1: 0
B2: 系列 | C2: 測定値 | D2: 変化率(%)
B3: 0 | C3: 3.1 | D3: =IF(COUNTA(C3)<>0,(C3-$C$14)/$C$14*100,"") -> 0
B4: 50 | C4: 3.1 | D4: =IF(COUNTA(C4)<>0,(C4-$C$14)/$C$14*100,"") -> 0
B5: 100 | C5: 3.2 | D5: 3.225806452
B6: 150 | C6: 3.35 | D6: 8.064516129
B7: 200 | C7: 3.45 | D7: 11.29032258
B8: 250 | C8: 3.5 | D8: 12.90322581
B9: 300 | C9: 3.6 | D9: 16.12903226
B10: 350 | C10: 3.65 | D10: 17.74193548
B11: 400 | C11: 3.7 | D11: 19.35483871
B12: 450 | C12: 3.75 | D12: 20.96774194
B13: 500 | C13: 3.77 | D13: 21.61290323
B14: 目標値 | C14: 3.1
B16: タイトル | C16: Bi C の影響
B17: 系列 | C17: 測定値 | D17: 変化率(%)
B18: 0 | C18: 3.2 | D18: =IF(COUNTA(C18)<>0,(C18-$C$29)/$C$29*100,"") -> 0
B19: 4.18 | C19: 3.23 | D19: =IF(COUNTA(C19)<>0,(C19-$C$29)/$C$29*100,"") -> 0.9375
B20: 8.36 | C20: 3.25 | D20: 1.5625
B21: 12.54 | C21: 3.4 | D21: 6.25
B22: 16.72 | C22: 3.6 | D22: 12.5
B23: 20.9 | C23: 3.65 | D23: 14.0625
B29: 目標値 | C29: 3.2
B31: タイトル | C31: RF の影響
B32: 系列 | C32: 測定値 | D32: 変化率(%)
B33: 0 | C33: 4 | D33: =IF(COUNTA(C33)<>0,(C33-$C$44)/$C$44*100,"") -> 0
B34: 94 | C34: 4.1 | D34: =IF(COUNTA(C34)<>0,(C34-$C$44)/$C$44*100,"") -> 2.5
B35: 188 | C35: 4.1 | D35: 2.5
B36: 282 | C36: 4.25 | D36: 6.25
B37: 376 | C37: 4.3 | D37: 7.5
B38: 470 | C38: 4.6 | D38: 15
B44: 目標値 | C44: 4
B46: タイトル | C46: 乳び の影響
B47: 系列 | C47: 測定値 | D47: 変化率(%)
B48: 0 | C48: 4 | D48: =IF(COUNTA(C48)<>0,(C48-$C$59)/$C$59*100,"") -> 0
B49: 468 | C49: 4.1 | D49: =IF(COUNTA(C49)<>0,(C49-$C$59)/$C$59*100,"") -> 2.5
B50: 936 | C50: 4.11 | D50: 2.75
B51: 1404 | C51: 4.25 | D51: 6.25
B52: 1872 | C52: 4.3 | D52: 7.5
B53: 2340 | C53: 4.5 | D53: 12.5
B59: 目標値 | C59: 4
B61: タイトル | C61: アスコルビン酸の影響
B62: 系列 | C62: 測定値 | D62: 変化率(%)
B63: 0 | C63: 4 | D63: =IF(COUNTA(C63)<>0,(C63-$C$74)/$C$74*100,"") -> 0
B64: 10 | C64: 4 | D64: =IF(COUNTA(C64)<>0,(C64-$C$74)/$C$74*100,"") -> 0
B65: 20 | C65: 3.97 | D65: -0.75
B66: 30 | C66: 3.95 | D66: -1.25
B67: 40 | C67: 3.92 | D67: -2
B68: 50 | C68: 3.9 | D68: -2.5
B74: 目標値 | C74: 4

Sheet 正確さの評価
A1: タイトル | B1: Ｎａ | E1: 解説１ | F1: 解説２ | G1: 判定上の注意点 | N1: 偏差 | V1: 標準化残差 | AE1: 行平均
A2: 認証値→ | B2: 127.7 | C2: 141.3 | D2: 156.5 | N2: =IF(B2<>"",B2,0) -> 127.7 | O2: =IF(C2<>"",C2,0) -> 141.3 | P2: 156.5 | Q2: 0 | R2: 0 | S2: 0 | T2: 0 | U2: 0 | V2: =IF(B2<>"",B2,0) -> 127.7 | W2: =IF(C2<>"",C2,0) -> 141.3 | X2: 156.5 | Y2: 0 | Z2: 0 | AA2: 0 | AB2: 0 | AC2: 0 | AE2: =IF(COUNTA(B2:I2)>0,AVERAGE(B2:I2),"") -> 141.8333333 | AF2: =IF(COUNTA(B2:I2)>0,$AE$28*((AE2-$AE$29)^2),"") -> 0.4987777778
A3: 拡張不確かさ (包含係数k=2) | B3: 0.38 | C3: 0.42 | D3: 0.47 | AH3: 1 | AI3: 2 | AJ3: 3 | AK3: 4 | AL3: 5 | AM3: 6 | AN3: 7 | AO3: 8
A4: 1 | B4: 128 | C4: 140.8 | D4: 155.3 | N4: =IF(B4<>"",B4-B$2,NA()) -> 0.3 | O4: =IF(C4<>"",C4-C$2,NA()) -> -0.5 | P4: -1.2 | V4: =IF(B4<>"",(B4-B$2)/$K$40,NA()) -> 1.569078098 | W4: =IF(C4<>"",(C4-C$2)/$K$40,NA()) -> -2.615130164 | X4: -6.276312394 | AE4: 141.3666667 | AF4: =IF(COUNTA(B4:I4)>0,$AE$28*((AE4-$AE$29)^2),"") -> 0.5921111111 | AH4: =IF(B4<>"",(B$2-$AE$30)*(B4-$AE$29),"") -> 192.3546667 | AI4: =IF(C4<>"",(C$2-$AE$30)*(C4-$AE$29),"") -> 0.432 | AJ4: 200.7866667
A5: 2 | B5: 128.1 | C5: 141 | D5: 155.2 | N5: =IF(B5<>"",B5-B$2,NA()) -> 0.4 | O5: -0.3 | P5: -1.3 | V5: =IF(B5<>"",(B5-B$2)/$K$40,NA()) -> 2.092104131 | W5: -1.569078098 | X5: -6.799338427 | AE5: 141.4333333 | AF5: 0.3121111111 | AH5: =IF(B5<>"",(B$2-$AE$30)*(B5-$AE$29),"") -> 190.9413333 | AI5: =IF(C5<>"",(C$2-$AE$30)*(C5-$AE$29),"") -> 0.3253333333 | AJ5: =IF(D5<>"",(D$2-$AE$30)*(D5-$AE$29),"") -> 199.32 | AK5: =IF(E5<>"",(E$2-$AE$30)*(E5-$AE$29),"") ->  | AL5: =IF(F5<>"",(F$2-$AE$30)*(F5-$AE$29),"") ->  | AM5: =IF(G5<>"",(G$2-$AE$30)*(G5-$AE$29),"") ->  | AN5: =IF(H5<>"",(H$2-$AE$30)*(H5-$AE$29),"") ->  | AO5: =IF(I5<>"",(I$2-$AE$30)*(I5-$AE$29),"") -> 
A6: 3 | B6: 128.4 | C6: 140.9 | D6: 155.7 | N6: 0.7 | O6: -0.4 | P6: -0.8 | V6: 3.66118223 | W6: -2.092104131 | X6: -4.184208263 | AE6: 141.6666667 | AF6: 0.03211111111 | AH6: 186.7013333 | AI6: 0.3786666667 | AJ6: 206.6533333
A7: 4 | B7: 128.2 | C7: 141.3 | D7: 155.6 | N7: 0.5 | O7: 0 | P7: -0.9 | V7: 2.615130164 | W7: 0 | X7: -4.707234295 | AE7: 141.7 | AF7: 0.081 | AH7: 189.528 | AI7: 0.1653333333 | AJ7: 205.1866667
A8: 5 | B8: 128.1 | C8: 141.1 | D8: 155.8 | N8: 0.4 | O8: -0.2 | P8: -0.7 | V8: 2.092104131 | W8: -1.046052066 | X8: -3.66118223 | AE8: 141.6666667 | AF8: 0.03211111111 | AH8: 190.9413333 | AI8: 0.272 | AJ8: 208.12
A9: 6 | B9: 128.3 | C9: 140.7 | D9: 155.7 | N9: 0.6 | O9: -0.6 | P9: -0.8 | V9: 3.138156197 | W9: -3.138156197 | X9: -4.184208263 | AE9: 141.5666667 | AF9: 0.01877777778 | AH9: 188.1146667 | AI9: 0.4853333333 | AJ9: 206.6533333
A10: 7 | B10: 128.2 | C10: 140.9 | D10: 155.6 | N10: 0.5 | O10: -0.4 | P10: -0.9 | V10: 2.615130164 | W10: -2.092104131 | X10: -4.707234295 | AE10: 141.5666667 | AF10: 0.01877777778 | AH10: 189.528 | AI10: 0.3786666667 | AJ10: 205.1866667
A11: 8 | B11: 128.3 | C11: 141.1 | D11: 156 | N11: 0.6 | O11: -0.2 | P11: -0.5 | V11: 3.138156197 | W11: -1.046052066 | X11: -2.615130164 | AE11: 141.8 | AF11: 0.361 | AH11: 188.1146667 | AI11: 0.272 | AJ11: 211.0533333
A12: 9 | B12: 128.3 | C12: 141.2 | D12: 155.8 | N12: 0.6 | O12: -0.1 | P12: -0.7 | V12: 3.138156197 | W12: -0.5230260328 | X12: -3.66118223 | AE12: 141.7666667 | AF12: 0.2454444444 | AH12: 188.1146667 | AI12: 0.2186666667 | AJ12: 208.12
A13: 10 | B13: 128.2 | C13: 141.1 | D13: 155.4 | N13: 0.5 | O13: -0.2 | P13: -1.1 | V13: 2.615130164 | W13: -1.046052066 | X13: -5.753286361 | AE13: 141.5666667 | AF13: 0.01877777778 | AH13: 189.528 | AI13: 0.272 | AJ13: 202.2533333
A14: 11
A15: 12
A16: 13
A17: 14
A18: 15
A19: 16
A20: 17 | O20: =IF(C20<>"",C20-C$2,NA()) ->  | W20: =IF(C20<>"",(C20-C$2)/$K$40,NA()) ->  | AD20: =6/160 -> 0.0375
A21: 18
A22: 19
A23: 20 | AE23: =IF(COUNTA(B23:I23)>0,AVERAGE(B23:I23),"") ->  | AH23: =IF(B23<>"",(B$2-$AE$30)*(B23-$AE$29),"") -> 
A24: 平 均 | B24: =IF(B4<>"",AVERAGE(B4:B23),"") -> 128.21 | C24: =IF(C4<>"",AVERAGE(C4:C23),"") -> 141.01 | D24: 155.61 | N24: =AVERAGE(N4:N23) ->  | O24: =AVERAGE(O4:O23) ->  | V24: =AVERAGE(V4:V23) ->  | W24: =AVERAGE(W4:W23) -> 
A25: S D | B25: =IF($B$27<>0,STDEV($B$4:$B$23),"") -> 0.1197219 | C25: =IF(C27<>0,STDEV(C4:C23),"") -> 0.1852925615 | D25: 0.2469817807 | N25: =STDEV(N4:N23) ->  | AD25: 計 | AE25: =SUM(AE4:AE23) -> 1416.1 | AF25: =SUM(AF4:AF23) -> 1.712222222 | AH25: =IF(B24<>"",$AE$28*B24-$AE$29^2,"") -> -18771.2921 | AI25: =IF(C24<>"",$AE$28*C24-$AE$29^2,"") -> -18643.2921 | AJ25: -18497.2921 | AP25: =SUM(AH25:AO25) -> -55911.8763
A26: C V | B26: =IF(B27<>0,B25/B24*100,"") -> 0.09337953356 | C26: =IF(C27<>0,C25/C24*100,"") -> 0.1314038447 | D26: 0.1587184504 | AD26: 全個数 | AE26: =COUNT(B4:I23) -> 30
A27: データ数 | B27: =IF(B24<>"",COUNT(B4:B23),"") -> 10 | C27: =COUNT(C4:C23) -> 10 | D27: 10 | E27: 0 | F27: 0 | G27: =COUNT(G4:G23) -> 0 | H27: 0 | I27: 0 | AD27: 列数( n) | AE27: =COUNT(B24:I24) -> 3 | AH27: 20150627 新たに計算式を組み立てる
A28: 許容誤差限界外数 | B28: =COUNTIF(B4:B23,"<"&B31)+COUNTIF(B4:B23,">"&B32) -> 0 | C28: =COUNTIF(C4:C23,"<"&C31)+COUNTIF(C4:C23,">"&C32) -> 0 | D28: 0 | E28: 0 | F28: 0 | G28: 0 | H28: 0 | I28: 0 | N28: 信頼区間の判定 | AD28: 行数( q ) | AE28: =COUNT(AE4:AE23) -> 10
A29: 平均値の信頼区間下限 | B29: =IF(B27>0,B24-B33*B25/B27^0.5,"") -> 128.1243561 | C29: =IF(C27>0,C24-C33*C25/C27^0.5,"") -> 140.8774497 | D29: 155.4333199 | N29: =IF(B3<>"",IF(B29<B31,B29,0),0) -> 0 | O29: =IF(C3<>"",IF(C29<C31,C29,0),0) -> 0 | P29: 0 | Q29: 0 | R29: 0 | S29: 0 | T29: 0 | U29: 0 | AD29: 全平均 Ｙ | AE29: =AVERAGE(B4:I23) -> 141.61 | AH29: =IF(B24<>"",(B24-$AE$29)^2,"") -> 179.56 | AI29: =IF(C24<>"",(C24-$AE$29)^2,"") -> 0.36 | AJ29: 196 | AP29: =SUM(AH29:AO29) -> 375.92
A30: 平均値の信頼区間上限 | B30: =IF(B27>0,B24+B33*B25/B27^0.5,"") -> 128.2956439 | C30: =IF(C27>0,C24+C33*C25/C27^0.5,"") -> 141.1425503 | D30: 155.7866801 | N30: =IF(B3<>"",IF(B30>B32,B30,0),0) -> 0 | O30: =IF(C3<>"",IF(C30>C32,C30,0),0) -> 0 | P30: 0 | Q30: 0 | R30: 0 | S30: 0 | T30: 0 | U30: 0 | AD30: Ｘの平均 | AE30: =AVERAGE(B2:I2) -> 141.8333333 | AH30: =IF(B2<>"",B2^2,"") -> 16307.29 | AI30: =IF(C2<>"",C2^2,"") -> 19965.69 | AJ30: 24492.25 | AP30: =SUM(AH30:AO30) -> 60765.23
A31: 平均値の 95%信頼区間 | B31: =IF(B$34<>"",B$24-2*((B$3/2)^2+B$25^2)^0.5,"") -> 127.7608527 | C31: =IF(C$34<>"",C$24-2*((C$3/2)^2+C$25^2)^0.5,"") -> 140.449881 | D31: =IF(D$34<>"",D$24-2*((D$3/2)^2+D$25^2)^0.5,"") -> 154.9281642 | AD31: ＳＸＹ | AE31: =SUM(AH4:AO23) -> 3950.4 | AF31: =SUM(AH4:AO23) -> 3950.4 | AH31: SB | AI31: =AE31^2/AE32 -> 3759.071531
B32: =IF(B$34<>"",B$24+2*((B$3/2)^2+B$25^2)^0.5,"") -> 128.6591473 | C32: =IF(C$34<>"",C$24+2*((C$3/2)^2+C$25^2)^0.5,"") -> 141.570119 | D32: 156.2918358 | AD32: ＳＸＸ | AE32: =DEVSQ($B$2:$I$2)*$AE$28 -> 4151.466667 | AH32: SL | AI32: =AE28*AP29-AI31 -> 0.1284686536
A33: t0.05(n-1) | B33: =IF(B27<>0,TINV(0.05,B27-1),"") -> 2.262157163 | C33: =IF(C27<>0,TINV(0.05,C27-1),"") -> 2.262157163 | D33: 2.262157163 | P33: =COUNT(B4:I23) -> 30 | AD33: SYY | AE33: =DEVSQ($B$4:$I$23) -> 3760.187 | AH33: SE | AI33: =AE33-AP29*AE28 -> 0.987
A34: バラツキの標準誤差 | B34: =IF(B27<>0,2*((B25/B27^0.5)^2+(B3/2)^2)^0.5,"") -> 0.387470429 | C34: =IF(C27<>0,2*((C25/C27^0.5)^2+(C3/2)^2)^0.5,"") -> 0.4360428114 | D34: =IF(D27<>0,2*((D25/D27^0.5)^2+(D3/2)^2)^0.5,"") -> 0.4952776999 | P34: =SUM(B28:I28) -> 0 | AD34: ＳＲ | AE34: 32775.19785 | AF34: =AP25-AE31^2/AE32 -> -59670.94783 | AH34: Syx | AI34: =(AI33/(AE26-AE27))^0.5 -> 0.191195072
A35: Δm | B35: =IF(B27<>0,ABS(B24-B2),"") -> 0.51 | C35: =IF(C27<>0,ABS(C24-C2),"") -> 0.29 | D35: 0.89 | J35: 回帰の評価 | AD35: Sb | AE35: =((AE33-K38*AE31)/(AE26-2))^0.5/AE32^0.5 -> 0.00309776802 | AF35: =(L40/AE32^0.5) -> 0.00309776802 | AH35: F0 | AI35: =(AI32/(AE27-2))/(AI33/(AE26-AE27)) -> 3.514340069 | AJ35: ⇐直線性の評価
J36: 直線性検定 F = | K36: =IF(AE27>2,AI35,"") -> 3.514340069 | AD36: Tb | AE36: 0.2486223679 | AH36: FP | AI36: =FDIST(AI35,AE27-2,AE26-AE27) -> 0.07169694883 | AJ36: ⇐Fの確率
J37: F の片側確率 ＝ | K37: =IF(AE27>2,AI36,"") -> 0.07169694883 | AD37: T確率 | AE37: =TDIST(AE36,$AE$27*$AE$28-$AE$27,2) -> 0.8055343163 | AH37: tb | AI37: =(ABS(K38-1)*AE32^0.5)/AI34 -> 16.32159534
J38: 傾き b ＝ | K38: =IF(ISERR(SLOPE(B24:I24,B2:I2)),"",SLOPE(B24:I24,B2:I2)) -> 0.9515673176 | AD38: Ｔａ | AE38: 0.22196023 | AH38: tbP | AI38: =_xlfn.T.DIST(AI37,AE26-AE27,FALSE) -> 1.23496716e-15
J39: 切片 a ＝ | K39: =IF(ISERR(INTERCEPT(B24:I24,B2:I2)),"",INTERCEPT(B24:I24,B2:I2)) -> 6.646035457 | AD39: T確率 | AE39: =TDIST(AE38,$AE$27*$AE$28-$AE$27,2) -> 0.8260151684 | AH39: ta | AI39: =(ABS(K39)/AI34)*((AE27*AE32)/(AP30))^0.5 -> 15.73692198
J40: Syx ＝ | K40: =AI34 -> 0.191195072 | L40: =(($AE$33-2*$K$38*$AE$31+$K$38^2*$AE$32)/(AE26-2))^0.5 -> 0.1995950055 | AH40: taP | AI40: =_xlfn.T.DIST(AI39,AE26-AE27,FALSE) -> 3.11209036e-15
J41: Tb ＝ | K41: =AI37 -> 16.32159534
J42: Ｔｂ 確率＝ | K42: =AI38 -> 1.23496716e-15
J43: Ta ＝ | K43: =AI39 -> 15.73692198
J44: Ｔａ 確率＝ | K44: =AI40 -> 3.11209036e-15
J45: =IF(AE27>2,IF(K37>0.05,"F 確率より有意水準 0.05 以上から直線性あり！","F 確率より有意水準 0.05 以下から直線性はない！"),"") -> F 確率より有意水準 0.05 以上から直線性あり！
J46: =IF(K42>0.05,"Ｔb 確率より有意水準 0.05 以上から比例系統誤差は認められない！","Ｔb 確率より有意水準 0.05 以下から比例系統誤差が認められる！") -> Ｔb 確率より有意水準 0.05 以下から比例系統誤差が認められる！
J47: =IF(K44>0.05,"Ｔa 確率より有意水準 0.05 以上から一定系統誤差は認められない！","Ｔa 確率より有意水準 0.05 以下から一定系統誤差が認められる！") -> Ｔa 確率より有意水準 0.05 以下から一定系統誤差が認められる！
B50: 測定値 | C50: 認証値
A51: 上限 | B51: =B32 -> 128.6591473
A52: 下限 | B52: =B31 -> 127.7608527
A53: 平均 | B53: =B24 -> 128.21 | C53: =B2 -> 127.7
B54: 測定値 | C54: 認証値
A55: 上限 | B55: =C32 -> 141.570119
A56: 下限 | B56: =C31 -> 140.449881
A57: 平均 | B57: =C24 -> 141.01 | C57: =C2 -> 141.3
B58: 測定値 | C58: 認証値
A59: 上限 | B59: =D32 -> 156.2918358
A60: 下限 | B60: =D31 -> 154.9281642
A61: 平均 | B61: =D24 -> 155.61 | C61: =D2 -> 156.5
B62: 測定値 | C62: 認証値
A63: 上限 | B63: =E32 -> 
A64: 下限 | B64: =E31 -> 
A65: 平均 | B65: =E24 ->  | C65: =E2 -> 0
B66: 測定値 | C66: 認証値
A67: 上限 | B67: =F32 -> 
A68: 下限 | B68: =F31 -> 
A69: 平均 | B69: =F24 ->  | C69: =F2 -> 0
B70: 測定値 | C70: 認証値
A71: 上限 | B71: =G32 -> 
A72: 下限 | B72: =G31 -> 
A73: 平均 | B73: =G24 ->  | C73: =G2 -> 0
B74: 測定値 | C74: 認証値
A75: 上限 | B75: =H32 -> 
A76: 下限 | B76: =H31 -> 
A77: 平均 | B77: =H24 ->  | C77: =H2 -> 0
B78: 測定値 | C78: 認証値
A79: 上限 | B79: =I32 -> 
A80: 下限 | B80: =I31 -> 
A81: 平均 | B81: =I24 ->  | C81: =I2 -> 0
B91: 10 | C91: 60 | D91: 110 | E91: 160 | F91: 436
B92: 1 | C92: 2 | D92: 3 | E92: 5 | F92: 5
B93: 12 | C93: 60 | D93: 112 | E93: 160 | F93: 436
B94: 11 | C94: 62 | D94: 111 | E94: 158 | F94: 436
B95: 10 | C95: 68 | D95: 110 | E95: 160 | F95: 436
B96: 10 | C96: 61 | D96: 111 | E96: 160 | F96: 434
B97: 12 | C97: 61 | D97: 110 | E97: 161 | F97: 435
B98: 13 | C98: 60 | D98: 110 | E98: 162 | F98: 434
B99: 11 | C99: 58 | D99: 109 | E99: 157 | F99: 437
B100: 9 | C100: 59 | D100: 108 | E100: 159 | F100: 437
B101: 11 | C101: 60 | D101: 112 | E101: 160 | F101: 437
B102: 10 | C102: 63 | D102: 109 | E102: 162 | F102: 435
B104: Dimension
B105: 127.7 | C105: 141.3 | D105: 156.5
B106: 0.4 | C106: 0.5 | D106: 0.5
B107: 127.21 | C107: 141.06 | D107: 154.82
B108: 128.06 | C108: 139.94 | D108: 155.36
B109: 127.13 | C109: 140.26 | D109: 154.12
B110: 128 | C110: 140.16 | D110: 154.67
B111: 127.18 | C111: 141.19 | D111: 155.67
B112: 127.09 | C112: 141.83 | D112: 155.16
B113: 128.57 | C113: 139.97 | D113: 154.08
B114: 126.67 | C114: 143.02 | D114: 157.31
B115: 127.24 | C115: 143.86 | D115: 155.85
B116: 128.54 | C116: 142.47 | D116: 154.28
B119: 3.49 | C119: 4.48 | D119: 5.59
B120: 0.02 | C120: 0.02 | D120: 0.03
B121: 3.39 | C121: 4.41 | D121: 5.5
B122: 3.41 | C122: 4.37 | D122: 5.52
B123: 3.39 | C123: 4.4 | D123: 5.48
B124: 3.41 | C124: 4.38 | D124: 5.5
B125: 3.39 | C125: 4.42 | D125: 5.54
B126: 3.38 | C126: 4.44 | D126: 5.51
B127: 3.42 | C127: 4.38 | D127: 5.48
B128: 3.38 | C128: 4.48 | D128: 5.59
B129: 3.4 | C129: 4.49 | D129: 5.53
B130: 3.43 | C130: 4.45 | D130: 5.49
B134: 88 | C134: 102 | D134: 118.7
B135: 0.3 | C135: 0.4 | D135: 0.5
B136: 89.3 | C136: 104 | D136: 118.5
B137: 89.4 | C137: 102.9 | D137: 119.1
B138: 88.7 | C138: 103.5 | D138: 118.7
B139: 88.9 | C139: 103.3 | D139: 118.9
B140: 88.4 | C140: 104.3 | D140: 119.4
B141: 88.8 | C141: 105.4 | D141: 119
B142: 89.4 | C142: 103.7 | D142: 118.8
B143: 88.9 | C143: 106.1 | D143: 120.4
B144: 88.9 | C144: 106 | D144: 119.4
B145: 88.9 | C145: 105.1 | D145: 118.8
B147: Na (EA07)
B148: 127.7 | C148: 141.3 | D148: 156.5
B149: 0.4 | C149: 0.5 | D149: 0.5
B150: 127.7 | C150: 140.7 | D150: 155.3
B151: 127.9 | C151: 140.5 | D151: 154.8
B152: 127.7 | C152: 140.8 | D152: 155.7
B153: 128 | C153: 140.8 | D153: 156.1
B154: 128.1 | C154: 140.6 | D154: 155.8
B155: 128.3 | C155: 141.6 | D155: 155.7
B156: 128.9 | C156: 141.2 | D156: 155.6
B157: 128.3 | C157: 141.3 | D157: 156
B158: 128.3 | C158: 141.2 | D158: 155.6
B159: 128.2 | C159: 141.4 | D159: 156.2
B161: K (EA07)
B162: 3.49 | C162: 4.48 | D162: 5.59
B163: 0.02 | C163: 0.02 | D163: 0.03
B164: 3.49 | C164: 4.46 | D164: 5.59
B165: 3.5 | C165: 4.46 | D165: 5.57
B166: 3.5 | C166: 4.48 | D166: 5.59
B167: 3.5 | C167: 4.48 | D167: 5.63
B168: 3.5 | C168: 4.47 | D168: 5.6
B169: 3.51 | C169: 4.5 | D169: 5.62
B170: 3.5 | C170: 4.5 | D170: 5.59
B171: 3.51 | C171: 4.5 | D171: 5.61
B172: 3.5 | C172: 4.49 | D172: 5.61
B173: 3.5 | C173: 4.5 | D173: 5.62
B177: Cl (EA07)
B178: 88 | C178: 102 | D178: 118.7
B179: 0.3 | C179: 0.4 | D179: 0.5
B180: 88.3 | C180: 103.2 | D180: 119.5
B181: 88.4 | C181: 103.2 | D181: 119.3
B182: 88.4 | C182: 103.5 | D182: 119.8
B183: 88.4 | C183: 103.3 | D183: 120
B184: 88.6 | C184: 103.4 | D184: 119.5
B185: 88.7 | C185: 104.1 | D185: 120
B186: 88.7 | C186: 104.2 | D186: 119.4
B187: 88.5 | C187: 104.1 | D187: 119.8
B188: 88.3 | C188: 103.7 | D188: 119.7
B189: 88.5 | C189: 103.9 | D189: 120.2

Sheet 相関分析
C1: 解 説 | AM1: Spearmanの相関係数用 | AO1: Sｘｙ：= | AP1: =COVAR(AN5:AN1304,AO5:AO1304)*$M$5 -> 9953.588235 | AQ1: =COVAR(AP5:AP504,AQ5:AQ504)*O5 ->  | AX1: =COUNT(BB1:BKL1) -> 501 | AY1: =SMALL(BB1:BIB1,11) -> 0.7302766534 | AZ1: =LARGE(BB1:BIB1,12) -> 1.334116847 | BA1: Deming b= | BB1: =(BC9-$M$34*BB9+((BC9-$M$34*BB9)^2+4*$M$34*BB8^2)^0.5)/(2*BB8) -> 0.7371382925 | BE1: =(BF9-$M$34*BE9+((BF9-$M$34*BE9)^2+4*$M$34*BE8^2)^0.5)/(2*BE8) -> 1.196057518 | BH1: =(BI9-$M$34*BH9+((BI9-$M$34*BH9)^2+4*$M$34*BH8^2)^0.5)/(2*BH8) -> 0.9778786348 | BK1: =(BL9-$M$34*BK9+((BL9-$M$34*BK9)^2+4*$M$34*BK8^2)^0.5)/(2*BK8) -> 1.194755652 | BN1: =(BO9-$M$34*BN9+((BO9-$M$34*BN9)^2+4*$M$34*BN8^2)^0.5)/(2*BN8) -> 0.8232602284 | BQ1: =(BR9-$M$34*BQ9+((BR9-$M$34*BQ9)^2+4*$M$34*BQ8^2)^0.5)/(2*BQ8) -> 1.195346484 | BT1: =(BU9-$M$34*BT9+((BU9-$M$34*BT9)^2+4*$M$34*BT8^2)^0.5)/(2*BT8) -> 1.2558196 | BW1: =(BX9-$M$34*BW9+((BX9-$M$34*BW9)^2+4*$M$34*BW8^2)^0.5)/(2*BW8) -> 1.192779973 | BZ1: =(CA9-$M$34*BZ9+((CA9-$M$34*BZ9)^2+4*$M$34*BZ8^2)^0.5)/(2*BZ8) -> 0.7616389764 | CC1: =(CD9-$M$34*CC9+((CD9-$M$34*CC9)^2+4*$M$34*CC8^2)^0.5)/(2*CC8) -> 1.017567344 | CF1: =(CG9-$M$34*CF9+((CG9-$M$34*CF9)^2+4*$M$34*CF8^2)^0.5)/(2*CF8) -> 0.7745876079 | CI1: =(CJ9-$M$34*CI9+((CJ9-$M$34*CI9)^2+4*$M$34*CI8^2)^0.5)/(2*CI8) -> 1.180367368 | CL1: =(CM9-$M$34*CL9+((CM9-$M$34*CL9)^2+4*$M$34*CL8^2)^0.5)/(2*CL8) -> 0.8308737487 | CO1: =(CP9-$M$34*CO9+((CP9-$M$34*CO9)^2+4*$M$34*CO8^2)^0.5)/(2*CO8) -> 0.8303783935 | CR1: =(CS9-$M$34*CR9+((CS9-$M$34*CR9)^2+4*$M$34*CR8^2)^0.5)/(2*CR8) -> 0.8351248538 | CU1: =(CV9-$M$34*CU9+((CV9-$M$34*CU9)^2+4*$M$34*CU8^2)^0.5)/(2*CU8) -> 0.7702867864 | CX1: =(CY9-$M$34*CX9+((CY9-$M$34*CX9)^2+4*$M$34*CX8^2)^0.5)/(2*CX8) -> 0.8316304614 | DA1: =(DB9-$M$34*DA9+((DB9-$M$34*DA9)^2+4*$M$34*DA8^2)^0.5)/(2*DA8) -> 0.8084486997 | DD1: =(DE9-$M$34*DD9+((DE9-$M$34*DD9)^2+4*$M$34*DD8^2)^0.5)/(2*DD8) -> 1.250566373 | DG1: =(DH9-$M$34*DG9+((DH9-$M$34*DG9)^2+4*$M$34*DG8^2)^0.5)/(2*DG8) -> 0.7726280599 | DJ1: =(DK9-$M$34*DJ9+((DK9-$M$34*DJ9)^2+4*$M$34*DJ8^2)^0.5)/(2*DJ8) -> 0.8231777238 | DM1: =(DN9-$M$34*DM9+((DN9-$M$34*DM9)^2+4*$M$34*DM8^2)^0.5)/(2*DM8) -> 1.203696999 | DP1: =(DQ9-$M$34*DP9+((DQ9-$M$34*DP9)^2+4*$M$34*DP8^2)^0.5)/(2*DP8) -> 1.094245068 | DS1: =(DT9-$M$34*DS9+((DT9-$M$34*DS9)^2+4*$M$34*DS8^2)^0.5)/(2*DS8) -> 1.017651222 | DV1: =(DW9-$M$34*DV9+((DW9-$M$34*DV9)^2+4*$M$34*DV8^2)^0.5)/(2*DV8) -> 0.8427527852 | DY1: =(DZ9-$M$34*DY9+((DZ9-$M$34*DY9)^2+4*$M$34*DY8^2)^0.5)/(2*DY8) -> 0.7945629854 | EB1: =(EC9-$M$34*EB9+((EC9-$M$34*EB9)^2+4*$M$34*EB8^2)^0.5)/(2*EB8) -> 1.290638288 | EE1: =(EF9-$M$34*EE9+((EF9-$M$34*EE9)^2+4*$M$34*EE8^2)^0.5)/(2*EE8) -> 0.8400419458 | EH1: =(EI9-$M$34*EH9+((EI9-$M$34*EH9)^2+4*$M$34*EH8^2)^0.5)/(2*EH8) -> 0.7210668292 | EK1: =(EL9-$M$34*EK9+((EL9-$M$34*EK9)^2+4*$M$34*EK8^2)^0.5)/(2*EK8) -> 0.8621547168 | EN1: =(EO9-$M$34*EN9+((EO9-$M$34*EN9)^2+4*$M$34*EN8^2)^0.5)/(2*EN8) -> 1.01449569 | EQ1: =(ER9-$M$34*EQ9+((ER9-$M$34*EQ9)^2+4*$M$34*EQ8^2)^0.5)/(2*EQ8) -> 1.217392796 | ET1: =(EU9-$M$34*ET9+((EU9-$M$34*ET9)^2+4*$M$34*ET8^2)^0.5)/(2*ET8) -> 0.7743342753 | EW1: =(EX9-$M$34*EW9+((EX9-$M$34*EW9)^2+4*$M$34*EW8^2)^0.5)/(2*EW8) -> 0.7381633714 | EZ1: =(FA9-$M$34*EZ9+((FA9-$M$34*EZ9)^2+4*$M$34*EZ8^2)^0.5)/(2*EZ8) -> 0.8245511784 | FC1: =(FD9-$M$34*FC9+((FD9-$M$34*FC9)^2+4*$M$34*FC8^2)^0.5)/(2*FC8) -> 1.075951181 | FF1: =(FG9-$M$34*FF9+((FG9-$M$34*FF9)^2+4*$M$34*FF8^2)^0.5)/(2*FF8) -> 0.8078597936 | FI1: =(FJ9-$M$34*FI9+((FJ9-$M$34*FI9)^2+4*$M$34*FI8^2)^0.5)/(2*FI8) -> 0.8064462676 | FL1: =(FM9-$M$34*FL9+((FM9-$M$34*FL9)^2+4*$M$34*FL8^2)^0.5)/(2*FL8) -> 0.8618493736 | FO1: =(FP9-$M$34*FO9+((FP9-$M$34*FO9)^2+4*$M$34*FO8^2)^0.5)/(2*FO8) -> 1.471161282 | FR1: =(FS9-$M$34*FR9+((FS9-$M$34*FR9)^2+4*$M$34*FR8^2)^0.5)/(2*FR8) -> 0.7484423394 | FU1: =(FV9-$M$34*FU9+((FV9-$M$34*FU9)^2+4*$M$34*FU8^2)^0.5)/(2*FU8) -> 0.8424807625 | FX1: =(FY9-$M$34*FX9+((FY9-$M$34*FX9)^2+4*$M$34*FX8^2)^0.5)/(2*FX8) -> 0.7171112027 | GA1: =(GB9-$M$34*GA9+((GB9-$M$34*GA9)^2+4*$M$34*GA8^2)^0.5)/(2*GA8) -> 0.9941465874 | GD1: =(GE9-$M$34*GD9+((GE9-$M$34*GD9)^2+4*$M$34*GD8^2)^0.5)/(2*GD8) -> 0.7419463433 | GG1: =(GH9-$M$34*GG9+((GH9-$M$34*GG9)^2+4*$M$34*GG8^2)^0.5)/(2*GG8) -> 1.400879043 | GJ1: =(GK9-$M$34*GJ9+((GK9-$M$34*GJ9)^2+4*$M$34*GJ8^2)^0.5)/(2*GJ8) -> 0.8158108575 | GM1: =(GN9-$M$34*GM9+((GN9-$M$34*GM9)^2+4*$M$34*GM8^2)^0.5)/(2*GM8) -> 0.8195512306 | GP1: =(GQ9-$M$34*GP9+((GQ9-$M$34*GP9)^2+4*$M$34*GP8^2)^0.5)/(2*GP8) -> 0.7507887827 | GS1: =(GT9-$M$34*GS9+((GT9-$M$34*GS9)^2+4*$M$34*GS8^2)^0.5)/(2*GS8) -> 1.197184254 | GV1: =(GW9-$M$34*GV9+((GW9-$M$34*GV9)^2+4*$M$34*GV8^2)^0.5)/(2*GV8) -> 0.9846676691 | GY1: =(GZ9-$M$34*GY9+((GZ9-$M$34*GY9)^2+4*$M$34*GY8^2)^0.5)/(2*GY8) -> 0.7194848145 | HB1: =(HC9-$M$34*HB9+((HC9-$M$34*HB9)^2+4*$M$34*HB8^2)^0.5)/(2*HB8) -> 0.8701038582 | HE1: =(HF9-$M$34*HE9+((HF9-$M$34*HE9)^2+4*$M$34*HE8^2)^0.5)/(2*HE8) -> 0.7820986112 | HH1: =(HI9-$M$34*HH9+((HI9-$M$34*HH9)^2+4*$M$34*HH8^2)^0.5)/(2*HH8) -> 1.126254258 | HK1: =(HL9-$M$34*HK9+((HL9-$M$34*HK9)^2+4*$M$34*HK8^2)^0.5)/(2*HK8) -> 0.8303244749 | HN1: =(HO9-$M$34*HN9+((HO9-$M$34*HN9)^2+4*$M$34*HN8^2)^0.5)/(2*HN8) -> 1.266493437 | HQ1: =(HR9-$M$34*HQ9+((HR9-$M$34*HQ9)^2+4*$M$34*HQ8^2)^0.5)/(2*HQ8) -> 0.7550961984 | HT1: =(HU9-$M$34*HT9+((HU9-$M$34*HT9)^2+4*$M$34*HT8^2)^0.5)/(2*HT8) -> 0.8154652137 | HW1: =(HX9-$M$34*HW9+((HX9-$M$34*HW9)^2+4*$M$34*HW8^2)^0.5)/(2*HW8) -> 1.1119746 | HZ1: =(IA9-$M$34*HZ9+((IA9-$M$34*HZ9)^2+4*$M$34*HZ8^2)^0.5)/(2*HZ8) -> 0.8225672725 | IC1: =(ID9-$M$34*IC9+((ID9-$M$34*IC9)^2+4*$M$34*IC8^2)^0.5)/(2*IC8) -> 0.8429826708 | IF1: =(IG9-$M$34*IF9+((IG9-$M$34*IF9)^2+4*$M$34*IF8^2)^0.5)/(2*IF8) -> 0.8242385855 | II1: =(IJ9-$M$34*II9+((IJ9-$M$34*II9)^2+4*$M$34*II8^2)^0.5)/(2*II8) -> 0.789904231 | IL1: =(IM9-$M$34*IL9+((IM9-$M$34*IL9)^2+4*$M$34*IL8^2)^0.5)/(2*IL8) -> 0.7103589491 | IO1: =(IP9-$M$34*IO9+((IP9-$M$34*IO9)^2+4*$M$34*IO8^2)^0.5)/(2*IO8) -> 0.7505141943 | IR1: =(IS9-$M$34*IR9+((IS9-$M$34*IR9)^2+4*$M$34*IR8^2)^0.5)/(2*IR8) -> 0.8314833429 | IU1: =(IV9-$M$34*IU9+((IV9-$M$34*IU9)^2+4*$M$34*IU8^2)^0.5)/(2*IU8) -> 1.12766514 | IX1: =(IY9-$M$34*IX9+((IY9-$M$34*IX9)^2+4*$M$34*IX8^2)^0.5)/(2*IX8) -> 0.7727596702 | JA1: =(JB9-$M$34*JA9+((JB9-$M$34*JA9)^2+4*$M$34*JA8^2)^0.5)/(2*JA8) -> 0.7737924228 | JD1: =(JE9-$M$34*JD9+((JE9-$M$34*JD9)^2+4*$M$34*JD8^2)^0.5)/(2*JD8) -> 0.7741592661 | JG1: =(JH9-$M$34*JG9+((JH9-$M$34*JG9)^2+4*$M$34*JG8^2)^0.5)/(2*JG8) -> 0.8122953567 | JJ1: =(JK9-$M$34*JJ9+((JK9-$M$34*JJ9)^2+4*$M$34*JJ8^2)^0.5)/(2*JJ8) -> 0.8672372427 | JM1: =(JN9-$M$34*JM9+((JN9-$M$34*JM9)^2+4*$M$34*JM8^2)^0.5)/(2*JM8) -> 0.8395017574 | JP1: =(JQ9-$M$34*JP9+((JQ9-$M$34*JP9)^2+4*$M$34*JP8^2)^0.5)/(2*JP8) -> 0.7742501762 | JS1: =(JT9-$M$34*JS9+((JT9-$M$34*JS9)^2+4*$M$34*JS8^2)^0.5)/(2*JS8) -> 0.834996797 | JV1: =(JW9-$M$34*JV9+((JW9-$M$34*JV9)^2+4*$M$34*JV8^2)^0.5)/(2*JV8) -> 0.8183317701 | JY1: =(JZ9-$M$34*JY9+((JZ9-$M$34*JY9)^2+4*$M$34*JY8^2)^0.5)/(2*JY8) -> 0.7898968077 | KB1: =(KC9-$M$34*KB9+((KC9-$M$34*KB9)^2+4*$M$34*KB8^2)^0.5)/(2*KB8) -> 0.8120889207 | KE1: =(KF9-$M$34*KE9+((KF9-$M$34*KE9)^2+4*$M$34*KE8^2)^0.5)/(2*KE8) -> 0.8162498468 | KH1: =(KI9-$M$34*KH9+((KI9-$M$34*KH9)^2+4*$M$34*KH8^2)^0.5)/(2*KH8) -> 1.19395684 | KK1: =(KL9-$M$34*KK9+((KL9-$M$34*KK9)^2+4*$M$34*KK8^2)^0.5)/(2*KK8) -> 0.8431022258 | KN1: =(KO9-$M$34*KN9+((KO9-$M$34*KN9)^2+4*$M$34*KN8^2)^0.5)/(2*KN8) -> 0.7945411661 | KQ1: =(KR9-$M$34*KQ9+((KR9-$M$34*KQ9)^2+4*$M$34*KQ8^2)^0.5)/(2*KQ8) -> 0.8529005128 | KT1: =(KU9-$M$34*KT9+((KU9-$M$34*KT9)^2+4*$M$34*KT8^2)^0.5)/(2*KT8) -> 1.117504392 | KW1: =(KX9-$M$34*KW9+((KX9-$M$34*KW9)^2+4*$M$34*KW8^2)^0.5)/(2*KW8) -> 1.142394265 | KZ1: =(LA9-$M$34*KZ9+((LA9-$M$34*KZ9)^2+4*$M$34*KZ8^2)^0.5)/(2*KZ8) -> 0.7744927605 | LC1: =(LD9-$M$34*LC9+((LD9-$M$34*LC9)^2+4*$M$34*LC8^2)^0.5)/(2*LC8) -> 1.078341388 | LF1: =(LG9-$M$34*LF9+((LG9-$M$34*LF9)^2+4*$M$34*LF8^2)^0.5)/(2*LF8) -> 1.113878187 | LI1: =(LJ9-$M$34*LI9+((LJ9-$M$34*LI9)^2+4*$M$34*LI8^2)^0.5)/(2*LI8) -> 0.7833885733 | LL1: =(LM9-$M$34*LL9+((LM9-$M$34*LL9)^2+4*$M$34*LL8^2)^0.5)/(2*LL8) -> 0.9722248913 | LO1: =(LP9-$M$34*LO9+((LP9-$M$34*LO9)^2+4*$M$34*LO8^2)^0.5)/(2*LO8) -> 0.7565037917 | LR1: =(LS9-$M$34*LR9+((LS9-$M$34*LR9)^2+4*$M$34*LR8^2)^0.5)/(2*LR8) -> 1.149100627 | LU1: =(LV9-$M$34*LU9+((LV9-$M$34*LU9)^2+4*$M$34*LU8^2)^0.5)/(2*LU8) -> 0.843567427 | LX1: =(LY9-$M$34*LX9+((LY9-$M$34*LX9)^2+4*$M$34*LX8^2)^0.5)/(2*LX8) -> 1.243233187 | MA1: =(MB9-$M$34*MA9+((MB9-$M$34*MA9)^2+4*$M$34*MA8^2)^0.5)/(2*MA8) -> 1.25882543 | MD1: =(ME9-$M$34*MD9+((ME9-$M$34*MD9)^2+4*$M$34*MD8^2)^0.5)/(2*MD8) -> 0.7703617234 | MG1: =(MH9-$M$34*MG9+((MH9-$M$34*MG9)^2+4*$M$34*MG8^2)^0.5)/(2*MG8) -> 1.229524838 | MJ1: =(MK9-$M$34*MJ9+((MK9-$M$34*MJ9)^2+4*$M$34*MJ8^2)^0.5)/(2*MJ8) -> 1.040975499 | MM1: =(MN9-$M$34*MM9+((MN9-$M$34*MM9)^2+4*$M$34*MM8^2)^0.5)/(2*MM8) -> 0.7161737517 | MP1: =(MQ9-$M$34*MP9+((MQ9-$M$34*MP9)^2+4*$M$34*MP8^2)^0.5)/(2*MP8) -> 0.8005286853 | MS1: =(MT9-$M$34*MS9+((MT9-$M$34*MS9)^2+4*$M$34*MS8^2)^0.5)/(2*MS8) -> 0.7641647124 | MV1: =(MW9-$M$34*MV9+((MW9-$M$34*MV9)^2+4*$M$34*MV8^2)^0.5)/(2*MV8) -> 0.7953442791 | MY1: =(MZ9-$M$34*MY9+((MZ9-$M$34*MY9)^2+4*$M$34*MY8^2)^0.5)/(2*MY8) -> 1.104548586 | NB1: =(NC9-$M$34*NB9+((NC9-$M$34*NB9)^2+4*$M$34*NB8^2)^0.5)/(2*NB8) -> 1.23698337 | NE1: =(NF9-$M$34*NE9+((NF9-$M$34*NE9)^2+4*$M$34*NE8^2)^0.5)/(2*NE8) -> 0.7963944228 | NH1: =(NI9-$M$34*NH9+((NI9-$M$34*NH9)^2+4*$M$34*NH8^2)^0.5)/(2*NH8) -> 0.7920153122 | NK1: =(NL9-$M$34*NK9+((NL9-$M$34*NK9)^2+4*$M$34*NK8^2)^0.5)/(2*NK8) -> 1.087252121 | NN1: =(NO9-$M$34*NN9+((NO9-$M$34*NN9)^2+4*$M$34*NN8^2)^0.5)/(2*NN8) -> 0.7780728561 | NQ1: =(NR9-$M$34*NQ9+((NR9-$M$34*NQ9)^2+4*$M$34*NQ8^2)^0.5)/(2*NQ8) -> 0.8391774313 | NT1: =(NU9-$M$34*NT9+((NU9-$M$34*NT9)^2+4*$M$34*NT8^2)^0.5)/(2*NT8) -> 0.8676557857 | NW1: =(NX9-$M$34*NW9+((NX9-$M$34*NW9)^2+4*$M$34*NW8^2)^0.5)/(2*NW8) -> 1.100239924 | NZ1: =(OA9-$M$34*NZ9+((OA9-$M$34*NZ9)^2+4*$M$34*NZ8^2)^0.5)/(2*NZ8) -> 0.7424031322 | OC1: =(OD9-$M$34*OC9+((OD9-$M$34*OC9)^2+4*$M$34*OC8^2)^0.5)/(2*OC8) -> 1.159476682 | OF1: =(OG9-$M$34*OF9+((OG9-$M$34*OF9)^2+4*$M$34*OF8^2)^0.5)/(2*OF8) -> 0.8483262572 | OI1: =(OJ9-$M$34*OI9+((OJ9-$M$34*OI9)^2+4*$M$34*OI8^2)^0.5)/(2*OI8) -> 1.087660463 | OL1: =(OM9-$M$34*OL9+((OM9-$M$34*OL9)^2+4*$M$34*OL8^2)^0.5)/(2*OL8) -> 0.7502104903 | OO1: =(OP9-$M$34*OO9+((OP9-$M$34*OO9)^2+4*$M$34*OO8^2)^0.5)/(2*OO8) -> 0.7708024356 | OR1: =(OS9-$M$34*OR9+((OS9-$M$34*OR9)^2+4*$M$34*OR8^2)^0.5)/(2*OR8) -> 0.7704734371 | OU1: =(OV9-$M$34*OU9+((OV9-$M$34*OU9)^2+4*$M$34*OU8^2)^0.5)/(2*OU8) -> 1.076892256 | OX1: =(OY9-$M$34*OX9+((OY9-$M$34*OX9)^2+4*$M$34*OX8^2)^0.5)/(2*OX8) -> 1.196984978 | PA1: =(PB9-$M$34*PA9+((PB9-$M$34*PA9)^2+4*$M$34*PA8^2)^0.5)/(2*PA8) -> 0.8219782198 | PD1: =(PE9-$M$34*PD9+((PE9-$M$34*PD9)^2+4*$M$34*PD8^2)^0.5)/(2*PD8) -> 1.061880568 | PG1: =(PH9-$M$34*PG9+((PH9-$M$34*PG9)^2+4*$M$34*PG8^2)^0.5)/(2*PG8) -> 0.749931644 | PJ1: =(PK9-$M$34*PJ9+((PK9-$M$34*PJ9)^2+4*$M$34*PJ8^2)^0.5)/(2*PJ8) -> 1.097932441 | PM1: =(PN9-$M$34*PM9+((PN9-$M$34*PM9)^2+4*$M$34*PM8^2)^0.5)/(2*PM8) -> 1.109043034 | PP1: =(PQ9-$M$34*PP9+((PQ9-$M$34*PP9)^2+4*$M$34*PP8^2)^0.5)/(2*PP8) -> 0.8208334072 | PS1: =(PT9-$M$34*PS9+((PT9-$M$34*PS9)^2+4*$M$34*PS8^2)^0.5)/(2*PS8) -> 0.751158912 | PV1: =(PW9-$M$34*PV9+((PW9-$M$34*PV9)^2+4*$M$34*PV8^2)^0.5)/(2*PV8) -> 1.069296209 | PY1: =(PZ9-$M$34*PY9+((PZ9-$M$34*PY9)^2+4*$M$34*PY8^2)^0.5)/(2*PY8) -> 0.8121692307 | QB1: =(QC9-$M$34*QB9+((QC9-$M$34*QB9)^2+4*$M$34*QB8^2)^0.5)/(2*QB8) -> 0.8267400364 | QE1: =(QF9-$M$34*QE9+((QF9-$M$34*QE9)^2+4*$M$34*QE8^2)^0.5)/(2*QE8) -> 0.8348604458 | QH1: =(QI9-$M$34*QH9+((QI9-$M$34*QH9)^2+4*$M$34*QH8^2)^0.5)/(2*QH8) -> 0.7327459651 | QK1: =(QL9-$M$34*QK9+((QL9-$M$34*QK9)^2+4*$M$34*QK8^2)^0.5)/(2*QK8) -> 0.744378351 | QN1: =(QO9-$M$34*QN9+((QO9-$M$34*QN9)^2+4*$M$34*QN8^2)^0.5)/(2*QN8) -> 0.7734718011 | QQ1: =(QR9-$M$34*QQ9+((QR9-$M$34*QQ9)^2+4*$M$34*QQ8^2)^0.5)/(2*QQ8) -> 1.049328805 | QT1: =(QU9-$M$34*QT9+((QU9-$M$34*QT9)^2+4*$M$34*QT8^2)^0.5)/(2*QT8) -> 0.7464841533 | QW1: =(QX9-$M$34*QW9+((QX9-$M$34*QW9)^2+4*$M$34*QW8^2)^0.5)/(2*QW8) -> 0.7938945539 | QZ1: =(RA9-$M$34*QZ9+((RA9-$M$34*QZ9)^2+4*$M$34*QZ8^2)^0.5)/(2*QZ8) -> 0.8461535468 | RC1: =(RD9-$M$34*RC9+((RD9-$M$34*RC9)^2+4*$M$34*RC8^2)^0.5)/(2*RC8) -> 1.124685487 | RF1: =(RG9-$M$34*RF9+((RG9-$M$34*RF9)^2+4*$M$34*RF8^2)^0.5)/(2*RF8) -> 0.746296883 | RI1: =(RJ9-$M$34*RI9+((RJ9-$M$34*RI9)^2+4*$M$34*RI8^2)^0.5)/(2*RI8) -> 1.203591232 | RL1: =(RM9-$M$34*RL9+((RM9-$M$34*RL9)^2+4*$M$34*RL8^2)^0.5)/(2*RL8) -> 0.8218834249 | RO1: =(RP9-$M$34*RO9+((RP9-$M$34*RO9)^2+4*$M$34*RO8^2)^0.5)/(2*RO8) -> 1.251272759 | RR1: =(RS9-$M$34*RR9+((RS9-$M$34*RR9)^2+4*$M$34*RR8^2)^0.5)/(2*RR8) -> 1.229108233 | RU1: =(RV9-$M$34*RU9+((RV9-$M$34*RU9)^2+4*$M$34*RU8^2)^0.5)/(2*RU8) -> 0.9820256013 | RX1: =(RY9-$M$34*RX9+((RY9-$M$34*RX9)^2+4*$M$34*RX8^2)^0.5)/(2*RX8) -> 0.7314543983 | SA1: =(SB9-$M$34*SA9+((SB9-$M$34*SA9)^2+4*$M$34*SA8^2)^0.5)/(2*SA8) -> 0.8007129102 | SD1: =(SE9-$M$34*SD9+((SE9-$M$34*SD9)^2+4*$M$34*SD8^2)^0.5)/(2*SD8) -> 1.193678344 | SG1: =(SH9-$M$34*SG9+((SH9-$M$34*SG9)^2+4*$M$34*SG8^2)^0.5)/(2*SG8) -> 0.9963319472 | SJ1: =(SK9-$M$34*SJ9+((SK9-$M$34*SJ9)^2+4*$M$34*SJ8^2)^0.5)/(2*SJ8) -> 0.8126336173 | SM1: =(SN9-$M$34*SM9+((SN9-$M$34*SM9)^2+4*$M$34*SM8^2)^0.5)/(2*SM8) -> 0.8415154847 | SP1: =(SQ9-$M$34*SP9+((SQ9-$M$34*SP9)^2+4*$M$34*SP8^2)^0.5)/(2*SP8) -> 0.8213070781 | SS1: =(ST9-$M$34*SS9+((ST9-$M$34*SS9)^2+4*$M$34*SS8^2)^0.5)/(2*SS8) -> 1.01961936 | SV1: =(SW9-$M$34*SV9+((SW9-$M$34*SV9)^2+4*$M$34*SV8^2)^0.5)/(2*SV8) -> 0.8399085523 | SY1: =(SZ9-$M$34*SY9+((SZ9-$M$34*SY9)^2+4*$M$34*SY8^2)^0.5)/(2*SY8) -> 0.7447182481 | TB1: =(TC9-$M$34*TB9+((TC9-$M$34*TB9)^2+4*$M$34*TB8^2)^0.5)/(2*TB8) -> 0.8219309403 | TE1: =(TF9-$M$34*TE9+((TF9-$M$34*TE9)^2+4*$M$34*TE8^2)^0.5)/(2*TE8) -> 0.7365285757 | TH1: =(TI9-$M$34*TH9+((TI9-$M$34*TH9)^2+4*$M$34*TH8^2)^0.5)/(2*TH8) -> 0.8094049712 | TK1: =(TL9-$M$34*TK9+((TL9-$M$34*TK9)^2+4*$M$34*TK8^2)^0.5)/(2*TK8) -> 0.8510913949 | TN1: =(TO9-$M$34*TN9+((TO9-$M$34*TN9)^2+4*$M$34*TN8^2)^0.5)/(2*TN8) -> 0.7664772199 | TQ1: =(TR9-$M$34*TQ9+((TR9-$M$34*TQ9)^2+4*$M$34*TQ8^2)^0.5)/(2*TQ8) -> 0.8592435325 | TT1: =(TU9-$M$34*TT9+((TU9-$M$34*TT9)^2+4*$M$34*TT8^2)^0.5)/(2*TT8) -> 0.7313132554 | TW1: =(TX9-$M$34*TW9+((TX9-$M$34*TW9)^2+4*$M$34*TW8^2)^0.5)/(2*TW8) -> 0.8628714843 | TZ1: =(UA9-$M$34*TZ9+((UA9-$M$34*TZ9)^2+4*$M$34*TZ8^2)^0.5)/(2*TZ8) -> 0.7661207874 | UC1: =(UD9-$M$34*UC9+((UD9-$M$34*UC9)^2+4*$M$34*UC8^2)^0.5)/(2*UC8) -> 0.8136742424 | UF1: =(UG9-$M$34*UF9+((UG9-$M$34*UF9)^2+4*$M$34*UF8^2)^0.5)/(2*UF8) -> 0.8292276763 | UI1: =(UJ9-$M$34*UI9+((UJ9-$M$34*UI9)^2+4*$M$34*UI8^2)^0.5)/(2*UI8) -> 0.8426492522 | UL1: =(UM9-$M$34*UL9+((UM9-$M$34*UL9)^2+4*$M$34*UL8^2)^0.5)/(2*UL8) -> 0.7581409337 | UO1: =(UP9-$M$34*UO9+((UP9-$M$34*UO9)^2+4*$M$34*UO8^2)^0.5)/(2*UO8) -> 0.7700473338 | UR1: =(US9-$M$34*UR9+((US9-$M$34*UR9)^2+4*$M$34*UR8^2)^0.5)/(2*UR8) -> 1.241289691 | UU1: =(UV9-$M$34*UU9+((UV9-$M$34*UU9)^2+4*$M$34*UU8^2)^0.5)/(2*UU8) -> 0.7953018969 | UX1: =(UY9-$M$34*UX9+((UY9-$M$34*UX9)^2+4*$M$34*UX8^2)^0.5)/(2*UX8) -> 1.045063662 | VA1: =(VB9-$M$34*VA9+((VB9-$M$34*VA9)^2+4*$M$34*VA8^2)^0.5)/(2*VA8) -> 0.8038614751 | VD1: =(VE9-$M$34*VD9+((VE9-$M$34*VD9)^2+4*$M$34*VD8^2)^0.5)/(2*VD8) -> 1.119181174 | VG1: =(VH9-$M$34*VG9+((VH9-$M$34*VG9)^2+4*$M$34*VG8^2)^0.5)/(2*VG8) -> 0.7597807303 | VJ1: =(VK9-$M$34*VJ9+((VK9-$M$34*VJ9)^2+4*$M$34*VJ8^2)^0.5)/(2*VJ8) -> 0.9579601927 | VM1: =(VN9-$M$34*VM9+((VN9-$M$34*VM9)^2+4*$M$34*VM8^2)^0.5)/(2*VM8) -> 0.8140708526 | VP1: =(VQ9-$M$34*VP9+((VQ9-$M$34*VP9)^2+4*$M$34*VP8^2)^0.5)/(2*VP8) -> 1.374097079 | VS1: =(VT9-$M$34*VS9+((VT9-$M$34*VS9)^2+4*$M$34*VS8^2)^0.5)/(2*VS8) -> 0.8650086959 | VV1: =(VW9-$M$34*VV9+((VW9-$M$34*VV9)^2+4*$M$34*VV8^2)^0.5)/(2*VV8) -> 0.8260271715 | VY1: =(VZ9-$M$34*VY9+((VZ9-$M$34*VY9)^2+4*$M$34*VY8^2)^0.5)/(2*VY8) -> 0.7104509017 | WB1: =(WC9-$M$34*WB9+((WC9-$M$34*WB9)^2+4*$M$34*WB8^2)^0.5)/(2*WB8) -> 1.146364966 | WE1: =(WF9-$M$34*WE9+((WF9-$M$34*WE9)^2+4*$M$34*WE8^2)^0.5)/(2*WE8) -> 0.799902135 | WH1: =(WI9-$M$34*WH9+((WI9-$M$34*WH9)^2+4*$M$34*WH8^2)^0.5)/(2*WH8) -> 1.330525577 | WK1: =(WL9-$M$34*WK9+((WL9-$M$34*WK9)^2+4*$M$34*WK8^2)^0.5)/(2*WK8) -> 0.7563551615 | WN1: =(WO9-$M$34*WN9+((WO9-$M$34*WN9)^2+4*$M$34*WN8^2)^0.5)/(2*WN8) -> 0.7635524766 | WQ1: =(WR9-$M$34*WQ9+((WR9-$M$34*WQ9)^2+4*$M$34*WQ8^2)^0.5)/(2*WQ8) -> 0.7532101804 | WT1: =(WU9-$M$34*WT9+((WU9-$M$34*WT9)^2+4*$M$34*WT8^2)^0.5)/(2*WT8) -> 0.8374384069 | WW1: =(WX9-$M$34*WW9+((WX9-$M$34*WW9)^2+4*$M$34*WW8^2)^0.5)/(2*WW8) -> 0.7524764636 | WZ1: =(XA9-$M$34*WZ9+((XA9-$M$34*WZ9)^2+4*$M$34*WZ8^2)^0.5)/(2*WZ8) -> 1.21091607 | XC1: =(XD9-$M$34*XC9+((XD9-$M$34*XC9)^2+4*$M$34*XC8^2)^0.5)/(2*XC8) -> 0.9356402138 | XF1: =(XG9-$M$34*XF9+((XG9-$M$34*XF9)^2+4*$M$34*XF8^2)^0.5)/(2*XF8) -> 0.7247929746 | XI1: =(XJ9-$M$34*XI9+((XJ9-$M$34*XI9)^2+4*$M$34*XI8^2)^0.5)/(2*XI8) -> 1.33620086 | XL1: =(XM9-$M$34*XL9+((XM9-$M$34*XL9)^2+4*$M$34*XL8^2)^0.5)/(2*XL8) -> 0.7491526694 | XO1: =(XP9-$M$34*XO9+((XP9-$M$34*XO9)^2+4*$M$34*XO8^2)^0.5)/(2*XO8) -> 0.7482500665 | XR1: =(XS9-$M$34*XR9+((XS9-$M$34*XR9)^2+4*$M$34*XR8^2)^0.5)/(2*XR8) -> 0.7452559998 | XU1: =(XV9-$M$34*XU9+((XV9-$M$34*XU9)^2+4*$M$34*XU8^2)^0.5)/(2*XU8) -> 0.7413117198 | XX1: =(XY9-$M$34*XX9+((XY9-$M$34*XX9)^2+4*$M$34*XX8^2)^0.5)/(2*XX8) -> 1.123586859 | YA1: =(YB9-$M$34*YA9+((YB9-$M$34*YA9)^2+4*$M$34*YA8^2)^0.5)/(2*YA8) -> 1.207400559 | YD1: =(YE9-$M$34*YD9+((YE9-$M$34*YD9)^2+4*$M$34*YD8^2)^0.5)/(2*YD8) -> 1.264608685 | YG1: =(YH9-$M$34*YG9+((YH9-$M$34*YG9)^2+4*$M$34*YG8^2)^0.5)/(2*YG8) -> 0.8776804995 | YJ1: =(YK9-$M$34*YJ9+((YK9-$M$34*YJ9)^2+4*$M$34*YJ8^2)^0.5)/(2*YJ8) -> 1.012506294 | YM1: =(YN9-$M$34*YM9+((YN9-$M$34*YM9)^2+4*$M$34*YM8^2)^0.5)/(2*YM8) -> 0.8107953657 | YP1: =(YQ9-$M$34*YP9+((YQ9-$M$34*YP9)^2+4*$M$34*YP8^2)^0.5)/(2*YP8) -> 1.232653317 | YS1: =(YT9-$M$34*YS9+((YT9-$M$34*YS9)^2+4*$M$34*YS8^2)^0.5)/(2*YS8) -> 1.151437482 | YV1: =(YW9-$M$34*YV9+((YW9-$M$34*YV9)^2+4*$M$34*YV8^2)^0.5)/(2*YV8) -> 1.074798402 | YY1: =(YZ9-$M$34*YY9+((YZ9-$M$34*YY9)^2+4*$M$34*YY8^2)^0.5)/(2*YY8) -> 0.9508171537 | ZB1: =(ZC9-$M$34*ZB9+((ZC9-$M$34*ZB9)^2+4*$M$34*ZB8^2)^0.5)/(2*ZB8) -> 0.7547215412 | ZE1: =(ZF9-$M$34*ZE9+((ZF9-$M$34*ZE9)^2+4*$M$34*ZE8^2)^0.5)/(2*ZE8) -> 0.7756973658 | ZH1: =(ZI9-$M$34*ZH9+((ZI9-$M$34*ZH9)^2+4*$M$34*ZH8^2)^0.5)/(2*ZH8) -> 1.283878315 | ZK1: =(ZL9-$M$34*ZK9+((ZL9-$M$34*ZK9)^2+4*$M$34*ZK8^2)^0.5)/(2*ZK8) -> 0.7844814012 | ZN1: =(ZO9-$M$34*ZN9+((ZO9-$M$34*ZN9)^2+4*$M$34*ZN8^2)^0.5)/(2*ZN8) -> 1.117002509 | ZQ1: =(ZR9-$M$34*ZQ9+((ZR9-$M$34*ZQ9)^2+4*$M$34*ZQ8^2)^0.5)/(2*ZQ8) -> 0.758288521 | ZT1: =(ZU9-$M$34*ZT9+((ZU9-$M$34*ZT9)^2+4*$M$34*ZT8^2)^0.5)/(2*ZT8) -> 0.8620108122 | ZW1: =(ZX9-$M$34*ZW9+((ZX9-$M$34*ZW9)^2+4*$M$34*ZW8^2)^0.5)/(2*ZW8) -> 0.737535209 | ZZ1: =(AAA9-$M$34*ZZ9+((AAA9-$M$34*ZZ9)^2+4*$M$34*ZZ8^2)^0.5)/(2*ZZ8) -> 0.7965268909 | AAC1: =(AAD9-$M$34*AAC9+((AAD9-$M$34*AAC9)^2+4*$M$34*AAC8^2)^0.5)/(2*AAC8) -> 1.07470488 | AAF1: =(AAG9-$M$34*AAF9+((AAG9-$M$34*AAF9)^2+4*$M$34*AAF8^2)^0.5)/(2*AAF8) -> 1.192712028 | AAI1: =(AAJ9-$M$34*AAI9+((AAJ9-$M$34*AAI9)^2+4*$M$34*AAI8^2)^0.5)/(2*AAI8) -> 0.836037551 | AAL1: =(AAM9-$M$34*AAL9+((AAM9-$M$34*AAL9)^2+4*$M$34*AAL8^2)^0.5)/(2*AAL8) -> 0.7427888181 | AAO1: =(AAP9-$M$34*AAO9+((AAP9-$M$34*AAO9)^2+4*$M$34*AAO8^2)^0.5)/(2*AAO8) -> 1.088005575 | AAR1: =(AAS9-$M$34*AAR9+((AAS9-$M$34*AAR9)^2+4*$M$34*AAR8^2)^0.5)/(2*AAR8) -> 0.7652361779 | AAU1: =(AAV9-$M$34*AAU9+((AAV9-$M$34*AAU9)^2+4*$M$34*AAU8^2)^0.5)/(2*AAU8) -> 1.042973989 | AAX1: =(AAY9-$M$34*AAX9+((AAY9-$M$34*AAX9)^2+4*$M$34*AAX8^2)^0.5)/(2*AAX8) -> 0.8643429908 | ABA1: =(ABB9-$M$34*ABA9+((ABB9-$M$34*ABA9)^2+4*$M$34*ABA8^2)^0.5)/(2*ABA8) -> 0.7318879844 | ABD1: =(ABE9-$M$34*ABD9+((ABE9-$M$34*ABD9)^2+4*$M$34*ABD8^2)^0.5)/(2*ABD8) -> 0.8248438528 | ABG1: =(ABH9-$M$34*ABG9+((ABH9-$M$34*ABG9)^2+4*$M$34*ABG8^2)^0.5)/(2*ABG8) -> 0.8028234225 | ABJ1: =(ABK9-$M$34*ABJ9+((ABK9-$M$34*ABJ9)^2+4*$M$34*ABJ8^2)^0.5)/(2*ABJ8) -> 1.294254087 | ABM1: =(ABN9-$M$34*ABM9+((ABN9-$M$34*ABM9)^2+4*$M$34*ABM8^2)^0.5)/(2*ABM8) -> 0.7313864345 | ABP1: =(ABQ9-$M$34*ABP9+((ABQ9-$M$34*ABP9)^2+4*$M$34*ABP8^2)^0.5)/(2*ABP8) -> 0.7846105879 | ABS1: =(ABT9-$M$34*ABS9+((ABT9-$M$34*ABS9)^2+4*$M$34*ABS8^2)^0.5)/(2*ABS8) -> 0.8185114901 | ABV1: =(ABW9-$M$34*ABV9+((ABW9-$M$34*ABV9)^2+4*$M$34*ABV8^2)^0.5)/(2*ABV8) -> 0.8564703663 | ABY1: =(ABZ9-$M$34*ABY9+((ABZ9-$M$34*ABY9)^2+4*$M$34*ABY8^2)^0.5)/(2*ABY8) -> 1.018653412 | ACB1: =(ACC9-$M$34*ACB9+((ACC9-$M$34*ACB9)^2+4*$M$34*ACB8^2)^0.5)/(2*ACB8) -> 0.7815984918 | ACE1: =(ACF9-$M$34*ACE9+((ACF9-$M$34*ACE9)^2+4*$M$34*ACE8^2)^0.5)/(2*ACE8) -> 0.7570668367 | ACH1: =(ACI9-$M$34*ACH9+((ACI9-$M$34*ACH9)^2+4*$M$34*ACH8^2)^0.5)/(2*ACH8) -> 0.8190582601 | ACK1: =(ACL9-$M$34*ACK9+((ACL9-$M$34*ACK9)^2+4*$M$34*ACK8^2)^0.5)/(2*ACK8) -> 0.7887919204 | ACN1: =(ACO9-$M$34*ACN9+((ACO9-$M$34*ACN9)^2+4*$M$34*ACN8^2)^0.5)/(2*ACN8) -> 0.9670297442 | ACQ1: =(ACR9-$M$34*ACQ9+((ACR9-$M$34*ACQ9)^2+4*$M$34*ACQ8^2)^0.5)/(2*ACQ8) -> 0.8123015195 | ACT1: =(ACU9-$M$34*ACT9+((ACU9-$M$34*ACT9)^2+4*$M$34*ACT8^2)^0.5)/(2*ACT8) -> 0.8227684919 | ACW1: =(ACX9-$M$34*ACW9+((ACX9-$M$34*ACW9)^2+4*$M$34*ACW8^2)^0.5)/(2*ACW8) -> 1.292617801 | ACZ1: =(ADA9-$M$34*ACZ9+((ADA9-$M$34*ACZ9)^2+4*$M$34*ACZ8^2)^0.5)/(2*ACZ8) -> 1.205847558 | ADC1: =(ADD9-$M$34*ADC9+((ADD9-$M$34*ADC9)^2+4*$M$34*ADC8^2)^0.5)/(2*ADC8) -> 0.7659672482 | ADF1: =(ADG9-$M$34*ADF9+((ADG9-$M$34*ADF9)^2+4*$M$34*ADF8^2)^0.5)/(2*ADF8) -> 0.7828522096 | ADI1: =(ADJ9-$M$34*ADI9+((ADJ9-$M$34*ADI9)^2+4*$M$34*ADI8^2)^0.5)/(2*ADI8) -> 1.045506395 | ADL1: =(ADM9-$M$34*ADL9+((ADM9-$M$34*ADL9)^2+4*$M$34*ADL8^2)^0.5)/(2*ADL8) -> 0.8048360731 | ADO1: =(ADP9-$M$34*ADO9+((ADP9-$M$34*ADO9)^2+4*$M$34*ADO8^2)^0.5)/(2*ADO8) -> 0.8432839792 | ADR1: =(ADS9-$M$34*ADR9+((ADS9-$M$34*ADR9)^2+4*$M$34*ADR8^2)^0.5)/(2*ADR8) -> 0.7908719413 | ADU1: =(ADV9-$M$34*ADU9+((ADV9-$M$34*ADU9)^2+4*$M$34*ADU8^2)^0.5)/(2*ADU8) -> 1.248206541 | ADX1: =(ADY9-$M$34*ADX9+((ADY9-$M$34*ADX9)^2+4*$M$34*ADX8^2)^0.5)/(2*ADX8) -> 0.7841702113 | AEA1: =(AEB9-$M$34*AEA9+((AEB9-$M$34*AEA9)^2+4*$M$34*AEA8^2)^0.5)/(2*AEA8) -> 0.8607671886 | AED1: =(AEE9-$M$34*AED9+((AEE9-$M$34*AED9)^2+4*$M$34*AED8^2)^0.5)/(2*AED8) -> 1.0589765 | AEG1: =(AEH9-$M$34*AEG9+((AEH9-$M$34*AEG9)^2+4*$M$34*AEG8^2)^0.5)/(2*AEG8) -> 0.7685657628 | AEJ1: =(AEK9-$M$34*AEJ9+((AEK9-$M$34*AEJ9)^2+4*$M$34*AEJ8^2)^0.5)/(2*AEJ8) -> 1.111077773 | AEM1: =(AEN9-$M$34*AEM9+((AEN9-$M$34*AEM9)^2+4*$M$34*AEM8^2)^0.5)/(2*AEM8) -> 1.185640782 | AEP1: =(AEQ9-$M$34*AEP9+((AEQ9-$M$34*AEP9)^2+4*$M$34*AEP8^2)^0.5)/(2*AEP8) -> 0.8203201291 | AES1: =(AET9-$M$34*AES9+((AET9-$M$34*AES9)^2+4*$M$34*AES8^2)^0.5)/(2*AES8) -> 0.8392578522 | AEV1: =(AEW9-$M$34*AEV9+((AEW9-$M$34*AEV9)^2+4*$M$34*AEV8^2)^0.5)/(2*AEV8) -> 0.7691631882 | AEY1: =(AEZ9-$M$34*AEY9+((AEZ9-$M$34*AEY9)^2+4*$M$34*AEY8^2)^0.5)/(2*AEY8) -> 0.8047412856 | AFB1: =(AFC9-$M$34*AFB9+((AFC9-$M$34*AFB9)^2+4*$M$34*AFB8^2)^0.5)/(2*AFB8) -> 0.7832559325 | AFE1: =(AFF9-$M$34*AFE9+((AFF9-$M$34*AFE9)^2+4*$M$34*AFE8^2)^0.5)/(2*AFE8) -> 0.8004379275 | AFH1: =(AFI9-$M$34*AFH9+((AFI9-$M$34*AFH9)^2+4*$M$34*AFH8^2)^0.5)/(2*AFH8) -> 1.056977779 | AFK1: =(AFL9-$M$34*AFK9+((AFL9-$M$34*AFK9)^2+4*$M$34*AFK8^2)^0.5)/(2*AFK8) -> 1.179224566 | AFN1: =(AFO9-$M$34*AFN9+((AFO9-$M$34*AFN9)^2+4*$M$34*AFN8^2)^0.5)/(2*AFN8) -> 1.222450358 | AFQ1: =(AFR9-$M$34*AFQ9+((AFR9-$M$34*AFQ9)^2+4*$M$34*AFQ8^2)^0.5)/(2*AFQ8) -> 0.7864281284 | AFT1: =(AFU9-$M$34*AFT9+((AFU9-$M$34*AFT9)^2+4*$M$34*AFT8^2)^0.5)/(2*AFT8) -> 0.729995648 | AFW1: =(AFX9-$M$34*AFW9+((AFX9-$M$34*AFW9)^2+4*$M$34*AFW8^2)^0.5)/(2*AFW8) -> 0.7426951888 | AFZ1: =(AGA9-$M$34*AFZ9+((AGA9-$M$34*AFZ9)^2+4*$M$34*AFZ8^2)^0.5)/(2*AFZ8) -> 0.9681647615 | AGC1: =(AGD9-$M$34*AGC9+((AGD9-$M$34*AGC9)^2+4*$M$34*AGC8^2)^0.5)/(2*AGC8) -> 0.9390449512 | AGF1: =(AGG9-$M$34*AGF9+((AGG9-$M$34*AGF9)^2+4*$M$34*AGF8^2)^0.5)/(2*AGF8) -> 0.8492369557 | AGI1: =(AGJ9-$M$34*AGI9+((AGJ9-$M$34*AGI9)^2+4*$M$34*AGI8^2)^0.5)/(2*AGI8) -> 0.803512148 | AGL1: =(AGM9-$M$34*AGL9+((AGM9-$M$34*AGL9)^2+4*$M$34*AGL8^2)^0.5)/(2*AGL8) -> 1.226205795 | AGO1: =(AGP9-$M$34*AGO9+((AGP9-$M$34*AGO9)^2+4*$M$34*AGO8^2)^0.5)/(2*AGO8) -> 0.7634482626 | AGR1: =(AGS9-$M$34*AGR9+((AGS9-$M$34*AGR9)^2+4*$M$34*AGR8^2)^0.5)/(2*AGR8) -> 0.7898643363 | AGU1: =(AGV9-$M$34*AGU9+((AGV9-$M$34*AGU9)^2+4*$M$34*AGU8^2)^0.5)/(2*AGU8) -> 1.386912517 | AGX1: =(AGY9-$M$34*AGX9+((AGY9-$M$34*AGX9)^2+4*$M$34*AGX8^2)^0.5)/(2*AGX8) -> 0.809011178 | AHA1: =(AHB9-$M$34*AHA9+((AHB9-$M$34*AHA9)^2+4*$M$34*AHA8^2)^0.5)/(2*AHA8) -> 0.7992643571 | AHD1: =(AHE9-$M$34*AHD9+((AHE9-$M$34*AHD9)^2+4*$M$34*AHD8^2)^0.5)/(2*AHD8) -> 1.165101147 | AHG1: =(AHH9-$M$34*AHG9+((AHH9-$M$34*AHG9)^2+4*$M$34*AHG8^2)^0.5)/(2*AHG8) -> 0.7947645666 | AHJ1: =(AHK9-$M$34*AHJ9+((AHK9-$M$34*AHJ9)^2+4*$M$34*AHJ8^2)^0.5)/(2*AHJ8) -> 0.7569680162 | AHM1: =(AHN9-$M$34*AHM9+((AHN9-$M$34*AHM9)^2+4*$M$34*AHM8^2)^0.5)/(2*AHM8) -> 0.7713037768 | AHP1: =(AHQ9-$M$34*AHP9+((AHQ9-$M$34*AHP9)^2+4*$M$34*AHP8^2)^0.5)/(2*AHP8) -> 1.100810472 | AHS1: =(AHT9-$M$34*AHS9+((AHT9-$M$34*AHS9)^2+4*$M$34*AHS8^2)^0.5)/(2*AHS8) -> 0.7874552003 | AHV1: =(AHW9-$M$34*AHV9+((AHW9-$M$34*AHV9)^2+4*$M$34*AHV8^2)^0.5)/(2*AHV8) -> 0.8328627515 | AHY1: =(AHZ9-$M$34*AHY9+((AHZ9-$M$34*AHY9)^2+4*$M$34*AHY8^2)^0.5)/(2*AHY8) -> 0.7304428566 | AIB1: =(AIC9-$M$34*AIB9+((AIC9-$M$34*AIB9)^2+4*$M$34*AIB8^2)^0.5)/(2*AIB8) -> 0.7590568258 | AIE1: =(AIF9-$M$34*AIE9+((AIF9-$M$34*AIE9)^2+4*$M$34*AIE8^2)^0.5)/(2*AIE8) -> 1.082522633 | AIH1: =(AII9-$M$34*AIH9+((AII9-$M$34*AIH9)^2+4*$M$34*AIH8^2)^0.5)/(2*AIH8) -> 0.7594777385 | AIK1: =(AIL9-$M$34*AIK9+((AIL9-$M$34*AIK9)^2+4*$M$34*AIK8^2)^0.5)/(2*AIK8) -> 1.284368894 | AIN1: =(AIO9-$M$34*AIN9+((AIO9-$M$34*AIN9)^2+4*$M$34*AIN8^2)^0.5)/(2*AIN8) -> 1.36368957 | AIQ1: =(AIR9-$M$34*AIQ9+((AIR9-$M$34*AIQ9)^2+4*$M$34*AIQ8^2)^0.5)/(2*AIQ8) -> 1.069792884 | AIT1: =(AIU9-$M$34*AIT9+((AIU9-$M$34*AIT9)^2+4*$M$34*AIT8^2)^0.5)/(2*AIT8) -> 0.8353555614 | AIW1: =(AIX9-$M$34*AIW9+((AIX9-$M$34*AIW9)^2+4*$M$34*AIW8^2)^0.5)/(2*AIW8) -> 1.295578398 | AIZ1: =(AJA9-$M$34*AIZ9+((AJA9-$M$34*AIZ9)^2+4*$M$34*AIZ8^2)^0.5)/(2*AIZ8) -> 0.9013315348 | AJC1: =(AJD9-$M$34*AJC9+((AJD9-$M$34*AJC9)^2+4*$M$34*AJC8^2)^0.5)/(2*AJC8) -> 1.082847264 | AJF1: =(AJG9-$M$34*AJF9+((AJG9-$M$34*AJF9)^2+4*$M$34*AJF8^2)^0.5)/(2*AJF8) -> 0.8136779922 | AJI1: =(AJJ9-$M$34*AJI9+((AJJ9-$M$34*AJI9)^2+4*$M$34*AJI8^2)^0.5)/(2*AJI8) -> 0.8484191506 | AJL1: =(AJM9-$M$34*AJL9+((AJM9-$M$34*AJL9)^2+4*$M$34*AJL8^2)^0.5)/(2*AJL8) -> 0.8029144159 | AJO1: =(AJP9-$M$34*AJO9+((AJP9-$M$34*AJO9)^2+4*$M$34*AJO8^2)^0.5)/(2*AJO8) -> 0.9852572072 | AJR1: =(AJS9-$M$34*AJR9+((AJS9-$M$34*AJR9)^2+4*$M$34*AJR8^2)^0.5)/(2*AJR8) -> 1.336315888 | AJU1: =(AJV9-$M$34*AJU9+((AJV9-$M$34*AJU9)^2+4*$M$34*AJU8^2)^0.5)/(2*AJU8) -> 0.8254172331 | AJX1: =(AJY9-$M$34*AJX9+((AJY9-$M$34*AJX9)^2+4*$M$34*AJX8^2)^0.5)/(2*AJX8) -> 0.8315794302 | AKA1: =(AKB9-$M$34*AKA9+((AKB9-$M$34*AKA9)^2+4*$M$34*AKA8^2)^0.5)/(2*AKA8) -> 0.7909756024 | AKD1: =(AKE9-$M$34*AKD9+((AKE9-$M$34*AKD9)^2+4*$M$34*AKD8^2)^0.5)/(2*AKD8) -> 1.137040994 | AKG1: =(AKH9-$M$34*AKG9+((AKH9-$M$34*AKG9)^2+4*$M$34*AKG8^2)^0.5)/(2*AKG8) -> 1.311865087 | AKJ1: =(AKK9-$M$34*AKJ9+((AKK9-$M$34*AKJ9)^2+4*$M$34*AKJ8^2)^0.5)/(2*AKJ8) -> 1.054052133 | AKM1: =(AKN9-$M$34*AKM9+((AKN9-$M$34*AKM9)^2+4*$M$34*AKM8^2)^0.5)/(2*AKM8) -> 0.8021448319 | AKP1: =(AKQ9-$M$34*AKP9+((AKQ9-$M$34*AKP9)^2+4*$M$34*AKP8^2)^0.5)/(2*AKP8) -> 0.7372238356 | AKS1: =(AKT9-$M$34*AKS9+((AKT9-$M$34*AKS9)^2+4*$M$34*AKS8^2)^0.5)/(2*AKS8) -> 0.8196479377 | AKV1: =(AKW9-$M$34*AKV9+((AKW9-$M$34*AKV9)^2+4*$M$34*AKV8^2)^0.5)/(2*AKV8) -> 1.358163191 | AKY1: =(AKZ9-$M$34*AKY9+((AKZ9-$M$34*AKY9)^2+4*$M$34*AKY8^2)^0.5)/(2*AKY8) -> 1.268128047 | ALB1: =(ALC9-$M$34*ALB9+((ALC9-$M$34*ALB9)^2+4*$M$34*ALB8^2)^0.5)/(2*ALB8) -> 0.9933735222 | ALE1: =(ALF9-$M$34*ALE9+((ALF9-$M$34*ALE9)^2+4*$M$34*ALE8^2)^0.5)/(2*ALE8) -> 0.7363656292 | ALH1: =(ALI9-$M$34*ALH9+((ALI9-$M$34*ALH9)^2+4*$M$34*ALH8^2)^0.5)/(2*ALH8) -> 0.7619619472 | ALK1: =(ALL9-$M$34*ALK9+((ALL9-$M$34*ALK9)^2+4*$M$34*ALK8^2)^0.5)/(2*ALK8) -> 1.04190773 | ALN1: =(ALO9-$M$34*ALN9+((ALO9-$M$34*ALN9)^2+4*$M$34*ALN8^2)^0.5)/(2*ALN8) -> 0.7918786247 | ALQ1: =(ALR9-$M$34*ALQ9+((ALR9-$M$34*ALQ9)^2+4*$M$34*ALQ8^2)^0.5)/(2*ALQ8) -> 0.9349714023 | ALT1: =(ALU9-$M$34*ALT9+((ALU9-$M$34*ALT9)^2+4*$M$34*ALT8^2)^0.5)/(2*ALT8) -> 0.7382431452 | ALW1: =(ALX9-$M$34*ALW9+((ALX9-$M$34*ALW9)^2+4*$M$34*ALW8^2)^0.5)/(2*ALW8) -> 0.8045875352 | ALZ1: =(AMA9-$M$34*ALZ9+((AMA9-$M$34*ALZ9)^2+4*$M$34*ALZ8^2)^0.5)/(2*ALZ8) -> 0.8313849244 | AMC1: =(AMD9-$M$34*AMC9+((AMD9-$M$34*AMC9)^2+4*$M$34*AMC8^2)^0.5)/(2*AMC8) -> 1.026525692 | AMF1: =(AMG9-$M$34*AMF9+((AMG9-$M$34*AMF9)^2+4*$M$34*AMF8^2)^0.5)/(2*AMF8) -> 0.9684928441 | AMI1: =(AMJ9-$M$34*AMI9+((AMJ9-$M$34*AMI9)^2+4*$M$34*AMI8^2)^0.5)/(2*AMI8) -> 1.064371007 | AML1: =(AMM9-$M$34*AML9+((AMM9-$M$34*AML9)^2+4*$M$34*AML8^2)^0.5)/(2*AML8) -> 0.9501952613 | AMO1: =(AMP9-$M$34*AMO9+((AMP9-$M$34*AMO9)^2+4*$M$34*AMO8^2)^0.5)/(2*AMO8) -> 1.042327088 | AMR1: =(AMS9-$M$34*AMR9+((AMS9-$M$34*AMR9)^2+4*$M$34*AMR8^2)^0.5)/(2*AMR8) -> 1.223146462 | AMU1: =(AMV9-$M$34*AMU9+((AMV9-$M$34*AMU9)^2+4*$M$34*AMU8^2)^0.5)/(2*AMU8) -> 0.7736056047 | AMX1: =(AMY9-$M$34*AMX9+((AMY9-$M$34*AMX9)^2+4*$M$34*AMX8^2)^0.5)/(2*AMX8) -> 0.8590390988 | ANA1: =(ANB9-$M$34*ANA9+((ANB9-$M$34*ANA9)^2+4*$M$34*ANA8^2)^0.5)/(2*ANA8) -> 0.8173713714 | AND1: =(ANE9-$M$34*AND9+((ANE9-$M$34*AND9)^2+4*$M$34*AND8^2)^0.5)/(2*AND8) -> 0.7841600936 | ANG1: =(ANH9-$M$34*ANG9+((ANH9-$M$34*ANG9)^2+4*$M$34*ANG8^2)^0.5)/(2*ANG8) -> 1.037304997 | ANJ1: =(ANK9-$M$34*ANJ9+((ANK9-$M$34*ANJ9)^2+4*$M$34*ANJ8^2)^0.5)/(2*ANJ8) -> 0.7637730632 | ANM1: =(ANN9-$M$34*ANM9+((ANN9-$M$34*ANM9)^2+4*$M$34*ANM8^2)^0.5)/(2*ANM8) -> 0.8063878186 | ANP1: =(ANQ9-$M$34*ANP9+((ANQ9-$M$34*ANP9)^2+4*$M$34*ANP8^2)^0.5)/(2*ANP8) -> 0.8176969718 | ANS1: =(ANT9-$M$34*ANS9+((ANT9-$M$34*ANS9)^2+4*$M$34*ANS8^2)^0.5)/(2*ANS8) -> 0.8390168057 | ANV1: =(ANW9-$M$34*ANV9+((ANW9-$M$34*ANV9)^2+4*$M$34*ANV8^2)^0.5)/(2*ANV8) -> 0.7963794514 | ANY1: =(ANZ9-$M$34*ANY9+((ANZ9-$M$34*ANY9)^2+4*$M$34*ANY8^2)^0.5)/(2*ANY8) -> 0.8092287242 | AOB1: =(AOC9-$M$34*AOB9+((AOC9-$M$34*AOB9)^2+4*$M$34*AOB8^2)^0.5)/(2*AOB8) -> 0.7883622581 | AOE1: =(AOF9-$M$34*AOE9+((AOF9-$M$34*AOE9)^2+4*$M$34*AOE8^2)^0.5)/(2*AOE8) -> 0.9932422636 | AOH1: =(AOI9-$M$34*AOH9+((AOI9-$M$34*AOH9)^2+4*$M$34*AOH8^2)^0.5)/(2*AOH8) -> 0.9977962174 | AOK1: =(AOL9-$M$34*AOK9+((AOL9-$M$34*AOK9)^2+4*$M$34*AOK8^2)^0.5)/(2*AOK8) -> 0.8274672227 | AON1: =(AOO9-$M$34*AON9+((AOO9-$M$34*AON9)^2+4*$M$34*AON8^2)^0.5)/(2*AON8) -> 0.7702605794 | AOQ1: =(AOR9-$M$34*AOQ9+((AOR9-$M$34*AOQ9)^2+4*$M$34*AOQ8^2)^0.5)/(2*AOQ8) -> 0.7690352712 | AOT1: =(AOU9-$M$34*AOT9+((AOU9-$M$34*AOT9)^2+4*$M$34*AOT8^2)^0.5)/(2*AOT8) -> 0.7435427952 | AOW1: =(AOX9-$M$34*AOW9+((AOX9-$M$34*AOW9)^2+4*$M$34*AOW8^2)^0.5)/(2*AOW8) -> 1.011302151 | AOZ1: =(APA9-$M$34*AOZ9+((APA9-$M$34*AOZ9)^2+4*$M$34*AOZ8^2)^0.5)/(2*AOZ8) -> 0.8539787266 | APC1: =(APD9-$M$34*APC9+((APD9-$M$34*APC9)^2+4*$M$34*APC8^2)^0.5)/(2*APC8) -> 0.7571930089 | APF1: =(APG9-$M$34*APF9+((APG9-$M$34*APF9)^2+4*$M$34*APF8^2)^0.5)/(2*APF8) -> 0.9640089432 | API1: =(APJ9-$M$34*API9+((APJ9-$M$34*API9)^2+4*$M$34*API8^2)^0.5)/(2*API8) -> 0.865814101 | APL1: =(APM9-$M$34*APL9+((APM9-$M$34*APL9)^2+4*$M$34*APL8^2)^0.5)/(2*APL8) -> 0.8190757516 | APO1: =(APP9-$M$34*APO9+((APP9-$M$34*APO9)^2+4*$M$34*APO8^2)^0.5)/(2*APO8) -> 1.053455719 | APR1: =(APS9-$M$34*APR9+((APS9-$M$34*APR9)^2+4*$M$34*APR8^2)^0.5)/(2*APR8) -> 0.7814544993 | APU1: =(APV9-$M$34*APU9+((APV9-$M$34*APU9)^2+4*$M$34*APU8^2)^0.5)/(2*APU8) -> 0.821744137 | APX1: =(APY9-$M$34*APX9+((APY9-$M$34*APX9)^2+4*$M$34*APX8^2)^0.5)/(2*APX8) -> 0.8056378018 | AQA1: =(AQB9-$M$34*AQA9+((AQB9-$M$34*AQA9)^2+4*$M$34*AQA8^2)^0.5)/(2*AQA8) -> 0.8621864613 | AQD1: =(AQE9-$M$34*AQD9+((AQE9-$M$34*AQD9)^2+4*$M$34*AQD8^2)^0.5)/(2*AQD8) -> 0.75636951 | AQG1: =(AQH9-$M$34*AQG9+((AQH9-$M$34*AQG9)^2+4*$M$34*AQG8^2)^0.5)/(2*AQG8) -> 0.77490471 | AQJ1: =(AQK9-$M$34*AQJ9+((AQK9-$M$34*AQJ9)^2+4*$M$34*AQJ8^2)^0.5)/(2*AQJ8) -> 1.130861037 | AQM1: =(AQN9-$M$34*AQM9+((AQN9-$M$34*AQM9)^2+4*$M$34*AQM8^2)^0.5)/(2*AQM8) -> 0.9769083774 | AQP1: =(AQQ9-$M$34*AQP9+((AQQ9-$M$34*AQP9)^2+4*$M$34*AQP8^2)^0.5)/(2*AQP8) -> 1.347944755 | AQS1: =(AQT9-$M$34*AQS9+((AQT9-$M$34*AQS9)^2+4*$M$34*AQS8^2)^0.5)/(2*AQS8) -> 0.8276913046 | AQV1: =(AQW9-$M$34*AQV9+((AQW9-$M$34*AQV9)^2+4*$M$34*AQV8^2)^0.5)/(2*AQV8) -> 0.8030454838 | AQY1: =(AQZ9-$M$34*AQY9+((AQZ9-$M$34*AQY9)^2+4*$M$34*AQY8^2)^0.5)/(2*AQY8) -> 0.8709782616 | ARB1: =(ARC9-$M$34*ARB9+((ARC9-$M$34*ARB9)^2+4*$M$34*ARB8^2)^0.5)/(2*ARB8) -> 0.9750193849 | ARE1: =(ARF9-$M$34*ARE9+((ARF9-$M$34*ARE9)^2+4*$M$34*ARE8^2)^0.5)/(2*ARE8) -> 0.7302766534 | ARH1: =(ARI9-$M$34*ARH9+((ARI9-$M$34*ARH9)^2+4*$M$34*ARH8^2)^0.5)/(2*ARH8) -> 0.8390736857 | ARK1: =(ARL9-$M$34*ARK9+((ARL9-$M$34*ARK9)^2+4*$M$34*ARK8^2)^0.5)/(2*ARK8) -> 0.7325453051 | ARN1: =(ARO9-$M$34*ARN9+((ARO9-$M$34*ARN9)^2+4*$M$34*ARN8^2)^0.5)/(2*ARN8) -> 1.330186587 | ARQ1: =(ARR9-$M$34*ARQ9+((ARR9-$M$34*ARQ9)^2+4*$M$34*ARQ8^2)^0.5)/(2*ARQ8) -> 1.174648483 | ART1: =(ARU9-$M$34*ART9+((ARU9-$M$34*ART9)^2+4*$M$34*ART8^2)^0.5)/(2*ART8) -> 0.7402110754 | ARW1: =(ARX9-$M$34*ARW9+((ARX9-$M$34*ARW9)^2+4*$M$34*ARW8^2)^0.5)/(2*ARW8) -> 0.8170665938 | ARZ1: =(ASA9-$M$34*ARZ9+((ASA9-$M$34*ARZ9)^2+4*$M$34*ARZ8^2)^0.5)/(2*ARZ8) -> 0.8016462017 | ASC1: =(ASD9-$M$34*ASC9+((ASD9-$M$34*ASC9)^2+4*$M$34*ASC8^2)^0.5)/(2*ASC8) -> 0.8463436353 | ASF1: =(ASG9-$M$34*ASF9+((ASG9-$M$34*ASF9)^2+4*$M$34*ASF8^2)^0.5)/(2*ASF8) -> 0.8050191637 | ASI1: =(ASJ9-$M$34*ASI9+((ASJ9-$M$34*ASI9)^2+4*$M$34*ASI8^2)^0.5)/(2*ASI8) -> 1.188536983 | ASL1: =(ASM9-$M$34*ASL9+((ASM9-$M$34*ASL9)^2+4*$M$34*ASL8^2)^0.5)/(2*ASL8) -> 0.7977258225 | ASO1: =(ASP9-$M$34*ASO9+((ASP9-$M$34*ASO9)^2+4*$M$34*ASO8^2)^0.5)/(2*ASO8) -> 1.038067231 | ASR1: =(ASS9-$M$34*ASR9+((ASS9-$M$34*ASR9)^2+4*$M$34*ASR8^2)^0.5)/(2*ASR8) -> 0.7747591396 | ASU1: =(ASV9-$M$34*ASU9+((ASV9-$M$34*ASU9)^2+4*$M$34*ASU8^2)^0.5)/(2*ASU8) -> 0.8258174087 | ASX1: =(ASY9-$M$34*ASX9+((ASY9-$M$34*ASX9)^2+4*$M$34*ASX8^2)^0.5)/(2*ASX8) -> 1.210856631 | ATA1: =(ATB9-$M$34*ATA9+((ATB9-$M$34*ATA9)^2+4*$M$34*ATA8^2)^0.5)/(2*ATA8) -> 0.82114002 | ATD1: =(ATE9-$M$34*ATD9+((ATE9-$M$34*ATD9)^2+4*$M$34*ATD8^2)^0.5)/(2*ATD8) -> 0.8010749145 | ATG1: =(ATH9-$M$34*ATG9+((ATH9-$M$34*ATG9)^2+4*$M$34*ATG8^2)^0.5)/(2*ATG8) -> 0.7795888973 | ATJ1: =(ATK9-$M$34*ATJ9+((ATK9-$M$34*ATJ9)^2+4*$M$34*ATJ8^2)^0.5)/(2*ATJ8) -> 1.197453465 | ATM1: =(ATN9-$M$34*ATM9+((ATN9-$M$34*ATM9)^2+4*$M$34*ATM8^2)^0.5)/(2*ATM8) -> 0.8000731031 | ATP1: =(ATQ9-$M$34*ATP9+((ATQ9-$M$34*ATP9)^2+4*$M$34*ATP8^2)^0.5)/(2*ATP8) -> 0.933062805 | ATS1: =(ATT9-$M$34*ATS9+((ATT9-$M$34*ATS9)^2+4*$M$34*ATS8^2)^0.5)/(2*ATS8) -> 0.806235857 | ATV1: =(ATW9-$M$34*ATV9+((ATW9-$M$34*ATV9)^2+4*$M$34*ATV8^2)^0.5)/(2*ATV8) -> 0.8117439015 | ATY1: =(ATZ9-$M$34*ATY9+((ATZ9-$M$34*ATY9)^2+4*$M$34*ATY8^2)^0.5)/(2*ATY8) -> 0.8341421459 | AUB1: =(AUC9-$M$34*AUB9+((AUC9-$M$34*AUB9)^2+4*$M$34*AUB8^2)^0.5)/(2*AUB8) -> 0.7388507794 | AUE1: =(AUF9-$M$34*AUE9+((AUF9-$M$34*AUE9)^2+4*$M$34*AUE8^2)^0.5)/(2*AUE8) -> 1.322366222 | AUH1: =(AUI9-$M$34*AUH9+((AUI9-$M$34*AUH9)^2+4*$M$34*AUH8^2)^0.5)/(2*AUH8) -> 0.7684792678 | AUK1: =(AUL9-$M$34*AUK9+((AUL9-$M$34*AUK9)^2+4*$M$34*AUK8^2)^0.5)/(2*AUK8) -> 0.7580317492 | AUN1: =(AUO9-$M$34*AUN9+((AUO9-$M$34*AUN9)^2+4*$M$34*AUN8^2)^0.5)/(2*AUN8) -> 0.744214998 | AUQ1: =(AUR9-$M$34*AUQ9+((AUR9-$M$34*AUQ9)^2+4*$M$34*AUQ8^2)^0.5)/(2*AUQ8) -> 1.260612031 | AUT1: =(AUU9-$M$34*AUT9+((AUU9-$M$34*AUT9)^2+4*$M$34*AUT8^2)^0.5)/(2*AUT8) -> 0.7548336778 | AUW1: =(AUX9-$M$34*AUW9+((AUX9-$M$34*AUW9)^2+4*$M$34*AUW8^2)^0.5)/(2*AUW8) -> 1.504616513 | AUZ1: =(AVA9-$M$34*AUZ9+((AVA9-$M$34*AUZ9)^2+4*$M$34*AUZ8^2)^0.5)/(2*AUZ8) -> 0.9543974257 | AVC1: =(AVD9-$M$34*AVC9+((AVD9-$M$34*AVC9)^2+4*$M$34*AVC8^2)^0.5)/(2*AVC8) -> 0.7480611117 | AVF1: =(AVG9-$M$34*AVF9+((AVG9-$M$34*AVF9)^2+4*$M$34*AVF8^2)^0.5)/(2*AVF8) -> 0.7819979122 | AVI1: =(AVJ9-$M$34*AVI9+((AVJ9-$M$34*AVI9)^2+4*$M$34*AVI8^2)^0.5)/(2*AVI8) -> 0.8160501343 | AVL1: =(AVM9-$M$34*AVL9+((AVM9-$M$34*AVL9)^2+4*$M$34*AVL8^2)^0.5)/(2*AVL8) -> 0.7706072565 | AVO1: =(AVP9-$M$34*AVO9+((AVP9-$M$34*AVO9)^2+4*$M$34*AVO8^2)^0.5)/(2*AVO8) -> 0.8708063766 | AVR1: =(AVS9-$M$34*AVR9+((AVS9-$M$34*AVR9)^2+4*$M$34*AVR8^2)^0.5)/(2*AVR8) -> 0.8248982841 | AVU1: =(AVV9-$M$34*AVU9+((AVV9-$M$34*AVU9)^2+4*$M$34*AVU8^2)^0.5)/(2*AVU8) -> 0.817136279 | AVX1: =(AVY9-$M$34*AVX9+((AVY9-$M$34*AVX9)^2+4*$M$34*AVX8^2)^0.5)/(2*AVX8) -> 0.8316461622 | AWA1: =(AWB9-$M$34*AWA9+((AWB9-$M$34*AWA9)^2+4*$M$34*AWA8^2)^0.5)/(2*AWA8) -> 0.8451219223 | AWD1: =(AWE9-$M$34*AWD9+((AWE9-$M$34*AWD9)^2+4*$M$34*AWD8^2)^0.5)/(2*AWD8) -> 0.7540118253 | AWG1: =(AWH9-$M$34*AWG9+((AWH9-$M$34*AWG9)^2+4*$M$34*AWG8^2)^0.5)/(2*AWG8) -> 0.74091528 | AWJ1: =(AWK9-$M$34*AWJ9+((AWK9-$M$34*AWJ9)^2+4*$M$34*AWJ8^2)^0.5)/(2*AWJ8) -> 0.8233593309 | AWM1: =(AWN9-$M$34*AWM9+((AWN9-$M$34*AWM9)^2+4*$M$34*AWM8^2)^0.5)/(2*AWM8) -> 0.846445317 | AWP1: =(AWQ9-$M$34*AWP9+((AWQ9-$M$34*AWP9)^2+4*$M$34*AWP8^2)^0.5)/(2*AWP8) -> 1.104876308 | AWS1: =(AWT9-$M$34*AWS9+((AWT9-$M$34*AWS9)^2+4*$M$34*AWS8^2)^0.5)/(2*AWS8) -> 0.7767103071 | AWV1: =(AWW9-$M$34*AWV9+((AWW9-$M$34*AWV9)^2+4*$M$34*AWV8^2)^0.5)/(2*AWV8) -> 0.7409487838 | AWY1: =(AWZ9-$M$34*AWY9+((AWZ9-$M$34*AWY9)^2+4*$M$34*AWY8^2)^0.5)/(2*AWY8) -> 1.020808345 | AXB1: =(AXC9-$M$34*AXB9+((AXC9-$M$34*AXB9)^2+4*$M$34*AXB8^2)^0.5)/(2*AXB8) -> 1.107527596 | AXE1: =(AXF9-$M$34*AXE9+((AXF9-$M$34*AXE9)^2+4*$M$34*AXE8^2)^0.5)/(2*AXE8) -> 0.8072851303 | AXH1: =(AXI9-$M$34*AXH9+((AXI9-$M$34*AXH9)^2+4*$M$34*AXH8^2)^0.5)/(2*AXH8) -> 0.8018284268 | AXK1: =(AXL9-$M$34*AXK9+((AXL9-$M$34*AXK9)^2+4*$M$34*AXK8^2)^0.5)/(2*AXK8) -> 0.8229621503 | AXN1: =(AXO9-$M$34*AXN9+((AXO9-$M$34*AXN9)^2+4*$M$34*AXN8^2)^0.5)/(2*AXN8) -> 1.251782506 | AXQ1: =(AXR9-$M$34*AXQ9+((AXR9-$M$34*AXQ9)^2+4*$M$34*AXQ8^2)^0.5)/(2*AXQ8) -> 0.7309273416 | AXT1: =(AXU9-$M$34*AXT9+((AXU9-$M$34*AXT9)^2+4*$M$34*AXT8^2)^0.5)/(2*AXT8) -> 0.7664228512 | AXW1: =(AXX9-$M$34*AXW9+((AXX9-$M$34*AXW9)^2+4*$M$34*AXW8^2)^0.5)/(2*AXW8) -> 1.029668434 | AXZ1: =(AYA9-$M$34*AXZ9+((AYA9-$M$34*AXZ9)^2+4*$M$34*AXZ8^2)^0.5)/(2*AXZ8) -> 0.8332962472 | AYC1: =(AYD9-$M$34*AYC9+((AYD9-$M$34*AYC9)^2+4*$M$34*AYC8^2)^0.5)/(2*AYC8) -> 0.8454490751 | AYF1: =(AYG9-$M$34*AYF9+((AYG9-$M$34*AYF9)^2+4*$M$34*AYF8^2)^0.5)/(2*AYF8) -> 1.273823507 | AYI1: =(AYJ9-$M$34*AYI9+((AYJ9-$M$34*AYI9)^2+4*$M$34*AYI8^2)^0.5)/(2*AYI8) -> 0.9855814824 | AYL1: =(AYM9-$M$34*AYL9+((AYM9-$M$34*AYL9)^2+4*$M$34*AYL8^2)^0.5)/(2*AYL8) -> 0.7511646227 | AYO1: =(AYP9-$M$34*AYO9+((AYP9-$M$34*AYO9)^2+4*$M$34*AYO8^2)^0.5)/(2*AYO8) -> 1.188804557 | AYR1: =(AYS9-$M$34*AYR9+((AYS9-$M$34*AYR9)^2+4*$M$34*AYR8^2)^0.5)/(2*AYR8) -> 0.7579427933 | AYU1: =(AYV9-$M$34*AYU9+((AYV9-$M$34*AYU9)^2+4*$M$34*AYU8^2)^0.5)/(2*AYU8) -> 0.7710254905 | AYX1: =(AYY9-$M$34*AYX9+((AYY9-$M$34*AYX9)^2+4*$M$34*AYX8^2)^0.5)/(2*AYX8) -> 0.8137608445 | AZA1: =(AZB9-$M$34*AZA9+((AZB9-$M$34*AZA9)^2+4*$M$34*AZA8^2)^0.5)/(2*AZA8) -> 0.7871441925 | AZD1: =(AZE9-$M$34*AZD9+((AZE9-$M$34*AZD9)^2+4*$M$34*AZD8^2)^0.5)/(2*AZD8) -> 0.7540230803 | AZG1: =(AZH9-$M$34*AZG9+((AZH9-$M$34*AZG9)^2+4*$M$34*AZG8^2)^0.5)/(2*AZG8) -> 1.010214441 | AZJ1: =(AZK9-$M$34*AZJ9+((AZK9-$M$34*AZJ9)^2+4*$M$34*AZJ8^2)^0.5)/(2*AZJ8) -> 0.8182629651 | AZM1: =(AZN9-$M$34*AZM9+((AZN9-$M$34*AZM9)^2+4*$M$34*AZM8^2)^0.5)/(2*AZM8) -> 1.153182743 | AZP1: =(AZQ9-$M$34*AZP9+((AZQ9-$M$34*AZP9)^2+4*$M$34*AZP8^2)^0.5)/(2*AZP8) -> 0.8087213636 | AZS1: =(AZT9-$M$34*AZS9+((AZT9-$M$34*AZS9)^2+4*$M$34*AZS8^2)^0.5)/(2*AZS8) -> 0.8126320405 | AZV1: =(AZW9-$M$34*AZV9+((AZW9-$M$34*AZV9)^2+4*$M$34*AZV8^2)^0.5)/(2*AZV8) -> 0.8065802636 | AZY1: =(AZZ9-$M$34*AZY9+((AZZ9-$M$34*AZY9)^2+4*$M$34*AZY8^2)^0.5)/(2*AZY8) -> 1.121474686 | BAB1: =(BAC9-$M$34*BAB9+((BAC9-$M$34*BAB9)^2+4*$M$34*BAB8^2)^0.5)/(2*BAB8) -> 0.8313840253 | BAE1: =(BAF9-$M$34*BAE9+((BAF9-$M$34*BAE9)^2+4*$M$34*BAE8^2)^0.5)/(2*BAE8) -> 0.7599953572 | BAH1: =(BAI9-$M$34*BAH9+((BAI9-$M$34*BAH9)^2+4*$M$34*BAH8^2)^0.5)/(2*BAH8) -> 0.7342132077 | BAK1: =(BAL9-$M$34*BAK9+((BAL9-$M$34*BAK9)^2+4*$M$34*BAK8^2)^0.5)/(2*BAK8) -> 0.779504788 | BAN1: =(BAO9-$M$34*BAN9+((BAO9-$M$34*BAN9)^2+4*$M$34*BAN8^2)^0.5)/(2*BAN8) -> 1.217829275 | BAQ1: =(BAR9-$M$34*BAQ9+((BAR9-$M$34*BAQ9)^2+4*$M$34*BAQ8^2)^0.5)/(2*BAQ8) -> 0.9328965798 | BAT1: =(BAU9-$M$34*BAT9+((BAU9-$M$34*BAT9)^2+4*$M$34*BAT8^2)^0.5)/(2*BAT8) -> 0.8393679594 | BAW1: =(BAX9-$M$34*BAW9+((BAX9-$M$34*BAW9)^2+4*$M$34*BAW8^2)^0.5)/(2*BAW8) -> 0.7307154247 | BAZ1: =(BBA9-$M$34*BAZ9+((BBA9-$M$34*BAZ9)^2+4*$M$34*BAZ8^2)^0.5)/(2*BAZ8) -> 1.441485619 | BBC1: =(BBD9-$M$34*BBC9+((BBD9-$M$34*BBC9)^2+4*$M$34*BBC8^2)^0.5)/(2*BBC8) -> 0.7917948799 | BBF1: =(BBG9-$M$34*BBF9+((BBG9-$M$34*BBF9)^2+4*$M$34*BBF8^2)^0.5)/(2*BBF8) -> 0.768119461 | BBI1: =(BBJ9-$M$34*BBI9+((BBJ9-$M$34*BBI9)^2+4*$M$34*BBI8^2)^0.5)/(2*BBI8) -> 0.8195008045 | BBL1: =(BBM9-$M$34*BBL9+((BBM9-$M$34*BBL9)^2+4*$M$34*BBL8^2)^0.5)/(2*BBL8) -> 0.7327078464 | BBO1: =(BBP9-$M$34*BBO9+((BBP9-$M$34*BBO9)^2+4*$M$34*BBO8^2)^0.5)/(2*BBO8) -> 0.8225466769 | BBR1: =(BBS9-$M$34*BBR9+((BBS9-$M$34*BBR9)^2+4*$M$34*BBR8^2)^0.5)/(2*BBR8) -> 1.334116847 | BBU1: =(BBV9-$M$34*BBU9+((BBV9-$M$34*BBU9)^2+4*$M$34*BBU8^2)^0.5)/(2*BBU8) -> 0.8376702087 | BBX1: =(BBY9-$M$34*BBX9+((BBY9-$M$34*BBX9)^2+4*$M$34*BBX8^2)^0.5)/(2*BBX8) -> 0.8228515873 | BCA1: =(BCB9-$M$34*BCA9+((BCB9-$M$34*BCA9)^2+4*$M$34*BCA8^2)^0.5)/(2*BCA8) -> 0.8324602338 | BCD1: =(BCE9-$M$34*BCD9+((BCE9-$M$34*BCD9)^2+4*$M$34*BCD8^2)^0.5)/(2*BCD8) -> 0.773440772 | BCG1: =(BCH9-$M$34*BCG9+((BCH9-$M$34*BCG9)^2+4*$M$34*BCG8^2)^0.5)/(2*BCG8) -> 0.7298770132 | BCJ1: =(BCK9-$M$34*BCJ9+((BCK9-$M$34*BCJ9)^2+4*$M$34*BCJ8^2)^0.5)/(2*BCJ8) -> 0.7700585695 | BCM1: =(BCN9-$M$34*BCM9+((BCN9-$M$34*BCM9)^2+4*$M$34*BCM8^2)^0.5)/(2*BCM8) -> 1.085421662 | BCP1: =(BCQ9-$M$34*BCP9+((BCQ9-$M$34*BCP9)^2+4*$M$34*BCP8^2)^0.5)/(2*BCP8) -> 0.8273994747 | BCS1: =(BCT9-$M$34*BCS9+((BCT9-$M$34*BCS9)^2+4*$M$34*BCS8^2)^0.5)/(2*BCS8) -> 0.7589678803 | BCV1: =(BCW9-$M$34*BCV9+((BCW9-$M$34*BCV9)^2+4*$M$34*BCV8^2)^0.5)/(2*BCV8) -> 0.8308588069 | BCY1: =(BCZ9-$M$34*BCY9+((BCZ9-$M$34*BCY9)^2+4*$M$34*BCY8^2)^0.5)/(2*BCY8) -> 0.789050724 | BDB1: =(BDC9-$M$34*BDB9+((BDC9-$M$34*BDB9)^2+4*$M$34*BDB8^2)^0.5)/(2*BDB8) -> 1.290238163 | BDE1: =(BDF9-$M$34*BDE9+((BDF9-$M$34*BDE9)^2+4*$M$34*BDE8^2)^0.5)/(2*BDE8) -> 0.9632579315 | BDH1: =(BDI9-$M$34*BDH9+((BDI9-$M$34*BDH9)^2+4*$M$34*BDH8^2)^0.5)/(2*BDH8) -> 1.002084361 | BDK1: =(BDL9-$M$34*BDK9+((BDL9-$M$34*BDK9)^2+4*$M$34*BDK8^2)^0.5)/(2*BDK8) -> 0.996442851 | BDN1: =(BDO9-$M$34*BDN9+((BDO9-$M$34*BDN9)^2+4*$M$34*BDN8^2)^0.5)/(2*BDN8) -> 1.117438362 | BDQ1: =(BDR9-$M$34*BDQ9+((BDR9-$M$34*BDQ9)^2+4*$M$34*BDQ8^2)^0.5)/(2*BDQ8) -> 0.7209893929 | BDT1: =(BDU9-$M$34*BDT9+((BDU9-$M$34*BDT9)^2+4*$M$34*BDT8^2)^0.5)/(2*BDT8) -> 1.154634969 | BDW1: =(BDX9-$M$34*BDW9+((BDX9-$M$34*BDW9)^2+4*$M$34*BDW8^2)^0.5)/(2*BDW8) -> 0.8754566545 | BDZ1: =(BEA9-$M$34*BDZ9+((BEA9-$M$34*BDZ9)^2+4*$M$34*BDZ8^2)^0.5)/(2*BDZ8) -> 1.063583625 | BEC1: =(BED9-$M$34*BEC9+((BED9-$M$34*BEC9)^2+4*$M$34*BEC8^2)^0.5)/(2*BEC8) -> 0.7582719864 | BEF1: =(BEG9-$M$34*BEF9+((BEG9-$M$34*BEF9)^2+4*$M$34*BEF8^2)^0.5)/(2*BEF8) -> 1.155263262 | BEI1: =(BEJ9-$M$34*BEI9+((BEJ9-$M$34*BEI9)^2+4*$M$34*BEI8^2)^0.5)/(2*BEI8) -> 0.7729661146 | BEL1: =(BEM9-$M$34*BEL9+((BEM9-$M$34*BEL9)^2+4*$M$34*BEL8^2)^0.5)/(2*BEL8) -> 0.8168516276 | BEO1: =(BEP9-$M$34*BEO9+((BEP9-$M$34*BEO9)^2+4*$M$34*BEO8^2)^0.5)/(2*BEO8) -> 0.8471330267 | BER1: =(BES9-$M$34*BER9+((BES9-$M$34*BER9)^2+4*$M$34*BER8^2)^0.5)/(2*BER8) -> 1.325634086 | BEU1: =(BEV9-$M$34*BEU9+((BEV9-$M$34*BEU9)^2+4*$M$34*BEU8^2)^0.5)/(2*BEU8) -> 1.328746711 | BEX1: =(BEY9-$M$34*BEX9+((BEY9-$M$34*BEX9)^2+4*$M$34*BEX8^2)^0.5)/(2*BEX8) -> 0.7818246811 | BFA1: =(BFB9-$M$34*BFA9+((BFB9-$M$34*BFA9)^2+4*$M$34*BFA8^2)^0.5)/(2*BFA8) -> 0.8139215414 | BFD1: =(BFE9-$M$34*BFD9+((BFE9-$M$34*BFD9)^2+4*$M$34*BFD8^2)^0.5)/(2*BFD8) -> 1.047106921 | BFG1: =(BFH9-$M$34*BFG9+((BFH9-$M$34*BFG9)^2+4*$M$34*BFG8^2)^0.5)/(2*BFG8) -> 1.282813295 | BFJ1: =(BFK9-$M$34*BFJ9+((BFK9-$M$34*BFJ9)^2+4*$M$34*BFJ8^2)^0.5)/(2*BFJ8) -> 0.7652513545 | BFM1: =(BFN9-$M$34*BFM9+((BFN9-$M$34*BFM9)^2+4*$M$34*BFM8^2)^0.5)/(2*BFM8) -> 0.8250166427 | BFP1: =(BFQ9-$M$34*BFP9+((BFQ9-$M$34*BFP9)^2+4*$M$34*BFP8^2)^0.5)/(2*BFP8) -> 1.164261421 | BFS1: =(BFT9-$M$34*BFS9+((BFT9-$M$34*BFS9)^2+4*$M$34*BFS8^2)^0.5)/(2*BFS8) -> 1.132783307 | BFV1: =(BFW9-$M$34*BFV9+((BFW9-$M$34*BFV9)^2+4*$M$34*BFV8^2)^0.5)/(2*BFV8) -> 0.7378442269 | BFY1: =(BFZ9-$M$34*BFY9+((BFZ9-$M$34*BFY9)^2+4*$M$34*BFY8^2)^0.5)/(2*BFY8) -> 0.8289280684 | BGB1: =(BGC9-$M$34*BGB9+((BGC9-$M$34*BGB9)^2+4*$M$34*BGB8^2)^0.5)/(2*BGB8) -> 1.121266627 | BGE1: =(BGF9-$M$34*BGE9+((BGF9-$M$34*BGE9)^2+4*$M$34*BGE8^2)^0.5)/(2*BGE8) -> 0.7801911167 | BGH1: =(BGI9-$M$34*BGH9+((BGI9-$M$34*BGH9)^2+4*$M$34*BGH8^2)^0.5)/(2*BGH8) -> 0.7305028854 | BGK1: =(BGL9-$M$34*BGK9+((BGL9-$M$34*BGK9)^2+4*$M$34*BGK8^2)^0.5)/(2*BGK8) -> 1.149787532 | BGN1: =(BGO9-$M$34*BGN9+((BGO9-$M$34*BGN9)^2+4*$M$34*BGN8^2)^0.5)/(2*BGN8) -> 1.177553861 | BGQ1: =(BGR9-$M$34*BGQ9+((BGR9-$M$34*BGQ9)^2+4*$M$34*BGQ8^2)^0.5)/(2*BGQ8) -> 0.7758220538 | BGT1: =(BGU9-$M$34*BGT9+((BGU9-$M$34*BGT9)^2+4*$M$34*BGT8^2)^0.5)/(2*BGT8) -> 0.7667920083
D2: データ入力の最大は500まで | M2: 群1(1回目） | O2: 群２(2回目） | AD2: 等確率楕円用データ | AI2: 等確率楕円用データ | AO2: Sｘｘ：= | AP2: =DEVSQ(AN5:AN1304) -> 10998.03922 | AQ2: =DEVSQ(AP5:AP504) ->  | AY2: -0.03745084566 | AZ2: 1.460555808 | BA2: Deming a= | BB2: =BC7-BB1*BB7 -> 1.367221081 | BE2: =BF7-BE1*BE7 -> 0.320135117 | BH2: =BI7-BH1*BH7 -> 0.7721798365 | BK2: =BL7-BK1*BK7 -> 0.4318991091 | BN2: =BO7-BN1*BN7 -> 1.055314323 | BQ2: =BR7-BQ1*BQ7 -> 0.1100287637 | BT2: =BU7-BT1*BT7 -> 0.3197673887 | BW2: =BX7-BW1*BW7 -> 0.1599198446 | BZ2: =CA7-BZ1*BZ7 -> 0.9690064295 | CC2: =CD7-CC1*CC7 -> 0.4486818034 | CF2: =CG7-CF1*CF7 -> 1.312361379 | CI2: =CJ7-CI1*CI7 -> 0.2533626565 | CL2: =CM7-CL1*CL7 -> 1.038258557 | CO2: =CP7-CO1*CO7 -> 1.012650646 | CR2: =CS7-CR1*CR7 -> 1.155862286 | CU2: =CV7-CU1*CU7 -> 1.153206088 | CX2: =CY7-CX1*CX7 -> 1.0318537 | DA2: =DB7-DA1*DA7 -> 1.081391411 | DD2: =DE7-DD1*DD7 -> 0.175622766 | DG2: =DH7-DG1*DG7 -> 1.116391911 | DJ2: =DK7-DJ1*DJ7 -> 1.067664096 | DM2: =DN7-DM1*DM7 -> 0.2626062113 | DP2: =DQ7-DP1*DP7 -> 0.2398909336 | DS2: =DT7-DS1*DS7 -> 0.3992457004 | DV2: =DW7-DV1*DV7 -> 0.968492818 | DY2: =DZ7-DY1*DY7 -> 1.348725588 | EB2: =EC7-EB1*EB7 -> 0.2346424109 | EE2: =EF7-EE1*EE7 -> 1.140230843 | EH2: =EI7-EH1*EH7 -> 1.366216762 | EK2: =EL7-EK1*EK7 -> 0.9266223557 | EN2: =EO7-EN1*EN7 -> 0.5887922886 | EQ2: =ER7-EQ1*EQ7 -> 0.1483504196 | ET2: =EU7-ET1*ET7 -> 0.9505656127 | EW2: =EX7-EW1*EW7 -> 1.202756677 | EZ2: =FA7-EZ1*EZ7 -> 0.8639585279 | FC2: =FD7-FC1*FC7 -> 0.4967293414 | FF2: =FG7-FF1*FF7 -> 1.270873089 | FI2: =FJ7-FI1*FI7 -> 1.031455226 | FL2: =FM7-FL1*FL7 -> 1.050343075 | FO2: =FP7-FO1*FO7 -> -0.2449151833 | FR2: =FS7-FR1*FR7 -> 1.055353902 | FU2: =FV7-FU1*FU7 -> 1.138360637 | FX2: =FY7-FX1*FX7 -> 1.343289224 | GA2: =GB7-GA1*GA7 -> 0.5452687742 | GD2: =GE7-GD1*GD7 -> 1.028757952 | GG2: =GH7-GG1*GG7 -> -0.1205177185 | GJ2: =GK7-GJ1*GJ7 -> 1.087562522 | GM2: =GN7-GM1*GM7 -> 1.051325264 | GP2: =GQ7-GP1*GP7 -> 1.292433492 | GS2: =GT7-GS1*GS7 -> 0.2301571828 | GV2: =GW7-GV1*GV7 -> 0.6992895855 | GY2: =GZ7-GY1*GY7 -> 1.502612509 | HB2: =HC7-HB1*HB7 -> 0.9857436706 | HE2: =HF7-HE1*HE7 -> 1.143915832 | HH2: =HI7-HH1*HH7 -> 0.3919350066 | HK2: =HL7-HK1*HK7 -> 1.047138598 | HN2: =HO7-HN1*HN7 -> -0.006554444732 | HQ2: =HR7-HQ1*HQ7 -> 1.436597424 | HT2: =HU7-HT1*HT7 -> 1.102089435 | HW2: =HX7-HW1*HW7 -> 0.1490686227 | HZ2: =IA7-HZ1*HZ7 -> 1.216977107 | IC2: =ID7-IC1*IC7 -> 1.070749859 | IF2: =IG7-IF1*IF7 -> 1.127821344 | II2: =IJ7-II1*II7 -> 1.039602754 | IL2: =IM7-IL1*IL7 -> 1.214086379 | IO2: =IP7-IO1*IO7 -> 1.050584678 | IR2: =IS7-IR1*IR7 -> 0.8945106177 | IU2: =IV7-IU1*IU7 -> 0.286133216 | IX2: =IY7-IX1*IX7 -> 1.168840874 | JA2: =JB7-JA1*JA7 -> 1.337861489 | JD2: =JE7-JD1*JD7 -> 1.1457686 | JG2: =JH7-JG1*JG7 -> 1.091204782 | JJ2: =JK7-JJ1*JJ7 -> 0.9842393075 | JM2: =JN7-JM1*JM7 -> 1.060446568 | JP2: =JQ7-JP1*JP7 -> 1.301871761 | JS2: =JT7-JS1*JS7 -> 1.069642831 | JV2: =JW7-JV1*JV7 -> 1.070028671 | JY2: =JZ7-JY1*JY7 -> 1.050160695 | KB2: =KC7-KB1*KB7 -> 1.126403911 | KE2: =KF7-KE1*KE7 -> 1.191991835 | KH2: =KI7-KH1*KH7 -> 0.1715636463 | KK2: =KL7-KK1*KK7 -> 0.9423864861 | KN2: =KO7-KN1*KN7 -> 1.117001019 | KQ2: =KR7-KQ1*KQ7 -> 1.160001739 | KT2: =KU7-KT1*KT7 -> 0.3864657486 | KW2: =KX7-KW1*KW7 -> 0.3040472736 | KZ2: =LA7-KZ1*KZ7 -> 1.431697506 | LC2: =LD7-LC1*LC7 -> 0.4038203491 | LF2: =LG7-LF1*LF7 -> 0.5266603449 | LI2: =LJ7-LI1*LI7 -> 1.249699981 | LL2: =LM7-LL1*LL7 -> 0.5909842945 | LO2: =LP7-LO1*LO7 -> 1.116427654 | LR2: =LS7-LR1*LR7 -> 0.3484367006 | LU2: =LV7-LU1*LU7 -> 1.010784661 | LX2: =LY7-LX1*LX7 -> 0.06467549836 | MA2: =MB7-MA1*MA7 -> 0.4369918387 | MD2: =ME7-MD1*MD7 -> 1.092595522 | MG2: =MH7-MG1*MG7 -> 0.2381088729 | MJ2: =MK7-MJ1*MJ7 -> 0.4535550945 | MM2: =MN7-MM1*MM7 -> 1.574326467 | MP2: =MQ7-MP1*MP7 -> 1.083267939 | MS2: =MT7-MS1*MS7 -> 1.384212389 | MV2: =MW7-MV1*MV7 -> 1.179554547 | MY2: =MZ7-MY1*MY7 -> 0.3862357975 | NB2: =NC7-NB1*NB7 -> 0.2673634422 | NE2: =NF7-NE1*NE7 -> 1.011075196 | NH2: =NI7-NH1*NH7 -> 1.042122657 | NK2: =NL7-NK1*NK7 -> 0.4443805017 | NN2: =NO7-NN1*NN7 -> 1.232819642 | NQ2: =NR7-NQ1*NQ7 -> 0.9185437596 | NT2: =NU7-NT1*NT7 -> 0.9894089733 | NW2: =NX7-NW1*NW7 -> 0.3677235604 | NZ2: =OA7-NZ1*NZ7 -> 1.224378361 | OC2: =OD7-OC1*OC7 -> 0.1334730645 | OF2: =OG7-OF1*OF7 -> 1.109074671 | OI2: =OJ7-OI1*OI7 -> 0.2710840364 | OL2: =OM7-OL1*OL7 -> 1.068308894 | OO2: =OP7-OO1*OO7 -> 1.282468355 | OR2: =OS7-OR1*OR7 -> 1.384125179 | OU2: =OV7-OU1*OU7 -> 0.3463680798 | OX2: =OY7-OX1*OX7 -> 0.3395286894 | PA2: =PB7-PA1*PA7 -> 1.198005086 | PD2: =PE7-PD1*PD7 -> 0.3887735299 | PG2: =PH7-PG1*PG7 -> 1.040695398 | PJ2: =PK7-PJ1*PJ7 -> 0.3119599384 | PM2: =PN7-PM1*PM7 -> 0.4512164785 | PP2: =PQ7-PP1*PP7 -> 1.112302875 | PS2: =PT7-PS1*PS7 -> 1.157854328 | PV2: =PW7-PV1*PV7 -> 0.6108269297 | PY2: =PZ7-PY1*PY7 -> 0.9421010499 | QB2: =QC7-QB1*QB7 -> 1.069909774 | QE2: =QF7-QE1*QE7 -> 1.162498714 | QH2: =QI7-QH1*QH7 -> 1.47611729 | QK2: =QL7-QK1*QK7 -> 1.161319765 | QN2: =QO7-QN1*QN7 -> 0.9279513384 | QQ2: =QR7-QQ1*QQ7 -> 0.5219282139 | QT2: =QU7-QT1*QT7 -> 1.164400685 | QW2: =QX7-QW1*QW7 -> 1.213061146 | QZ2: =RA7-QZ1*QZ7 -> 0.9335905029 | RC2: =RD7-RC1*RC7 -> 0.3832699746 | RF2: =RG7-RF1*RF7 -> 1.075378025 | RI2: =RJ7-RI1*RI7 -> 0.3418172626 | RL2: =RM7-RL1*RL7 -> 1.185039819 | RO2: =RP7-RO1*RO7 -> 0.2619964337 | RR2: =RS7-RR1*RR7 -> 0.331081864 | RU2: =RV7-RU1*RU7 -> 0.4992766949 | RX2: =RY7-RX1*RX7 -> 1.350724522 | SA2: =SB7-SA1*SA7 -> 1.179533403 | SD2: =SE7-SD1*SD7 -> 0.2738449973 | SG2: =SH7-SG1*SG7 -> 0.4837416979 | SJ2: =SK7-SJ1*SJ7 -> 1.050779797 | SM2: =SN7-SM1*SM7 -> 1.039941798 | SP2: =SQ7-SP1*SP7 -> 0.9686922104 | SS2: =ST7-SS1*SS7 -> 0.4743992358 | SV2: =SW7-SV1*SV7 -> 1.031218759 | SY2: =SZ7-SY1*SY7 -> 1.106893672 | TB2: =TC7-TB1*TB7 -> 0.9214515474 | TE2: =TF7-TE1*TE7 -> 1.375724156 | TH2: =TI7-TH1*TH7 -> 1.013079572 | TK2: =TL7-TK1*TK7 -> 0.9475381337 | TN2: =TO7-TN1*TN7 -> 1.208552501 | TQ2: =TR7-TQ1*TQ7 -> 1.102589046 | TT2: =TU7-TT1*TT7 -> 1.25791008 | TW2: =TX7-TW1*TW7 -> 1.102622605 | TZ2: =UA7-TZ1*TZ7 -> 1.285331018 | UC2: =UD7-UC1*UC7 -> 1.004149599 | UF2: =UG7-UF1*UF7 -> 1.167357701 | UI2: =UJ7-UI1*UI7 -> 1.258015742 | UL2: =UM7-UL1*UL7 -> 1.141121779 | UO2: =UP7-UO1*UO7 -> 1.242654205 | UR2: =US7-UR1*UR7 -> 0.2009628815 | UU2: =UV7-UU1*UU7 -> 1.105459571 | UX2: =UY7-UX1*UX7 -> 0.3872213227 | VA2: =VB7-VA1*VA7 -> 0.9584662913 | VD2: =VE7-VD1*VD7 -> 0.1876930295 | VG2: =VH7-VG1*VG7 -> 1.118368873 | VJ2: =VK7-VJ1*VJ7 -> 0.5843806596 | VM2: =VN7-VM1*VM7 -> 0.8512952599 | VP2: =VQ7-VP1*VP7 -> -0.06860728923 | VS2: =VT7-VS1*VS7 -> 1.181361541 | VV2: =VW7-VV1*VV7 -> 0.8329146883 | VY2: =VZ7-VY1*VY7 -> 1.545635929 | WB2: =WC7-WB1*WB7 -> 0.2007373504 | WE2: =WF7-WE1*WE7 -> 1.441519279 | WH2: =WI7-WH1*WH7 -> 0.1509667828 | WK2: =WL7-WK1*WK7 -> 1.220391811 | WN2: =WO7-WN1*WN7 -> 1.047768064 | WQ2: =WR7-WQ1*WQ7 -> 1.187794709 | WT2: =WU7-WT1*WT7 -> 1.245969334 | WW2: =WX7-WW1*WW7 -> 1.159243271 | WZ2: =XA7-WZ1*WZ7 -> 0.2092439271 | XC2: =XD7-XC1*XC7 -> 0.7705877564 | XF2: =XG7-XF1*XF7 -> 1.155316414 | XI2: =XJ7-XI1*XI7 -> 0.09221486154 | XL2: =XM7-XL1*XL7 -> 1.854184306 | XO2: =XP7-XO1*XO7 -> 1.525015669 | XR2: =XS7-XR1*XR7 -> 1.455875254 | XU2: =XV7-XU1*XU7 -> 1.337251408 | XX2: =XY7-XX1*XX7 -> 0.3640438037 | YA2: =YB7-YA1*YA7 -> 0.09375490185 | YD2: =YE7-YD1*YD7 -> 0.1547071877 | YG2: =YH7-YG1*YG7 -> 1.098068642 | YJ2: =YK7-YJ1*YJ7 -> 0.5930796557 | YM2: =YN7-YM1*YM7 -> 1.207871772 | YP2: =YQ7-YP1*YP7 -> 0.1937505302 | YS2: =YT7-YS1*YS7 -> 0.3049423489 | YV2: =YW7-YV1*YV7 -> 0.280113578 | YY2: =YZ7-YY1*YY7 -> 0.5343107086 | ZB2: =ZC7-ZB1*ZB7 -> 1.13480599 | ZE2: =ZF7-ZE1*ZE7 -> 1.218904591 | ZH2: =ZI7-ZH1*ZH7 -> 0.08922196905 | ZK2: =ZL7-ZK1*ZK7 -> 1.118242106 | ZN2: =ZO7-ZN1*ZN7 -> 0.464959329 | ZQ2: =ZR7-ZQ1*ZQ7 -> 1.112086305 | ZT2: =ZU7-ZT1*ZT7 -> 1.096618128 | ZW2: =ZX7-ZW1*ZW7 -> 0.9665798336 | ZZ2: =AAA7-ZZ1*ZZ7 -> 1.03590567 | AAC2: =AAD7-AAC1*AAC7 -> 0.40996732 | AAF2: =AAG7-AAF1*AAF7 -> 0.2444445623 | AAI2: =AAJ7-AAI1*AAI7 -> 1.1513197 | AAL2: =AAM7-AAL1*AAL7 -> 0.9682100136 | AAO2: =AAP7-AAO1*AAO7 -> 0.4152677908 | AAR2: =AAS7-AAR1*AAR7 -> 1.055689186 | AAU2: =AAV7-AAU1*AAU7 -> 0.5041050496 | AAX2: =AAY7-AAX1*AAX7 -> 1.096629311 | ABA2: =ABB7-ABA1*ABA7 -> 1.172884748 | ABD2: =ABE7-ABD1*ABD7 -> 1.24207589 | ABG2: =ABH7-ABG1*ABG7 -> 1.320322133 | ABJ2: =ABK7-ABJ1*ABJ7 -> 0.153963633 | ABM2: =ABN7-ABM1*ABM7 -> 1.241885058 | ABP2: =ABQ7-ABP1*ABP7 -> 1.010371851 | ABS2: =ABT7-ABS1*ABS7 -> 0.8532537457 | ABV2: =ABW7-ABV1*ABV7 -> 1.221457588 | ABY2: =ABZ7-ABY1*ABY7 -> 0.7626380612 | ACB2: =ACC7-ACB1*ACB7 -> 1.108029993 | ACE2: =ACF7-ACE1*ACE7 -> 1.30833414 | ACH2: =ACI7-ACH1*ACH7 -> 1.151461766 | ACK2: =ACL7-ACK1*ACK7 -> 1.252836104 | ACN2: =ACO7-ACN1*ACN7 -> 0.7035507372 | ACQ2: =ACR7-ACQ1*ACQ7 -> 1.130021143 | ACT2: =ACU7-ACT1*ACT7 -> 1.106200537 | ACW2: =ACX7-ACW1*ACW7 -> 0.2497678682 | ACZ2: =ADA7-ACZ1*ACZ7 -> 0.2201721204 | ADC2: =ADD7-ADC1*ADC7 -> 1.067974187 | ADF2: =ADG7-ADF1*ADF7 -> 1.038403266 | ADI2: =ADJ7-ADI1*ADI7 -> 0.5842038354 | ADL2: =ADM7-ADL1*ADL7 -> 0.9743884198 | ADO2: =ADP7-ADO1*ADO7 -> 0.9888838911 | ADR2: =ADS7-ADR1*ADR7 -> 1.149680218 | ADU2: =ADV7-ADU1*ADU7 -> 0.1775683998 | ADX2: =ADY7-ADX1*ADX7 -> 1.305671795 | AEA2: =AEB7-AEA1*AEA7 -> 1.00434504 | AED2: =AEE7-AED1*AED7 -> 0.2537714991 | AEG2: =AEH7-AEG1*AEG7 -> 1.477670362 | AEJ2: =AEK7-AEJ1*AEJ7 -> 0.3774467558 | AEM2: =AEN7-AEM1*AEM7 -> 0.2341602187 | AEP2: =AEQ7-AEP1*AEP7 -> 1.026094074 | AES2: =AET7-AES1*AES7 -> 0.8944595041 | AEV2: =AEW7-AEV1*AEV7 -> 1.177309641 | AEY2: =AEZ7-AEY1*AEY7 -> 0.7359710794 | AFB2: =AFC7-AFB1*AFB7 -> 1.197261974 | AFE2: =AFF7-AFE1*AFE7 -> 1.064163414 | AFH2: =AFI7-AFH1*AFH7 -> 0.3950567302 | AFK2: =AFL7-AFK1*AFK7 -> 0.07648052373 | AFN2: =AFO7-AFN1*AFN7 -> 0.1606322976 | AFQ2: =AFR7-AFQ1*AFQ7 -> 1.010120993 | AFT2: =AFU7-AFT1*AFT7 -> 1.436238686 | AFW2: =AFX7-AFW1*AFW7 -> 1.476888215 | AFZ2: =AGA7-AFZ1*AFZ7 -> 0.4939157744 | AGC2: =AGD7-AGC1*AGC7 -> 0.5764639611 | AGF2: =AGG7-AGF1*AGF7 -> 1.02173424 | AGI2: =AGJ7-AGI1*AGI7 -> 1.060096554 | AGL2: =AGM7-AGL1*AGL7 -> -0.1107929718 | AGO2: =AGP7-AGO1*AGO7 -> 1.424321746 | AGR2: =AGS7-AGR1*AGR7 -> 1.069578814 | AGU2: =AGV7-AGU1*AGU7 -> -0.03745084566 | AGX2: =AGY7-AGX1*AGX7 -> 1.224588883 | AHA2: =AHB7-AHA1*AHA7 -> 1.101276929 | AHD2: =AHE7-AHD1*AHD7 -> 0.241711313 | AHG2: =AHH7-AHG1*AHG7 -> 1.054401084 | AHJ2: =AHK7-AHJ1*AHJ7 -> 1.07770854 | AHM2: =AHN7-AHM1*AHM7 -> 1.19112645 | AHP2: =AHQ7-AHP1*AHP7 -> 0.4071462929 | AHS2: =AHT7-AHS1*AHS7 -> 1.005699055 | AHV2: =AHW7-AHV1*AHV7 -> 1.202186877 | AHY2: =AHZ7-AHY1*AHY7 -> 1.254227529 | AIB2: =AIC7-AIB1*AIB7 -> 1.227924072 | AIE2: =AIF7-AIE1*AIE7 -> 0.544166804 | AIH2: =AII7-AIH1*AIH7 -> 1.342124516 | AIK2: =AIL7-AIK1*AIK7 -> -0.1231703022 | AIN2: =AIO7-AIN1*AIN7 -> 0.03230249359 | AIQ2: =AIR7-AIQ1*AIQ7 -> 0.4641946043 | AIT2: =AIU7-AIT1*AIT7 -> 1.087502242 | AIW2: =AIX7-AIW1*AIW7 -> 0.1033918516 | AIZ2: =AJA7-AIZ1*AIZ7 -> 0.9949031722 | AJC2: =AJD7-AJC1*AJC7 -> 0.3862419032 | AJF2: =AJG7-AJF1*AJF7 -> 1.063825959 | AJI2: =AJJ7-AJI1*AJI7 -> 1.007421649 | AJL2: =AJM7-AJL1*AJL7 -> 1.295584196 | AJO2: =AJP7-AJO1*AJO7 -> 0.5789041828 | AJR2: =AJS7-AJR1*AJR7 -> 0.0386072841 | AJU2: =AJV7-AJU1*AJU7 -> 1.00121288 | AJX2: =AJY7-AJX1*AJX7 -> 1.084675654 | AKA2: =AKB7-AKA1*AKA7 -> 1.066544592 | AKD2: =AKE7-AKD1*AKD7 -> 0.2409074658 | AKG2: =AKH7-AKG1*AKG7 -> 0.0500694564 | AKJ2: =AKK7-AKJ1*AKJ7 -> 0.5438526194 | AKM2: =AKN7-AKM1*AKM7 -> 1.034718749 | AKP2: =AKQ7-AKP1*AKP7 -> 1.248295784 | AKS2: =AKT7-AKS1*AKS7 -> 1.223390671 | AKV2: =AKW7-AKV1*AKV7 -> -0.1386306529 | AKY2: =AKZ7-AKY1*AKY7 -> 0.06676021123 | ALB2: =ALC7-ALB1*ALB7 -> 0.4902701829 | ALE2: =ALF7-ALE1*ALE7 -> 1.032045082 | ALH2: =ALI7-ALH1*ALH7 -> 1.036284369 | ALK2: =ALL7-ALK1*ALK7 -> 0.4637288891 | ALN2: =ALO7-ALN1*ALN7 -> 1.094875663 | ALQ2: =ALR7-ALQ1*ALQ7 -> 0.7148353061 | ALT2: =ALU7-ALT1*ALT7 -> 1.08516634 | ALW2: =ALX7-ALW1*ALW7 -> 0.7579596221 | ALZ2: =AMA7-ALZ1*ALZ7 -> 1.078295947 | AMC2: =AMD7-AMC1*AMC7 -> 0.5126372166 | AMF2: =AMG7-AMF1*AMF7 -> 0.7212411615 | AMI2: =AMJ7-AMI1*AMI7 -> 0.3146921535 | AML2: =AMM7-AML1*AML7 -> 0.663133371 | AMO2: =AMP7-AMO1*AMO7 -> 0.372619022 | AMR2: =AMS7-AMR1*AMR7 -> 0.07371403168 | AMU2: =AMV7-AMU1*AMU7 -> 1.336930741 | AMX2: =AMY7-AMX1*AMX7 -> 1.035397775 | ANA2: =ANB7-ANA1*ANA7 -> 0.969702833 | AND2: =ANE7-AND1*AND7 -> 1.081934998 | ANG2: =ANH7-ANG1*ANG7 -> 0.39587885 | ANJ2: =ANK7-ANJ1*ANJ7 -> 1.164838264 | ANM2: =ANN7-ANM1*ANM7 -> 1.219269797 | ANP2: =ANQ7-ANP1*ANP7 -> 1.086821004 | ANS2: =ANT7-ANS1*ANS7 -> 1.02987984 | ANV2: =ANW7-ANV1*ANV7 -> 1.268285166 | ANY2: =ANZ7-ANY1*ANY7 -> 1.027131125 | AOB2: =AOC7-AOB1*AOB7 -> 1.085903649 | AOE2: =AOF7-AOE1*AOE7 -> 0.4661404748 | AOH2: =AOI7-AOH1*AOH7 -> 0.5910155393 | AOK2: =AOL7-AOK1*AOK7 -> 1.218202805 | AON2: =AOO7-AON1*AON7 -> 0.8561948664 | AOQ2: =AOR7-AOQ1*AOQ7 -> 1.369174218 | AOT2: =AOU7-AOT1*AOT7 -> 1.258423687 | AOW2: =AOX7-AOW1*AOW7 -> 0.6291054274 | AOZ2: =APA7-AOZ1*AOZ7 -> 1.198672978 | APC2: =APD7-APC1*APC7 -> 1.435567032 | APF2: =APG7-APF1*APF7 -> 0.4765002601 | API2: =APJ7-API1*API7 -> 1.236209942 | APL2: =APM7-APL1*APL7 -> 0.9650077072 | APO2: =APP7-APO1*APO7 -> 0.4038475729 | APR2: =APS7-APR1*APR7 -> 1.057978622 | APU2: =APV7-APU1*APU7 -> 1.034215359 | APX2: =APY7-APX1*APX7 -> 1.264489078 | AQA2: =AQB7-AQA1*AQA7 -> 1.059860203 | AQD2: =AQE7-AQD1*AQD7 -> 1.460555808 | AQG2: =AQH7-AQG1*AQG7 -> 1.165737959 | AQJ2: =AQK7-AQJ1*AQJ7 -> 0.3410661533 | AQM2: =AQN7-AQM1*AQM7 -> 0.8417604985 | AQP2: =AQQ7-AQP1*AQP7 -> -0.1429659937 | AQS2: =AQT7-AQS1*AQS7 -> 0.9887654076 | AQV2: =AQW7-AQV1*AQV7 -> 1.158172194 | AQY2: =AQZ7-AQY1*AQY7 -> 1.338668775 | ARB2: =ARC7-ARB1*ARB7 -> 0.4093950859 | ARE2: =ARF7-ARE1*ARE7 -> 1.451125139 | ARH2: =ARI7-ARH1*ARH7 -> 1.023859959 | ARK2: =ARL7-ARK1*ARK7 -> 1.031081962 | ARN2: =ARO7-ARN1*ARN7 -> -0.09679106437 | ARQ2: =ARR7-ARQ1*ARQ7 -> 0.2142853462 | ART2: =ARU7-ART1*ART7 -> 1.273910167 | ARW2: =ARX7-ARW1*ARW7 -> 1.117809386 | ARZ2: =ASA7-ARZ1*ARZ7 -> 1.139150758 | ASC2: =ASD7-ASC1*ASC7 -> 1.209342628 | ASF2: =ASG7-ASF1*ASF7 -> 1.063911732 | ASI2: =ASJ7-ASI1*ASI7 -> 0.2239102567 | ASL2: =ASM7-ASL1*ASL7 -> 1.073560921 | ASO2: =ASP7-ASO1*ASO7 -> 0.4926210333 | ASR2: =ASS7-ASR1*ASR7 -> 0.9876820044 | ASU2: =ASV7-ASU1*ASU7 -> 1.112234315 | ASX2: =ASY7-ASX1*ASX7 -> 0.3692270643 | ATA2: =ATB7-ATA1*ATA7 -> 1.139719782 | ATD2: =ATE7-ATD1*ATD7 -> 1.076795176 | ATG2: =ATH7-ATG1*ATG7 -> 1.149996946 | ATJ2: =ATK7-ATJ1*ATJ7 -> 0.2559207514 | ATM2: =ATN7-ATM1*ATM7 -> 0.9572407752 | ATP2: =ATQ7-ATP1*ATP7 -> 0.8453663262 | ATS2: =ATT7-ATS1*ATS7 -> 1.058847725 | ATV2: =ATW7-ATV1*ATV7 -> 1.061277073 | ATY2: =ATZ7-ATY1*ATY7 -> 1.045535028 | AUB2: =AUC7-AUB1*AUB7 -> 1.249683071 | AUE2: =AUF7-AUE1*AUE7 -> 0.02536517655 | AUH2: =AUI7-AUH1*AUH7 -> 1.23761527 | AUK2: =AUL7-AUK1*AUK7 -> 1.189322678 | AUN2: =AUO7-AUN1*AUN7 -> 1.278214686 | AUQ2: =AUR7-AUQ1*AUQ7 -> 0.07238510087 | AUT2: =AUU7-AUT1*AUT7 -> 1.082264213 | AUW2: =AUX7-AUW1*AUW7 -> -0.187241126 | AUZ2: =AVA7-AUZ1*AUZ7 -> 0.7572899426 | AVC2: =AVD7-AVC1*AVC7 -> 1.292717565 | AVF2: =AVG7-AVF1*AVF7 -> 1.19722391 | AVI2: =AVJ7-AVI1*AVI7 -> 1.181252286 | AVL2: =AVM7-AVL1*AVL7 -> 1.273133907 | AVO2: =AVP7-AVO1*AVO7 -> 1.114134962 | AVR2: =AVS7-AVR1*AVR7 -> 0.9793028844 | AVU2: =AVV7-AVU1*AVU7 -> 0.9683585519 | AVX2: =AVY7-AVX1*AVX7 -> 0.9494271218 | AWA2: =AWB7-AWA1*AWA7 -> 1.058108174 | AWD2: =AWE7-AWD1*AWD7 -> 1.184357443 | AWG2: =AWH7-AWG1*AWG7 -> 1.272640762 | AWJ2: =AWK7-AWJ1*AWJ7 -> 1.073723676 | AWM2: =AWN7-AWM1*AWM7 -> 0.990508267 | AWP2: =AWQ7-AWP1*AWP7 -> 0.4034890725 | AWS2: =AWT7-AWS1*AWS7 -> 1.051114793 | AWV2: =AWW7-AWV1*AWV7 -> 1.160271088 | AWY2: =AWZ7-AWY1*AWY7 -> 0.592277566 | AXB2: =AXC7-AXB1*AXB7 -> 0.4543017184 | AXE2: =AXF7-AXE1*AXE7 -> 1.12351138 | AXH2: =AXI7-AXH1*AXH7 -> 1.105655864 | AXK2: =AXL7-AXK1*AXK7 -> 0.9581162875 | AXN2: =AXO7-AXN1*AXN7 -> 0.08403853681 | AXQ2: =AXR7-AXQ1*AXQ7 -> 1.119126272 | AXT2: =AXU7-AXT1*AXT7 -> 1.154073398 | AXW2: =AXX7-AXW1*AXW7 -> 0.5273116582 | AXZ2: =AYA7-AXZ1*AXZ7 -> 1.072205016 | AYC2: =AYD7-AYC1*AYC7 -> 1.158935025 | AYF2: =AYG7-AYF1*AYF7 -> 0.1015551315 | AYI2: =AYJ7-AYI1*AYI7 -> 0.7275637352 | AYL2: =AYM7-AYL1*AYL7 -> 1.261507797 | AYO2: =AYP7-AYO1*AYO7 -> 0.2093213452 | AYR2: =AYS7-AYR1*AYR7 -> 1.233169627 | AYU2: =AYV7-AYU1*AYU7 -> 1.170388466 | AYX2: =AYY7-AYX1*AYX7 -> 1.12739571 | AZA2: =AZB7-AZA1*AZA7 -> 1.49488784 | AZD2: =AZE7-AZD1*AZD7 -> 1.326761492 | AZG2: =AZH7-AZG1*AZG7 -> 0.4750773494 | AZJ2: =AZK7-AZJ1*AZJ7 -> 1.14131754 | AZM2: =AZN7-AZM1*AZM7 -> 0.2117578835 | AZP2: =AZQ7-AZP1*AZP7 -> 1.310139143 | AZS2: =AZT7-AZS1*AZS7 -> 1.04457715 | AZV2: =AZW7-AZV1*AZV7 -> 1.328458924 | AZY2: =AZZ7-AZY1*AZY7 -> 0.4227963318 | BAB2: =BAC7-BAB1*BAB7 -> 1.175204269 | BAE2: =BAF7-BAE1*BAE7 -> 1.237938715 | BAH2: =BAI7-BAH1*BAH7 -> 1.339544108 | BAK2: =BAL7-BAK1*BAK7 -> 1.318821691 | BAN2: =BAO7-BAN1*BAN7 -> 0.158480722 | BAQ2: =BAR7-BAQ1*BAQ7 -> 1.093064616 | BAT2: =BAU7-BAT1*BAT7 -> 0.9481064581 | BAW2: =BAX7-BAW1*BAW7 -> 1.308337399 | BAZ2: =BBA7-BAZ1*BAZ7 -> 0.1052696906 | BBC2: =BBD7-BBC1*BBC7 -> 1.351733108 | BBF2: =BBG7-BBF1*BBF7 -> 1.103598874 | BBI2: =BBJ7-BBI1*BBI7 -> 1.19663989 | BBL2: =BBM7-BBL1*BBL7 -> 1.302224587 | BBO2: =BBP7-BBO1*BBO7 -> 1.090406094 | BBR2: =BBS7-BBR1*BBR7 -> 0.1022902162 | BBU2: =BBV7-BBU1*BBU7 -> 0.8716454504 | BBX2: =BBY7-BBX1*BBX7 -> 1.120347547 | BCA2: =BCB7-BCA1*BCA7 -> 0.9747996369 | BCD2: =BCE7-BCD1*BCD7 -> 1.082390916 | BCG2: =BCH7-BCG1*BCG7 -> 1.32592213 | BCJ2: =BCK7-BCJ1*BCJ7 -> 1.312359876 | BCM2: =BCN7-BCM1*BCM7 -> 0.397163588 | BCP2: =BCQ7-BCP1*BCP7 -> 1.29084139 | BCS2: =BCT7-BCS1*BCS7 -> 1.178879993 | BCV2: =BCW7-BCV1*BCV7 -> 0.9974877401 | BCY2: =BCZ7-BCY1*BCY7 -> 1.203430941 | BDB2: =BDC7-BDB1*BDB7 -> 0.06045551841 | BDE2: =BDF7-BDE1*BDE7 -> 0.6653742952 | BDH2: =BDI7-BDH1*BDH7 -> 0.5607488353 | BDK2: =BDL7-BDK1*BDK7 -> 0.6461343494 | BDN2: =BDO7-BDN1*BDN7 -> 0.3437907591 | BDQ2: =BDR7-BDQ1*BDQ7 -> 1.477936449 | BDT2: =BDU7-BDT1*BDT7 -> 0.3112170305 | BDW2: =BDX7-BDW1*BDW7 -> 1.271620932 | BDZ2: =BEA7-BDZ1*BDZ7 -> 0.4836013072 | BEC2: =BED7-BEC1*BEC7 -> 1.037038323 | BEF2: =BEG7-BEF1*BEF7 -> 0.4743975928 | BEI2: =BEJ7-BEI1*BEI7 -> 1.330669069 | BEL2: =BEM7-BEL1*BEL7 -> 1.080086076 | BEO2: =BEP7-BEO1*BEO7 -> 1.062403537 | BER2: =BES7-BER1*BER7 -> -0.1107086393 | BEU2: =BEV7-BEU1*BEU7 -> 0.2948788535 | BEX2: =BEY7-BEX1*BEX7 -> 1.059451476 | BFA2: =BFB7-BFA1*BFA7 -> 1.00883238 | BFD2: =BFE7-BFD1*BFD7 -> 0.3850882534 | BFG2: =BFH7-BFG1*BFG7 -> 0.03891038742 | BFJ2: =BFK7-BFJ1*BFJ7 -> 1.208616981 | BFM2: =BFN7-BFM1*BFM7 -> 1.23631297 | BFP2: =BFQ7-BFP1*BFP7 -> 0.2902082457 | BFS2: =BFT7-BFS1*BFS7 -> 0.5679633485 | BFV2: =BFW7-BFV1*BFV7 -> 1.521307504 | BFY2: =BFZ7-BFY1*BFY7 -> 1.045208397 | BGB2: =BGC7-BGB1*BGB7 -> 0.366563905 | BGE2: =BGF7-BGE1*BGE7 -> 1.27809516 | BGH2: =BGI7-BGH1*BGH7 -> 1.20379065 | BGK2: =BGL7-BGK1*BGK7 -> 0.3891395261 | BGN2: =BGO7-BGN1*BGN7 -> 0.318656734 | BGQ2: =BGR7-BGQ1*BGQ7 -> 1.035169785 | BGT2: =BGU7-BGT1*BGT7 -> 1.306449118
D3: 群1(1回目） | F3: 群２(2回目） | K3: 基本統計項目 | M3: X1 | N3: Y1 | O3: X2 | P3: Y2 | R3: X | S3: Y | U3: 階級数 | AD3: X1 | AE3: Y1上側 | AF3: Y1下側 | AG3: HH | AI3: X2 | AJ3: Y2上側 | AK3: Y2下側 | AL3: HH | AO3: Sｙｙ：= | AP3: =DEVSQ(AO5:AO1304) -> 11176.82353 | AQ3: =DEVSQ(AQ5:AQ504) ->  | AS3: 偏差図 | AY3: 0.7388351294 | AZ3: 1.266984075 | BA3: 標準主軸b= | BB3: =(BC9/BB9)^0.5 -> 0.7503135025 | BE3: =(BF9/BE9)^0.5 -> 1.159069526 | BH3: =(BI9/BH9)^0.5 -> 0.9809651495 | BK3: =(BL9/BK9)^0.5 -> 1.151205701 | BN3: =(BO9/BN9)^0.5 -> 0.8400535319 | BQ3: =(BR9/BQ9)^0.5 -> 1.167849468 | BT3: =(BU9/BT9)^0.5 -> 1.194641505 | BW3: =(BX9/BW9)^0.5 -> 1.150742969 | BZ3: =(CA9/BZ9)^0.5 -> 0.769955125 | CC3: =(CD9/CC9)^0.5 -> 1.015161852 | CF3: =(CG9/CF9)^0.5 -> 0.7907303736 | CI3: =(CJ9/CI9)^0.5 -> 1.144401127 | CL3: =(CM9/CL9)^0.5 -> 0.8462439237 | CO3: =(CP9/CO9)^0.5 -> 0.8454337363 | CR3: =(CS9/CR9)^0.5 -> 0.8515054232 | CU3: =(CV9/CU9)^0.5 -> 0.7835667388 | CX3: =(CY9/CX9)^0.5 -> 0.8437355895 | DA3: =(DB9/DA9)^0.5 -> 0.8219588726 | DD3: =(DE9/DD9)^0.5 -> 1.206222879 | DG3: =(DH9/DG9)^0.5 -> 0.7837918546 | DJ3: =(DK9/DJ9)^0.5 -> 0.8363816541 | DM3: =(DN9/DM9)^0.5 -> 1.152382484 | DP3: =(DQ9/DP9)^0.5 -> 1.082571096 | DS3: =(DT9/DS9)^0.5 -> 1.015840085 | DV3: =(DW9/DV9)^0.5 -> 0.8553936097 | DY3: =(DZ9/DY9)^0.5 -> 0.8137342277 | EB3: =(EC9/EB9)^0.5 -> 1.233528781 | EE3: =(EF9/EE9)^0.5 -> 0.8548047651 | EH3: =(EI9/EH9)^0.5 -> 0.7319607617 | EK3: =(EL9/EK9)^0.5 -> 0.8751487496 | EN3: =(EO9/EN9)^0.5 -> 1.012913994 | EQ3: =(ER9/EQ9)^0.5 -> 1.181603573 | ET3: =(EU9/ET9)^0.5 -> 0.7834592352 | EW3: =(EX9/EW9)^0.5 -> 0.7525670129 | EZ3: =(FA9/EZ9)^0.5 -> 0.8353557689 | FC3: =(FD9/FC9)^0.5 -> 1.063683331 | FF3: =(FG9/FF9)^0.5 -> 0.8252640351 | FI3: =(FJ9/FI9)^0.5 -> 0.8212246054 | FL3: =(FM9/FL9)^0.5 -> 0.8741907991 | FO3: =(FP9/FO9)^0.5 -> 1.357364821 | FR3: =(FS9/FR9)^0.5 -> 0.7597288972 | FU3: =(FV9/FU9)^0.5 -> 0.8610398379 | FX3: =(FY9/FX9)^0.5 -> 0.7257496593 | GA3: =(GB9/GA9)^0.5 -> 0.994780479 | GD3: =(GE9/GD9)^0.5 -> 0.7504096218 | GG3: =(GH9/GG9)^0.5 -> 1.302188427 | GJ3: =(GK9/GJ9)^0.5 -> 0.8317682892 | GM3: =(GN9/GM9)^0.5 -> 0.8346608988 | GP3: =(GQ9/GP9)^0.5 -> 0.7623732469 | GS3: =(GT9/GS9)^0.5 -> 1.165209132 | GV3: =(GW9/GV9)^0.5 -> 0.9871002385 | GY3: =(GZ9/GY9)^0.5 -> 0.7338079011 | HB3: =(HC9/HB9)^0.5 -> 0.8863726304 | HE3: =(HF9/HE9)^0.5 -> 0.7979761943 | HH3: =(HI9/HH9)^0.5 -> 1.106089217 | HK3: =(HL9/HK9)^0.5 -> 0.8435784973 | HN3: =(HO9/HN9)^0.5 -> 1.220238008 | HQ3: =(HR9/HQ9)^0.5 -> 0.7686317019 | HT3: =(HU9/HT9)^0.5 -> 0.8277900295 | HW3: =(HX9/HW9)^0.5 -> 1.094687831 | HZ3: =(IA9/HZ9)^0.5 -> 0.8402811806 | IC3: =(ID9/IC9)^0.5 -> 0.8564413345 | IF3: =(IG9/IF9)^0.5 -> 0.8387220524 | II3: =(IJ9/II9)^0.5 -> 0.8003990608 | IL3: =(IM9/IL9)^0.5 -> 0.7167727976 | IO3: =(IP9/IO9)^0.5 -> 0.7577560864 | IR3: =(IS9/IR9)^0.5 -> 0.843974086 | IU3: =(IV9/IU9)^0.5 -> 1.108376401 | IX3: =(IY9/IX9)^0.5 -> 0.7869941187 | JA3: =(JB9/JA9)^0.5 -> 0.7899688455 | JD3: =(JE9/JD9)^0.5 -> 0.7907705741 | JG3: =(JH9/JG9)^0.5 -> 0.8251241266 | JJ3: =(JK9/JJ9)^0.5 -> 0.8795102784 | JM3: =(JN9/JM9)^0.5 -> 0.8544953031 | JP3: =(JQ9/JP9)^0.5 -> 0.7920651394 | JS3: =(JT9/JS9)^0.5 -> 0.8485010993 | JV3: =(JW9/JV9)^0.5 -> 0.8378195558 | JY3: =(JZ9/JY9)^0.5 -> 0.8059748917 | KB3: =(KC9/KB9)^0.5 -> 0.8254837589 | KE3: =(KF9/KE9)^0.5 -> 0.8348620961 | KH3: =(KI9/KH9)^0.5 -> 1.156143595 | KK3: =(KL9/KK9)^0.5 -> 0.8564501895 | KN3: =(KO9/KN9)^0.5 -> 0.8056308884 | KQ3: =(KR9/KQ9)^0.5 -> 0.8680909681 | KT3: =(KU9/KT9)^0.5 -> 1.101643215 | KW3: =(KX9/KW9)^0.5 -> 1.126413322 | KZ3: =(LA9/KZ9)^0.5 -> 0.7928088132 | LC3: =(LD9/LC9)^0.5 -> 1.067957293 | LF3: =(LG9/LF9)^0.5 -> 1.092809462 | LI3: =(LJ9/LI9)^0.5 -> 0.7954046272 | LL3: =(LM9/LL9)^0.5 -> 0.9750071369 | LO3: =(LP9/LO9)^0.5 -> 0.7676160043 | LR3: =(LS9/LR9)^0.5 -> 1.133548139 | LU3: =(LV9/LU9)^0.5 -> 0.858255551 | LX3: =(LY9/LX9)^0.5 -> 1.210491427 | MA3: =(MB9/MA9)^0.5 -> 1.212987767 | MD3: =(ME9/MD9)^0.5 -> 0.7778095286 | MG3: =(MH9/MG9)^0.5 -> 1.196404876 | MJ3: =(MK9/MJ9)^0.5 -> 1.035645846 | MM3: =(MN9/MM9)^0.5 -> 0.7330649399 | MP3: =(MQ9/MP9)^0.5 -> 0.8197800085 | MS3: =(MT9/MS9)^0.5 -> 0.7814038648 | MV3: =(MW9/MV9)^0.5 -> 0.8085638452 | MY3: =(MZ9/MY9)^0.5 -> 1.091192788 | NB3: =(NC9/NB9)^0.5 -> 1.206725251 | NE3: =(NF9/NE9)^0.5 -> 0.8099059743 | NH3: =(NI9/NH9)^0.5 -> 0.8088646923 | NK3: =(NL9/NK9)^0.5 -> 1.063897305 | NN3: =(NO9/NN9)^0.5 -> 0.790251041 | NQ3: =(NR9/NQ9)^0.5 -> 0.8524114095 | NT3: =(NU9/NT9)^0.5 -> 0.8792411607 | NW3: =(NX9/NW9)^0.5 -> 1.085533312 | NZ3: =(OA9/NZ9)^0.5 -> 0.7562368776 | OC3: =(OD9/OC9)^0.5 -> 1.131059521 | OF3: =(OG9/OF9)^0.5 -> 0.8621153816 | OI3: =(OJ9/OI9)^0.5 -> 1.072815124 | OL3: =(OM9/OL9)^0.5 -> 0.7572801626 | OO3: =(OP9/OO9)^0.5 -> 0.7859520737 | OR3: =(OS9/OR9)^0.5 -> 0.7882209665 | OU3: =(OV9/OU9)^0.5 -> 1.066975792 | OX3: =(OY9/OX9)^0.5 -> 1.167063343 | PA3: =(PB9/PA9)^0.5 -> 0.835649065 | PD3: =(PE9/PD9)^0.5 -> 1.052039318 | PG3: =(PH9/PG9)^0.5 -> 0.7557611114 | PJ3: =(PK9/PJ9)^0.5 -> 1.088471514 | PM3: =(PN9/PM9)^0.5 -> 1.084284007 | PP3: =(PQ9/PP9)^0.5 -> 0.83539092 | PS3: =(PT9/PS9)^0.5 -> 0.7620973365 | PV3: =(PW9/PV9)^0.5 -> 1.059692671 | PY3: =(PZ9/PY9)^0.5 -> 0.8261325978 | QB3: =(QC9/QB9)^0.5 -> 0.8440164639 | QE3: =(QF9/QE9)^0.5 -> 0.8513567289 | QH3: =(QI9/QH9)^0.5 -> 0.7453737938 | QK3: =(QL9/QK9)^0.5 -> 0.7560442589 | QN3: =(QO9/QN9)^0.5 -> 0.7811065504 | QQ3: =(QR9/QQ9)^0.5 -> 1.043545802 | QT3: =(QU9/QT9)^0.5 -> 0.7616167864 | QW3: =(QX9/QW9)^0.5 -> 0.8101162322 | QZ3: =(RA9/QZ9)^0.5 -> 0.8607487321 | RC3: =(RD9/RC9)^0.5 -> 1.097798791 | RF3: =(RG9/RF9)^0.5 -> 0.7548648654 | RI3: =(RJ9/RI9)^0.5 -> 1.159788932 | RL3: =(RM9/RL9)^0.5 -> 0.8347782874 | RO3: =(RP9/RO9)^0.5 -> 1.216256299 | RR3: =(RS9/RR9)^0.5 -> 1.181363212 | RU3: =(RV9/RU9)^0.5 -> 0.9841311759 | RX3: =(RY9/RX9)^0.5 -> 0.7426473209 | SA3: =(SB9/SA9)^0.5 -> 0.8154415768 | SD3: =(SE9/SD9)^0.5 -> 1.164469714 | SG3: =(SH9/SG9)^0.5 -> 0.996799777 | SJ3: =(SK9/SJ9)^0.5 -> 0.8252467304 | SM3: =(SN9/SM9)^0.5 -> 0.8538157598 | SP3: =(SQ9/SP9)^0.5 -> 0.8337138827 | SS3: =(ST9/SS9)^0.5 -> 1.017266274 | SV3: =(SW9/SV9)^0.5 -> 0.8512681035 | SY3: =(SZ9/SY9)^0.5 -> 0.7539684176 | TB3: =(TC9/TB9)^0.5 -> 0.8357661233 | TE3: =(TF9/TE9)^0.5 -> 0.7480562107 | TH3: =(TI9/TH9)^0.5 -> 0.8241316645 | TK3: =(TL9/TK9)^0.5 -> 0.8613922845 | TN3: =(TO9/TN9)^0.5 -> 0.7779992262 | TQ3: =(TR9/TQ9)^0.5 -> 0.8713752012 | TT3: =(TU9/TT9)^0.5 -> 0.740748589 | TW3: =(TX9/TW9)^0.5 -> 0.8737904069 | TZ3: =(UA9/TZ9)^0.5 -> 0.7802235596 | UC3: =(UD9/UC9)^0.5 -> 0.82902583 | UF3: =(UG9/UF9)^0.5 -> 0.8472128449 | UI3: =(UJ9/UI9)^0.5 -> 0.857243563 | UL3: =(UM9/UL9)^0.5 -> 0.7670122892 | UO3: =(UP9/UO9)^0.5 -> 0.785018317 | UR3: =(US9/UR9)^0.5 -> 1.203355199 | UU3: =(UV9/UU9)^0.5 -> 0.8108360296 | UX3: =(UY9/UX9)^0.5 -> 1.038428851 | VA3: =(VB9/VA9)^0.5 -> 0.8171088918 | VD3: =(VE9/VD9)^0.5 -> 1.096456061 | VG3: =(VH9/VG9)^0.5 -> 0.7699309305 | VJ3: =(VK9/VJ9)^0.5 -> 0.9650086617 | VM3: =(VN9/VM9)^0.5 -> 0.8242900088 | VP3: =(VQ9/VP9)^0.5 -> 1.290833558 | VS3: =(VT9/VS9)^0.5 -> 0.8820984019 | VV3: =(VW9/VV9)^0.5 -> 0.8371259643 | VY3: =(VZ9/VY9)^0.5 -> 0.722036692 | WB3: =(WC9/WB9)^0.5 -> 1.120747393 | WE3: =(WF9/WE9)^0.5 -> 0.8229243336 | WH3: =(WI9/WH9)^0.5 -> 1.299571398 | WK3: =(WL9/WK9)^0.5 -> 0.7706112412 | WN3: =(WO9/WN9)^0.5 -> 0.7748961142 | WQ3: =(WR9/WQ9)^0.5 -> 0.7656599157 | WT3: =(WU9/WT9)^0.5 -> 0.8561584348 | WW3: =(WX9/WW9)^0.5 -> 0.7671667493 | WZ3: =(XA9/WZ9)^0.5 -> 1.169186556 | XC3: =(XD9/XC9)^0.5 -> 0.9436231919 | XF3: =(XG9/XF9)^0.5 -> 0.7308580931 | XI3: =(XJ9/XI9)^0.5 -> 1.265640947 | XL3: =(XM9/XL9)^0.5 -> 0.7656076704 | XO3: =(XP9/XO9)^0.5 -> 0.7650177952 | XR3: =(XS9/XR9)^0.5 -> 0.7632942906 | XU3: =(XV9/XU9)^0.5 -> 0.75668961 | XX3: =(XY9/XX9)^0.5 -> 1.101186696 | YA3: =(YB9/YA9)^0.5 -> 1.167722862 | YD3: =(YE9/YD9)^0.5 -> 1.230675992 | YG3: =(YH9/YG9)^0.5 -> 0.893762806 | YJ3: =(YK9/YJ9)^0.5 -> 1.010721612 | YM3: =(YN9/YM9)^0.5 -> 0.8242587037 | YP3: =(YQ9/YP9)^0.5 -> 1.211588404 | YS3: =(YT9/YS9)^0.5 -> 1.132071476 | YV3: =(YW9/YV9)^0.5 -> 1.067642089 | YY3: =(YZ9/YY9)^0.5 -> 0.9553666926 | ZB3: =(ZC9/ZB9)^0.5 -> 0.7674589672 | ZE3: =(ZF9/ZE9)^0.5 -> 0.7894877317 | ZH3: =(ZI9/ZH9)^0.5 -> 1.244265557 | ZK3: =(ZL9/ZK9)^0.5 -> 0.799382798 | ZN3: =(ZO9/ZN9)^0.5 -> 1.099941148 | ZQ3: =(ZR9/ZQ9)^0.5 -> 0.7673102785 | ZT3: =(ZU9/ZT9)^0.5 -> 0.8790650373 | ZW3: =(ZX9/ZW9)^0.5 -> 0.7436661369 | ZZ3: =(AAA9/ZZ9)^0.5 -> 0.808435059 | AAC3: =(AAD9/AAC9)^0.5 -> 1.064061902 | AAF3: =(AAG9/AAF9)^0.5 -> 1.170343844 | AAI3: =(AAJ9/AAI9)^0.5 -> 0.8529517618 | AAL3: =(AAM9/AAL9)^0.5 -> 0.7490278914 | AAO3: =(AAP9/AAO9)^0.5 -> 1.076161159 | AAR3: =(AAS9/AAR9)^0.5 -> 0.7754392167 | AAU3: =(AAV9/AAU9)^0.5 -> 1.034787479 | AAX3: =(AAY9/AAX9)^0.5 -> 0.8809421858 | ABA3: =(ABB9/ABA9)^0.5 -> 0.7388351294 | ABD3: =(ABE9/ABD9)^0.5 -> 0.8400925298 | ABG3: =(ABH9/ABG9)^0.5 -> 0.8209658423 | ABJ3: =(ABK9/ABJ9)^0.5 -> 1.244828305 | ABM3: =(ABN9/ABM9)^0.5 -> 0.7410381805 | ABP3: =(ABQ9/ABP9)^0.5 -> 0.7973900976 | ABS3: =(ABT9/ABS9)^0.5 -> 0.8279409321 | ABV3: =(ABW9/ABV9)^0.5 -> 0.8691937075 | ABY3: =(ABZ9/ABY9)^0.5 -> 1.015632255 | ACB3: =(ACC9/ACB9)^0.5 -> 0.7988536925 | ACE3: =(ACF9/ACE9)^0.5 -> 0.7706205963 | ACH3: =(ACI9/ACH9)^0.5 -> 0.8415494223 | ACK3: =(ACL9/ACK9)^0.5 -> 0.8055063811 | ACN3: =(ACO9/ACN9)^0.5 -> 0.9714327066 | ACQ3: =(ACR9/ACQ9)^0.5 -> 0.824995579 | ACT3: =(ACU9/ACT9)^0.5 -> 0.8365823887 | ACW3: =(ACX9/ACW9)^0.5 -> 1.239408664 | ACZ3: =(ADA9/ACZ9)^0.5 -> 1.171973054 | ADC3: =(ADD9/ADC9)^0.5 -> 0.7761810644 | ADF3: =(ADG9/ADF9)^0.5 -> 0.7962186606 | ADI3: =(ADJ9/ADI9)^0.5 -> 1.040204008 | ADL3: =(ADM9/ADL9)^0.5 -> 0.8198668951 | ADO3: =(ADP9/ADO9)^0.5 -> 0.8542362368 | ADR3: =(ADS9/ADR9)^0.5 -> 0.8052606964 | ADU3: =(ADV9/ADU9)^0.5 -> 1.222393808 | ADX3: =(ADY9/ADX9)^0.5 -> 0.8012614598 | AEA3: =(AEB9/AEA9)^0.5 -> 0.8753510732 | AED3: =(AEE9/AED9)^0.5 -> 1.048620633 | AEG3: =(AEH9/AEG9)^0.5 -> 0.7854673881 | AEJ3: =(AEK9/AEJ9)^0.5 -> 1.095815731 | AEM3: =(AEN9/AEM9)^0.5 -> 1.151650461 | AEP3: =(AEQ9/AEP9)^0.5 -> 0.8334121048 | AES3: =(AET9/AES9)^0.5 -> 0.851260414 | AEV3: =(AEW9/AEV9)^0.5 -> 0.7800830053 | AEY3: =(AEZ9/AEY9)^0.5 -> 0.8146974218 | AFB3: =(AFC9/AFB9)^0.5 -> 0.7960751245 | AFE3: =(AFF9/AFE9)^0.5 -> 0.8121212259 | AFH3: =(AFI9/AFH9)^0.5 -> 1.049874705 | AFK3: =(AFL9/AFK9)^0.5 -> 1.138622487 | AFN3: =(AFO9/AFN9)^0.5 -> 1.193188734 | AFQ3: =(AFR9/AFQ9)^0.5 -> 0.7966221178 | AFT3: =(AFU9/AFT9)^0.5 -> 0.740544689 | AFW3: =(AFX9/AFW9)^0.5 -> 0.7568724412 | AFZ3: =(AGA9/AFZ9)^0.5 -> 0.9712129756 | AGC3: =(AGD9/AGC9)^0.5 -> 0.9439666081 | AGF3: =(AGG9/AGF9)^0.5 -> 0.8650194316 | AGI3: =(AGJ9/AGI9)^0.5 -> 0.8141044513 | AGL3: =(AGM9/AGL9)^0.5 -> 1.191137104 | AGO3: =(AGP9/AGO9)^0.5 -> 0.7785710395 | AGR3: =(AGS9/AGR9)^0.5 -> 0.8004007279 | AGU3: =(AGV9/AGU9)^0.5 -> 1.30455905 | AGX3: =(AGY9/AGX9)^0.5 -> 0.8327274397 | AHA3: =(AHB9/AHA9)^0.5 -> 0.8156513961 | AHD3: =(AHE9/AHD9)^0.5 -> 1.138428012 | AHG3: =(AHH9/AHG9)^0.5 -> 0.8070903695 | AHJ3: =(AHK9/AHJ9)^0.5 -> 0.7679806435 | AHM3: =(AHN9/AHM9)^0.5 -> 0.7855331847 | AHP3: =(AHQ9/AHP9)^0.5 -> 1.084659693 | AHS3: =(AHT9/AHS9)^0.5 -> 0.8020681499 | AHV3: =(AHW9/AHV9)^0.5 -> 0.8455554758 | AHY3: =(AHZ9/AHY9)^0.5 -> 0.741542146 | AIB3: =(AIC9/AIB9)^0.5 -> 0.7712237101 | AIE3: =(AIF9/AIE9)^0.5 -> 1.070432684 | AIH3: =(AII9/AIH9)^0.5 -> 0.7774457343 | AIK3: =(AIL9/AIK9)^0.5 -> 1.193114746 | AIN3: =(AIO9/AIN9)^0.5 -> 1.263267287 | AIQ3: =(AIR9/AIQ9)^0.5 -> 1.059259814 | AIT3: =(AIU9/AIT9)^0.5 -> 0.847380615 | AIW3: =(AIX9/AIW9)^0.5 -> 1.248606619 | AIZ3: =(AJA9/AIZ9)^0.5 -> 0.9127446942 | AJC3: =(AJD9/AJC9)^0.5 -> 1.070663328 | AJF3: =(AJG9/AJF9)^0.5 -> 0.8309324826 | AJI3: =(AJJ9/AJI9)^0.5 -> 0.8626009412 | AJL3: =(AJM9/AJL9)^0.5 -> 0.8220308293 | AJO3: =(AJP9/AJO9)^0.5 -> 0.9871636543 | AJR3: =(AJS9/AJR9)^0.5 -> 1.266984075 | AJU3: =(AJV9/AJU9)^0.5 -> 0.8365014268 | AJX3: =(AJY9/AJX9)^0.5 -> 0.8438135144 | AKA3: =(AKB9/AKA9)^0.5 -> 0.8020540816 | AKD3: =(AKE9/AKD9)^0.5 -> 1.117943098 | AKG3: =(AKH9/AKG9)^0.5 -> 1.256671341 | AKJ3: =(AKK9/AKJ9)^0.5 -> 1.047982867 | AKM3: =(AKN9/AKM9)^0.5 -> 0.8200048635 | AKP3: =(AKQ9/AKP9)^0.5 -> 0.7459458455 | AKS3: =(AKT9/AKS9)^0.5 -> 0.8344159037 | AKV3: =(AKW9/AKV9)^0.5 -> 1.29659979 | AKY3: =(AKZ9/AKY9)^0.5 -> 1.223762217 | ALB3: =(ALC9/ALB9)^0.5 -> 0.9942262864 | ALE3: =(ALF9/ALE9)^0.5 -> 0.7420964666 | ALH3: =(ALI9/ALH9)^0.5 -> 0.7719355059 | ALK3: =(ALL9/ALK9)^0.5 -> 1.035469853 | ALN3: =(ALO9/ALN9)^0.5 -> 0.8100063344 | ALQ3: =(ALR9/ALQ9)^0.5 -> 0.9413492963 | ALT3: =(ALU9/ALT9)^0.5 -> 0.7457749427 | ALW3: =(ALX9/ALW9)^0.5 -> 0.8126752669 | ALZ3: =(AMA9/ALZ9)^0.5 -> 0.8487926275 | AMC3: =(AMD9/AMC9)^0.5 -> 1.02323573 | AMF3: =(AMG9/AMF9)^0.5 -> 0.9710987635 | AMI3: =(AMJ9/AMI9)^0.5 -> 1.054227276 | AML3: =(AMM9/AML9)^0.5 -> 0.9538996461 | AMO3: =(AMP9/AMO9)^0.5 -> 1.035772711 | AMR3: =(AMS9/AMR9)^0.5 -> 1.189216088 | AMU3: =(AMV9/AMU9)^0.5 -> 0.7900923193 | AMX3: =(AMY9/AMX9)^0.5 -> 0.8712132219 | ANA3: =(ANB9/ANA9)^0.5 -> 0.8345861931 | AND3: =(ANE9/AND9)^0.5 -> 0.795240632 | ANG3: =(ANH9/ANG9)^0.5 -> 1.030767744 | ANJ3: =(ANK9/ANJ9)^0.5 -> 0.7774562436 | ANM3: =(ANN9/ANM9)^0.5 -> 0.8229232838 | ANP3: =(ANQ9/ANP9)^0.5 -> 0.8318981129 | ANS3: =(ANT9/ANS9)^0.5 -> 0.8510105845 | ANV3: =(ANW9/ANV9)^0.5 -> 0.8133967321 | ANY3: =(ANZ9/ANY9)^0.5 -> 0.8207799065 | AOB3: =(AOC9/AOB9)^0.5 -> 0.8027995286 | AOE3: =(AOF9/AOE9)^0.5 -> 0.9938439403 | AOH3: =(AOI9/AOH9)^0.5 -> 0.9981273677 | AOK3: =(AOL9/AOK9)^0.5 -> 0.8430362486 | AON3: =(AOO9/AON9)^0.5 -> 0.7798686556 | AOQ3: =(AOR9/AOQ9)^0.5 -> 0.7857300035 | AOT3: =(AOU9/AOT9)^0.5 -> 0.7540279616 | AOW3: =(AOX9/AOW9)^0.5 -> 1.009378789 | AOZ3: =(APA9/AOZ9)^0.5 -> 0.8670728887 | APC3: =(APD9/APC9)^0.5 -> 0.7724652951 | APF3: =(APG9/APF9)^0.5 -> 0.9678965291 | API3: =(APJ9/API9)^0.5 -> 0.8803649549 | APL3: =(APM9/APL9)^0.5 -> 0.8300397384 | APO3: =(APP9/APO9)^0.5 -> 1.043065431 | APR3: =(APS9/APR9)^0.5 -> 0.7946352656 | APU3: =(APV9/APU9)^0.5 -> 0.8372512482 | APX3: =(APY9/APX9)^0.5 -> 0.8197083774 | AQA3: =(AQB9/AQA9)^0.5 -> 0.8778576675 | AQD3: =(AQE9/AQD9)^0.5 -> 0.7724412384 | AQG3: =(AQH9/AQG9)^0.5 -> 0.7912730847 | AQJ3: =(AQK9/AQJ9)^0.5 -> 1.119328154 | AQM3: =(AQN9/AQM9)^0.5 -> 0.9808428826 | AQP3: =(AQQ9/AQP9)^0.5 -> 1.261345199 | AQS3: =(AQT9/AQS9)^0.5 -> 0.8417880535 | AQV3: =(AQW9/AQV9)^0.5 -> 0.8161546167 | AQY3: =(AQZ9/AQY9)^0.5 -> 0.8848054844 | ARB3: =(ARC9/ARB9)^0.5 -> 0.9770293797 | ARE3: =(ARF9/ARE9)^0.5 -> 0.7448850882 | ARH3: =(ARI9/ARH9)^0.5 -> 0.8506875356 | ARK3: =(ARL9/ARK9)^0.5 -> 0.7382393355 | ARN3: =(ARO9/ARN9)^0.5 -> 1.277895565 | ARQ3: =(ARR9/ARQ9)^0.5 -> 1.150969504 | ART3: =(ARU9/ART9)^0.5 -> 0.7508706512 | ARW3: =(ARX9/ARW9)^0.5 -> 0.8347329573 | ARZ3: =(ASA9/ARZ9)^0.5 -> 0.8196175256 | ASC3: =(ASD9/ASC9)^0.5 -> 0.8654545565 | ASF3: =(ASG9/ASF9)^0.5 -> 0.8218664738 | ASI3: =(ASJ9/ASI9)^0.5 -> 1.165662426 | ASL3: =(ASM9/ASL9)^0.5 -> 0.8089063009 | ASO3: =(ASP9/ASO9)^0.5 -> 1.032412488 | ASR3: =(ASS9/ASR9)^0.5 -> 0.7854259161 | ASU3: =(ASV9/ASU9)^0.5 -> 0.8398364876 | ASX3: =(ASY9/ASX9)^0.5 -> 1.183012781 | ATA3: =(ATB9/ATA9)^0.5 -> 0.8395997115 | ATD3: =(ATE9/ATD9)^0.5 -> 0.8151943723 | ATG3: =(ATH9/ATG9)^0.5 -> 0.7953465575 | ATJ3: =(ATK9/ATJ9)^0.5 -> 1.161068713 | ATM3: =(ATN9/ATM9)^0.5 -> 0.8128935174 | ATP3: =(ATQ9/ATP9)^0.5 -> 0.9408186626 | ATS3: =(ATT9/ATS9)^0.5 -> 0.8186131823 | ATV3: =(ATW9/ATV9)^0.5 -> 0.8250190386 | ATY3: =(ATZ9/ATY9)^0.5 -> 0.8519933377 | AUB3: =(AUC9/AUB9)^0.5 -> 0.7478057897 | AUE3: =(AUF9/AUE9)^0.5 -> 1.262673499 | AUH3: =(AUI9/AUH9)^0.5 -> 0.7783741354 | AUK3: =(AUL9/AUK9)^0.5 -> 0.7736428464 | AUN3: =(AUO9/AUN9)^0.5 -> 0.7621423115 | AUQ3: =(AUR9/AUQ9)^0.5 -> 1.212697026 | AUT3: =(AUU9/AUT9)^0.5 -> 0.7668655101 | AUW3: =(AUX9/AUW9)^0.5 -> 1.409053588 | AUZ3: =(AVA9/AUZ9)^0.5 -> 0.961104663 | AVC3: =(AVD9/AVC9)^0.5 -> 0.7607819076 | AVF3: =(AVG9/AVF9)^0.5 -> 0.791846223 | AVI3: =(AVJ9/AVI9)^0.5 -> 0.8308091079 | AVL3: =(AVM9/AVL9)^0.5 -> 0.7858302528 | AVO3: =(AVP9/AVO9)^0.5 -> 0.8848277741 | AVR3: =(AVS9/AVR9)^0.5 -> 0.8374302885 | AVU3: =(AVV9/AVU9)^0.5 -> 0.8315529319 | AVX3: =(AVY9/AVX9)^0.5 -> 0.8462772747 | AWA3: =(AWB9/AWA9)^0.5 -> 0.8573977637 | AWD3: =(AWE9/AWD9)^0.5 -> 0.7683231039 | AWG3: =(AWH9/AWG9)^0.5 -> 0.7540415035 | AWJ3: =(AWK9/AWJ9)^0.5 -> 0.8399084508 | AWM3: =(AWN9/AWM9)^0.5 -> 0.8584794601 | AWP3: =(AWQ9/AWP9)^0.5 -> 1.092479612 | AWS3: =(AWT9/AWS9)^0.5 -> 0.7920481125 | AWV3: =(AWW9/AWV9)^0.5 -> 0.7516450245 | AWY3: =(AWZ9/AWY9)^0.5 -> 1.01807007 | AXB3: =(AXC9/AXB9)^0.5 -> 1.096260008 | AXE3: =(AXF9/AXE9)^0.5 -> 0.8198979121 | AXH3: =(AXI9/AXH9)^0.5 -> 0.818033264 | AXK3: =(AXL9/AXK9)^0.5 -> 0.8372118814 | AXN3: =(AXO9/AXN9)^0.5 -> 1.216764069 | AXQ3: =(AXR9/AXQ9)^0.5 -> 0.7384339198 | AXT3: =(AXU9/AXT9)^0.5 -> 0.7800931283 | AXW3: =(AXX9/AXW9)^0.5 -> 1.025680893 | AXZ3: =(AYA9/AXZ9)^0.5 -> 0.8489996819 | AYC3: =(AYD9/AYC9)^0.5 -> 0.859092135 | AYF3: =(AYG9/AYF9)^0.5 -> 1.227099048 | AYI3: =(AYJ9/AYI9)^0.5 -> 0.9879192135 | AYL3: =(AYM9/AYL9)^0.5 -> 0.7589885158 | AYO3: =(AYP9/AYO9)^0.5 -> 1.160220787 | AYR3: =(AYS9/AYR9)^0.5 -> 0.7704396564 | AYU3: =(AYV9/AYU9)^0.5 -> 0.7834155512 | AYX3: =(AYY9/AYX9)^0.5 -> 0.8275139083 | AZA3: =(AZB9/AZA9)^0.5 -> 0.8036414545 | AZD3: =(AZE9/AZD9)^0.5 -> 0.765825154 | AZG3: =(AZH9/AZG9)^0.5 -> 1.009108372 | AZJ3: =(AZK9/AZJ9)^0.5 -> 0.8340809106 | AZM3: =(AZN9/AZM9)^0.5 -> 1.130175505 | AZP3: =(AZQ9/AZP9)^0.5 -> 0.8286151816 | AZS3: =(AZT9/AZS9)^0.5 -> 0.8277820703 | AZV3: =(AZW9/AZV9)^0.5 -> 0.8249478853 | AZY3: =(AZZ9/AZY9)^0.5 -> 1.096522473 | BAB3: =(BAC9/BAB9)^0.5 -> 0.8467368854 | BAE3: =(BAF9/BAE9)^0.5 -> 0.7717828015 | BAH3: =(BAI9/BAH9)^0.5 -> 0.7446197165 | BAK3: =(BAL9/BAK9)^0.5 -> 0.7932607968 | BAN3: =(BAO9/BAN9)^0.5 -> 1.166960802 | BAQ3: =(BAR9/BAQ9)^0.5 -> 0.9413939161 | BAT3: =(BAU9/BAT9)^0.5 -> 0.8531497798 | BAW3: =(BAX9/BAW9)^0.5 -> 0.7423775187 | BAZ3: =(BBA9/BAZ9)^0.5 -> 1.327842933 | BBC3: =(BBD9/BBC9)^0.5 -> 0.8109410958 | BBF3: =(BBG9/BBF9)^0.5 -> 0.7781927478 | BBI3: =(BBJ9/BBI9)^0.5 -> 0.8386535713 | BBL3: =(BBM9/BBL9)^0.5 -> 0.7448172694 | BBO3: =(BBP9/BBO9)^0.5 -> 0.8352544068 | BBR3: =(BBS9/BBR9)^0.5 -> 1.251380918 | BBU3: =(BBV9/BBU9)^0.5 -> 0.8502644154 | BBX3: =(BBY9/BBX9)^0.5 -> 0.8378988981 | BCA3: =(BCB9/BCA9)^0.5 -> 0.8437671288 | BCD3: =(BCE9/BCD9)^0.5 -> 0.7859086135 | BCG3: =(BCH9/BCG9)^0.5 -> 0.73931774 | BCJ3: =(BCK9/BCJ9)^0.5 -> 0.7835511516 | BCM3: =(BCN9/BCM9)^0.5 -> 1.074376953 | BCP3: =(BCQ9/BCP9)^0.5 -> 0.852170442 | BCS3: =(BCT9/BCS9)^0.5 -> 0.7710692551 | BCV3: =(BCW9/BCV9)^0.5 -> 0.8446285153 | BCY3: =(BCZ9/BCY9)^0.5 -> 0.8033460284 | BDB3: =(BDC9/BDB9)^0.5 -> 1.23057218 | BDE3: =(BDF9/BDE9)^0.5 -> 0.9663044777 | BDH3: =(BDI9/BDH9)^0.5 -> 1.001805852 | BDK3: =(BDL9/BDK9)^0.5 -> 0.9969721342 | BDN3: =(BDO9/BDN9)^0.5 -> 1.101545311 | BDQ3: =(BDR9/BDQ9)^0.5 -> 0.733677393 | BDT3: =(BDU9/BDT9)^0.5 -> 1.133818463 | BDW3: =(BDX9/BDW9)^0.5 -> 0.8886634244 | BDZ3: =(BEA9/BDZ9)^0.5 -> 1.051114442 | BEC3: =(BED9/BEC9)^0.5 -> 0.7701736468 | BEF3: =(BEG9/BEF9)^0.5 -> 1.126438259 | BEI3: =(BEJ9/BEI9)^0.5 -> 0.798470361 | BEL3: =(BEM9/BEL9)^0.5 -> 0.8285851469 | BEO3: =(BEP9/BEO9)^0.5 -> 0.8573327249 | BER3: =(BES9/BER9)^0.5 -> 1.27578246 | BEU3: =(BEV9/BEU9)^0.5 -> 1.274191661 | BEX3: =(BEY9/BEX9)^0.5 -> 0.7939303347 | BFA3: =(BFB9/BFA9)^0.5 -> 0.8283683199 | BFD3: =(BFE9/BFD9)^0.5 -> 1.040322219 | BFG3: =(BFH9/BFG9)^0.5 -> 1.234318846 | BFJ3: =(BFK9/BFJ9)^0.5 -> 0.7802877793 | BFM3: =(BFN9/BFM9)^0.5 -> 0.8412195073 | BFP3: =(BFQ9/BFP9)^0.5 -> 1.141121419 | BFS3: =(BFT9/BFS9)^0.5 -> 1.109012233 | BFV3: =(BFW9/BFV9)^0.5 -> 0.754753635 | BFY3: =(BFZ9/BFY9)^0.5 -> 0.838034788 | BGB3: =(BGC9/BGB9)^0.5 -> 1.101943445 | BGE3: =(BGF9/BGE9)^0.5 -> 0.7912425429 | BGH3: =(BGI9/BGH9)^0.5 -> 0.7391296466 | BGK3: =(BGL9/BGK9)^0.5 -> 1.118989369 | BGN3: =(BGO9/BGN9)^0.5 -> 1.150506067 | BGQ3: =(BGR9/BGQ9)^0.5 -> 0.7868051322 | BGT3: =(BGU9/BGT9)^0.5 -> 0.7781691219
C4: No. | D4: X1 | E4: Y1 | F4: X2 | G4: Y2 | K4: 合 計：=SUM(セル範囲) | M4: =SUM(D5:D1304) -> 144.88 | N4: =SUM(E5:E1304) -> 173.54 | O4: =SUM(F5:F1304) -> 0 | P4: =SUM(G5:G1304) -> 0 | Q4: 偏差平方和 | R4: =SUM(H5:H504) -> 0 | S4: =SUM(I5:I504) -> 0 | U4: 11 | AB4: CHIINV(0.05,2)^0.5 | AC4: 2.448 | AD4: =AC5 -> -4.407175842 | AE4: =(Y1SD/X1SD*(相関係数1*AD4+AG4))+切片1 -> -2.09779186 | AF4: =(Y1SD/X1SD*(相関係数1*AD4-AG4))+切片1 -> -2.09779186 | AG4: =IF((1-相関係数1^2)*((X1SD*t1_0.05)^2-(AD4-X1m)^2)>0,SQRT((1-相関係数1^2)*((X1SD*t1_0.05)^2-(AD4-X1m)^2)),0) -> 0 | AH4: 2.448 | AI4: =AH5 ->  | AJ4: =(Y2SD/X2SD*(相関係数2*AI4+AL4))+切片2 ->  | AK4: =(Y2SD/X2SD*(相関係数2*AI4-AL4))+切片2 ->  | AL4: =IF((1-相関係数2^2)*((X2SD*t1_0.05)^2-(AI4-X2m)^2)>0,SQRT((1-相関係数2^2)*((X2SD*t1_0.05)^2-(AI4-X2m)^2)),0) ->  | AO4: rs= | AP4: =AP1/SQRT(AP2*AP3) -> 0.8977653548 | AQ4: =AQ1/SQRT(AQ2*AQ3) ->  | AS4: (X1+Y1)/2 | AT4: Y1-X1 | AY4: 0.1344087653 | AZ4: 1.408896231 | BA4: 標準主軸a= | BB4: =BC7-BB3*BB7 -> 1.325778587 | BE4: =BF7-BE3*BE7 -> 0.4027126239 | BH4: =BI7-BH3*BH7 -> 0.7642154182 | BK4: =BL7-BK3*BK7 -> 0.5388526652 | BN4: =BO7-BN3*BN7 -> 1.007282182 | BQ4: =BR7-BQ3*BQ7 -> 0.1797148279 | BT4: =BU7-BT3*BT7 -> 0.4685621123 | BW4: =BX7-BW3*BW7 -> 0.2596876676 | BZ4: =CA7-BZ3*BZ7 -> 0.94283339 | CC4: =CD7-CC3*CC7 -> 0.4547422292 | CF4: =CG7-CF3*CF7 -> 1.259071261 | CI4: =CJ7-CI3*CI7 -> 0.3349566586 | CL4: =CM7-CL3*CL7 -> 0.9915513079 | CO4: =CP7-CO3*CO7 -> 0.975502326 | CR4: =CS7-CR3*CR7 -> 1.108467838 | CU4: =CV7-CU3*CU7 -> 1.114808798 | CX4: =CY7-CX3*CX7 -> 0.9989301251 | DA4: =DB7-DA3*DA7 -> 1.043607961 | DD4: =DE7-DD3*DD7 -> 0.2765433409 | DG4: =DH7-DG3*DG7 -> 1.083123803 | DJ4: =DK7-DJ3*DJ7 -> 1.038876939 | DM4: =DN7-DM3*DM7 -> 0.3946253791 | DP4: =DQ7-DP3*DP7 -> 0.2689041891 | DS4: =DT7-DS3*DS7 -> 0.4042522509 | DV4: =DW7-DV3*DV7 -> 0.9332273964 | DY4: =DZ7-DY3*DY7 -> 1.291132921 | EB4: =EC7-EB3*EB7 -> 0.373127365 | EE4: =EF7-EE3*EE7 -> 1.094497944 | EH4: =EI7-EH3*EH7 -> 1.322698706 | EK4: =EL7-EK3*EK7 -> 0.8901957504 | EN4: =EO7-EN3*EN7 -> 0.5933742451 | EQ4: =ER7-EQ3*EQ7 -> 0.2497883056 | ET4: =EU7-ET3*ET7 -> 0.9232605121 | EW4: =EX7-EW3*EW7 -> 1.155857291 | EZ4: =FA7-EZ3*EZ7 -> 0.8358093918 | FC4: =FD7-FC3*FC7 -> 0.5260783682 | FF4: =FG7-FF3*FF7 -> 1.217404529 | FI4: =FJ7-FI3*FI7 -> 0.9952338103 | FL4: =FM7-FL3*FL7 -> 1.017381789 | FO4: =FP7-FO3*FO7 -> 0.04401626197 | FR4: =FS7-FR3*FR7 -> 1.025440097 | FU4: =FV7-FU3*FU7 -> 1.087428712 | FX4: =FY7-FX3*FX7 -> 1.309155464 | GA4: =GB7-GA3*GA7 -> 0.5435515495 | GD4: =GE7-GD3*GD7 -> 1.002297761 | GG4: =GH7-GG3*GG7 -> 0.1181200632 | GJ4: =GK7-GJ3*GJ7 -> 1.047581333 | GM4: =GN7-GM3*GM7 -> 1.003403914 | GP4: =GQ7-GP3*GP7 -> 1.252580664 | GS4: =GT7-GS3*GS7 -> 0.3129915588 | GV4: =GW7-GV3*GV7 -> 0.6917805775 | GY4: =GZ7-GY3*GY7 -> 1.449386796 | HB4: =HC7-HB3*HB7 -> 0.9339196561 | HE4: =HF7-HE3*HE7 -> 1.098982272 | HH4: =HI7-HH3*HH7 -> 0.4443641152 | HK4: =HL7-HK3*HK7 -> 1.010510717 | HN4: =HO7-HN3*HN7 -> 0.1106713218 | HQ4: =HR7-HQ3*HQ7 -> 1.393058222 | HT4: =HU7-HT3*HT7 -> 1.066407885 | HW4: =HX7-HW3*HW7 -> 0.1973732799 | HZ4: =IA7-HZ3*HZ7 -> 1.166030518 | IC4: =ID7-IC3*IC7 -> 1.034920784 | IF4: =IG7-IF3*IF7 -> 1.084504419 | II4: =IJ7-II3*II7 -> 1.00878911 | IL4: =IM7-IL3*IL7 -> 1.187600957 | IO4: =IP7-IO3*IO7 -> 1.027061308 | IR4: =IS7-IR3*IR7 -> 0.8561126038 | IU4: =IV7-IU3*IU7 -> 0.3276002238 | IX4: =IY7-IX3*IX7 -> 1.121638326 | JA4: =JB7-JA3*JA7 -> 1.287381534 | JD4: =JE7-JD3*JD7 -> 1.096683813 | JG4: =JH7-JG3*JG7 -> 1.054859116 | JJ4: =JK7-JJ3*JJ7 -> 0.9522716593 | JM4: =JN7-JM3*JM7 -> 1.023641824 | JP4: =JQ7-JP3*JP7 -> 1.242027457 | JS4: =JT7-JS3*JS7 -> 1.02960125 | JV4: =JW7-JV3*JV7 -> 1.018156771 | JY4: =JZ7-JY3*JY7 -> 0.9927398671 | KB4: =KC7-KB3*KB7 -> 1.085050631 | KE4: =KF7-KE3*KE7 -> 1.141720515 | KH4: =KI7-KH3*KH7 -> 0.2750829649 | KK4: =KL7-KK3*KK7 -> 0.9120237944 | KN4: =KO7-KN3*KN7 -> 1.083020805 | KQ4: =KR7-KQ3*KQ7 -> 1.116265142 | KT4: =KU7-KT3*KT7 -> 0.4269615102 | KW4: =KX7-KW3*KW7 -> 0.3422354603 | KZ4: =LA7-KZ3*KZ7 -> 1.373764909 | LC4: =LD7-LC3*LC7 -> 0.4294079808 | LF4: =LG7-LF3*LF7 -> 0.5796254691 | LI4: =LJ7-LI3*LI7 -> 1.211451232 | LL4: =LM7-LL3*LL7 -> 0.5836969933 | LO4: =LP7-LO3*LO7 -> 1.079670198 | LR4: =LS7-LR3*LR7 -> 0.3787061125 | LU4: =LV7-LU3*LU7 -> 0.9678694184 | LX4: =LY7-LX3*LX7 -> 0.1382930996 | MA4: =MB7-MA3*MA7 -> 0.5503816334 | MD4: =ME7-MD3*MD7 -> 1.070056419 | MG4: =MH7-MG3*MG7 -> 0.3041929376 | MJ4: =MK7-MJ3*MJ7 -> 0.4651559732 | MM4: =MN7-MM3*MM7 -> 1.511289216 | MP4: =MQ7-MP3*MP7 -> 1.022339389 | MS4: =MT7-MS3*MS7 -> 1.326816152 | MV4: =MW7-MV3*MV7 -> 1.13839504 | MY4: =MZ7-MY3*MY7 -> 0.418302805 | NB4: =NC7-NB3*NB7 -> 0.3424807057 | NE4: =NF7-NE3*NE7 -> 0.9691311009 | NH4: =NI7-NH3*NH7 -> 0.995852938 | NK4: =NL7-NK3*NK7 -> 0.5111752768 | NN4: =NO7-NN3*NN7 -> 1.190938626 | NQ4: =NR7-NQ3*NQ7 -> 0.8791324534 | NT4: =NU7-NT3*NT7 -> 0.9627353512 | NW4: =NX7-NW3*NW7 -> 0.3978894161 | NZ4: =OA7-NZ3*NZ7 -> 1.180075113 | OC4: =OD7-OC3*OC7 -> 0.2019639925 | OF4: =OG7-OF3*OF7 -> 1.068640092 | OI4: =OJ7-OI3*OI7 -> 0.3154628681 | OL4: =OM7-OL3*OL7 -> 1.044438353 | OO4: =OP7-OO3*OO7 -> 1.235893615 | OR4: =OS7-OR3*OR7 -> 1.32714865 | OU4: =OV7-OU3*OU7 -> 0.3764732961 | OX4: =OY7-OX3*OX7 -> 0.4130772414 | PA4: =PB7-PA3*PA7 -> 1.162321499 | PD4: =PE7-PD3*PD7 -> 0.4117325882 | PG4: =PH7-PG3*PG7 -> 1.023195566 | PJ4: =PK7-PJ3*PJ7 -> 0.3340280144 | PM4: =PN7-PM3*PM7 -> 0.5124683699 | PP4: =PQ7-PP3*PP7 -> 1.067108934 | PS4: =PT7-PS3*PS7 -> 1.123722154 | PV4: =PW7-PV3*PV7 -> 0.6333481681 | PY4: =PZ7-PY3*PY7 -> 0.9061741277 | QB4: =QC7-QB3*QB7 -> 1.022192959 | QE4: =QF7-QE3*QE7 -> 1.116063294 | QH4: =QI7-QH3*QH7 -> 1.432283868 | QK4: =QL7-QK3*QK7 -> 1.12602925 | QN4: =QO7-QN3*QN7 -> 0.9056638582 | QQ4: =QR7-QQ3*QQ7 -> 0.5360920375 | QT4: =QU7-QT3*QT7 -> 1.120774194 | QW4: =QX7-QW3*QW7 -> 1.164501075 | QZ4: =RA7-QZ3*QZ7 -> 0.896567383 | RC4: =RD7-RC3*RC7 -> 0.4511878773 | RF4: =RG7-RF3*RF7 -> 1.04399401 | RI4: =RJ7-RI3*RI7 -> 0.4315776215 | RL4: =RM7-RL3*RL7 -> 1.14844875 | RO4: =RP7-RO3*RO7 -> 0.3432826822 | RR4: =RS7-RR3*RR7 -> 0.4306817232 | RU4: =RV7-RU3*RU7 -> 0.4937799068 | RX4: =RY7-RX3*RX7 -> 1.313158002 | SA4: =SB7-SA3*SA7 -> 1.138296025 | SD4: =SE7-SD3*SD7 -> 0.3365461906 | SG4: =SH7-SG3*SG7 -> 0.4826392706 | SJ4: =SK7-SJ3*SJ7 -> 1.020275848 | SM4: =SN7-SM3*SM7 -> 1.005857977 | SP4: =SQ7-SP3*SP7 -> 0.9356195618 | SS4: =ST7-SS3*SS7 -> 0.4812794748 | SV4: =SW7-SV3*SV7 -> 1.000634837 | SY4: =SZ7-SY3*SY7 -> 1.076362672 | TB4: =TC7-TB3*TB7 -> 0.8858273076 | TE4: =TF7-TE3*TE7 -> 1.336387797 | TH4: =TI7-TH3*TH7 -> 0.9751020291 | TK4: =TL7-TK3*TK7 -> 0.9193056172 | TN4: =TO7-TN3*TN7 -> 1.178129886 | TQ4: =TR7-TQ3*TQ7 -> 1.067231178 | TT4: =TU7-TT3*TT7 -> 1.227680011 | TW4: =TX7-TW3*TW7 -> 1.07078217 | TZ4: =UA7-TZ3*TZ7 -> 1.243852276 | UC4: =UD7-UC3*UC7 -> 0.9600273301 | UF4: =UG7-UF3*UF7 -> 1.11336693 | UI4: =UJ7-UI3*UI7 -> 1.215025481 | UL4: =UM7-UL3*UL7 -> 1.112376847 | UO4: =UP7-UO3*UO7 -> 1.198401739 | UR4: =US7-UR3*UR7 -> 0.2736855334 | UU4: =UV7-UU3*UU7 -> 1.065494207 | UX4: =UY7-UX3*UX7 -> 0.4035949955 | VA4: =VB7-VA3*VA7 -> 0.9227995698 | VD4: =VE7-VD3*VD7 -> 0.2505702996 | VG4: =VH7-VG3*VG7 -> 1.086407684 | VJ4: =VK7-VJ3*VJ7 -> 0.5689182535 | VM4: =VN7-VM3*VM7 -> 0.8223309654 | VP4: =VQ7-VP3*VP7 -> 0.1344087653 | VS4: =VT7-VS3*VS7 -> 1.136606616 | VV4: =VW7-VV3*VV7 -> 0.8014311127 | VY4: =VZ7-VY3*VY7 -> 1.50025825 | WB4: =WC7-WB3*WB7 -> 0.2675640552 | WE4: =WF7-WE3*WE7 -> 1.370100808 | WH4: =WI7-WH3*WH7 -> 0.2207107974 | WK4: =WL7-WK3*WK7 -> 1.172997334 | WN4: =WO7-WN3*WN7 -> 1.007782854 | WQ4: =WR7-WQ3*WQ7 -> 1.150535825 | WT4: =WU7-WT3*WT7 -> 1.190480969 | WW4: =WX7-WW3*WW7 -> 1.117243457 | WZ4: =XA7-WZ3*WZ7 -> 0.3089774653 | XC4: =XD7-XC3*XC7 -> 0.7486016953 | XF4: =XG7-XF3*XF7 -> 1.132547245 | XI4: =XJ7-XI3*XI7 -> 0.2564395993 | XL4: =XM7-XL3*XL7 -> 1.792916852 | XO4: =XP7-XO3*XO7 -> 1.471319484 | XR4: =XS7-XR3*XR7 -> 1.398867181 | XU4: =XV7-XU3*XU7 -> 1.287282311 | XX4: =XY7-XX3*XX7 -> 0.4238698061 | YA4: =YB7-YA3*YA7 -> 0.1968313345 | YD4: =YE7-YD3*YD7 -> 0.237709216 | YG4: =YH7-YG3*YG7 -> 1.048541445 | YJ4: =YK7-YJ3*YJ7 -> 0.5982923274 | YM4: =YN7-YM3*YM7 -> 1.173672254 | YP4: =YQ7-YP3*YP7 -> 0.2406881138 | YS4: =YT7-YS3*YS7 -> 0.3535320382 | YV4: =YW7-YV3*YV7 -> 0.2977181081 | YY4: =YZ7-YY3*YY7 -> 0.5223400689 | ZB4: =ZC7-ZB3*ZB7 -> 1.094081192 | ZE4: =ZF7-ZE3*ZE7 -> 1.174753788 | ZH4: =ZI7-ZH3*ZH7 -> 0.2053960913 | ZK4: =ZL7-ZK3*ZK7 -> 1.080579556 | ZN4: =ZO7-ZN3*ZN7 -> 0.5095262805 | ZQ4: =ZR7-ZQ3*ZQ7 -> 1.085171395 | ZT4: =ZU7-ZT3*ZT7 -> 1.045418669 | ZW4: =ZX7-ZW3*ZW7 -> 0.9459113939 | ZZ4: =AAA7-ZZ3*ZZ7 -> 1.00073221 | AAC4: =AAD7-AAC3*AAC7 -> 0.4315934323 | AAF4: =AAG7-AAF3*AAF7 -> 0.2993694198 | AAI4: =AAJ7-AAI3*AAI7 -> 1.105611533 | AAL4: =AAM7-AAL3*AAL7 -> 0.9464747947 | AAO4: =AAP7-AAO3*AAO7 -> 0.4445374332 | AAR4: =AAS7-AAR3*AAR7 -> 1.02578628 | AAU4: =AAV7-AAU3*AAU7 -> 0.5261829438 | AAX4: =AAY7-AAX3*AAX7 -> 1.049272784 | ABA4: =ABB7-ABA3*ABA7 -> 1.14846349 | ABD4: =ABE7-ABD3*ABD7 -> 1.196847118 | ABG4: =ABH7-ABG3*ABG7 -> 1.271490565 | ABJ4: =ABK7-ABJ3*ABJ7 -> 0.2766074116 | ABM4: =ABN7-ABM3*ABM7 -> 1.206618335 | ABP4: =ABQ7-ABP3*ABP7 -> 0.9760651321 | ABS4: =ABT7-ABS3*ABS7 -> 0.8275243115 | ABV4: =ABW7-ABV3*ABV7 -> 1.186460916 | ABY4: =ABZ7-ABY3*ABY7 -> 0.7711346195 | ACB4: =ACC7-ACB3*ACB7 -> 1.050231837 | ACE4: =ACF7-ACE3*ACE7 -> 1.264241899 | ACH4: =ACI7-ACH3*ACH7 -> 1.087423694 | ACK4: =ACL7-ACK3*ACK7 -> 1.1969672 | ACN4: =ACO7-ACN3*ACN7 -> 0.6920788617 | ACQ4: =ACR7-ACQ3*ACQ7 -> 1.090263847 | ACT4: =ACU7-ACT3*ACT7 -> 1.067968546 | ACW4: =ACX7-ACW3*ACW7 -> 0.3687894046 | ACZ4: =ADA7-ACZ3*ACZ7 -> 0.3091358663 | ADC4: =ADD7-ADC3*ADC7 -> 1.039335447 | ADF4: =ADG7-ADF3*ADF7 -> 1.002232601 | ADI4: =ADJ7-ADI3*ADI7 -> 0.5981761456 | ADL4: =ADM7-ADL3*ADL7 -> 0.9253790983 | ADO4: =ADP7-ADO3*ADO7 -> 0.9586642501 | ADR4: =ADS7-ADR3*ADR7 -> 1.107839975 | ADU4: =ADV7-ADU3*ADU7 -> 0.2258230264 | ADX4: =ADY7-ADX3*ADX7 -> 1.249247216 | AEA4: =AEB7-AEA3*AEA7 -> 0.9649084999 | AED4: =AEE7-AED3*AED7 -> 0.2865752304 | AEG4: =AEH7-AEG3*AEG7 -> 1.416509677 | AEJ4: =AEK7-AEJ3*AEJ7 -> 0.4154073438 | AEM4: =AEN7-AEM3*AEM7 -> 0.3095454196 | AEP4: =AEQ7-AEP3*AEP7 -> 0.9898472706 | AES4: =AET7-AES3*AES7 -> 0.8663523285 | AEV4: =AEW7-AEV3*AEV7 -> 1.146530745 | AEY4: =AEZ7-AEY3*AEY7 -> 0.7107117762 | AFB4: =AFC7-AFB3*AFB7 -> 1.153332363 | AFE4: =AFF7-AFE3*AFE7 -> 1.030859141 | AFH4: =AFI7-AFH3*AFH7 -> 0.4125637181 | AFK4: =AFL7-AFK3*AFK7 -> 0.1938364548 | AFN4: =AFO7-AFN3*AFN7 -> 0.22763568 | AFQ4: =AFR7-AFQ3*AFQ7 -> 0.9782477862 | AFT4: =AFU7-AFT3*AFT7 -> 1.399499065 | AFW4: =AFX7-AFW3*AFW7 -> 1.430031006 | AFZ4: =AGA7-AFZ3*AFZ7 -> 0.4863502263 | AGC4: =AGD7-AGC3*AGC7 -> 0.5645747819 | AGF4: =AGG7-AGF3*AGF7 -> 0.9763333174 | AGI4: =AGJ7-AGI3*AGI7 -> 1.028454644 | AGL4: =AGM7-AGL3*AGL7 -> -0.01616251515 | AGO4: =AGP7-AGO3*AGO7 -> 1.376097879 | AGR4: =AGS7-AGR3*AGR7 -> 1.038178301 | AGU4: =AGV7-AGU3*AGU7 -> 0.1718077009 | AGX4: =AGY7-AGX3*AGX7 -> 1.154407349 | AHA4: =AHB7-AHA3*AHA7 -> 1.055361088 | AHD4: =AHE7-AHD3*AHD7 -> 0.2987081422 | AHG4: =AHH7-AHG3*AHG7 -> 1.016618873 | AHJ4: =AHK7-AHJ3*AHJ7 -> 1.044724641 | AHM4: =AHN7-AHM3*AHM7 -> 1.150198767 | AHP4: =AHQ7-AHP3*AHP7 -> 0.4464306883 | AHS4: =AHT7-AHS3*AHS7 -> 0.9599576579 | AHV4: =AHW7-AHV3*AHV7 -> 1.161712019 | AHY4: =AHZ7-AHY3*AHY7 -> 1.210737901 | AIB4: =AIC7-AIB3*AIB7 -> 1.190760205 | AIE4: =AIF7-AIE3*AIE7 -> 0.5697548257 | AIH4: =AII7-AIH3*AIH7 -> 1.280635215 | AIK4: =AIL7-AIK3*AIK7 -> 0.1063786133 | AIN4: =AIO7-AIN3*AIN7 -> 0.2620923061 | AIQ4: =AIR7-AIQ3*AIQ7 -> 0.4946331097 | AIT4: =AIU7-AIT3*AIT7 -> 1.055548609 | AIW4: =AIX7-AIW3*AIW7 -> 0.2079547159 | AIZ4: =AJA7-AIZ3*AIZ7 -> 0.9639891754 | AJC4: =AJD7-AJC3*AJC7 -> 0.4206483831 | AJF4: =AJG7-AJF3*AJF7 -> 1.011267428 | AJI4: =AJJ7-AJI3*AJI7 -> 0.9675791597 | AJL4: =AJM7-AJL3*AJL7 -> 1.240382741 | AJO4: =AJP7-AJO3*AJO7 -> 0.573695844 | AJR4: =AJS7-AJR3*AJR7 -> 0.213799259 | AJU4: =AJV7-AJU3*AJU7 -> 0.9702749392 | AJX4: =AJY7-AJX3*AJX7 -> 1.050921576 | AKA4: =AKB7-AKA3*AKA7 -> 1.036413301 | AKD4: =AKE7-AKD3*AKD7 -> 0.2879444611 | AKG4: =AKH7-AKG3*AKG7 -> 0.1850127559 | AKJ4: =AKK7-AKJ3*AKJ7 -> 0.5604169561 | AKM4: =AKN7-AKM3*AKM7 -> 0.9838841964 | AKP4: =AKQ7-AKP3*AKP7 -> 1.221382398 | AKS4: =AKT7-AKS3*AKS7 -> 1.184466946 | AKV4: =AKW7-AKV3*AKV7 -> 0.0263471908 | AKY4: =AKZ7-AKY3*AKY7 -> 0.1821809629 | ALB4: =ALC7-ALB3*ALB7 -> 0.4880148723 | ALE4: =ALF7-ALE3*ALE7 -> 1.01303331 | ALH4: =ALI7-ALH3*ALH7 -> 1.005434783 | ALK4: =ALL7-ALK3*ALK7 -> 0.4806567186 | ALN4: =ALO7-ALN3*ALN7 -> 1.038125268 | ALQ4: =ALR7-ALQ3*ALQ7 -> 0.6955915743 | ALT4: =ALU7-ALT3*ALT7 -> 1.059403162 | ALW4: =ALX7-ALW3*ALW7 -> 0.7370092254 | ALZ4: =AMA7-ALZ3*ALZ7 -> 1.028410931 | AMC4: =AMD7-AMC3*AMC7 -> 0.5210408135 | AMF4: =AMG7-AMF3*AMF7 -> 0.7147488452 | AMI4: =AMJ7-AMI3*AMI7 -> 0.3411434235 | AML4: =AMM7-AML3*AML7 -> 0.6532019881 | AMO4: =AMP7-AMO3*AMO7 -> 0.3902490106 | AMR4: =AMS7-AMR3*AMR7 -> 0.1573158113 | AMU4: =AMV7-AMU3*AMU7 -> 1.285007288 | AMX4: =AMY7-AMX3*AMX7 -> 0.9972187703 | ANA4: =ANB7-ANA3*ANA7 -> 0.9230067852 | AND4: =ANE7-AND3*AND7 -> 1.044973798 | ANG4: =ANH7-ANG3*ANG7 -> 0.4124411733 | ANJ4: =ANK7-ANJ3*ANJ7 -> 1.119922554 | ANM4: =ANN7-ANM3*ANM7 -> 1.167536487 | ANP4: =ANQ7-ANP3*ANP7 -> 1.048363758 | ANS4: =ANT7-ANS3*ANS7 -> 0.9960409214 | ANV4: =ANW7-ANV3*ANV7 -> 1.216072144 | ANY4: =ANZ7-ANY3*ANY7 -> 0.9935987224 | AOB4: =AOC7-AOB3*AOB7 -> 1.040584774 | AOE4: =AOF7-AOE3*AOE7 -> 0.4646510302 | AOH4: =AOI7-AOH3*AOH7 -> 0.59021474 | AOK4: =AOL7-AOK3*AOK7 -> 1.169371013 | AON4: =AOO7-AON3*AON7 -> 0.8274478793 | AOQ4: =AOR7-AOQ3*AOQ7 -> 1.316042414 | AOT4: =AOU7-AOT3*AOT7 -> 1.22420915 | AOW4: =AOX7-AOW3*AOW7 -> 0.634229488 | AOZ4: =APA7-AOZ3*AOZ7 -> 1.162201886 | APC4: =APD7-APC3*APC7 -> 1.388166048 | APF4: =APG7-APF3*APF7 -> 0.467919367 | API4: =APJ7-API3*API7 -> 1.191353368 | APL4: =APM7-APL3*APL7 -> 0.9363530052 | APO4: =APP7-APO3*APO7 -> 0.4283299435 | APR4: =APS7-APR3*APR7 -> 1.013789457 | APU4: =APV7-APU3*APU7 -> 0.9935928085 | APX4: =APY7-APX3*APX7 -> 1.224603135 | AQA4: =AQB7-AQA3*AQA7 -> 1.016865787 | AQD4: =AQE7-AQD3*AQD7 -> 1.408896231 | AQG4: =AQH7-AQG3*AQG7 -> 1.117284361 | AQJ4: =AQK7-AQJ3*AQJ7 -> 0.3678088722 | AQM4: =AQN7-AQM3*AQM7 -> 0.8299677837 | AQP4: =AQQ7-AQP3*AQP7 -> 0.04312116961 | AQS4: =AQT7-AQS3*AQS7 -> 0.9492281732 | AQV4: =AQW7-AQV3*AQV7 -> 1.119076133 | AQY4: =AQZ7-AQY3*AQY7 -> 1.301533192 | ARB4: =ARC7-ARB3*ARB7 -> 0.4046160279 | ARE4: =ARF7-ARE3*ARE7 -> 1.396956489 | ARH4: =ARI7-ARH3*ARH7 -> 0.9942469191 | ARK4: =ARL7-ARK3*ARK7 -> 1.009284991 | ARN4: =ARO7-ARN3*ARN7 -> 0.03038890389 | ARQ4: =ARR7-ARQ3*ARQ7 -> 0.2665276739 | ART4: =ARU7-ART3*ART7 -> 1.238478573 | ARW4: =ARX7-ARW3*ARW7 -> 1.060740104 | ARZ4: =ASA7-ARZ3*ARZ7 -> 1.07850635 | ASC4: =ASD7-ASC3*ASC7 -> 1.152260929 | ASF4: =ASG7-ASF3*ASF7 -> 1.018202667 | ASI4: =ASJ7-ASI3*ASI7 -> 0.2803879856 | ASL4: =ASM7-ASL3*ASL7 -> 1.036774955 | ASO4: =ASP7-ASO3*ASO7 -> 0.5041445114 | ASR4: =ASS7-ASR3*ASR7 -> 0.9566103118 | ASU4: =ASV7-ASU3*ASU7 -> 1.070517934 | ASX4: =ASY7-ASX3*ASX7 -> 0.4396010301 | ATA4: =ATB7-ATA3*ATA7 -> 1.09447906 | ATD4: =ATE7-ATD3*ATD7 -> 1.038819372 | ATG4: =ATH7-ATG3*ATG7 -> 1.102013326 | ATJ4: =ATK7-ATJ3*ATJ7 -> 0.3388351809 | ATM4: =ATN7-ATM3*ATM7 -> 0.9272535746 | ATP4: =ATQ7-ATP3*ATP7 -> 0.8226842445 | ATS4: =ATT7-ATS3*ATS7 -> 1.0248028 | ATV4: =ATW7-ATV3*ATV7 -> 1.023578287 | ATY4: =ATZ7-ATY3*ATY7 -> 0.993150531 | AUB4: =AUC7-AUB3*AUB7 -> 1.219975263 | AUE4: =AUF7-AUE3*AUE7 -> 0.1684053273 | AUH4: =AUI7-AUH3*AUH7 -> 1.20169108 | AUK4: =AUL7-AUK3*AUK7 -> 1.136841843 | AUN4: =AUO7-AUN3*AUN7 -> 1.214628966 | AUQ4: =AUR7-AUQ3*AUQ7 -> 0.1862255172 | AUT4: =AUU7-AUT3*AUT7 -> 1.043363648 | AUW4: =AUX7-AUW3*AUW7 -> 0.02556439317 | AUZ4: =AVA7-AUZ3*AUZ7 -> 0.7387411436 | AVC4: =AVD7-AVC3*AVC7 -> 1.252375182 | AVF4: =AVG7-AVF3*AVF7 -> 1.165832902 | AVI4: =AVJ7-AVI3*AVI7 -> 1.139383103 | AVL4: =AVM7-AVL3*AVL7 -> 1.225223257 | AVO4: =AVP7-AVO3*AVO7 -> 1.075807059 | AVR4: =AVS7-AVR3*AVR7 -> 0.9377580611 | AVU4: =AVV7-AVU3*AVU7 -> 0.9265954871 | AVX4: =AVY7-AVX3*AVX7 -> 0.9118854085 | AWA4: =AWB7-AWA3*AWA7 -> 1.019249118 | AWD4: =AWE7-AWD3*AWD7 -> 1.140447073 | AWG4: =AWH7-AWG3*AWG7 -> 1.23093283 | AWJ4: =AWK7-AWJ3*AWJ7 -> 1.030131347 | AWM4: =AWN7-AWM3*AWM7 -> 0.9566923249 | AWP4: =AWQ7-AWP3*AWP7 -> 0.4329518878 | AWS4: =AWT7-AWS3*AWS7 -> 1.003480382 | AWV4: =AWW7-AWV3*AWV7 -> 1.123803199 | AWY4: =AWZ7-AWY3*AWY7 -> 0.5987898285 | AXB4: =AXC7-AXB3*AXB7 -> 0.4774179479 | AXE4: =AXF7-AXE3*AXE7 -> 1.083422519 | AXH4: =AXI7-AXH3*AXH7 -> 1.058118497 | AXK4: =AXL7-AXK3*AXK7 -> 0.9208322851 | AXN4: =AXO7-AXN3*AXN7 -> 0.1607083159 | AXQ4: =AXR7-AXQ3*AXQ7 -> 1.095546785 | AXT4: =AXU7-AXT3*AXT7 -> 1.112212866 | AXW4: =AXX7-AXW3*AXW7 -> 0.536106141 | AXZ4: =AYA7-AXZ3*AXZ7 -> 1.024140189 | AYC4: =AYD7-AYC3*AYC7 -> 1.116483708 | AYF4: =AYG7-AYF3*AYF7 -> 0.2168546032 | AYI4: =AYJ7-AYI3*AYI7 -> 0.7210918873 | AYL4: =AYM7-AYL3*AYL7 -> 1.235412813 | AYO4: =AYP7-AYO3*AYO7 -> 0.2805790039 | AYR4: =AYS7-AYR3*AYR7 -> 1.195429101 | AYU4: =AYV7-AYU3*AYU7 -> 1.134855715 | AYX4: =AYY7-AYX3*AYX7 -> 1.088695667 | AZA4: =AZB7-AZA3*AZA7 -> 1.441562867 | AZD4: =AZE7-AZD3*AZD7 -> 1.290225974 | AZG4: =AZH7-AZG3*AZG7 -> 0.4775000749 | AZJ4: =AZK7-AZJ3*AZJ7 -> 1.099322445 | AZM4: =AZN7-AZM3*AZM7 -> 0.2706293453 | AZP4: =AZQ7-AZP3*AZP7 -> 1.255532563 | AZS4: =AZT7-AZS3*AZS7 -> 1.005902986 | AZV4: =AZW7-AZV3*AZV7 -> 1.273694599 | AZY4: =AZZ7-AZY3*AZY7 -> 0.493592121 | BAB4: =BAC7-BAB3*BAB7 -> 1.133185599 | BAE4: =BAF7-BAE3*BAE7 -> 1.194406065 | BAH4: =BAI7-BAH3*BAH7 -> 1.302458167 | BAK4: =BAL7-BAK3*BAK7 -> 1.278894201 | BAN4: =BAO7-BAN3*BAN7 -> 0.2715683192 | BAQ4: =BAR7-BAQ3*BAQ7 -> 1.069808572 | BAT4: =BAU7-BAT3*BAT7 -> 0.912435864 | BAW4: =BAX7-BAW3*BAW7 -> 1.268226656 | BAZ4: =BBA7-BAZ3*BAZ7 -> 0.3453231534 | BBC4: =BBD7-BBC3*BBC7 -> 1.293333395 | BBF4: =BBG7-BBF3*BBF7 -> 1.074668789 | BBI4: =BBJ7-BBI3*BBI7 -> 1.140342022 | BBL4: =BBM7-BBL3*BBL7 -> 1.26067502 | BBO4: =BBP7-BBO3*BBO7 -> 1.05443076 | BBR4: =BBS7-BBR3*BBR7 -> 0.2952596032 | BBU4: =BBV7-BBU3*BBU7 -> 0.8336232935 | BBX4: =BBY7-BBX3*BBX7 -> 1.077297486 | BCA4: =BCB7-BCA3*BCA7 -> 0.9439606349 | BCD4: =BCE7-BCD3*BCD7 -> 1.046143723 | BCG4: =BCH7-BCG3*BCG7 -> 1.292464935 | BCJ4: =BCK7-BCJ3*BCJ7 -> 1.272400668 | BCM4: =BCN7-BCM3*BCM7 -> 0.4256459442 | BCP4: =BCQ7-BCP3*BCP7 -> 1.214206817 | BCS4: =BCT7-BCS3*BCS7 -> 1.142905691 | BCV4: =BCW7-BCV3*BCV7 -> 0.9549123417 | BCY4: =BCZ7-BCY3*BCY7 -> 1.164903694 | BDB4: =BDC7-BDB3*BDB7 -> 0.2170026771 | BDE4: =BDF7-BDE3*BDE7 -> 0.6587017615 | BDH4: =BDI7-BDH3*BDH7 -> 0.5616181662 | BDK4: =BDL7-BDK3*BDK7 -> 0.6447547883 | BDN4: =BDO7-BDN3*BDN7 -> 0.386530601 | BDQ4: =BDR7-BDQ3*BDQ7 -> 1.427535234 | BDT4: =BDU7-BDT3*BDT7 -> 0.3618909364 | BDW4: =BDX7-BDW3*BDW7 -> 1.23414737 | BDZ4: =BEA7-BDZ3*BDZ7 -> 0.5157717977 | BEC4: =BED7-BEC3*BEC7 -> 1.000122173 | BEF4: =BEG7-BEF3*BEF7 -> 0.5411076918 | BEI4: =BEJ7-BEI3*BEI7 -> 1.250790769 | BEL4: =BEM7-BEL3*BEL7 -> 1.046778986 | BEO4: =BEP7-BEO3*BEO7 -> 1.036064316 | BER4: =BES7-BER3*BER7 -> 0.02478025902 | BEU4: =BEV7-BEU3*BEU7 -> 0.4197671299 | BEX4: =BEY7-BEX3*BEX7 -> 1.020532987 | BFA4: =BFB7-BFA3*BFA7 -> 0.9635884696 | BFD4: =BFE7-BFD3*BFD7 -> 0.4033896537 | BFG4: =BFH7-BFG3*BFG7 -> 0.1789642588 | BFJ4: =BFK7-BFJ3*BFJ7 -> 1.160954463 | BFM4: =BFN7-BFM3*BFM7 -> 1.192625599 | BFP4: =BFQ7-BFP3*BFP7 -> 0.3484892897 | BFS4: =BFT7-BFS3*BFS7 -> 0.6234385105 | BFV4: =BFW7-BFV3*BFV7 -> 1.459959508 | BFY4: =BFZ7-BFY3*BFY7 -> 1.0187007 | BGB4: =BGC7-BGB3*BGB7 -> 0.4156334213 | BGE4: =BGF7-BGE3*BGE7 -> 1.243233327 | BGH4: =BGI7-BGH3*BGH7 -> 1.175543928 | BGK4: =BGL7-BGK3*BGK7 -> 0.4647882694 | BGN4: =BGO7-BGN3*BGN7 -> 0.3979863226 | BGQ4: =BGR7-BGQ3*BGQ7 -> 1.000631233 | BGT4: =BGU7-BGT3*BGT7 -> 1.268904643
C5: 1 | D5: 0.22 | E5: 0.51 | H5: =IF(ISERROR(DEVSQ(D5,F5)),"",DEVSQ(D5,F5)) -> 0 | I5: =IF(ISERROR(DEVSQ(E5,G5)),"",DEVSQ(E5,G5)) -> 0 | K5: データ数：=COUNT(セル範囲) | M5: =COUNT(D5:D1304) -> 51 | N5: =COUNT(E5:E1304) -> 51 | O5: =COUNT(F5:F1304) -> 0 | P5: =COUNT(G5:G1304) -> 0 | Q5: 分 散 | R5: =R4/M5 -> 0 | S5: =S4/N5 -> 0 | U5: データ区間 | V5: X累積 | W5: X | X5: データ区間 | Y5: Y累積 | Z5: Y | AB5: X開始点 | AC5: =X1m-(X1SD*t1_0.05) -> -4.407175842 | AD5: =AD4+$AC$7 -> -4.310536374 | AE5: -1.61349656 | AF5: =(Y1SD/X1SD*(相関係数1*AD5-AG5))+切片1 -> -2.435406175 | AG5: =IF((1-相関係数1^2)*((X1SD*t1_0.05)^2-(AD5-X1m)^2)>0,SQRT((1-相関係数1^2)*((X1SD*t1_0.05)^2-(AD5-X1m)^2)),0) -> 0.492132653 | AH5: =X2m-(X2SD*t1_0.05) ->  | AI5: =AI4+$AH$7 ->  | AN5: =IF(D5<>"",RANK(D5,D$5:D$1304),"") -> 50 | AO5: =IF(E5<>"",RANK(E5,E$5:E$1304),"") -> 51 | AP5: =IF(F5<>"",RANK(F5,F$5:F$504),"") ->  | AQ5: =IF(G5<>"",RANK(G5,G$5:G$504),"") ->  | AS5: =IF(D5<>"",(D5+E5)/2,"") -> 0.365 | AT5: =IF(D5<>"",(E5-D5),"") -> 0.29 | AV5: =IF(D5<>"",(D5+E5)/2,"") -> 0.365 | AW5: =IF(D5<>"",(E5-D5),"") -> 0.29 | AY5: 0.9283018868 | AZ5: 1.347209123 | BA5: Passing b | BB5: 1.081558469 | BE5: 1.123324397 | BH5: 1.309090909 | BK5: 1.00990099 | BN5: 1.200607903 | BQ5: 1.004554865 | BT5: 1.117647059 | BW5: 1.277777778 | BZ5: 1.186915888 | CC5: 0.9642857143 | CF5: 1.008264463 | CI5: 1.192307692 | CL5: 1.182481752 | CO5: 1.028856649 | CR5: 1.070063694 | CU5: 1.124223602 | CX5: 1.09 | DA5: 1.103274559 | DD5: 1.051020408 | DG5: 1.216450216 | DJ5: 0.9625 | DM5: 1.225 | DP5: 1.169426049 | DS5: 1.071942446 | DV5: 1.008928571 | DY5: 1.127404735 | EB5: 1.123324397 | EE5: 1.305882353 | EH5: 1.095744681 | EK5: 1.045977011 | EN5: 1.113402062 | EQ5: 1.004761905 | ET5: 1.202614379 | EW5: 1.027472527 | EZ5: 0.9833333333 | FC5: 1.027472527 | FF5: 1.106806654 | FI5: 1.228414173 | FL5: 1.22875817 | FO5: 1.2 | FR5: 1.355932203 | FU5: 1.045977011 | FX5: 1.273542601 | GA5: 1.026490066 | GD5: 0.9826435025 | GG5: 0.9917355372 | GJ5: 1.305882353 | GM5: 1.135869565 | GP5: 0.9926470588 | GS5: 1 | GV5: 1.25 | GY5: 0.9565217391 | HB5: 0.9884259259 | HE5: 1.136942675 | HH5: 1.113620072 | HK5: 1.162790698 | HN5: 1.045643154 | HQ5: 1.200607903 | HT5: 1.14 | HW5: 1.056818182 | HZ5: 1.045923887 | IC5: 1.069157914 | IF5: 1.216450216 | II5: 1.166666667 | IL5: 1.007239583 | IO5: 0.812762605 | IR5: 0.9347826087 | IU5: 1.039426523 | IX5: 1.108695652 | JA5: 1.082474227 | JD5: 1.161434978 | JG5: 1.004032258 | JJ5: 1.035353535 | JM5: 1.162790698 | JP5: 1.119341564 | JS5: 1.179039301 | JV5: 1.086021505 | JY5: 1.12745098 | KB5: 0.994212963 | KE5: 1.026490066 | KH5: 1.153846154 | KK5: 1.072463768 | KN5: 1.151455026 | KQ5: 1.004347826 | KT5: 1.273542601 | KW5: 1.090680101 | KZ5: 1.095744681 | LC5: 1.200607903 | LF5: 1.09 | LI5: 1.118633046 | LL5: 1.113171355 | LO5: 1.045643154 | LR5: 0.997382199 | LU5: 1.179039301 | LX5: 1.210711769 | MA5: 1.14845161 | MD5: 1.259259259 | MG5: 1.031496063 | MJ5: 1.248826291 | MM5: 1.020408163 | MP5: 0.8717948718 | MS5: 1.006666667 | MV5: 1.119341564 | MY5: 1.026490066 | NB5: 1.097249601 | NE5: 1.22875817 | NH5: 0.9053030303 | NK5: 1.069767442 | NN5: 1.113402062 | NQ5: 1.00329818 | NT5: 1.039426523 | NW5: 1.402439024 | NZ5: 1.138888889 | OC5: 0.9884259259 | OF5: 1.072463768 | OI5: 1.007142857 | OL5: 1.028423773 | OO5: 0.9347826087 | OR5: 1.17625665 | OU5: 1.004761905 | OX5: 1.070063694 | PA5: 1.215306122 | PD5: 1.172413793 | PG5: 1.029959918 | PJ5: 1.022756383 | PM5: 1.080246914 | PP5: 1.154304029 | PS5: 1.048951049 | PV5: 1.006666667 | PY5: 1.137071651 | QB5: 1.08908046 | QE5: 1.216450216 | QH5: 1.137007163 | QK5: 1.127659574 | QN5: 0.9884259259 | QQ5: 0.9283018868 | QT5: 1.047619048 | QW5: 0.9316887394 | QZ5: 1.051614622 | RC5: 1.062248996 | RF5: 1.157894737 | RI5: 0.9029535865 | RL5: 1.153846154 | RO5: 1.052208835 | RR5: 1.168050941 | RU5: 1.245192308 | RX5: 1.036585366 | SA5: 1.103274559 | SD5: 1.045977011 | SG5: 1.21761658 | SJ5: 1.025104603 | SM5: 1.151975684 | SP5: 1.12745098 | SS5: 1.055194805 | SV5: 1.0078125 | SY5: 1.179039301 | TB5: 0.9803921569 | TE5: 1.09034005 | TH5: 1.031496063 | TK5: 1.095744681 | TN5: 1.062248996 | TQ5: 1.101694915 | TT5: 1.124223602 | TW5: 1.166666667 | TZ5: 1.212121212 | UC5: 1.157894737 | UF5: 1.075949367 | UI5: 1.157894737 | UL5: 1.093167702 | UO5: 1.027472527 | UR5: 1.017857143 | UU5: 1.277777778 | UX5: 1.127659574 | VA5: 1.096438385 | VD5: 1.008264463 | VG5: 1.079646018 | VJ5: 1.004032258 | VM5: 1.036585366 | VP5: 1.025104603 | VS5: 1.226535088 | VV5: 1.298319328 | VY5: 1.009090909 | WB5: 1.027472527 | WE5: 1.056818182 | WH5: 1.127659574 | WK5: 1.393939394 | WN5: 1.062248996 | WQ5: 0.9287469287 | WT5: 1.039215686 | WW5: 1.22412481 | WZ5: 1.052884615 | XC5: 1.216216216 | XF5: 0.9741935484 | XI5: 0.9895104895 | XL5: 1.249010869 | XO5: 1 | XR5: 1.30952381 | XU5: 1.136942675 | XX5: 1.008928571 | YA5: 1.064814815 | YD5: 1.071942446 | YG5: 1.214285714 | YJ5: 1.186915888 | YM5: 1.003246753 | YP5: 1.133274232 | YS5: 1.12540294 | YV5: 1.136942675 | YY5: 1.103274559 | ZB5: 0.9664082687 | ZE5: 1 | ZH5: 1 | ZK5: 1.307692308 | ZN5: 1 | ZQ5: 1.117647059 | ZT5: 1.039735099 | ZW5: 1.12745098 | ZZ5: 0.900990099 | AAC5: 1.12745098 | AAF5: 1.032608696 | AAI5: 1.216216216 | AAL5: 1.198199421 | AAO5: 0.9354243542 | AAR5: 1.126582278 | AAU5: 1.035598706 | AAX5: 1.047619048 | ABA5: 1.216216216 | ABD5: 1.036585366 | ABG5: 1.216326531 | ABJ5: 1.356932153 | ABM5: 1.21761658 | ABP5: 0.9287469287 | ABS5: 1.056818182 | ABV5: 1.025104603 | ABY5: 1.298319328 | ACB5: 1.086021505 | ACE5: 0.9803921569 | ACH5: 1.170810323 | ACK5: 1.138888889 | ACN5: 0.9793814433 | ACQ5: 1.025641026 | ACT5: 1.047619048 | ACW5: 1.053919295 | ACZ5: 1.239043825 | ADC5: 1.209302326 | ADF5: 1.039735099 | ADI5: 1.070063694 | ADL5: 1.048951049 | ADO5: 0.96 | ADR5: 1.093167702 | ADU5: 1.055194805 | ADX5: 1.225 | AEA5: 1.22875817 | AED5: 1.186915888 | AEG5: 1.035353535 | AEJ5: 1.138888889 | AEM5: 1.096685083 | AEP5: 1.09 | AES5: 1.051020408 | AEV5: 1.200607903 | AEY5: 1.172019195 | AFB5: 1.066666667 | AFE5: 0.9811320755 | AFH5: 1.062857143 | AFK5: 1.081761006 | AFN5: 1.1 | AFQ5: 1.172413793 | AFT5: 1.006666667 | AFW5: 1.097014925 | AFZ5: 1.13916556 | AGC5: 1.020710059 | AGF5: 1.032608696 | AGI5: 1.111111111 | AGL5: 0.9926470588 | AGO5: 1.186915888 | AGR5: 1.186915888 | AGU5: 1.00949595 | AGX5: 1.298319328 | AHA5: 1.096117954 | AHD5: 1.017857143 | AHG5: 1.101694915 | AHJ5: 1.028423773 | AHM5: 1.04620462 | AHP5: 1.180327869 | AHS5: 1.096685083 | AHV5: 0.9258923682 | AHY5: 1.064814815 | AIB5: 1.007390571 | AIE5: 1.032608696 | AIH5: 1.22875817 | AIK5: 1.096491228 | AIN5: 1.221238938 | AIQ5: 1.255411255 | AIT5: 1.097484277 | AIW5: 1.126582278 | AIZ5: 1.217033398 | AJC5: 1.408163265 | AJF5: 1.068548387 | AJI5: 1.047577835 | AJL5: 1.157894737 | AJO5: 1.069767442 | AJR5: 1.004347826 | AJU5: 1.286458333 | AJX5: 1.08974359 | AKA5: 1.086021505 | AKD5: 1.066666667 | AKG5: 1.115572316 | AKJ5: 1.365994236 | AKM5: 1.119341564 | AKP5: 1.031496063 | AKS5: 1.032608696 | AKV5: 1.249042146 | AKY5: 1.287581699 | ALB5: 1.287020016 | ALE5: 1.034836066 | ALH5: 0.9771757605 | ALK5: 0.9553977273 | ALN5: 1.062857143 | ALQ5: 1.09 | ALT5: 0.9565217391 | ALW5: 0.9733727811 | ALZ5: 0.9615335381 | AMC5: 1.209302326 | AMF5: 1.020408163 | AMI5: 1.062248996 | AML5: 1.0078125 | AMO5: 1 | AMR5: 0.9791666667 | AMU5: 1.096385542 | AMX5: 1.013192612 | ANA5: 1.196457798 | AND5: 1.003144654 | ANG5: 1.004149378 | ANJ5: 1.008264463 | ANM5: 1.014285714 | ANP5: 1.069204152 | ANS5: 1.21761658 | ANV5: 1.00990099 | ANY5: 1.075949367 | AOB5: 1.079946466 | AOE5: 0.9058441558 | AOH5: 1.010869565 | AOK5: 1.072463768 | AON5: 1.237516013 | AOQ5: 1.00990099 | AOT5: 0.9475409836 | AOW5: 1.052208835 | AOZ5: 1.066666667 | APC5: 1.216326531 | APF5: 1.070063694 | API5: 0.9347826087 | APL5: 1.164965986 | APO5: 1.1 | APR5: 1.084337349 | APU5: 0.9181818182 | APX5: 1.22754491 | AQA5: 1.106666667 | AQD5: 1.136942675 | AQG5: 1.159664857 | AQJ5: 1.084337349 | AQM5: 1.148148148 | AQP5: 1.005347594 | AQS5: 1.125791047 | AQV5: 1.039215686 | AQY5: 1.045643154 | ARB5: 1.388888889 | ARE5: 0.9803921569 | ARH5: 0.9733727811 | ARK5: 1.162790698 | ARN5: 0.9705882353 | ARQ5: 1.228070175 | ART5: 1.172299612 | ARW5: 1.154761905 | ARZ5: 1.045977011 | ASC5: 0.9963235294 | ASF5: 1.236543189 | ASI5: 1.100847458 | ASL5: 1.214285714 | ASO5: 1 | ASR5: 1.081355932 | ASU5: 0.9347826087 | ASX5: 1.096685083 | ATA5: 1.228414173 | ATD5: 1.337748344 | ATG5: 1.095744681 | ATJ5: 0.9653469915 | ATM5: 1.146938776 | ATP5: 1.138888889 | ATS5: 1.003246753 | ATV5: 1.123368659 | ATY5: 1.092896175 | AUB5: 1.12745098 | AUE5: 1.066666667 | AUH5: 1.192307692 | AUK5: 0.9841549296 | AUN5: 0.9475409836 | AUQ5: 0.869955157 | AUT5: 1.231481481 | AUW5: 0.9354243542 | AUZ5: 1.409090909 | AVC5: 1.051020408 | AVF5: 1.036585366 | AVI5: 0.9705882353 | AVL5: 1.138613861 | AVO5: 1.088983051 | AVR5: 1.201954397 | AVU5: 1.006158117 | AVX5: 1.069988479 | AWA5: 1.08974359 | AWD5: 1.052208835 | AWG5: 1 | AWJ5: 1 | AWM5: 1.117924528 | AWP5: 1.17218543 | AWS5: 1.090680101 | AWV5: 1 | AWY5: 0.9753521127 | AXB5: 1.186915888 | AXE5: 1.151975684 | AXH5: 0.9833333333 | AXK5: 1.020710059 | AXN5: 1.117924528 | AXQ5: 1.21761658 | AXT5: 0.9638554217 | AXW5: 1.094776622 | AXZ5: 1.146938776 | AYC5: 1.094790629 | AYF5: 1.108695652 | AYI5: 1.126582278 | AYL5: 1.027472527 | AYO5: 1 | AYR5: 1.163265306 | AYU5: 1.042856055 | AYX5: 1.177725118 | AZA5: 1.096685083 | AZD5: 1.309307359 | AZG5: 1.153846154 | AZJ5: 1.060344828 | AZM5: 1.151975684 | AZP5: 1.12244898 | AZS5: 1.127659574 | AZV5: 1.096117954 | AZY5: 1.081761006 | BAB5: 1.062553069 | BAE5: 1.180327869 | BAH5: 0.9895833333 | BAK5: 1.066666667 | BAN5: 1.016260163 | BAQ5: 1.127659574 | BAT5: 1.388987672 | BAW5: 1.066030648 | BAZ5: 0.9249882794 | BBC5: 1.510040161 | BBF5: 1.538461538 | BBI5: 1.080246914 | BBL5: 1.179039301 | BBO5: 1.006968641 | BBR5: 1.111111111 | BBU5: 1.216450216 | BBX5: 1.006666667 | BCA5: 1.066666667 | BCD5: 1.028423773 | BCG5: 1.086021505 | BCJ5: 1.064814815 | BCM5: 1.148148148 | BCP5: 1.101933628 | BCS5: 1.080801423 | BCV5: 1.096385542 | BCY5: 1.071428571 | BDB5: 1.079646018 | BDE5: 1.287581699 | BDH5: 1.004347826 | BDK5: 1 | BDN5: 1.020408163 | BDQ5: 1.096385542 | BDT5: 1.045977011 | BDW5: 1.094512195 | BDZ5: 1.304175744 | BEC5: 1.082474227 | BEF5: 1.020408163 | BEI5: 1.162790698 | BEL5: 1.002306641 | BEO5: 1.066666667 | BER5: 1.201954397 | BEU5: 1.347209123 | BEX5: 1.30627451 | BFA5: 1.071942446 | BFD5: 0.9895833333 | BFG5: 1.007142857 | BFJ5: 1.166810204 | BFM5: 0.9338235294 | BFP5: 1.135869565 | BFS5: 1.157894737 | BFV5: 1.157894737 | BFY5: 1.038744404 | BGB5: 1.081355932 | BGE5: 1.119341564 | BGH5: 1.032608696 | BGK5: 1.069767442 | BGN5: 1.090680101 | BGQ5: 1.155870445 | BGT5: 1.03264095 | BGW5: 1.103274559
C6: 2 | D6: 0.22 | E6: 0.56 | H6: 0 | I6: 0 | K6: 平 均：=AVERAGE(セル範囲) | M6: =AVERAGE(D5:D1304) -> 2.840784314 | N6: =AVERAGE(E5:E1304) -> 3.402745098 | O6: =AVERAGE(F5:F1304) ->  | P6: =AVERAGE(G5:G1304) ->  | Q6: 精密度SD | R6: =R5^0.5 -> 0 | S6: =S5^0.5 -> 0 | U6: =CEILING(((_MAX1-_MIN1)/階級数)+_MIN1,0.01) -> 2.02 | V6: =FREQUENCY($D$5:$D$1304,U6) -> 22 | W6: =V6 -> 22 | X6: =CEILING(((_MAX2-_MIN2)/階級数)+_MIN2,0.1) -> 1.9 | Y6: =FREQUENCY($E$5:$E$1304,X6) -> 17 | Z6: =Y6 -> 17 | AB6: X終了点 | AC6: =X1m+(X1SD*t1_0.05) -> 10.08874447 | AD6: =AD5+$AC$7 -> -4.213896905 | AE6: -1.371886557 | AF6: -2.530335193 | AG6: 0.6936412348 | AH6: =X2m+(X2SD*t1_0.05) ->  | AI6: =AI5+$AH$7 ->  | AN6: =IF(D6<>"",RANK(D6,$D$5:$D$1304),"") -> 50 | AO6: =IF(E6<>"",RANK(E6,$E$5:$E$1304),"") -> 50 | AS6: =IF(D6<>"",(D6+E6)/2,"") -> 0.39 | AT6: =IF(D6<>"",(E6-D6),"") -> 0.34 | AV6: =IF(D6<>"",(D6+E6)/2,"") -> 0.39 | AW6: =IF(D6<>"",(E6-D6),"") -> 0.34 | AY6: 0.1142074928 | AZ6: 0.6161818182 | BA6: Passing a | BB6: 0.3588674981 | BE6: 0.390536193 | BH6: 0.09818181818 | BK6: 0.5722772277 | BN6: 0.3658054711 | BQ6: 0.5763146998 | BT6: 0.3470588235 | BW6: 0.2538888889 | BZ6: 0.2385514019 | CC6: 0.6014285714 | CF6: 0.4694214876 | CI6: 0.2313461538 | CL6: 0.2813138686 | CO6: 0.4242177551 | CR6: 0.4089171975 | CU6: 0.3514596273 | CX6: 0.3202 | DA6: 0.317279597 | DD6: 0.4136734694 | DG6: 0.3086147186 | DJ6: 0.6035 | DM6: 0.294 | DP6: 0.2499116998 | DS6: 0.3553956835 | DV6: 0.4271428571 | DY6: 0.2619709582 | EB6: 0.2189812332 | EE6: 0.2389411765 | EH6: 0.3189361702 | EK6: 0.4029885057 | EN6: 0.2846391753 | EQ6: 0.5544761905 | ET6: 0.2087581699 | EW6: 0.3983516484 | EZ6: 0.6116666667 | FC6: 0.3931043956 | FF6: 0.4361042808 | FI6: 0.2689095287 | FL6: 0.2211437908 | FO6: 0.246 | FR6: 0.101779661 | FU6: 0.4152873563 | FX6: 0.1443946188 | GA6: 0.4343377483 | GD6: 0.5225634467 | GG6: 0.5772727273 | GJ6: 0.2075294118 | GM6: 0.2663586957 | GP6: 0.5272058824 | GS6: 0.5 | GV6: 0.2225 | GY6: 0.6263043478 | HB6: 0.5869444444 | HE6: 0.1557006369 | HH6: 0.3150035842 | HK6: 0.3146511628 | HN6: 0.5416390041 | HQ6: 0.2392097264 | HT6: 0.408 | HW6: 0.4118181818 | HZ6: 0.3611957876 | IC6: 0.5385052513 | IF6: 0.3086147186 | II6: 0.3033333333 | IL6: 0.4905885417 | IO6: 0.6921743697 | IR6: 0.5847826087 | IU6: 0.3541218638 | IX6: 0.2956521739 | JA6: 0.3634020619 | JD6: 0.3044843049 | JG6: 0.4947580645 | JJ6: 0.4797979798 | JM6: 0.2480232558 | JP6: 0.4133333333 | JS6: 0.2672489083 | JV6: 0.3562365591 | JY6: 0.3019607843 | KB6: 0.3196759259 | KE6: 0.5275496689 | KH6: 0.3480769231 | KK6: 0.299057971 | KN6: 0.3815343915 | KQ6: 0.5773913043 | KT6: 0.1688789238 | KW6: 0.3468261965 | KZ6: 0.3028723404 | LC6: 0.2112462006 | LF6: 0.36325 | LI6: 0.4223856666 | LL6: 0.3196675192 | LO6: 0.4585062241 | LR6: 0.5096858639 | LU6: 0.3006113537 | LX6: 0.1982522903 | MA6: 0.2183335536 | MD6: 0.2296296296 | MG6: 0.4362204724 | MJ6: 0.235258216 | MM6: 0.4244897959 | MP6: 0.7566666667 | MS6: 0.4278666667 | MV6: 0.263744856 | MY6: 0.4271523179 | NB6: 0.3186050878 | NE6: 0.2926143791 | NH6: 0.4761742424 | NK6: 0.3679069767 | NN6: 0.2196391753 | NQ6: 0.5780210918 | NT6: 0.4176164875 | NW6: 0.1487804878 | NZ6: 0.3855555556 | OC6: 0.5150462963 | OF6: 0.274057971 | OI6: 0.5212142857 | OL6: 0.4630490956 | OO6: 0.5408695652 | OR6: 0.3012235371 | OU6: 0.5781904762 | OX6: 0.3617834395 | PA6: 0.310244898 | PD6: 0.3310344828 | PG6: 0.4610521069 | PJ6: 0.4483558193 | PM6: 0.3637654321 | PP6: 0.2686630037 | PS6: 0.3454545455 | PV6: 0.4398 | PY6: 0.4821806854 | QB6: 0.3267528736 | QE6: 0.3086147186 | QH6: 0.3218906879 | QK6: 0.5173404255 | QN6: 0.3425462963 | QQ6: 0.607245283 | QT6: 0.4523809524 | QW6: 0.5447059631 | QZ6: 0.4329009917 | RC6: 0.382811245 | RF6: 0.4715789474 | RI6: 0.5293248945 | RL6: 0.3 | RO6: 0.4321285141 | RR6: 0.3762236988 | RU6: 0.3563461538 | RX6: 0.4524390244 | SA6: 0.455743073 | SD6: 0.4889655172 | SG6: 0.3073316062 | SJ6: 0.5146443515 | SM6: 0.2869908815 | SP6: 0.494754902 | SS6: 0.4123376623 | SV6: 0.5133203125 | SY6: 0.3006113537 | TB6: 0.582745098 | TE6: 0.3470478589 | TH6: 0.4854330709 | TK6: 0.3537234043 | TN6: 0.382811245 | TQ6: 0.4420338983 | TT6: 0.2914596273 | TW6: 0.37 | TZ6: 0.2201515152 | UC6: 0.3052631579 | UF6: 0.3691772152 | UI6: 0.2642105263 | UL6: 0.4001863354 | UO6: 0.4571428571 | UR6: 0.5446428571 | UU6: 0.2288888889 | UX6: 0.4119148936 | VA6: 0.3187835553 | VD6: 0.5537190083 | VG6: 0.3612389381 | VJ6: 0.5553225806 | VM6: 0.4640243902 | VP6: 0.414539749 | VS6: 0.2901622807 | VV6: 0.2493697479 | VY6: 0.4733636364 | WB6: 0.5542857143 | WE6: 0.3328977273 | WH6: 0.4855319149 | WK6: 0.16 | WN6: 0.382811245 | WQ6: 0.5998525799 | WT6: 0.4332352941 | WW6: 0.2781316591 | WZ6: 0.43125 | XC6: 0.3091891892 | XF6: 0.595483871 | XI6: 0.5780769231 | XL6: 0.2662858707 | XO6: 0.69 | XR6: 0.1426190476 | XU6: 0.4119745223 | XX6: 0.5766071429 | YA6: 0.3796296296 | YD6: 0.3707913669 | YG6: 0.195 | YJ6: 0.1839252336 | YM6: 0.4957792208 | YP6: 0.500035461 | YS6: 0.2758833242 | YV6: 0.3219745223 | YY6: 0.267279597 | ZB6: 0.440749354 | ZE6: 0.5 | ZH6: 0.6 | ZK6: 0.105 | ZN6: 0.59 | ZQ6: 0.3305882353 | ZT6: 0.4172847682 | ZW6: 0.3069607843 | ZZ6: 0.5314356436 | AAC6: 0.3019607843 | AAF6: 0.4195652174 | AAI6: 0.2424324324 | AAL6: 0.2423407528 | AAO6: 0.4506642066 | AAR6: 0.2684810127 | AAU6: 0.4158576052 | AAX6: 0.4380952381 | ABA6: 0.2674324324 | ABD6: 0.4206707317 | ABG6: 0.2948979592 | ABJ6: 0.2088495575 | ABM6: 0.2998445596 | ABP6: 0.6203931204 | ABS6: 0.4093181818 | ABV6: 0.4071129707 | ABY6: 0.2743697479 | ACB6: 0.4602150538 | ACE6: 0.3666666667 | ACH6: 0.3024217289 | ACK6: 0.2618055556 | ACN6: 0.5839175258 | ACQ6: 0.5434615385 | ACT6: 0.4264285714 | ACW6: 0.416674397 | ACZ6: 0.2792430279 | ADC6: 0.3172093023 | ADF6: 0.4649006623 | ADI6: 0.3903503185 | ADL6: 0.4789160839 | ADO6: 0.4312 | ADR6: 0.3195031056 | ADU6: 0.4454545455 | ADX6: 0.27775 | AEA6: 0.2926143791 | AED6: 0.2488785047 | AEG6: 0.4161616162 | AEJ6: 0.4790277778 | AEM6: 0.2830801105 | AEP6: 0.3921 | AES6: 0.4136734694 | AEV6: 0.2958662614 | AEY6: 0.302155777 | AFB6: 0.2753333333 | AFE6: 0.5471698113 | AFH6: 0.3862857143 | AFK6: 0.3586163522 | AFN6: 0.2745 | AFQ6: 0.2770689655 | AFT6: 0.3385333333 | AFW6: 0.3864179104 | AFZ6: 0.460794046 | AGC6: 0.4233727811 | AGF6: 0.4304347826 | AGI6: 0.2888888889 | AGL6: 0.5756617647 | AGO6: 0.2240654206 | AGR6: 0.4131308411 | AGU6: 0.4876552655 | AGX6: 0.09575630252 | AHA6: 0.3308697275 | AHD6: 0.5232142857 | AHG6: 0.3095762712 | AHJ6: 0.431369509 | AHM6: 0.4552805281 | AHP6: 0.2655737705 | AHS6: 0.3240055249 | AHV6: 0.5519659481 | AHY6: 0.3796296296 | AIB6: 0.4508356925 | AIE6: 0.4195652174 | AIH6: 0.2681699346 | AIK6: 0.3021929825 | AIN6: 0.1487610619 | AIQ6: 0.167965368 | AIT6: 0.3732704403 | AIW6: 0.335443038 | AIZ6: 0.2933781935 | AJC6: -0.02306122449 | AJF6: 0.4080645161 | AJI6: 0.3525952595 | AJL6: 0.2552631579 | AJO6: 0.443372093 | AJR6: 0.5773913043 | AJU6: 0.1293229167 | AJX6: 0.3487179487 | AKA6: 0.373655914 | AKD6: 0.4133333333 | AKG6: 0.3145740905 | AKJ6: 0.1142074928 | AKM6: 0.421563786 | AKP6: 0.4362204724 | AKS6: 0.5154347826 | AKV6: 0.3082758621 | AKY6: 0.1261437908 | ALB6: 0.1277333538 | ALE6: 0.418852459 | ALH6: 0.5296715113 | ALK6: 0.5969488636 | ALN6: 0.4098857143 | ALQ6: 0.3081 | ALT6: 0.5630434783 | ALW6: 0.5934319527 | ALZ6: 0.3484626216 | AMC6: 0.31 | AMF6: 0.4234693878 | AMI6: 0.4257028112 | AML6: 0.4503125 | AMO6: 0.48 | AMR6: 0.4366666667 | AMU6: 0.3404819277 | AMX6: 0.563060686 | ANA6: 0.2467792845 | AND6: 0.470172956 | ANG6: 0.4846473029 | ANJ6: 0.4748760331 | ANM6: 0.4447142857 | ANP6: 0.4100346021 | ANS6: 0.3044041451 | ANV6: 0.5485148515 | ANY6: 0.3943037975 | AOB6: 0.365024309 | AOE6: 0.6201298701 | AOH6: 0.4431521739 | AOK6: 0.324057971 | AON6: 0.2678296842 | AOQ6: 0.380990099 | AOT6: 0.6709836066 | AOW6: 0.4132931727 | AOZ6: 0.4133333333 | APC6: 0.3090612245 | APF6: 0.4057006369 | API6: 0.4493478261 | APL6: 0.253707483 | APO6: 0.353 | APR6: 0.3510240964 | APU6: 0.6161818182 | APX6: 0.2399401198 | AQA6: 0.3988 | AQD6: 0.2806847134 | AQG6: 0.3824356856 | AQJ6: 0.3989156627 | AQM6: 0.3074074074 | AQP6: 0.5824331551 | AQS6: 0.3040191023 | AQV6: 0.4784313725 | AQY6: 0.4427385892 | ARB6: 0.2294444444 | ARE6: 0.4078431373 | ARH6: 0.6115680473 | ARK6: 0.3376744186 | ARN6: 0.4 | ARQ6: 0.1824561404 | ART6: 0.3020940854 | ARW6: 0.3804761905 | ARZ6: 0.3454022989 | ASC6: 0.4645588235 | ASF6: 0.1666864457 | ASI6: 0.3054491525 | ASL6: 0.2214285714 | ASO6: 0.495 | ASR6: 0.3591186441 | ASU6: 0.5758695652 | ASX6: 0.5219889503 | ATA6: 0.2689095287 | ATD6: 0.1682119205 | ATG6: 0.3028723404 | ATJ6: 0.5931681432 | ATM6: 0.2826734694 | ATP6: 0.3194444444 | ATS6: 0.5831168831 | ATV6: 0.3128588951 | ATY6: 0.4692349727 | AUB6: 0.2819607843 | AUE6: 0.3773333333 | AUH6: 0.3684615385 | AUK6: 0.5783802817 | AUN6: 0.5232786885 | AUQ6: 0.6316143498 | AUT6: 0.2890740741 | AUW6: 0.6187453875 | AUZ6: 0.05181818182 | AVC6: 0.6126530612 | AVF6: 0.4640243902 | AVI6: 0.6185294118 | AVL6: 0.4098019802 | AVO6: 0.3496610169 | AVR6: 0.3274592834 | AVU6: 0.4523639345 | AVX6: 0.3263104839 | AWA6: 0.3487179487 | AWD6: 0.4227108434 | AWG6: 0.57 | AWJ6: 0.56 | AWM6: 0.3137735849 | AWP6: 0.2613245033 | AWS6: 0.3200503778 | AWV6: 0.43 | AWY6: 0.5607042254 | AXB6: 0.2988785047 | AXE6: 0.3880699088 | AXH6: 0.5863333333 | AXK6: 0.4233727811 | AXN6: 0.3137735849 | AXQ6: 0.229611399 | AXT6: 0.6018072289 | AXW6: 0.3424769887 | AXZ6: 0.3942653061 | AYC6: 0.3424596202 | AYF6: 0.2910869565 | AYI6: 0.3051265823 | AYL6: 0.5665384615 | AYO6: 0.58 | AYR6: 0.3040816327 | AYU6: 0.5102869757 | AYX6: 0.3009004739 | AZA6: 0.3187292818 | AZD6: 0.0979004329 | AZG6: 0.3853846154 | AZJ6: 0.3851724138 | AZM6: 0.2565653495 | AZP6: 0.3793877551 | AZS6: 0.5034042553 | AZV6: 0.3408137365 | AZY6: 0.3710691824 | BAB6: 0.4874384395 | BAE6: 0.3531967213 | BAH6: 0.5839583333 | BAK6: 0.4516666667 | BAN6: 0.584796748 | BAQ6: 0.3615957447 | BAT6: 0.1664295875 | BAW6: 0.3299121107 | BAZ6: 0.6272714487 | BBC6: -0.03164658635 | BBF6: -0.1519230769 | BBI6: 0.375308642 | BBL6: 0.3572489083 | BBO6: 0.5697909408 | BBR6: 0.2888888889 | BBU6: 0.2423809524 | BBX6: 0.4278666667 | BCA6: 0.3773333333 | BCD6: 0.5033591731 | BCG6: 0.3360752688 | BCJ6: 0.3990740741 | BCM6: 0.3074074074 | BCP6: 0.3034614613 | BCS6: 0.3737560159 | BCV6: 0.3991566265 | BCY6: 0.3789285714 | BDB6: 0.4770353982 | BDE6: 0.1261437908 | BDH6: 0.5773913043 | BDK6: 0.56 | BDN6: 0.493877551 | BDQ6: 0.3136144578 | BDT6: 0.4277586207 | BDW6: 0.3170426829 | BDZ6: 0.2230813362 | BEC6: 0.3806701031 | BEF6: 0.4295918367 | BEI6: 0.3779069767 | BEL6: 0.5892618747 | BEO6: 0.4133333333 | BER6: 0.2955700326 | BEU6: 0.07403969819 | BEX6: 0.2047215686 | BFA6: 0.3985611511 | BFD6: 0.5260416667 | BFG6: 0.4277142857 | BFJ6: 0.2831467348 | BFM6: 0.6111029412 | BFP6: 0.4078804348 | BFS6: 0.3768421053 | BFV6: 0.3847368421 | BFY6: 0.4119569396 | BGB6: 0.3233898305 | BGE6: 0.4348559671 | BGH6: 0.5604347826 | BGK6: 0.35 | BGN6: 0.3200503778 | BGQ6: 0.255708502 | BGT6: 0.4302670623 | BGW6: 0.4791183879
C7: 3 | D7: 0.46 | E7: 0.7 | H7: 0 | I7: 0 | K7: 分 散：=VER（セル範囲) | M7: =VAR(D5:D1304) -> 8.766147373 | N7: =VAR(E5:E1304) -> 6.112692314 | O7: =VAR(F5:F1304) ->  | P7: =VAR(G5:G1304) ->  | Q7: CV | R7: =R6/X1m -> 0 | S7: =S6/X1m -> 0 | U7: =U6+CEILING((_MAX1-_MIN1)/階級数,0.01) -> 3.82 | V7: 40 | W7: =V7-V6 -> 18 | X7: =X6+CEILING((_MAX2-_MIN2)/階級数,0.01) -> 3.22 | Y7: 27 | Z7: =Y7-Y6 -> 10 | AB7: serp | AC7: =(AC6-AC5)/150 -> 0.09663946875 | AD7: -4.117257436 | AE7: -1.17076906 | AF7: -2.584771704 | AG7: 0.8466586347 | AH7: =(AH6-AH5)/150 ->  | AN7: 45 | AO7: 49 | AS7: =IF(D7<>"",(D7+E7)/2,"") -> 0.58 | AT7: 0.24 | AV7: 0.58 | AW7: 0.24 | AY7: ↑ rank ブートストラップ用に使用 | BA7: 平均X・Y= | BB7: =AVERAGE(BB11:BB511) -> 3.145490196 | BC7: =AVERAGE(BC11:BC511) -> 3.685882353 | BE7: =AVERAGE(BE11:BE511) -> 2.23254902 | BF7: =AVERAGE(BF11:BF511) -> 2.990392157 | BH7: =AVERAGE(BH11:BH511) -> 2.580392157 | BI7: =AVERAGE(BI11:BI511) -> 3.295490196 | BK7: =AVERAGE(BK11:BK511) -> 2.455882353 | BL7: =AVERAGE(BL11:BL511) -> 3.366078431 | BN7: =AVERAGE(BN11:BN511) -> 2.860196078 | BO7: =AVERAGE(BO11:BO511) -> 3.41 | BQ7: =AVERAGE(BQ11:BQ511) -> 2.534313725 | BR7: =AVERAGE(BR11:BR511) -> 3.139411765 | BT7: =AVERAGE(BT11:BT511) -> 2.432156863 | BU7: =AVERAGE(BU11:BU511) -> 3.374117647 | BW7: =AVERAGE(BW11:BW511) -> 2.373333333 | BX7: =AVERAGE(BX11:BX511) -> 2.990784314 | BZ7: =AVERAGE(BZ11:BZ511) -> 3.147254902 | CA7: =AVERAGE(CA11:CA511) -> 3.366078431 | CC7: =AVERAGE(CC11:CC511) -> 2.519411765 | CD7: =AVERAGE(CD11:CD511) -> 3.012352941 | CF7: =AVERAGE(CF11:CF511) -> 3.301176471 | CG7: =AVERAGE(CG11:CG511) -> 3.869411765 | CI7: =AVERAGE(CI11:CI511) -> 2.268627451 | CJ7: =AVERAGE(CJ11:CJ511) -> 2.931176471 | CL7: =AVERAGE(CL11:CL511) -> 3.038823529 | CM7: =AVERAGE(CM11:CM511) -> 3.563137255 | CO7: =AVERAGE(CO11:CO511) -> 2.46745098 | CP7: =AVERAGE(CP11:CP511) -> 3.061568627 | CR7: =AVERAGE(CR11:CR511) -> 2.893333333 | CS7: =AVERAGE(CS11:CS511) -> 3.572156863 | CU7: =AVERAGE(CU11:CU511) -> 2.891372549 | CV7: =AVERAGE(CV11:CV511) -> 3.380392157 | CX7: =AVERAGE(CX11:CX511) -> 2.719803922 | CY7: =AVERAGE(CY11:CY511) -> 3.29372549 | DA7: =AVERAGE(DA11:DA511) -> 2.796666667 | DB7: =AVERAGE(DB11:DB511) -> 3.342352941 | DD7: =AVERAGE(DD11:DD511) -> 2.275882353 | DE7: =AVERAGE(DE11:DE511) -> 3.021764706 | DG7: =AVERAGE(DG11:DG511) -> 2.98 | DH7: =AVERAGE(DH11:DH511) -> 3.418823529 | DJ7: =AVERAGE(DJ11:DJ511) -> 2.180196078 | DK7: =AVERAGE(DK11:DK511) -> 2.862352941 | DM7: =AVERAGE(DM11:DM511) -> 2.572745098 | DN7: =AVERAGE(DN11:DN511) -> 3.359411765 | DP7: =AVERAGE(DP11:DP511) -> 2.485294118 | DQ7: =AVERAGE(DQ11:DQ511) -> 2.959411765 | DS7: =AVERAGE(DS11:DS511) -> 2.764313725 | DT7: =AVERAGE(DT11:DT511) -> 3.212352941 | DV7: =AVERAGE(DV11:DV511) -> 2.789803922 | DW7: =AVERAGE(DW11:DW511) -> 3.319607843 | DY7: =AVERAGE(DY11:DY511) -> 3.004117647 | DZ7: =AVERAGE(DZ11:DZ511) -> 3.735686275 | EB7: =AVERAGE(EB11:EB511) -> 2.424901961 | EC7: =AVERAGE(EC11:EC511) -> 3.364313725 | EE7: =AVERAGE(EE11:EE511) -> 3.097843137 | EF7: =AVERAGE(EF11:EF511) -> 3.74254902 | EH7: =AVERAGE(EH11:EH511) -> 3.994705882 | EI7: =AVERAGE(EI11:EI511) -> 4.246666667 | EK7: =AVERAGE(EK11:EK511) -> 2.803333333 | EL7: =AVERAGE(EL11:EL511) -> 3.343529412 | EN7: =AVERAGE(EN11:EN511) -> 2.896862745 | EO7: =AVERAGE(EO11:EO511) -> 3.527647059 | EQ7: =AVERAGE(EQ11:EQ511) -> 2.834313725 | ER7: =AVERAGE(ER11:ER511) -> 3.598823529 | ET7: =AVERAGE(ET11:ET511) -> 2.992352941 | EU7: =AVERAGE(EU11:EU511) -> 3.267647059 | EW7: =AVERAGE(EW11:EW511) -> 3.256078431 | EX7: =AVERAGE(EX11:EX511) -> 3.60627451 | EZ7: =AVERAGE(EZ11:EZ511) -> 2.605294118 | FA7: =AVERAGE(FA11:FA511) -> 3.012156863 | FC7: =AVERAGE(FC11:FC511) -> 2.392352941 | FD7: =AVERAGE(FD11:FD511) -> 3.070784314 | FF7: =AVERAGE(FF11:FF511) -> 3.072156863 | FG7: =AVERAGE(FG11:FG511) -> 3.752745098 | FI7: =AVERAGE(FI11:FI511) -> 2.450980392 | FJ7: =AVERAGE(FJ11:FJ511) -> 3.008039216 | FL7: =AVERAGE(FL11:FL511) -> 2.670784314 | FM7: =AVERAGE(FM11:FM511) -> 3.352156863 | FO7: =AVERAGE(FO11:FO511) -> 2.539019608 | FP7: =AVERAGE(FP11:FP511) -> 3.490392157 | FR7: =AVERAGE(FR11:FR511) -> 2.650392157 | FS7: =AVERAGE(FS11:FS511) -> 3.039019608 | FU7: =AVERAGE(FU11:FU511) -> 2.744313725 | FV7: =AVERAGE(FV11:FV511) -> 3.450392157 | FX7: =AVERAGE(FX11:FX511) -> 3.951372549 | FY7: =AVERAGE(FY11:FY511) -> 4.176862745 | GA7: =AVERAGE(GA11:GA511) -> 2.709019608 | GB7: =AVERAGE(GB11:GB511) -> 3.238431373 | GD7: =AVERAGE(GD11:GD511) -> 3.126470588 | GE7: =AVERAGE(GE11:GE511) -> 3.348431373 | GG7: =AVERAGE(GG11:GG511) -> 2.418039216 | GH7: =AVERAGE(GH11:GH511) -> 3.266862745 | GJ7: =AVERAGE(GJ11:GJ511) -> 2.505490196 | GK7: =AVERAGE(GK11:GK511) -> 3.131568627 | GM7: =AVERAGE(GM11:GM511) -> 3.171568627 | GN7: =AVERAGE(GN11:GN511) -> 3.650588235 | GP7: =AVERAGE(GP11:GP511) -> 3.440196078 | GQ7: =AVERAGE(GQ11:GQ511) -> 3.875294118 | GS7: =AVERAGE(GS11:GS511) -> 2.590588235 | GT7: =AVERAGE(GT11:GT511) -> 3.331568627 | GV7: =AVERAGE(GV11:GV511) -> 3.086862745 | GW7: =AVERAGE(GW11:GW511) -> 3.738823529 | GY7: =AVERAGE(GY11:GY511) -> 3.716078431 | GZ7: =AVERAGE(GZ11:GZ511) -> 4.17627451 | HB7: =AVERAGE(HB11:HB511) -> 3.185490196 | HC7: =AVERAGE(HC11:HC511) -> 3.75745098 | HE7: =AVERAGE(HE11:HE511) -> 2.83 | HF7: =AVERAGE(HF11:HF511) -> 3.357254902 | HH7: =AVERAGE(HH11:HH511) -> 2.6 | HI7: =AVERAGE(HI11:HI511) -> 3.320196078 | HK7: =AVERAGE(HK11:HK511) -> 2.763529412 | HL7: =AVERAGE(HL11:HL511) -> 3.341764706 | HN7: =AVERAGE(HN11:HN511) -> 2.534313725 | HO7: =AVERAGE(HO11:HO511) -> 3.203137255 | HQ7: =AVERAGE(HQ11:HQ511) -> 3.216666667 | HR7: =AVERAGE(HR11:HR511) -> 3.865490196 | HT7: =AVERAGE(HT11:HT511) -> 2.895098039 | HU7: =AVERAGE(HU11:HU511) -> 3.462941176 | HW7: =AVERAGE(HW11:HW511) -> 2.794313725 | HX7: =AVERAGE(HX11:HX511) -> 3.25627451 | HZ7: =AVERAGE(HZ11:HZ511) -> 2.876078431 | IA7: =AVERAGE(IA11:IA511) -> 3.582745098 | IC7: =AVERAGE(IC11:IC511) -> 2.662156863 | ID7: =AVERAGE(ID11:ID511) -> 3.314901961 | IF7: =AVERAGE(IF11:IF511) -> 2.990784314 | IG7: =AVERAGE(IG11:IG511) -> 3.592941176 | II7: =AVERAGE(II11:II511) -> 2.936078431 | IJ7: =AVERAGE(IJ11:IJ511) -> 3.358823529 | IL7: =AVERAGE(IL11:IL511) -> 4.129411765 | IM7: =AVERAGE(IM11:IM511) -> 4.14745098 | IO7: =AVERAGE(IO11:IO511) -> 3.248235294 | IP7: =AVERAGE(IP11:IP511) -> 3.488431373 | IR7: =AVERAGE(IR11:IR511) -> 3.074117647 | IS7: =AVERAGE(IS11:IS511) -> 3.450588235 | IU7: =AVERAGE(IU11:IU511) -> 2.149803922 | IV7: =AVERAGE(IV11:IV511) -> 2.710392157 | IX7: =AVERAGE(IX11:IX511) -> 3.316078431 | IY7: =AVERAGE(IY11:IY511) -> 3.731372549 | JA7: =AVERAGE(JA11:JA511) -> 3.120588235 | JB7: =AVERAGE(JB11:JB511) -> 3.75254902 | JD7: =AVERAGE(JD11:JD511) -> 2.954901961 | JE7: =AVERAGE(JE11:JE511) -> 3.433333333 | JG7: =AVERAGE(JG11:JG511) -> 2.833137255 | JH7: =AVERAGE(JH11:JH511) -> 3.39254902 | JJ7: =AVERAGE(JJ11:JJ511) -> 2.604705882 | JK7: =AVERAGE(JK11:JK511) -> 3.243137255 | JM7: =AVERAGE(JM11:JM511) -> 2.454705882 | JN7: =AVERAGE(JN11:JN511) -> 3.121176471 | JP7: =AVERAGE(JP11:JP511) -> 3.359215686 | JQ7: =AVERAGE(JQ11:JQ511) -> 3.902745098 | JS7: =AVERAGE(JS11:JS511) -> 2.965098039 | JT7: =AVERAGE(JT11:JT511) -> 3.545490196 | JV7: =AVERAGE(JV11:JV511) -> 2.661764706 | JW7: =AVERAGE(JW11:JW511) -> 3.248235294 | JY7: =AVERAGE(JY11:JY511) -> 3.571372549 | JZ7: =AVERAGE(JZ11:JZ511) -> 3.871176471 | KB7: =AVERAGE(KB11:KB511) -> 3.087254902 | KC7: =AVERAGE(KC11:KC511) -> 3.633529412 | KE7: =AVERAGE(KE11:KE511) -> 2.700980392 | KF7: =AVERAGE(KF11:KF511) -> 3.396666667 | KH7: =AVERAGE(KH11:KH511) -> 2.737647059 | KI7: =AVERAGE(KI11:KI511) -> 3.440196078 | KK7: =AVERAGE(KK11:KK511) -> 2.274705882 | KL7: =AVERAGE(KL11:KL511) -> 2.860196078 | KN7: =AVERAGE(KN11:KN511) -> 3.064117647 | KO7: =AVERAGE(KO11:KO511) -> 3.551568627 | KQ7: =AVERAGE(KQ11:KQ511) -> 2.879215686 | KR7: =AVERAGE(KR11:KR511) -> 3.615686275 | KT7: =AVERAGE(KT11:KT511) -> 2.553137255 | KU7: =AVERAGE(KU11:KU511) -> 3.239607843 | KW7: =AVERAGE(KW11:KW511) -> 2.389607843 | KX7: =AVERAGE(KX11:KX511) -> 3.033921569 | KZ7: =AVERAGE(KZ11:KZ511) -> 3.162941176 | LA7: =AVERAGE(LA11:LA511) -> 3.881372549 | LC7: =AVERAGE(LC11:LC511) -> 2.464117647 | LD7: =AVERAGE(LD11:LD511) -> 3.060980392 | LF7: =AVERAGE(LF11:LF511) -> 2.513921569 | LG7: =AVERAGE(LG11:LG511) -> 3.326862745 | LI7: =AVERAGE(LI11:LI511) -> 3.183137255 | LJ7: =AVERAGE(LJ11:LJ511) -> 3.743333333 | LL7: =AVERAGE(LL11:LL511) -> 2.619215686 | LM7: =AVERAGE(LM11:LM511) -> 3.13745098 | LO7: =AVERAGE(LO11:LO511) -> 3.307843137 | LP7: =AVERAGE(LP11:LP511) -> 3.618823529 | LR7: =AVERAGE(LR11:LR511) -> 1.94627451 | LS7: =AVERAGE(LS11:LS511) -> 2.584901961 | LU7: =AVERAGE(LU11:LU511) -> 2.921764706 | LV7: =AVERAGE(LV11:LV511) -> 3.475490196 | LX7: =AVERAGE(LX11:LX511) -> 2.248431373 | LY7: =AVERAGE(LY11:LY511) -> 2.86 | MA7: =AVERAGE(MA11:MA511) -> 2.47372549 | MB7: =AVERAGE(MB11:MB511) -> 3.550980392 | MD7: =AVERAGE(MD11:MD511) -> 3.02627451 | ME7: =AVERAGE(ME11:ME511) -> 3.423921569 | MG7: =AVERAGE(MG11:MG511) -> 1.995294118 | MH7: =AVERAGE(MH11:MH511) -> 2.691372549 | MJ7: =AVERAGE(MJ11:MJ511) -> 2.176666667 | MK7: =AVERAGE(MK11:MK511) -> 2.719411765 | MM7: =AVERAGE(MM11:MM511) -> 3.731960784 | MN7: =AVERAGE(MN11:MN511) -> 4.247058824 | MP7: =AVERAGE(MP11:MP511) -> 3.164901961 | MQ7: =AVERAGE(MQ11:MQ511) -> 3.616862745 | MS7: =AVERAGE(MS11:MS511) -> 3.329411765 | MT7: =AVERAGE(MT11:MT511) -> 3.928431373 | MV7: =AVERAGE(MV11:MV511) -> 3.113529412 | MW7: =AVERAGE(MW11:MW511) -> 3.655882353 | MY7: =AVERAGE(MY11:MY511) -> 2.400980392 | MZ7: =AVERAGE(MZ11:MZ511) -> 3.038235294 | NB7: =AVERAGE(NB11:NB511) -> 2.48254902 | NC7: =AVERAGE(NC11:NC511) -> 3.338235294 | NE7: =AVERAGE(NE11:NE511) -> 3.104313725 | NF7: =AVERAGE(NF11:NF511) -> 3.483333333 | NH7: =AVERAGE(NH11:NH511) -> 2.746078431 | NI7: =AVERAGE(NI11:NI511) -> 3.217058824 | NK7: =AVERAGE(NK11:NK511) -> 2.86 | NL7: =AVERAGE(NL11:NL511) -> 3.553921569 | NN7: =AVERAGE(NN11:NN511) -> 3.439019608 | NO7: =AVERAGE(NO11:NO511) -> 3.908627451 | NQ7: =AVERAGE(NQ11:NQ511) -> 2.978039216 | NR7: =AVERAGE(NR11:NR511) -> 3.417647059 | NT7: =AVERAGE(NT11:NT511) -> 2.302352941 | NU7: =AVERAGE(NU11:NU511) -> 2.987058824 | NW7: =AVERAGE(NW11:NW511) -> 2.051176471 | NX7: =AVERAGE(NX11:NX511) -> 2.624509804 | NZ7: =AVERAGE(NZ11:NZ511) -> 3.20254902 | OA7: =AVERAGE(OA11:OA511) -> 3.601960784 | OC7: =AVERAGE(OC11:OC511) -> 2.410196078 | OD7: =AVERAGE(OD11:OD511) -> 2.928039216 | OF7: =AVERAGE(OF11:OF511) -> 2.932352941 | OG7: =AVERAGE(OG11:OG511) -> 3.596666667 | OI7: =AVERAGE(OI11:OI511) -> 2.989411765 | OJ7: =AVERAGE(OJ11:OJ511) -> 3.52254902 | OL7: =AVERAGE(OL11:OL511) -> 3.376470588 | OM7: =AVERAGE(OM11:OM511) -> 3.601372549 | OO7: =AVERAGE(OO11:OO511) -> 3.074313725 | OP7: =AVERAGE(OP11:OP511) -> 3.652156863 | OR7: =AVERAGE(OR11:OR511) -> 3.210392157 | OS7: =AVERAGE(OS11:OS511) -> 3.857647059 | OU7: =AVERAGE(OU11:OU511) -> 3.035882353 | OV7: =AVERAGE(OV11:OV511) -> 3.615686275 | OX7: =AVERAGE(OX11:OX511) -> 2.458039216 | OY7: =AVERAGE(OY11:OY511) -> 3.281764706 | PA7: =AVERAGE(PA11:PA511) -> 2.610196078 | PB7: =AVERAGE(PB11:PB511) -> 3.343529412 | PD7: =AVERAGE(PD11:PD511) -> 2.332941176 | PE7: =AVERAGE(PE11:PE511) -> 2.866078431 | PG7: =AVERAGE(PG11:PG511) -> 3.001960784 | PH7: =AVERAGE(PH11:PH511) -> 3.291960784 | PJ7: =AVERAGE(PJ11:PJ511) -> 2.33254902 | PK7: =AVERAGE(PK11:PK511) -> 2.872941176 | PM7: =AVERAGE(PM11:PM511) -> 2.473921569 | PN7: =AVERAGE(PN11:PN511) -> 3.194901961 | PP7: =AVERAGE(PP11:PP511) -> 3.104509804 | PQ7: =AVERAGE(PQ11:PQ511) -> 3.660588235 | PS7: =AVERAGE(PS11:PS511) -> 3.120392157 | PT7: =AVERAGE(PT11:PT511) -> 3.501764706 | PV7: =AVERAGE(PV11:PV511) -> 2.345098039 | PW7: =AVERAGE(PW11:PW511) -> 3.118431373 | PY7: =AVERAGE(PY11:PY511) -> 2.572941176 | PZ7: =AVERAGE(PZ11:PZ511) -> 3.031764706 | QB7: =AVERAGE(QB11:QB511) -> 2.761960784 | QC7: =AVERAGE(QC11:QC511) -> 3.353333333 | QE7: =AVERAGE(QE11:QE511) -> 2.814901961 | QF7: =AVERAGE(QF11:QF511) -> 3.51254902 | QH7: =AVERAGE(QH11:QH511) -> 3.471176471 | QI7: =AVERAGE(QI11:QI511) -> 4.019607843 | QK7: =AVERAGE(QK11:QK511) -> 3.025098039 | QL7: =AVERAGE(QL11:QL511) -> 3.413137255 | QN7: =AVERAGE(QN11:QN511) -> 2.919215686 | QO7: =AVERAGE(QO11:QO511) -> 3.185882353 | QQ7: =AVERAGE(QQ11:QQ511) -> 2.449215686 | QR7: =AVERAGE(QR11:QR511) -> 3.091960784 | QT7: =AVERAGE(QT11:QT511) -> 2.882941176 | QU7: =AVERAGE(QU11:QU511) -> 3.316470588 | QW7: =AVERAGE(QW11:QW511) -> 2.993529412 | QX7: =AVERAGE(QX11:QX511) -> 3.589607843 | QZ7: =AVERAGE(QZ11:QZ511) -> 2.536666667 | RA7: =AVERAGE(RA11:RA511) -> 3.08 | RC7: =AVERAGE(RC11:RC511) -> 2.526078431 | RD7: =AVERAGE(RD11:RD511) -> 3.224313725 | RF7: =AVERAGE(RF11:RF511) -> 3.662941176 | RG7: =AVERAGE(RG11:RG511) -> 3.809019608 | RI7: =AVERAGE(RI11:RI511) -> 2.049215686 | RJ7: =AVERAGE(RJ11:RJ511) -> 2.808235294 | RL7: =AVERAGE(RL11:RL511) -> 2.837647059 | RM7: =AVERAGE(RM11:RM511) -> 3.517254902 | RO7: =AVERAGE(RO11:RO511) -> 2.321372549 | RP7: =AVERAGE(RP11:RP511) -> 3.166666667 | RR7: =AVERAGE(RR11:RR511) -> 2.086078431 | RS7: =AVERAGE(RS11:RS511) -> 2.895098039 | RU7: =AVERAGE(RU11:RU511) -> 2.610588235 | RV7: =AVERAGE(RV11:RV511) -> 3.062941176 | RX7: =AVERAGE(RX11:RX511) -> 3.35627451 | RY7: =AVERAGE(RY11:RY511) -> 3.805686275 | SA7: =AVERAGE(SA11:SA511) -> 2.799803922 | SB7: =AVERAGE(SB11:SB511) -> 3.421372549 | SD7: =AVERAGE(SD11:SD511) -> 2.146666667 | SE7: =AVERAGE(SE11:SE511) -> 2.83627451 | SG7: =AVERAGE(SG11:SG511) -> 2.356470588 | SH7: =AVERAGE(SH11:SH511) -> 2.831568627 | SJ7: =AVERAGE(SJ11:SJ511) -> 2.418431373 | SK7: =AVERAGE(SK11:SK511) -> 3.016078431 | SM7: =AVERAGE(SM11:SM511) -> 2.770980392 | SN7: =AVERAGE(SN11:SN511) -> 3.371764706 | SP7: =AVERAGE(SP11:SP511) -> 2.665686275 | SQ7: =AVERAGE(SQ11:SQ511) -> 3.158039216 | SS7: =AVERAGE(SS11:SS511) -> 2.923921569 | ST7: =AVERAGE(ST11:ST511) -> 3.455686275 | SV7: =AVERAGE(SV11:SV511) -> 2.692352941 | SW7: =AVERAGE(SW11:SW511) -> 3.29254902 | SY7: =AVERAGE(SY11:SY511) -> 3.300588235 | SZ7: =AVERAGE(SZ11:SZ511) -> 3.564901961 | TB7: =AVERAGE(TB11:TB511) -> 2.574901961 | TC7: =AVERAGE(TC11:TC511) -> 3.037843137 | TE7: =AVERAGE(TE11:TE511) -> 3.412352941 | TF7: =AVERAGE(TF11:TF511) -> 3.889019608 | TH7: =AVERAGE(TH11:TH511) -> 2.578823529 | TI7: =AVERAGE(TI11:TI511) -> 3.100392157 | TK7: =AVERAGE(TK11:TK511) -> 2.740784314 | TL7: =AVERAGE(TL11:TL511) -> 3.280196078 | TN7: =AVERAGE(TN11:TN511) -> 2.640392157 | TO7: =AVERAGE(TO11:TO511) -> 3.232352941 | TQ7: =AVERAGE(TQ11:TQ511) -> 2.914509804 | TR7: =AVERAGE(TR11:TR511) -> 3.606862745 | TT7: =AVERAGE(TT11:TT511) -> 3.203921569 | TU7: =AVERAGE(TU11:TU511) -> 3.600980392 | TW7: =AVERAGE(TW11:TW511) -> 2.916078431 | TX7: =AVERAGE(TX11:TX511) -> 3.618823529 | TZ7: =AVERAGE(TZ11:TZ511) -> 2.941176471 | UA7: =AVERAGE(UA11:UA511) -> 3.538627451 | UC7: =AVERAGE(UC11:UC511) -> 2.874117647 | UD7: =AVERAGE(UD11:UD511) -> 3.342745098 | UF7: =AVERAGE(UF11:UF511) -> 3.001960784 | UG7: =AVERAGE(UG11:UG511) -> 3.656666667 | UI7: =AVERAGE(UI11:UI511) -> 2.945686275 | UJ7: =AVERAGE(UJ11:UJ511) -> 3.740196078 | UL7: =AVERAGE(UL11:UL511) -> 3.240196078 | UM7: =AVERAGE(UM11:UM511) -> 3.597647059 | UO7: =AVERAGE(UO11:UO511) -> 2.955882353 | UP7: =AVERAGE(UP11:UP511) -> 3.518823529 | UR7: =AVERAGE(UR11:UR511) -> 1.917058824 | US7: =AVERAGE(US11:US511) -> 2.580588235 | UU7: =AVERAGE(UU11:UU511) -> 2.572745098 | UV7: =AVERAGE(UV11:UV511) -> 3.151568627 | UX7: =AVERAGE(UX11:UX511) -> 2.467843137 | UY7: =AVERAGE(UY11:UY511) -> 2.96627451 | VA7: =AVERAGE(VA11:VA511) -> 2.692352941 | VB7: =AVERAGE(VB11:VB511) -> 3.122745098 | VD7: =AVERAGE(VD11:VD511) -> 2.766862745 | VE7: =AVERAGE(VE11:VE511) -> 3.284313725 | VG7: =AVERAGE(VG11:VG511) -> 3.148823529 | VH7: =AVERAGE(VH11:VH511) -> 3.510784314 | VJ7: =AVERAGE(VJ11:VJ511) -> 2.19372549 | VK7: =AVERAGE(VK11:VK511) -> 2.685882353 | VM7: =AVERAGE(VM11:VM511) -> 2.834313725 | VN7: =AVERAGE(VN11:VN511) -> 3.158627451 | VP7: =AVERAGE(VP11:VP511) -> 2.438235294 | VQ7: =AVERAGE(VQ11:VQ511) -> 3.281764706 | VS7: =AVERAGE(VS11:VS511) -> 2.618823529 | VT7: =AVERAGE(VT11:VT511) -> 3.446666667 | VV7: =AVERAGE(VV11:VV511) -> 2.836666667 | VW7: =AVERAGE(VW11:VW511) -> 3.176078431 | VY7: =AVERAGE(VY11:VY511) -> 3.916666667 | VZ7: =AVERAGE(VZ11:VZ511) -> 4.328235294 | WB7: =AVERAGE(WB11:WB511) -> 2.608627451 | WC7: =AVERAGE(WC11:WC511) -> 3.191176471 | WE7: =AVERAGE(WE11:WE511) -> 3.102156863 | WF7: =AVERAGE(WF11:WF511) -> 3.922941176 | WH7: =AVERAGE(WH11:WH511) -> 2.253137255 | WI7: =AVERAGE(WI11:WI511) -> 3.148823529 | WK7: =AVERAGE(WK11:WK511) -> 3.324509804 | WL7: =AVERAGE(WL11:WL511) -> 3.734901961 | WN7: =AVERAGE(WN11:WN511) -> 3.524901961 | WO7: =AVERAGE(WO11:WO511) -> 3.739215686 | WQ7: =AVERAGE(WQ11:WQ511) -> 2.992745098 | WR7: =AVERAGE(WR11:WR511) -> 3.441960784 | WT7: =AVERAGE(WT11:WT511) -> 2.964117647 | WU7: =AVERAGE(WU11:WU511) -> 3.728235294 | WW7: =AVERAGE(WW11:WW511) -> 2.859019608 | WX7: =AVERAGE(WX11:WX511) -> 3.310588235 | WZ7: =AVERAGE(WZ11:WZ511) -> 2.39 | XA7: =AVERAGE(XA11:XA511) -> 3.103333333 | XC7: =AVERAGE(XC11:XC511) -> 2.754117647 | XD7: =AVERAGE(XD11:XD511) -> 3.34745098 | XF7: =AVERAGE(XF11:XF511) -> 3.754117647 | XG7: =AVERAGE(XG11:XG511) -> 3.87627451 | XI7: =AVERAGE(XI11:XI511) -> 2.32745098 | XJ7: =AVERAGE(XJ11:XJ511) -> 3.202156863 | XL7: =AVERAGE(XL11:XL511) -> 3.723333333 | XM7: =AVERAGE(XM11:XM511) -> 4.643529412 | XO7: =AVERAGE(XO11:XO511) -> 3.202352941 | XP7: =AVERAGE(XP11:XP511) -> 3.921176471 | XR7: =AVERAGE(XR11:XR511) -> 3.160392157 | XS7: =AVERAGE(XS11:XS511) -> 3.811176471 | XU7: =AVERAGE(XU11:XU511) -> 3.249411765 | XV7: =AVERAGE(XV11:XV511) -> 3.746078431 | XX7: =AVERAGE(XX11:XX511) -> 2.670784314 | XY7: =AVERAGE(XY11:XY511) -> 3.364901961 | YA7: =AVERAGE(YA11:YA511) -> 2.597843137 | YB7: =AVERAGE(YB11:YB511) -> 3.230392157 | YD7: =AVERAGE(YD11:YD511) -> 2.446078431 | YE7: =AVERAGE(YE11:YE511) -> 3.248039216 | YG7: =AVERAGE(YG11:YG511) -> 3.079607843 | YH7: =AVERAGE(YH11:YH511) -> 3.800980392 | YJ7: =AVERAGE(YJ11:YJ511) -> 2.920784314 | YK7: =AVERAGE(YK11:YK511) -> 3.550392157 | YM7: =AVERAGE(YM11:YM511) -> 2.540196078 | YN7: =AVERAGE(YN11:YN511) -> 3.26745098 | YP7: =AVERAGE(YP11:YP511) -> 2.228235294 | YQ7: =AVERAGE(YQ11:YQ511) -> 2.940392157 | YS7: =AVERAGE(YS11:YS511) -> 2.509019608 | YT7: =AVERAGE(YT11:YT511) -> 3.193921569 | YV7: =AVERAGE(YV11:YV511) -> 2.46 | YW7: =AVERAGE(YW11:YW511) -> 2.924117647 | YY7: =AVERAGE(YY11:YY511) -> 2.631176471 | YZ7: =AVERAGE(YZ11:YZ511) -> 3.036078431 | ZB7: =AVERAGE(ZB11:ZB511) -> 3.197254902 | ZC7: =AVERAGE(ZC11:ZC511) -> 3.547843137 | ZE7: =AVERAGE(ZE11:ZE511) -> 3.201568627 | ZF7: =AVERAGE(ZF11:ZF511) -> 3.702352941 | ZH7: =AVERAGE(ZH11:ZH511) -> 2.932745098 | ZI7: =AVERAGE(ZI11:ZI511) -> 3.854509804 | ZK7: =AVERAGE(ZK11:ZK511) -> 2.52745098 | ZL7: =AVERAGE(ZL11:ZL511) -> 3.100980392 | ZN7: =AVERAGE(ZN11:ZN511) -> 2.612156863 | ZO7: =AVERAGE(ZO11:ZO511) -> 3.382745098 | ZQ7: =AVERAGE(ZQ11:ZQ511) -> 2.983333333 | ZR7: =AVERAGE(ZR11:ZR511) -> 3.374313725 | ZT7: =AVERAGE(ZT11:ZT511) -> 3.002156863 | ZU7: =AVERAGE(ZU11:ZU511) -> 3.684509804 | ZW7: =AVERAGE(ZW11:ZW511) -> 3.371176471 | ZX7: =AVERAGE(ZX11:ZX511) -> 3.452941176 | ZZ7: =AVERAGE(ZZ11:ZZ511) -> 2.95372549 | AAA7: =AVERAGE(AAA11:AAA511) -> 3.388627451 | AAC7: =AVERAGE(AAC11:AAC511) -> 2.031960784 | AAD7: =AVERAGE(AAD11:AAD511) -> 2.59372549 | AAF7: =AVERAGE(AAF11:AAF511) -> 2.455490196 | AAG7: =AVERAGE(AAG11:AAG511) -> 3.173137255 | AAI7: =AVERAGE(AAI11:AAI511) -> 2.702352941 | AAJ7: =AVERAGE(AAJ11:AAJ511) -> 3.410588235 | AAL7: =AVERAGE(AAL11:AAL511) -> 3.48372549 | AAM7: =AVERAGE(AAM11:AAM511) -> 3.555882353 | AAO7: =AVERAGE(AAO11:AAO511) -> 2.471176471 | AAP7: =AVERAGE(AAP11:AAP511) -> 3.103921569 | AAR7: =AVERAGE(AAR11:AAR511) -> 2.930784314 | AAS7: =AVERAGE(AAS11:AAS511) -> 3.298431373 | AAU7: =AVERAGE(AAU11:AAU511) -> 2.696862745 | AAV7: =AVERAGE(AAV11:AAV511) -> 3.316862745 | AAX7: =AVERAGE(AAX11:AAX511) -> 2.852941176 | AAY7: =AVERAGE(AAY11:AAY511) -> 3.56254902 | ABA7: =AVERAGE(ABA11:ABA511) -> 3.515294118 | ABB7: =AVERAGE(ABB11:ABB511) -> 3.745686275 | ABD7: =AVERAGE(ABD11:ABD511) -> 2.966078431 | ABE7: =AVERAGE(ABE11:ABE511) -> 3.688627451 | ABG7: =AVERAGE(ABG11:ABG511) -> 2.691568627 | ABH7: =AVERAGE(ABH11:ABH511) -> 3.481176471 | ABJ7: =AVERAGE(ABJ11:ABJ511) -> 2.481372549 | ABK7: =AVERAGE(ABK11:ABK511) -> 3.365490196 | ABM7: =AVERAGE(ABM11:ABM511) -> 3.653921569 | ABN7: =AVERAGE(ABN11:ABN511) -> 3.914313725 | ABP7: =AVERAGE(ABP11:ABP511) -> 2.684509804 | ABQ7: =AVERAGE(ABQ11:ABQ511) -> 3.116666667 | ABS7: =AVERAGE(ABS11:ABS511) -> 2.728627451 | ABT7: =AVERAGE(ABT11:ABT511) -> 3.086666667 | ABV7: =AVERAGE(ABV11:ABV511) -> 2.750588235 | ABW7: =AVERAGE(ABW11:ABW511) -> 3.577254902 | ABY7: =AVERAGE(ABY11:ABY511) -> 2.812352941 | ABZ7: =AVERAGE(ABZ11:ABZ511) -> 3.62745098 | ACB7: =AVERAGE(ACB11:ACB511) -> 3.349607843 | ACC7: =AVERAGE(ACC11:ACC511) -> 3.726078431 | ACE7: =AVERAGE(ACE11:ACE511) -> 3.253137255 | ACF7: =AVERAGE(ACF11:ACF511) -> 3.771176471 | ACH7: =AVERAGE(ACH11:ACH511) -> 2.847254902 | ACI7: =AVERAGE(ACI11:ACI511) -> 3.483529412 | ACK7: =AVERAGE(ACK11:ACK511) -> 3.34254902 | ACL7: =AVERAGE(ACL11:ACL511) -> 3.889411765 | ACN7: =AVERAGE(ACN11:ACN511) -> 2.605490196 | ACO7: =AVERAGE(ACO11:ACO511) -> 3.223137255 | ACQ7: =AVERAGE(ACQ11:ACQ511) -> 3.131960784 | ACR7: =AVERAGE(ACR11:ACR511) -> 3.674117647 | ACT7: =AVERAGE(ACT11:ACT511) -> 2.767647059 | ACU7: =AVERAGE(ACU11:ACU511) -> 3.383333333 | ACW7: =AVERAGE(ACW11:ACW511) -> 2.236862745 | ACX7: =AVERAGE(ACX11:ACX511) -> 3.141176471 | ACZ7: =AVERAGE(ACZ11:ACZ511) -> 2.62627451 | ADA7: =AVERAGE(ADA11:ADA511) -> 3.387058824 | ADC7: =AVERAGE(ADC11:ADC511) -> 2.803921569 | ADD7: =AVERAGE(ADD11:ADD511) -> 3.215686275 | ADF7: =AVERAGE(ADF11:ADF511) -> 2.706078431 | ADG7: =AVERAGE(ADG11:ADG511) -> 3.156862745 | ADI7: =AVERAGE(ADI11:ADI511) -> 2.635098039 | ADJ7: =AVERAGE(ADJ11:ADJ511) -> 3.339215686 | ADL7: =AVERAGE(ADL11:ADL511) -> 3.260588235 | ADM7: =AVERAGE(ADM11:ADM511) -> 3.598627451 | ADO7: =AVERAGE(ADO11:ADO511) -> 2.759215686 | ADP7: =AVERAGE(ADP11:ADP511) -> 3.315686275 | ADR7: =AVERAGE(ADR11:ADR511) -> 2.907843137 | ADS7: =AVERAGE(ADS11:ADS511) -> 3.449411765 | ADU7: =AVERAGE(ADU11:ADU511) -> 1.869411765 | ADV7: =AVERAGE(ADV11:ADV511) -> 2.510980392 | ADX7: =AVERAGE(ADX11:ADX511) -> 3.301372549 | ADY7: =AVERAGE(ADY11:ADY511) -> 3.894509804 | AEA7: =AVERAGE(AEA11:AEA511) -> 2.704117647 | AEB7: =AVERAGE(AEB11:AEB511) -> 3.331960784 | AED7: =AVERAGE(AED11:AED511) -> 3.167647059 | AEE7: =AVERAGE(AEE11:AEE511) -> 3.608235294 | AEG7: =AVERAGE(AEG11:AEG511) -> 3.618627451 | AEH7: =AVERAGE(AEH11:AEH511) -> 4.258823529 | AEJ7: =AVERAGE(AEJ11:AEJ511) -> 2.487254902 | AEK7: =AVERAGE(AEK11:AEK511) -> 3.140980392 | AEM7: =AVERAGE(AEM11:AEM511) -> 2.217843137 | AEN7: =AVERAGE(AEN11:AEN511) -> 2.86372549 | AEP7: =AVERAGE(AEP11:AEP511) -> 2.768627451 | AEQ7: =AVERAGE(AEQ11:AEQ511) -> 3.297254902 | AES7: =AVERAGE(AES11:AES511) -> 2.341764706 | AET7: =AVERAGE(AET11:AET511) -> 2.859803922 | AEV7: =AVERAGE(AEV11:AEV511) -> 2.818627451 | AEW7: =AVERAGE(AEW11:AEW511) -> 3.345294118 | AEY7: =AVERAGE(AEY11:AEY511) -> 2.537058824 | AEZ7: =AVERAGE(AEZ11:AEZ511) -> 2.777647059 | AFB7: =AVERAGE(AFB11:AFB511) -> 3.426862745 | AFC7: =AVERAGE(AFC11:AFC511) -> 3.881372549 | AFE7: =AVERAGE(AFE11:AFE511) -> 2.850588235 | AFF7: =AVERAGE(AFF11:AFF511) -> 3.345882353 | AFH7: =AVERAGE(AFH11:AFH511) -> 2.464705882 | AFI7: =AVERAGE(AFI11:AFI511) -> 3.000196078 | AFK7: =AVERAGE(AFK11:AFK511) -> 2.890392157 | AFL7: =AVERAGE(AFL11:AFL511) -> 3.484901961 | AFN7: =AVERAGE(AFN11:AFN511) -> 2.289803922 | AFO7: =AVERAGE(AFO11:AFO511) -> 2.959803922 | AFQ7: =AVERAGE(AFQ11:AFQ511) -> 3.126666667 | AFR7: =AVERAGE(AFR11:AFR511) -> 3.469019608 | AFT7: =AVERAGE(AFT11:AFT511) -> 3.482745098 | AFU7: =AVERAGE(AFU11:AFU511) -> 3.978627451 | AFW7: =AVERAGE(AFW11:AFW511) -> 3.305098039 | AFX7: =AVERAGE(AFX11:AFX511) -> 3.931568627 | AFZ7: =AVERAGE(AFZ11:AFZ511) -> 2.481960784 | AGA7: =AVERAGE(AGA11:AGA511) -> 2.896862745 | AGC7: =AVERAGE(AGC11:AGC511) -> 2.415686275 | AGD7: =AVERAGE(AGD11:AGD511) -> 2.844901961 | AGF7: =AVERAGE(AGF11:AGF511) -> 2.876666667 | AGG7: =AVERAGE(AGG11:AGG511) -> 3.464705882 | AGI7: =AVERAGE(AGI11:AGI511) -> 2.987254902 | AGJ7: =AVERAGE(AGJ11:AGJ511) -> 3.460392157 | AGL7: =AVERAGE(AGL11:AGL511) -> 2.698431373 | AGM7: =AVERAGE(AGM11:AGM511) -> 3.198039216 | AGO7: =AVERAGE(AGO11:AGO511) -> 3.188823529 | AGP7: =AVERAGE(AGP11:AGP511) -> 3.858823529 | AGR7: =AVERAGE(AGR11:AGR511) -> 2.980196078 | AGS7: =AVERAGE(AGS11:AGS511) -> 3.423529412 | AGU7: =AVERAGE(AGU11:AGU511) -> 2.540980392 | AGV7: =AVERAGE(AGV11:AGV511) -> 3.486666667 | AGX7: =AVERAGE(AGX11:AGX511) -> 2.959215686 | AGY7: =AVERAGE(AGY11:AGY511) -> 3.618627451 | AHA7: =AVERAGE(AHA11:AHA511) -> 2.801960784 | AHB7: =AVERAGE(AHB11:AHB511) -> 3.340784314 | AHD7: =AVERAGE(AHD11:AHD511) -> 2.136862745 | AHE7: =AVERAGE(AHE11:AHE511) -> 2.731372549 | AHG7: =AVERAGE(AHG11:AHG511) -> 3.065294118 | AHH7: =AVERAGE(AHH11:AHH511) -> 3.490588235 | AHJ7: =AVERAGE(AHJ11:AHJ511) -> 2.995098039 | AHK7: =AVERAGE(AHK11:AHK511) -> 3.344901961 | AHM7: =AVERAGE(AHM11:AHM511) -> 2.87627451 | AHN7: =AVERAGE(AHN11:AHN511) -> 3.409607843 | AHP7: =AVERAGE(AHP11:AHP511) -> 2.432352941 | AHQ7: =AVERAGE(AHQ11:AHQ511) -> 3.084705882 | AHS7: =AVERAGE(AHS11:AHS511) -> 3.130196078 | AHT7: =AVERAGE(AHT11:AHT511) -> 3.470588235 | AHV7: =AVERAGE(AHV11:AHV511) -> 3.188823529 | AHW7: =AVERAGE(AHW11:AHW511) -> 3.858039216 | AHY7: =AVERAGE(AHY11:AHY511) -> 3.918235294 | AHZ7: =AVERAGE(AHZ11:AHZ511) -> 4.11627451 | AIB7: =AVERAGE(AIB11:AIB511) -> 3.054509804 | AIC7: =AVERAGE(AIC11:AIC511) -> 3.546470588 | AIE7: =AVERAGE(AIE11:AIE511) -> 2.116470588 | AIF7: =AVERAGE(AIF11:AIF511) -> 2.835294118 | AIH7: =AVERAGE(AIH11:AIH511) -> 3.422156863 | AII7: =AVERAGE(AII11:AII511) -> 3.941176471 | AIK7: =AVERAGE(AIK11:AIK511) -> 2.515490196 | AIL7: =AVERAGE(AIL11:AIL511) -> 3.107647059 | AIN7: =AVERAGE(AIN11:AIN511) -> 2.288235294 | AIO7: =AVERAGE(AIO11:AIO511) -> 3.152745098 | AIQ7: =AVERAGE(AIQ11:AIQ511) -> 2.889803922 | AIR7: =AVERAGE(AIR11:AIR511) -> 3.555686275 | AIT7: =AVERAGE(AIT11:AIT511) -> 2.657254902 | AIU7: =AVERAGE(AIU11:AIU511) -> 3.307254902 | AIW7: =AVERAGE(AIW11:AIW511) -> 2.226078431 | AIX7: =AVERAGE(AIX11:AIX511) -> 2.98745098 | AIZ7: =AVERAGE(AIZ11:AIZ511) -> 2.708627451 | AJA7: =AVERAGE(AJA11:AJA511) -> 3.43627451 | AJC7: =AVERAGE(AJC11:AJC511) -> 2.823921569 | AJD7: =AVERAGE(AJD11:AJD511) -> 3.444117647 | AJF7: =AVERAGE(AJF11:AJF511) -> 3.046078431 | AJG7: =AVERAGE(AJG11:AJG511) -> 3.542352941 | AJI7: =AVERAGE(AJI11:AJI511) -> 2.809411765 | AJJ7: =AVERAGE(AJJ11:AJJ511) -> 3.390980392 | AJL7: =AVERAGE(AJL11:AJL511) -> 2.887647059 | AJM7: =AVERAGE(AJM11:AJM511) -> 3.614117647 | AJO7: =AVERAGE(AJO11:AJO511) -> 2.731960784 | AJP7: =AVERAGE(AJP11:AJP511) -> 3.270588235 | AJR7: =AVERAGE(AJR11:AJR511) -> 2.526862745 | AJS7: =AVERAGE(AJS11:AJS511) -> 3.415294118 | AJU7: =AVERAGE(AJU11:AJU511) -> 2.791176471 | AJV7: =AVERAGE(AJV11:AJV511) -> 3.305098039 | AJX7: =AVERAGE(AJX11:AJX511) -> 2.759019608 | AJY7: =AVERAGE(AJY11:AJY511) -> 3.379019608 | AKA7: =AVERAGE(AKA11:AKA511) -> 2.719803922 | AKB7: =AVERAGE(AKB11:AKB511) -> 3.217843137 | AKD7: =AVERAGE(AKD11:AKD511) -> 2.462941176 | AKE7: =AVERAGE(AKE11:AKE511) -> 3.041372549 | AKG7: =AVERAGE(AKG11:AKG511) -> 2.444901961 | AKH7: =AVERAGE(AKH11:AKH511) -> 3.25745098 | AKJ7: =AVERAGE(AKJ11:AKJ511) -> 2.729215686 | AKK7: =AVERAGE(AKK11:AKK511) -> 3.420588235 | AKM7: =AVERAGE(AKM11:AKM511) -> 2.84627451 | AKN7: =AVERAGE(AKN11:AKN511) -> 3.317843137 | AKP7: =AVERAGE(AKP11:AKP511) -> 3.085686275 | AKQ7: =AVERAGE(AKQ11:AKQ511) -> 3.523137255 | AKS7: =AVERAGE(AKS11:AKS511) -> 2.635686275 | AKT7: =AVERAGE(AKT11:AKT511) -> 3.38372549 | AKV7: =AVERAGE(AKV11:AKV511) -> 2.679803922 | AKW7: =AVERAGE(AKW11:AKW511) -> 3.500980392 | AKY7: =AVERAGE(AKY11:AKY511) -> 2.601568627 | AKZ7: =AVERAGE(AKZ11:AKZ511) -> 3.365882353 | ALB7: =AVERAGE(ALB11:ALB511) -> 2.644705882 | ALC7: =AVERAGE(ALC11:ALC511) -> 3.11745098 | ALE7: =AVERAGE(ALE11:ALE511) -> 3.31745098 | ALF7: =AVERAGE(ALF11:ALF511) -> 3.474901961 | ALH7: =AVERAGE(ALH11:ALH511) -> 3.093137255 | ALI7: =AVERAGE(ALI11:ALI511) -> 3.393137255 | ALK7: =AVERAGE(ALK11:ALK511) -> 2.629411765 | ALL7: =AVERAGE(ALL11:ALL511) -> 3.203333333 | ALN7: =AVERAGE(ALN11:ALN511) -> 3.130588235 | ALO7: =AVERAGE(ALO11:ALO511) -> 3.573921569 | ALQ7: =AVERAGE(ALQ11:ALQ511) -> 3.017254902 | ALR7: =AVERAGE(ALR11:ALR511) -> 3.535882353 | ALT7: =AVERAGE(ALT11:ALT511) -> 3.420588235 | ALU7: =AVERAGE(ALU11:ALU511) -> 3.610392157 | ALW7: =AVERAGE(ALW11:ALW511) -> 2.590392157 | ALX7: =AVERAGE(ALX11:ALX511) -> 2.842156863 | ALZ7: =AVERAGE(ALZ11:ALZ511) -> 2.865686275 | AMA7: =AVERAGE(AMA11:AMA511) -> 3.460784314 | AMC7: =AVERAGE(AMC11:AMC511) -> 2.554313725 | AMD7: =AVERAGE(AMD11:AMD511) -> 3.134705882 | AMF7: =AVERAGE(AMF11:AMF511) -> 2.491372549 | AMG7: =AVERAGE(AMG11:AMG511) -> 3.134117647 | AMI7: =AVERAGE(AMI11:AMI511) -> 2.607647059 | AMJ7: =AVERAGE(AMJ11:AMJ511) -> 3.090196078 | AML7: =AVERAGE(AML11:AML511) -> 2.680980392 | AMM7: =AVERAGE(AMM11:AMM511) -> 3.210588235 | AMO7: =AVERAGE(AMO11:AMO511) -> 2.689803922 | AMP7: =AVERAGE(AMP11:AMP511) -> 3.17627451 | AMR7: =AVERAGE(AMR11:AMR511) -> 2.463921569 | AMS7: =AVERAGE(AMS11:AMS511) -> 3.08745098 | AMU7: =AVERAGE(AMU11:AMU511) -> 3.149411765 | AMV7: =AVERAGE(AMV11:AMV511) -> 3.773333333 | AMX7: =AVERAGE(AMX11:AMX511) -> 3.136078431 | AMY7: =AVERAGE(AMY11:AMY511) -> 3.729411765 | ANA7: =AVERAGE(ANA11:ANA511) -> 2.71254902 | ANB7: =AVERAGE(ANB11:ANB511) -> 3.186862745 | AND7: =AVERAGE(AND11:AND511) -> 3.335686275 | ANE7: =AVERAGE(ANE11:ANE511) -> 3.697647059 | ANG7: =AVERAGE(ANG11:ANG511) -> 2.533529412 | ANH7: =AVERAGE(ANH11:ANH511) -> 3.023921569 | ANJ7: =AVERAGE(ANJ11:ANJ511) -> 3.28254902 | ANK7: =AVERAGE(ANK11:ANK511) -> 3.671960784 | ANM7: =AVERAGE(ANM11:ANM511) -> 3.128627451 | ANN7: =AVERAGE(ANN11:ANN511) -> 3.742156863 | ANP7: =AVERAGE(ANP11:ANP511) -> 2.708039216 | ANQ7: =AVERAGE(ANQ11:ANQ511) -> 3.301176471 | ANS7: =AVERAGE(ANS11:ANS511) -> 2.821372549 | ANT7: =AVERAGE(ANT11:ANT511) -> 3.397058824 | ANV7: =AVERAGE(ANV11:ANV511) -> 3.068235294 | ANW7: =AVERAGE(ANW11:ANW511) -> 3.711764706 | ANY7: =AVERAGE(ANY11:ANY511) -> 2.902941176 | ANZ7: =AVERAGE(ANZ11:ANZ511) -> 3.37627451 | AOB7: =AVERAGE(AOB11:AOB511) -> 3.139019608 | AOC7: =AVERAGE(AOC11:AOC511) -> 3.560588235 | AOE7: =AVERAGE(AOE11:AOE511) -> 2.475490196 | AOF7: =AVERAGE(AOF11:AOF511) -> 2.924901961 | AOH7: =AVERAGE(AOH11:AOH511) -> 2.418235294 | AOI7: =AVERAGE(AOI11:AOI511) -> 3.003921569 | AOK7: =AVERAGE(AOK11:AOK511) -> 3.136470588 | AOL7: =AVERAGE(AOL11:AOL511) -> 3.813529412 | AON7: =AVERAGE(AON11:AON511) -> 2.991960784 | AOO7: =AVERAGE(AOO11:AOO511) -> 3.160784314 | AOQ7: =AVERAGE(AOQ11:AOQ511) -> 3.18254902 | AOR7: =AVERAGE(AOR11:AOR511) -> 3.816666667 | AOT7: =AVERAGE(AOT11:AOT511) -> 3.263137255 | AOU7: =AVERAGE(AOU11:AOU511) -> 3.684705882 | AOW7: =AVERAGE(AOW11:AOW511) -> 2.664117647 | AOX7: =AVERAGE(AOX11:AOX511) -> 3.323333333 | AOZ7: =AVERAGE(AOZ11:AOZ511) -> 2.785294118 | APA7: =AVERAGE(APA11:APA511) -> 3.577254902 | APC7: =AVERAGE(APC11:APC511) -> 3.10372549 | APD7: =AVERAGE(APD11:APD511) -> 3.785686275 | APF7: =AVERAGE(APF11:APF511) -> 2.207254902 | APG7: =AVERAGE(APG11:APG511) -> 2.604313725 | API7: =AVERAGE(API11:API511) -> 3.082745098 | APJ7: =AVERAGE(APJ11:APJ511) -> 3.905294118 | APL7: =AVERAGE(APL11:APL511) -> 2.613529412 | APM7: =AVERAGE(APM11:APM511) -> 3.105686275 | APO7: =AVERAGE(APO11:APO511) -> 2.35627451 | APP7: =AVERAGE(APP11:APP511) -> 2.886078431 | APR7: =AVERAGE(APR11:APR511) -> 3.35254902 | APS7: =AVERAGE(APS11:APS511) -> 3.677843137 | APU7: =AVERAGE(APU11:APU511) -> 2.619607843 | APV7: =AVERAGE(APV11:APV511) -> 3.186862745 | APX7: =AVERAGE(APX11:APX511) -> 2.834705882 | APY7: =AVERAGE(APY11:APY511) -> 3.548235294 | AQA7: =AVERAGE(AQA11:AQA511) -> 2.743529412 | AQB7: =AVERAGE(AQB11:AQB511) -> 3.425294118 | AQD7: =AVERAGE(AQD11:AQD511) -> 3.214313725 | AQE7: =AVERAGE(AQE11:AQE511) -> 3.891764706 | AQG7: =AVERAGE(AQG11:AQG511) -> 2.960196078 | AQH7: =AVERAGE(AQH11:AQH511) -> 3.459607843 | AQJ7: =AVERAGE(AQJ11:AQJ511) -> 2.318823529 | AQK7: =AVERAGE(AQK11:AQK511) -> 2.963333333 | AQM7: =AVERAGE(AQM11:AQM511) -> 2.997254902 | AQN7: =AVERAGE(AQN11:AQN511) -> 3.769803922 | AQP7: =AVERAGE(AQP11:AQP511) -> 2.148823529 | AQQ7: =AVERAGE(AQQ11:AQQ511) -> 2.753529412 | AQS7: =AVERAGE(AQS11:AQS511) -> 2.804705882 | AQT7: =AVERAGE(AQT11:AQT511) -> 3.310196078 | AQV7: =AVERAGE(AQV11:AQV511) -> 2.982352941 | AQW7: =AVERAGE(AQW11:AQW511) -> 3.553137255 | AQY7: =AVERAGE(AQY11:AQY511) -> 2.685686275 | AQZ7: =AVERAGE(AQZ11:AQZ511) -> 3.677843137 | ARB7: =AVERAGE(ARB11:ARB511) -> 2.377647059 | ARC7: =AVERAGE(ARC11:ARC511) -> 2.727647059 | ARE7: =AVERAGE(ARE11:ARE511) -> 3.708039216 | ARF7: =AVERAGE(ARF11:ARF511) -> 4.159019608 | ARH7: =AVERAGE(ARH11:ARH511) -> 2.549803922 | ARI7: =AVERAGE(ARI11:ARI511) -> 3.163333333 | ARK7: =AVERAGE(ARK11:ARK511) -> 3.828039216 | ARL7: =AVERAGE(ARL11:ARL511) -> 3.835294118 | ARN7: =AVERAGE(ARN11:ARN511) -> 2.432156863 | ARO7: =AVERAGE(ARO11:ARO511) -> 3.138431373 | ARQ7: =AVERAGE(ARQ11:ARQ511) -> 2.20627451 | ARR7: =AVERAGE(ARR11:ARR511) -> 2.805882353 | ART7: =AVERAGE(ART11:ART511) -> 3.323921569 | ARU7: =AVERAGE(ARU11:ARU511) -> 3.734313725 | ARW7: =AVERAGE(ARW11:ARW511) -> 3.230392157 | ARX7: =AVERAGE(ARX11:ARX511) -> 3.757254902 | ARZ7: =AVERAGE(ARZ11:ARZ511) -> 3.374509804 | ASA7: =AVERAGE(ASA11:ASA511) -> 3.844313725 | ASC7: =AVERAGE(ASC11:ASC511) -> 2.986862745 | ASD7: =AVERAGE(ASD11:ASD511) -> 3.737254902 | ASF7: =AVERAGE(ASF11:ASF511) -> 2.713137255 | ASG7: =AVERAGE(ASG11:ASG511) -> 3.248039216 | ASI7: =AVERAGE(ASI11:ASI511) -> 2.469019608 | ASJ7: =AVERAGE(ASJ11:ASJ511) -> 3.158431373 | ASL7: =AVERAGE(ASL11:ASL511) -> 3.290196078 | ASM7: =AVERAGE(ASM11:ASM511) -> 3.698235294 | ASO7: =AVERAGE(ASO11:ASO511) -> 2.037843137 | ASP7: =AVERAGE(ASP11:ASP511) -> 2.608039216 | ASR7: =AVERAGE(ASR11:ASR511) -> 2.912941176 | ASS7: =AVERAGE(ASS11:ASS511) -> 3.244509804 | ASU7: =AVERAGE(ASU11:ASU511) -> 2.975686275 | ASV7: =AVERAGE(ASV11:ASV511) -> 3.569607843 | ASX7: =AVERAGE(ASX11:ASX511) -> 2.52745098 | ASY7: =AVERAGE(ASY11:ASY511) -> 3.429607843 | ATA7: =AVERAGE(ATA11:ATA511) -> 2.450784314 | ATB7: =AVERAGE(ATB11:ATB511) -> 3.152156863 | ATD7: =AVERAGE(ATD11:ATD511) -> 2.689607843 | ATE7: =AVERAGE(ATE11:ATE511) -> 3.231372549 | ATG7: =AVERAGE(ATG11:ATG511) -> 3.045098039 | ATH7: =AVERAGE(ATH11:ATH511) -> 3.523921569 | ATJ7: =AVERAGE(ATJ11:ATJ511) -> 2.278823529 | ATK7: =AVERAGE(ATK11:ATK511) -> 2.984705882 | ATM7: =AVERAGE(ATM11:ATM511) -> 2.339019608 | ATN7: =AVERAGE(ATN11:ATN511) -> 2.828627451 | ATP7: =AVERAGE(ATP11:ATP511) -> 2.924509804 | ATQ7: =AVERAGE(ATQ11:ATQ511) -> 3.574117647 | ATS7: =AVERAGE(ATS11:ATS511) -> 2.750588235 | ATT7: =AVERAGE(ATT11:ATT511) -> 3.276470588 | ATV7: =AVERAGE(ATV11:ATV511) -> 2.839803922 | ATW7: =AVERAGE(ATW11:ATW511) -> 3.366470588 | ATY7: =AVERAGE(ATY11:ATY511) -> 2.934509804 | ATZ7: =AVERAGE(ATZ11:ATZ511) -> 3.493333333 | AUB7: =AVERAGE(AUB11:AUB511) -> 3.31745098 | AUC7: =AVERAGE(AUC11:AUC511) -> 3.700784314 | AUE7: =AVERAGE(AUE11:AUE511) -> 2.39627451 | AUF7: =AVERAGE(AUF11:AUF511) -> 3.194117647 | AUH7: =AVERAGE(AUH11:AUH511) -> 3.630588235 | AUI7: =AVERAGE(AUI11:AUI511) -> 4.027647059 | AUK7: =AVERAGE(AUK11:AUK511) -> 3.361764706 | AUL7: =AVERAGE(AUL11:AUL511) -> 3.737647059 | AUN7: =AVERAGE(AUN11:AUN511) -> 3.546862745 | AUO7: =AVERAGE(AUO11:AUO511) -> 3.917843137 | AUQ7: =AVERAGE(AUQ11:AUQ511) -> 2.375882353 | AUR7: =AVERAGE(AUR11:AUR511) -> 3.06745098 | AUT7: =AVERAGE(AUT11:AUT511) -> 3.233137255 | AUU7: =AVERAGE(AUU11:AUU511) -> 3.522745098 | AUW7: =AVERAGE(AUW11:AUW511) -> 2.226862745 | AUX7: =AVERAGE(AUX11:AUX511) -> 3.163333333 | AUZ7: =AVERAGE(AUZ11:AUZ511) -> 2.765490196 | AVA7: =AVERAGE(AVA11:AVA511) -> 3.396666667 | AVC7: =AVERAGE(AVC11:AVC511) -> 3.171372549 | AVD7: =AVERAGE(AVD11:AVD511) -> 3.665098039 | AVF7: =AVERAGE(AVF11:AVF511) -> 3.18745098 | AVG7: =AVERAGE(AVG11:AVG511) -> 3.689803922 | AVI7: =AVERAGE(AVI11:AVI511) -> 2.836862745 | AVJ7: =AVERAGE(AVJ11:AVJ511) -> 3.49627451 | AVL7: =AVERAGE(AVL11:AVL511) -> 3.147254902 | AVM7: =AVERAGE(AVM11:AVM511) -> 3.698431373 | AVO7: =AVERAGE(AVO11:AVO511) -> 2.733529412 | AVP7: =AVERAGE(AVP11:AVP511) -> 3.494509804 | AVR7: =AVERAGE(AVR11:AVR511) -> 3.315098039 | AVS7: =AVERAGE(AVS11:AVS511) -> 3.713921569 | AVU7: =AVERAGE(AVU11:AVU511) -> 2.896862745 | AVV7: =AVERAGE(AVV11:AVV511) -> 3.335490196 | AVX7: =AVERAGE(AVX11:AVX511) -> 2.565882353 | AVY7: =AVERAGE(AVY11:AVY511) -> 3.083333333 | AWA7: =AVERAGE(AWA11:AWA511) -> 3.165490196 | AWB7: =AVERAGE(AWB11:AWB511) -> 3.733333333 | AWD7: =AVERAGE(AWD11:AWD511) -> 3.068235294 | AWE7: =AVERAGE(AWE11:AWE511) -> 3.497843137 | AWG7: =AVERAGE(AWG11:AWG511) -> 3.17745098 | AWH7: =AVERAGE(AWH11:AWH511) -> 3.626862745 | AWJ7: =AVERAGE(AWJ11:AWJ511) -> 2.634117647 | AWK7: =AVERAGE(AWK11:AWK511) -> 3.24254902 | AWM7: =AVERAGE(AWM11:AWM511) -> 2.81 | AWN7: =AVERAGE(AWN11:AWN511) -> 3.369019608 | AWP7: =AVERAGE(AWP11:AWP511) -> 2.376666667 | AWQ7: =AVERAGE(AWQ11:AWQ511) -> 3.029411765 | AWS7: =AVERAGE(AWS11:AWS511) -> 3.105686275 | AWT7: =AVERAGE(AWT11:AWT511) -> 3.463333333 | AWV7: =AVERAGE(AWV11:AWV511) -> 3.409411765 | AWW7: =AVERAGE(AWW11:AWW511) -> 3.686470588 | AWY7: =AVERAGE(AWY11:AWY511) -> 2.378235294 | AWZ7: =AVERAGE(AWZ11:AWZ511) -> 3.02 | AXB7: =AVERAGE(AXB11:AXB511) -> 2.051568627 | AXC7: =AVERAGE(AXC11:AXC511) -> 2.726470588 | AXE7: =AVERAGE(AXE11:AXE511) -> 3.178431373 | AXF7: =AVERAGE(AXF11:AXF511) -> 3.689411765 | AXH7: =AVERAGE(AXH11:AXH511) -> 2.933529412 | AXI7: =AVERAGE(AXI11:AXI511) -> 3.457843137 | AXK7: =AVERAGE(AXK11:AXK511) -> 2.616470588 | AXL7: =AVERAGE(AXL11:AXL511) -> 3.111372549 | AXN7: =AVERAGE(AXN11:AXN511) -> 2.189411765 | AXO7: =AVERAGE(AXO11:AXO511) -> 2.824705882 | AXQ7: =AVERAGE(AXQ11:AXQ511) -> 3.141176471 | AXR7: =AVERAGE(AXR11:AXR511) -> 3.415098039 | AXT7: =AVERAGE(AXT11:AXT511) -> 3.062156863 | AXU7: =AVERAGE(AXU11:AXU511) -> 3.500980392 | AXW7: =AVERAGE(AXW11:AXW511) -> 2.205490196 | AXX7: =AVERAGE(AXX11:AXX511) -> 2.798235294 | AXZ7: =AVERAGE(AXZ11:AXZ511) -> 3.060784314 | AYA7: =AVERAGE(AYA11:AYA511) -> 3.622745098 | AYC7: =AVERAGE(AYC11:AYC511) -> 3.111568627 | AYD7: =AVERAGE(AYD11:AYD511) -> 3.789607843 | AYF7: =AVERAGE(AYF11:AYF511) -> 2.467647059 | AYG7: =AVERAGE(AYG11:AYG511) -> 3.244901961 | AYI7: =AVERAGE(AYI11:AYI511) -> 2.768431373 | AYJ7: =AVERAGE(AYJ11:AYJ511) -> 3.456078431 | AYL7: =AVERAGE(AYL11:AYL511) -> 3.335294118 | AYM7: =AVERAGE(AYM11:AYM511) -> 3.766862745 | AYO7: =AVERAGE(AYO11:AYO511) -> 2.492941176 | AYP7: =AVERAGE(AYP11:AYP511) -> 3.172941176 | AYR7: =AVERAGE(AYR11:AYR511) -> 3.02 | AYS7: =AVERAGE(AYS11:AYS511) -> 3.522156863 | AYU7: =AVERAGE(AYU11:AYU511) -> 2.867843137 | AYV7: =AVERAGE(AYV11:AYV511) -> 3.381568627 | AYX7: =AVERAGE(AYX11:AYX511) -> 2.813921569 | AYY7: =AVERAGE(AYY11:AYY511) -> 3.417254902 | AZA7: =AVERAGE(AZA11:AZA511) -> 3.232352941 | AZB7: =AVERAGE(AZB11:AZB511) -> 4.039215686 | AZD7: =AVERAGE(AZD11:AZD511) -> 3.095686275 | AZE7: =AVERAGE(AZE11:AZE511) -> 3.660980392 | AZG7: =AVERAGE(AZG11:AZG511) -> 2.190392157 | AZH7: =AVERAGE(AZH11:AZH511) -> 2.687843137 | AZJ7: =AVERAGE(AZJ11:AZJ511) -> 2.654901961 | AZK7: =AVERAGE(AZK11:AZK511) -> 3.31372549 | AZM7: =AVERAGE(AZM11:AZM511) -> 2.558823529 | AZN7: =AVERAGE(AZN11:AZN511) -> 3.16254902 | AZP7: =AVERAGE(AZP11:AZP511) -> 2.744901961 | AZQ7: =AVERAGE(AZQ11:AZQ511) -> 3.53 | AZS7: =AVERAGE(AZS11:AZS511) -> 2.552745098 | AZT7: =AVERAGE(AZT11:AZT511) -> 3.119019608 | AZV7: =AVERAGE(AZV11:AZV511) -> 2.981568627 | AZW7: =AVERAGE(AZW11:AZW511) -> 3.733333333 | AZY7: =AVERAGE(AZY11:AZY511) -> 2.837254902 | AZZ7: =AVERAGE(AZZ11:AZZ511) -> 3.604705882 | BAB7: =AVERAGE(BAB11:BAB511) -> 2.736862745 | BAC7: =AVERAGE(BAC11:BAC511) -> 3.450588235 | BAE7: =AVERAGE(BAE11:BAE511) -> 3.693137255 | BAF7: =AVERAGE(BAF11:BAF511) -> 4.044705882 | BAH7: =AVERAGE(BAH11:BAH511) -> 3.56372549 | BAI7: =AVERAGE(BAI11:BAI511) -> 3.956078431 | BAK7: =AVERAGE(BAK11:BAK511) -> 2.90254902 | BAL7: =AVERAGE(BAL11:BAL511) -> 3.581372549 | BAN7: =AVERAGE(BAN11:BAN511) -> 2.223137255 | BAO7: =AVERAGE(BAO11:BAO511) -> 2.865882353 | BAQ7: =AVERAGE(BAQ11:BAQ511) -> 2.736862745 | BAR7: =AVERAGE(BAR11:BAR511) -> 3.64627451 | BAT7: =AVERAGE(BAT11:BAT511) -> 2.588235294 | BAU7: =AVERAGE(BAU11:BAU511) -> 3.120588235 | BAW7: =AVERAGE(BAW11:BAW511) -> 3.439411765 | BAX7: =AVERAGE(BAX11:BAX511) -> 3.821568627 | BAZ7: =AVERAGE(BAZ11:BAZ511) -> 2.112352941 | BBA7: =AVERAGE(BBA11:BBA511) -> 3.150196078 | BBC7: =AVERAGE(BBC11:BBC511) -> 3.050196078 | BBD7: =AVERAGE(BBD11:BBD511) -> 3.766862745 | BBF7: =AVERAGE(BBF11:BBF511) -> 2.871960784 | BBG7: =AVERAGE(BBG11:BBG511) -> 3.309607843 | BBI7: =AVERAGE(BBI11:BBI511) -> 2.939411765 | BBJ7: =AVERAGE(BBJ11:BBJ511) -> 3.605490196 | BBL7: =AVERAGE(BBL11:BBL511) -> 3.431176471 | BBM7: =AVERAGE(BBM11:BBM511) -> 3.81627451 | BBO7: =AVERAGE(BBO11:BBO511) -> 2.830980392 | BBP7: =AVERAGE(BBP11:BBP511) -> 3.419019608 | BBR7: =AVERAGE(BBR11:BBR511) -> 2.332352941 | BBS7: =AVERAGE(BBS11:BBS511) -> 3.213921569 | BBU7: =AVERAGE(BBU11:BBU511) -> 3.019019608 | BBV7: =AVERAGE(BBV11:BBV511) -> 3.400588235 | BBX7: =AVERAGE(BBX11:BBX511) -> 2.860980392 | BBY7: =AVERAGE(BBY11:BBY511) -> 3.474509804 | BCA7: =AVERAGE(BCA11:BCA511) -> 2.72745098 | BCB7: =AVERAGE(BCB11:BCB511) -> 3.245294118 | BCD7: =AVERAGE(BCD11:BCD511) -> 2.907254902 | BCE7: =AVERAGE(BCE11:BCE511) -> 3.330980392 | BCG7: =AVERAGE(BCG11:BCG511) -> 3.543921569 | BCH7: =AVERAGE(BCH11:BCH511) -> 3.91254902 | BCJ7: =AVERAGE(BCJ11:BCJ511) -> 2.961568627 | BCK7: =AVERAGE(BCK11:BCK511) -> 3.592941176 | BCM7: =AVERAGE(BCM11:BCM511) -> 2.578823529 | BCN7: =AVERAGE(BCN11:BCN511) -> 3.19627451 | BCP7: =AVERAGE(BCP11:BCP511) -> 3.09372549 | BCQ7: =AVERAGE(BCQ11:BCQ511) -> 3.850588235 | BCS7: =AVERAGE(BCS11:BCS511) -> 2.972745098 | BCT7: =AVERAGE(BCT11:BCT511) -> 3.435098039 | BCV7: =AVERAGE(BCV11:BCV511) -> 3.091960784 | BCW7: =AVERAGE(BCW11:BCW511) -> 3.566470588 | BCY7: =AVERAGE(BCY11:BCY511) -> 2.695098039 | BCZ7: =AVERAGE(BCZ11:BCZ511) -> 3.33 | BDB7: =AVERAGE(BDB11:BDB511) -> 2.62372549 | BDC7: =AVERAGE(BDC11:BDC511) -> 3.445686275 | BDE7: =AVERAGE(BDE11:BDE511) -> 2.190196078 | BDF7: =AVERAGE(BDF11:BDF511) -> 2.775098039 | BDH7: =AVERAGE(BDH11:BDH511) -> 3.121372549 | BDI7: =AVERAGE(BDI11:BDI511) -> 3.688627451 | BDK7: =AVERAGE(BDK11:BDK511) -> 2.606470588 | BDL7: =AVERAGE(BDL11:BDL511) -> 3.243333333 | BDN7: =AVERAGE(BDN11:BDN511) -> 2.689215686 | BDO7: =AVERAGE(BDO11:BDO511) -> 3.348823529 | BDQ7: =AVERAGE(BDQ11:BDQ511) -> 3.972352941 | BDR7: =AVERAGE(BDR11:BDR511) -> 4.341960784 | BDT7: =AVERAGE(BDT11:BDT511) -> 2.434313725 | BDU7: =AVERAGE(BDU11:BDU511) -> 3.121960784 | BDW7: =AVERAGE(BDW11:BDW511) -> 2.83745098 | BDX7: =AVERAGE(BDX11:BDX511) -> 3.755686275 | BDZ7: =AVERAGE(BDZ11:BDZ511) -> 2.58 | BEA7: =AVERAGE(BEA11:BEA511) -> 3.227647059 | BEC7: =AVERAGE(BEC11:BEC511) -> 3.101764706 | BED7: =AVERAGE(BED11:BED511) -> 3.389019608 | BEF7: =AVERAGE(BEF11:BEF511) -> 2.314313725 | BEG7: =AVERAGE(BEG11:BEG511) -> 3.148039216 | BEI7: =AVERAGE(BEI11:BEI511) -> 3.131960784 | BEJ7: =AVERAGE(BEJ11:BEJ511) -> 3.751568627 | BEL7: =AVERAGE(BEL11:BEL511) -> 2.838627451 | BEM7: =AVERAGE(BEM11:BEM511) -> 3.398823529 | BEO7: =AVERAGE(BEO11:BEO511) -> 2.582352941 | BEP7: =AVERAGE(BEP11:BEP511) -> 3.25 | BER7: =AVERAGE(BER11:BER511) -> 2.717843137 | BES7: =AVERAGE(BES11:BES511) -> 3.492156863 | BEU7: =AVERAGE(BEU11:BEU511) -> 2.289215686 | BEV7: =AVERAGE(BEV11:BEV511) -> 3.336666667 | BEX7: =AVERAGE(BEX11:BEX511) -> 3.214901961 | BEY7: =AVERAGE(BEY11:BEY511) -> 3.572941176 | BFA7: =AVERAGE(BFA11:BFA511) -> 3.131764706 | BFB7: =AVERAGE(BFB11:BFB511) -> 3.557843137 | BFD7: =AVERAGE(BFD11:BFD511) -> 2.69745098 | BFE7: =AVERAGE(BFE11:BFE511) -> 3.209607843 | BFG7: =AVERAGE(BFG11:BFG511) -> 2.888039216 | BFH7: =AVERAGE(BFH11:BFH511) -> 3.74372549 | BFJ7: =AVERAGE(BFJ11:BFJ511) -> 3.169803922 | BFK7: =AVERAGE(BFK11:BFK511) -> 3.634313725 | BFM7: =AVERAGE(BFM11:BFM511) -> 2.69627451 | BFN7: =AVERAGE(BFN11:BFN511) -> 3.460784314 | BFP7: =AVERAGE(BFP11:BFP511) -> 2.518627451 | BFQ7: =AVERAGE(BFQ11:BFQ511) -> 3.22254902 | BFS7: =AVERAGE(BFS11:BFS511) -> 2.33372549 | BFT7: =AVERAGE(BFT11:BFT511) -> 3.211568627 | BFV7: =AVERAGE(BFV11:BFV511) -> 3.628039216 | BFW7: =AVERAGE(BFW11:BFW511) -> 4.198235294 | BFY7: =AVERAGE(BFY11:BFY511) -> 2.910784314 | BFZ7: =AVERAGE(BFZ11:BFZ511) -> 3.458039216 | BGB7: =AVERAGE(BGB11:BGB511) -> 2.539411765 | BGC7: =AVERAGE(BGC11:BGC511) -> 3.213921569 | BGE7: =AVERAGE(BGE11:BGE511) -> 3.154509804 | BGF7: =AVERAGE(BGF11:BGF511) -> 3.739215686 | BGH7: =AVERAGE(BGH11:BGH511) -> 3.274313725 | BGI7: =AVERAGE(BGI11:BGI511) -> 3.595686275 | BGK7: =AVERAGE(BGK11:BGK511) -> 2.45627451 | BGL7: =AVERAGE(BGL11:BGL511) -> 3.213333333 | BGN7: =AVERAGE(BGN11:BGN511) -> 2.932941176 | BGO7: =AVERAGE(BGO11:BGO511) -> 3.772352941 | BGQ7: =AVERAGE(BGQ11:BGQ511) -> 3.144705882 | BGR7: =AVERAGE(BGR11:BGR511) -> 3.474901961 | BGT7: =AVERAGE(BGT11:BGT511) -> 3.3 | BGU7: =AVERAGE(BGU11:BGU511) -> 3.836862745
C8: 4 | D8: 0.32 | E8: 0.75 | H8: 0 | I8: 0 | K8: 標準偏差：=STDEV(セル範囲) | M8: =STDEV(D5:D1304) -> 2.960768038 | N8: =STDEV(E5:E1304) -> 2.472385956 | O8: =STDEV(F5:F1304) ->  | P8: =STDEV(G5:G1304) ->  | Q8: 誤差分散比(λ) | R8: =S5/R5 ->  | U8: 5.62 | V8: 47 | W8: 7 | X8: 4.54 | Y8: 37 | Z8: 10 | AD8: =AD7+$AC$7 -> -4.020617967 | AE8: -0.9908366053 | AF8: -2.618023173 | AG8: 0.9743062102 | AN8: 48 | AO8: 48 | AS8: 0.535 | AT8: 0.43 | AV8: 0.535 | AW8: 0.43 | BA8: Sｘｙ= | BB8: =COVAR(BB11:BB510,BC11:BC510)*$N$5 -> 700.4551529 | BE8: =COVAR(BE11:BE510,BF11:BF510)*$N$5 -> 96.59114902 | BH8: =COVAR(BH11:BH510,BI11:BI510)*$N$5 -> 134.6558902 | BK8: =COVAR(BK11:BK510,BL11:BL510)*$N$5 -> 105.0159765 | BN8: =COVAR(BN11:BN510,BO11:BO510)*$N$5 -> 341.4783 | BQ8: =COVAR(BQ11:BQ510,BR11:BR510)*$N$5 -> 151.4747294 | BT8: =COVAR(BT11:BT510,BU11:BU510)*$N$5 -> 131.9530471 | BW8: =COVAR(BW11:BW510,BX11:BX510)*$N$5 -> 121.2938667 | BZ8: =COVAR(BZ11:BZ510,CA11:CA510)*$N$5 -> 568.498051 | CC8: =COVAR(CC11:CC510,CD11:CD510)*$N$5 -> 105.1015706 | CF8: =COVAR(CF11:CF510,CG11:CG510)*$N$5 -> 515.8999353 | CI8: =COVAR(CI11:CI510,CJ11:CJ510)*$N$5 -> 116.5900824 | CL8: =COVAR(CL11:CL510,CM11:CM510)*$N$5 -> 355.5901882 | CO8: =COVAR(CO11:CO510,CP11:CP510)*$N$5 -> 328.1133039 | CR8: =COVAR(CR11:CR510,CS11:CS510)*$N$5 -> 327.6985333 | CU8: =COVAR(CU11:CU510,CV11:CV510)*$N$5 -> 520.1793725 | CX8: =COVAR(CX11:CX510,CY11:CY510)*$N$5 -> 349.2545373 | DA8: =COVAR(DA11:DA510,DB11:DB510)*$N$5 -> 353.937 | DD8: =COVAR(DD11:DD510,DE11:DE510)*$N$5 -> 105.0935706 | DG8: =COVAR(DG11:DG510,DH11:DH510)*$N$5 -> 334.1868 | DJ8: =COVAR(DJ11:DJ510,DK11:DK510)*$N$5 -> 326.3938765 | DM8: =COVAR(DM11:DM510,DN11:DN510)*$N$5 -> 106.5679824 | DP8: =COVAR(DP11:DP510,DQ11:DQ510)*$N$5 -> 100.3454588 | DS8: =COVAR(DS11:DS510,DT11:DT510)*$N$5 -> 157.5557824 | DV8: =COVAR(DV11:DV510,DW11:DW510)*$N$5 -> 323.4218961 | DY8: =COVAR(DY11:DY510,DZ11:DZ510)*$N$5 -> 265.6761059 | EB8: =COVAR(EB11:EB510,EC11:EC510)*$N$5 -> 128.2179216 | EE8: =COVAR(EE11:EE510,EF11:EF510)*$N$5 -> 351.2960804 | EH8: =COVAR(EH11:EH510,EI11:EI510)*$N$5 -> 841.881 | EK8: =COVAR(EK11:EK510,EL11:EL510)*$N$5 -> 322.3135 | EN8: =COVAR(EN11:EN510,EO11:EO510)*$N$5 -> 185.0393235 | EQ8: =COVAR(EQ11:EQ510,ER11:ER510)*$N$5 -> 136.8566588 | ET8: =COVAR(ET11:ET510,EU11:EU510)*$N$5 -> 539.5572824 | EW8: =COVAR(EW11:EW510,EX11:EX510)*$N$5 -> 478.6727549 | EZ8: =COVAR(EZ11:EZ510,FA11:FA510)*$N$5 -> 353.6699176 | FC8: =COVAR(FC11:FC510,FD11:FD510)*$N$5 -> 156.8957059 | FF8: =COVAR(FF11:FF510,FG11:FG510)*$N$5 -> 302.622498 | FI8: =COVAR(FI11:FI510,FJ11:FJ510)*$N$5 -> 303.524898 | FL8: =COVAR(FL11:FL510,FM11:FM510)*$N$5 -> 328.8603137 | FO8: =COVAR(FO11:FO510,FP11:FP510)*$N$5 -> 105.0164196 | FR8: =COVAR(FR11:FR510,FS11:FS510)*$N$5 -> 516.4079196 | FU8: =COVAR(FU11:FU510,FV11:FV510)*$N$5 -> 304.2784137 | FX8: =COVAR(FX11:FX510,FY11:FY510)*$N$5 -> 1067.14302 | GA8: =COVAR(GA11:GA510,GB11:GB510)*$N$5 -> 166.8110216 | GD8: =COVAR(GD11:GD510,GE11:GE510)*$N$5 -> 525.9609176 | GG8: =COVAR(GG11:GG510,GH11:GH510)*$N$5 -> 100.7369863 | GJ8: =COVAR(GJ11:GJ510,GK11:GK510)*$N$5 -> 318.3595608 | GM8: =COVAR(GM11:GM510,GN11:GN510)*$N$5 -> 343.7501529 | GP8: =COVAR(GP11:GP510,GQ11:GQ510)*$N$5 -> 514.9442471 | GS8: =COVAR(GS11:GS510,GT11:GT510)*$N$5 -> 124.2158529 | GV8: =COVAR(GV11:GV510,GW11:GW510)*$N$5 -> 168.1811118 | GY8: =COVAR(GY11:GY510,GZ11:GZ510)*$N$5 -> 663.5336549 | HB8: =COVAR(HB11:HB510,HC11:HC510)*$N$5 -> 311.6440137 | HE8: =COVAR(HE11:HE510,HF11:HF510)*$N$5 -> 528.9127 | HH8: =COVAR(HH11:HH510,HI11:HI510)*$N$5 -> 117.4805 | HK8: =COVAR(HK11:HK510,HL11:HL510)*$N$5 -> 335.1063824 | HN8: =COVAR(HN11:HN510,HO11:HO510)*$N$5 -> 112.8457098 | HQ8: =COVAR(HQ11:HQ510,HR11:HR510)*$N$5 -> 488.3600333 | HT8: =COVAR(HT11:HT510,HU11:HU510)*$N$5 -> 341.8705353 | HW8: =COVAR(HW11:HW510,HX11:HX510)*$N$5 -> 113.4666196 | HZ8: =COVAR(HZ11:HZ510,IA11:IA510)*$N$5 -> 314.587649 | IC8: =COVAR(IC11:IC510,ID11:ID510)*$N$5 -> 312.7865608 | IF8: =COVAR(IF11:IF510,IG11:IG510)*$N$5 -> 346.1508824 | II8: =COVAR(II11:II510,IJ11:IJ510)*$N$5 -> 330.4665647 | IL8: =COVAR(IL11:IL510,IM11:IM510)*$N$5 -> 1082.875124 | IO8: =COVAR(IO11:IO510,IP11:IP510)*$N$5 -> 569.1480588 | IR8: =COVAR(IR11:IR510,IS11:IS510)*$N$5 -> 353.6516765 | IU8: =COVAR(IU11:IU510,IV11:IV510)*$N$5 -> 111.2862039 | IX8: =COVAR(IX11:IX510,IY11:IY510)*$N$5 -> 508.0508745 | JA8: =COVAR(JA11:JA510,JB11:JB510)*$N$5 -> 512.9308235 | JD8: =COVAR(JD11:JD510,JE11:JE510)*$N$5 -> 309.5349667 | JG8: =COVAR(JG11:JG510,JH11:JH510)*$N$5 -> 329.3691922 | JJ8: =COVAR(JJ11:JJ510,JK11:JK510)*$N$5 -> 341.1231471 | JM8: =COVAR(JM11:JM510,JN11:JN510)*$N$5 -> 328.8234176 | JP8: =COVAR(JP11:JP510,JQ11:JQ510)*$N$5 -> 500.0888098 | JS8: =COVAR(JS11:JS510,JT11:JT510)*$N$5 -> 344.9582725 | JV8: =COVAR(JV11:JV510,JW11:JW510)*$N$5 -> 292.1639588 | JY8: =COVAR(JY11:JY510,JZ11:JZ510)*$N$5 -> 513.5121176 | KB8: =COVAR(KB11:KB510,KC11:KC510)*$N$5 -> 356.6521941 | KE8: =COVAR(KE11:KE510,KF11:KF510)*$N$5 -> 308.7577667 | KH8: =COVAR(KH11:KH510,KI11:KI510)*$N$5 -> 151.6092235 | KK8: =COVAR(KK11:KK510,KL11:KL510)*$N$5 -> 322.6998529 | KN8: =COVAR(KN11:KN510,KO11:KO510)*$N$5 -> 342.4144706 | KQ8: =COVAR(KQ11:KQ510,KR11:KR510)*$N$5 -> 316.4251275 | KT8: =COVAR(KT11:KT510,KU11:KU510)*$N$5 -> 135.6534627 | KW8: =COVAR(KW11:KW510,KX11:KX510)*$N$5 -> 134.1396784 | KZ8: =COVAR(KZ11:KZ510,LA11:LA510)*$N$5 -> 509.5119941 | LC8: =COVAR(LC11:LC510,LD11:LD510)*$N$5 -> 138.7259941 | LF8: =COVAR(LF11:LF510,LG11:LG510)*$N$5 -> 149.1550275 | LI8: =COVAR(LI11:LI510,LJ11:LJ510)*$N$5 -> 544.4794667 | LL8: =COVAR(LL11:LL510,LM11:LM510)*$N$5 -> 163.524898 | LO8: =COVAR(LO11:LO510,LP11:LP510)*$N$5 -> 515.0875706 | LR8: =COVAR(LR11:LR510,LS11:LS510)*$N$5 -> 111.4224314 | LU8: =COVAR(LU11:LU510,LV11:LV510)*$N$5 -> 309.0735059 | LX8: =COVAR(LX11:LX510,LY11:LY510)*$N$5 -> 138.5392 | MA8: =COVAR(MA11:MA510,MB11:MB510)*$N$5 -> 112.0272137 | MD8: =COVAR(MD11:MD510,ME11:ME510)*$N$5 -> 590.1853451 | MG8: =COVAR(MG11:MG510,MH11:MH510)*$N$5 -> 106.4206294 | MJ8: =COVAR(MJ11:MJ510,MK11:MK510)*$N$5 -> 130.8887 | MM8: =COVAR(MM11:MM510,MN11:MN510)*$N$5 -> 498.5811941 | MP8: =COVAR(MP11:MP510,MQ11:MQ510)*$N$5 -> 317.1378843 | MS8: =COVAR(MS11:MS510,MT11:MT510)*$N$5 -> 505.0038529 | MV8: =COVAR(MV11:MV510,MW11:MW510)*$N$5 -> 331.3513412 | MY8: =COVAR(MY11:MY510,MZ11:MZ510)*$N$5 -> 133.2354882 | NB8: =COVAR(NB11:NB510,NC11:NC510)*$N$5 -> 131.9906294 | NE8: =COVAR(NE11:NE510,NF11:NF510)*$N$5 -> 343.1286667 | NH8: =COVAR(NH11:NH510,NI11:NI510)*$N$5 -> 320.1510118 | NK8: =COVAR(NK11:NK510,NL11:NL510)*$N$5 -> 108.3664 | NN8: =COVAR(NN11:NN510,NO11:NO510)*$N$5 -> 556.5732314 | NQ8: =COVAR(NQ11:NQ510,NR11:NR510)*$N$5 -> 339.6185647 | NT8: =COVAR(NT11:NT510,NU11:NU510)*$N$5 -> 331.5884529 | NW8: =COVAR(NW11:NW510,NX11:NX510)*$N$5 -> 97.33472941 | NZ8: =COVAR(NZ11:NZ510,OA11:OA510)*$N$5 -> 501.3480451 | OC8: =COVAR(OC11:OC510,OD11:OD510)*$N$5 -> 141.7167196 | OF8: =COVAR(OF11:OF510,OG11:OG510)*$N$5 -> 356.7906 | OI8: =COVAR(OI11:OI510,OJ11:OJ510)*$N$5 -> 135.1434765 | OL8: =COVAR(OL11:OL510,OM11:OM510)*$N$5 -> 574.2055471 | OO8: =COVAR(OO11:OO510,OP11:OP510)*$N$5 -> 517.9284255 | OR8: =COVAR(OR11:OR510,OS11:OS510)*$N$5 -> 306.9376471 | OU8: =COVAR(OU11:OU510,OV11:OV510)*$N$5 -> 119.7147941 | OX8: =COVAR(OX11:OX510,OY11:OY510)*$N$5 -> 123.2648765 | PA8: =COVAR(PA11:PA510,PB11:PB510)*$N$5 -> 309.5317647 | PD8: =COVAR(PD11:PD510,PE11:PE510)*$N$5 -> 117.3246882 | PG8: =COVAR(PG11:PG510,PH11:PH510)*$N$5 -> 544.9562039 | PJ8: =COVAR(PJ11:PJ510,PK11:PK510)*$N$5 -> 132.6914176 | PM8: =COVAR(PM11:PM510,PN11:PN510)*$N$5 -> 127.4086196 | PP8: =COVAR(PP11:PP510,PQ11:PQ510)*$N$5 -> 321.4049647 | PS8: =COVAR(PS11:PS510,PT11:PT510)*$N$5 -> 533.8879647 | PV8: =COVAR(PV11:PV510,PW11:PW510)*$N$5 -> 151.8117078 | PY8: =COVAR(PY11:PY510,PZ11:PZ510)*$N$5 -> 324.6459353 | QB8: =COVAR(QB11:QB510,QC11:QC510)*$N$5 -> 296.7224667 | QE8: =COVAR(QE11:QE510,QF11:QF510)*$N$5 -> 322.0825627 | QH8: =COVAR(QH11:QH510,QI11:QI510)*$N$5 -> 708.6570235 | QK8: =COVAR(QK11:QK510,QL11:QL510)*$N$5 -> 514.9511843 | QN8: =COVAR(QN11:QN510,QO11:QO510)*$N$5 -> 337.9620353 | QQ8: =COVAR(QQ11:QQ510,QR11:QR510)*$N$5 -> 157.3888784 | QT8: =COVAR(QT11:QT510,QU11:QU510)*$N$5 -> 320.3038294 | QW8: =COVAR(QW11:QW510,QX11:QX510)*$N$5 -> 325.7481706 | QZ8: =COVAR(QZ11:QZ510,RA11:RA510)*$N$5 -> 337.9051 | RC8: =COVAR(RC11:RC510,RD11:RD510)*$N$5 -> 92.70396275 | RF8: =COVAR(RF11:RF510,RG11:RG510)*$N$5 -> 527.4874471 | RI8: =COVAR(RI11:RI510,RJ11:RJ510)*$N$5 -> 97.35672941 | RL8: =COVAR(RL11:RL510,RM11:RM510)*$N$5 -> 327.3194706 | RO8: =COVAR(RO11:RO510,RP11:RP510)*$N$5 -> 123.3908333 | RR8: =COVAR(RR11:RR510,RS11:RS510)*$N$5 -> 90.73821961 | RU8: =COVAR(RU11:RU510,RV11:RV510)*$N$5 -> 114.9470118 | RX8: =COVAR(RX11:RX510,RY11:RY510)*$N$5 -> 714.7427804 | SA8: =COVAR(SA11:SA510,SB11:SB510)*$N$5 -> 331.7141137 | SD8: =COVAR(SD11:SD510,SE11:SE510)*$N$5 -> 117.4524667 | SG8: =COVAR(SG11:SG510,SH11:SH510)*$N$5 -> 105.7593824 | SJ8: =COVAR(SJ11:SJ510,SK11:SK510)*$N$5 -> 330.1925863 | SM8: =COVAR(SM11:SM510,SN11:SN510)*$N$5 -> 370.6698118 | SP8: =COVAR(SP11:SP510,SQ11:SQ510)*$N$5 -> 337.1962686 | SS8: =COVAR(SS11:SS510,ST11:ST510)*$N$5 -> 139.8421627 | SV8: =COVAR(SV11:SV510,SW11:SW510)*$N$5 -> 326.0371941 | SY8: =COVAR(SY11:SY510,SZ11:SZ510)*$N$5 -> 519.4108529 | TB8: =COVAR(TB11:TB510,TC11:TC510)*$N$5 -> 315.8998392 | TE8: =COVAR(TE11:TE510,TF11:TF510)*$N$5 -> 707.4593176 | TH8: =COVAR(TH11:TH510,TI11:TI510)*$N$5 -> 316.0907235 | TK8: =COVAR(TK11:TK510,TL11:TL510)*$N$5 -> 369.7565922 | TN8: =COVAR(TN11:TN510,TO11:TO510)*$N$5 -> 526.8334529 | TQ8: =COVAR(TQ11:TQ510,TR11:TR510)*$N$5 -> 357.6644216 | TT8: =COVAR(TT11:TT510,TU11:TU510)*$N$5 -> 718.1570039 | TW8: =COVAR(TW11:TW510,TX11:TX510)*$N$5 -> 346.5144647 | TZ8: =COVAR(TZ11:TZ510,UA11:UA510)*$N$5 -> 510.0781824 | UC8: =COVAR(UC11:UC510,UD11:UD510)*$N$5 -> 321.0854235 | UF8: =COVAR(UF11:UF510,UG11:UG510)*$N$5 -> 301.8150333 | UI8: =COVAR(UI11:UI510,UJ11:UJ510)*$N$5 -> 352.8734431 | UL8: =COVAR(UL11:UL510,UM11:UM510)*$N$5 -> 535.7018235 | UO8: =COVAR(UO11:UO510,UP11:UP510)*$N$5 -> 284.7375529 | UR8: =COVAR(UR11:UR510,US11:US510)*$N$5 -> 107.7438882 | UU8: =COVAR(UU11:UU510,UV11:UV510)*$N$5 -> 337.0848804 | UX8: =COVAR(UX11:UX510,UY11:UY510)*$N$5 -> 120.0184902 | VA8: =COVAR(VA11:VA510,VB11:VB510)*$N$5 -> 329.7784706 | VD8: =COVAR(VD11:VD510,VE11:VE510)*$N$5 -> 96.4907902 | VG8: =COVAR(VG11:VG510,VH11:VH510)*$N$5 -> 536.8949471 | VJ8: =COVAR(VJ11:VJ510,VK11:VK510)*$N$5 -> 100.5877824 | VM8: =COVAR(VM11:VM510,VN11:VN510)*$N$5 -> 354.024002 | VP8: =COVAR(VP11:VP510,VQ11:VQ510)*$N$5 -> 92.71095882 | VS8: =COVAR(VS11:VS510,VT11:VT510)*$N$5 -> 315.397 | VV8: =COVAR(VV11:VV510,VW11:VW510)*$N$5 -> 339.2158333 | VY8: =COVAR(VY11:VY510,VZ11:VZ510)*$N$5 -> 836.0523 | WB8: =COVAR(WB11:WB510,WC11:WC510)*$N$5 -> 126.0159824 | WE8: =COVAR(WE11:WE510,WF11:WF510)*$N$5 -> 319.4188765 | WH8: =COVAR(WH11:WH510,WI11:WI510)*$N$5 -> 160.4037882 | WK8: =COVAR(WK11:WK510,WL11:WL510)*$N$5 -> 500.6671725 | WN8: =COVAR(WN11:WN510,WO11:WO510)*$N$5 -> 562.9088961 | WQ8: =COVAR(WQ11:WQ510,WR11:WR510)*$N$5 -> 505.9511255 | WT8: =COVAR(WT11:WT510,WU11:WU510)*$N$5 -> 284.7378706 | WW8: =COVAR(WW11:WW510,WX11:WX510)*$N$5 -> 506.3153294 | WZ8: =COVAR(WZ11:WZ510,XA11:XA510)*$N$5 -> 115.9629 | XC8: =COVAR(XC11:XC510,XD11:XD510)*$N$5 -> 150.8236353 | XF8: =COVAR(XF11:XF510,XG11:XG510)*$N$5 -> 905.8774824 | XI8: =COVAR(XI11:XI510,XJ11:XJ510)*$N$5 -> 101.7516804 | XL8: =COVAR(XL11:XL510,XM11:XM510)*$N$5 -> 503.3301 | XO8: =COVAR(XO11:XO510,XP11:XP510)*$N$5 -> 701.1494588 | XR8: =COVAR(XR11:XR510,XS11:XS510)*$N$5 -> 483.4600765 | XU8: =COVAR(XU11:XU510,XV11:XV510)*$N$5 -> 491.2166824 | XX8: =COVAR(XX11:XX510,XY11:XY510)*$N$5 -> 113.5564039 | YA8: =COVAR(YA11:YA510,YB11:YB510)*$N$5 -> 116.5929431 | YD8: =COVAR(YD11:YD510,YE11:YE510)*$N$5 -> 136.5047078 | YG8: =COVAR(YG11:YG510,YH11:YH510)*$N$5 -> 315.5784196 | YJ8: =COVAR(YJ11:YJ510,YK11:YK510)*$N$5 -> 141.0172843 | YM8: =COVAR(YM11:YM510,YN11:YN510)*$N$5 -> 329.2357255 | YP8: =COVAR(YP11:YP510,YQ11:YQ510)*$N$5 -> 136.0415353 | YS8: =COVAR(YS11:YS510,YT11:YT510)*$N$5 -> 131.2377961 | YV8: =COVAR(YV11:YV510,YW11:YW510)*$N$5 -> 132.2727 | YY8: =COVAR(YY11:YY510,YZ11:YZ510)*$N$5 -> 170.1531353 | ZB8: =COVAR(ZB11:ZB510,ZC11:ZC510)*$N$5 -> 495.424498 | ZE8: =COVAR(ZE11:ZE510,ZF11:ZF510)*$N$5 -> 323.6865118 | ZH8: =COVAR(ZH11:ZH510,ZI11:ZI510)*$N$5 -> 133.2142686 | ZK8: =COVAR(ZK11:ZK510,ZL11:ZL510)*$N$5 -> 336.5104275 | ZN8: =COVAR(ZN11:ZN510,ZO11:ZO510)*$N$5 -> 133.803098 | ZQ8: =COVAR(ZQ11:ZQ510,ZR11:ZR510)*$N$5 -> 544.4956667 | ZT8: =COVAR(ZT11:ZT510,ZU11:ZU510)*$N$5 -> 335.4838039 | ZW8: =COVAR(ZW11:ZW510,ZX11:ZX510)*$N$5 -> 756.8883235 | ZZ8: =COVAR(ZZ11:ZZ510,AAA11:AAA510)*$N$5 -> 546.4692608 | AAC8: =COVAR(AAC11:AAC510,AAD11:AAD510)*$N$5 -> 114.0656275 | AAF8: =COVAR(AAF11:AAF510,AAG11:AAG510)*$N$5 -> 131.8148216 | AAI8: =COVAR(AAI11:AAI510,AAJ11:AAJ510)*$N$5 -> 314.9359294 | AAL8: =COVAR(AAL11:AAL510,AAM11:AAM510)*$N$5 -> 761.2666824 | AAO8: =COVAR(AAO11:AAO510,AAP11:AAP510)*$N$5 -> 148.5907647 | AAR8: =COVAR(AAR11:AAR510,AAS11:AAS510)*$N$5 -> 560.8208627 | AAU8: =COVAR(AAU11:AAU510,AAV11:AAV510)*$N$5 -> 123.957398 | AAX8: =COVAR(AAX11:AAX510,AAY11:AAY510)*$N$5 -> 317.8792176 | ABA8: =COVAR(ABA11:ABA510,ABB11:ABB510)*$N$5 -> 687.8505647 | ABD8: =COVAR(ABD11:ABD510,ABE11:ABE510)*$N$5 -> 318.4584255 | ABG8: =COVAR(ABG11:ABG510,ABH11:ABH510)*$N$5 -> 299.1088059 | ABJ8: =COVAR(ABJ11:ABJ510,ABK11:ABK510)*$N$5 -> 100.0890157 | ABM8: =COVAR(ABM11:ABM510,ABN11:ABN510)*$N$5 -> 704.0323373 | ABP8: =COVAR(ABP11:ABP510,ABQ11:ABQ510)*$N$5 -> 322.1050667 | ABS8: =COVAR(ABS11:ABS510,ABT11:ABT510)*$N$5 -> 360.1364667 | ABV8: =COVAR(ABV11:ABV510,ABW11:ABW510)*$N$5 -> 337.0340824 | ABY8: =COVAR(ABY11:ABY510,ABZ11:ABZ510)*$N$5 -> 121.7157059 | ACB8: =COVAR(ACB11:ACB510,ACC11:ACC510)*$N$5 -> 322.0230216 | ACE8: =COVAR(ACE11:ACE510,ACF11:ACF510)*$N$5 -> 741.0003118 | ACH8: =COVAR(ACH11:ACH510,ACI11:ACI510)*$N$5 -> 309.1913941 | ACK8: =COVAR(ACK11:ACK510,ACL11:ACL510)*$N$5 -> 310.2144765 | ACN8: =COVAR(ACN11:ACN510,ACO11:ACO510)*$N$5 -> 127.7479216 | ACQ8: =COVAR(ACQ11:ACQ510,ACR11:ACR510)*$N$5 -> 334.1850882 | ACT8: =COVAR(ACT11:ACT510,ACU11:ACU510)*$N$5 -> 328.7406 | ACW8: =COVAR(ACW11:ACW510,ACX11:ACX510)*$N$5 -> 137.7091882 | ACZ8: =COVAR(ACZ11:ACZ510,ADA11:ADA510)*$N$5 -> 135.1484412 | ADC8: =COVAR(ADC11:ADC510,ADD11:ADD510)*$N$5 -> 555.4294627 | ADF8: =COVAR(ADF11:ADF510,ADG11:ADG510)*$N$5 -> 304.1483725 | ADI8: =COVAR(ADI11:ADI510,ADJ11:ADJ510)*$N$5 -> 167.2868039 | ADL8: =COVAR(ADL11:ADL510,ADM11:ADM510)*$N$5 -> 336.7007412 | ADO8: =COVAR(ADO11:ADO510,ADP11:ADP510)*$N$5 -> 362.9008275 | ADR8: =COVAR(ADR11:ADR510,ADS11:ADS510)*$N$5 -> 345.2686353 | ADU8: =COVAR(ADU11:ADU510,ADV11:ADV510)*$N$5 -> 105.0281294 | ADX8: =COVAR(ADX11:ADX510,ADY11:ADY510)*$N$5 -> 490.5298843 | AEA8: =COVAR(AEA11:AEA510,AEB11:AEB510)*$N$5 -> 321.8769882 | AED8: =COVAR(AED11:AED510,AEE11:AEE510)*$N$5 -> 125.5272882 | AEG8: =COVAR(AEG11:AEG510,AEH11:AEH510)*$N$5 -> 495.3893176 | AEJ8: =COVAR(AEJ11:AEJ510,AEK11:AEK510)*$N$5 -> 138.8037373 | AEM8: =COVAR(AEM11:AEM510,AEN11:AEN510)*$N$5 -> 88.6762098 | AEP8: =COVAR(AEP11:AEP510,AEQ11:AEQ510)*$N$5 -> 358.2473078 | AES8: =COVAR(AES11:AES510,AET11:AET510)*$N$5 -> 338.0801176 | AEV8: =COVAR(AEV11:AEV510,AEW11:AEW510)*$N$5 -> 524.3103706 | AEY8: =COVAR(AEY11:AEY510,AEZ11:AEZ510)*$N$5 -> 320.4636471 | AFB8: =COVAR(AFB11:AFB510,AFC11:AFC510)*$N$5 -> 346.4881196 | AFE8: =COVAR(AFE11:AFE510,AFF11:AFF510)*$N$5 -> 322.0037235 | AFH8: =COVAR(AFH11:AFH510,AFI11:AFI510)*$N$5 -> 132.6414529 | AFK8: =COVAR(AFK11:AFK510,AFL11:AFL510)*$N$5 -> 106.867902 | AFN8: =COVAR(AFN11:AFN510,AFO11:AFO510)*$N$5 -> 132.759598 | AFQ8: =COVAR(AFQ11:AFQ510,AFR11:AFR510)*$N$5 -> 576.1624333 | AFT8: =COVAR(AFT11:AFT510,AFU11:AFU510)*$N$5 -> 692.4796922 | AFW8: =COVAR(AFW11:AFW510,AFX11:AFX510)*$N$5 -> 487.5867922 | AFZ8: =COVAR(AFZ11:AFZ510,AGA11:AGA510)*$N$5 -> 152.6749137 | AGC8: =COVAR(AGC11:AGC510,AGD11:AGD510)*$N$5 -> 133.9318784 | AGF8: =COVAR(AGF11:AGF510,AGG11:AGG510)*$N$5 -> 342.5862 | AGI8: =COVAR(AGI11:AGI510,AGJ11:AGJ510)*$N$5 -> 372.3157549 | AGL8: =COVAR(AGL11:AGL510,AGM11:AGM510)*$N$5 -> 123.9872431 | AGO8: =COVAR(AGO11:AGO510,AGP11:AGP510)*$N$5 -> 512.3860294 | AGR8: =COVAR(AGR11:AGR510,AGS11:AGS510)*$N$5 -> 337.6952647 | AGU8: =COVAR(AGU11:AGU510,AGV11:AGV510)*$N$5 -> 113.4323667 | AGX8: =COVAR(AGX11:AGX510,AGY11:AGY510)*$N$5 -> 287.7823451 | AHA8: =COVAR(AHA11:AHA510,AHB11:AHB510)*$N$5 -> 332.5679216 | AHD8: =COVAR(AHD11:AHD510,AHE11:AHE510)*$N$5 -> 131.9975196 | AHG8: =COVAR(AHG11:AHG510,AHH11:AHH510)*$N$5 -> 343.0666412 | AHJ8: =COVAR(AHJ11:AHJ510,AHK11:AHK510)*$N$5 -> 545.4084255 | AHM8: =COVAR(AHM11:AHM510,AHN11:AHN510)*$N$5 -> 539.2250255 | AHP8: =COVAR(AHP11:AHP510,AHQ11:AHQ510)*$N$5 -> 126.4852353 | AHS8: =COVAR(AHS11:AHS510,AHT11:AHT510)*$N$5 -> 320.2075941 | AHV8: =COVAR(AHV11:AHV510,AHW11:AHW510)*$N$5 -> 367.7180824 | AHY8: =COVAR(AHY11:AHY510,AHZ11:AHZ510)*$N$5 -> 656.5398647 | AIB8: =COVAR(AIB11:AIB510,AIC11:AIC510)*$N$5 -> 540.7905118 | AIE8: =COVAR(AIE11:AIE510,AIF11:AIF510)*$N$5 -> 116.5580529 | AIH8: =COVAR(AIH11:AIH510,AII11:AII510)*$N$5 -> 489.5226706 | AIK8: =COVAR(AIK11:AIK510,AIL11:AIL510)*$N$5 -> 79.50915882 | AIN8: =COVAR(AIN11:AIN510,AIO11:AIO510)*$N$5 -> 99.49584706 | AIQ8: =COVAR(AIQ11:AIQ510,AIR11:AIR510)*$N$5 -> 131.9693569 | AIT8: =COVAR(AIT11:AIT510,AIU11:AIU510)*$N$5 -> 345.3253157 | AIW8: =COVAR(AIW11:AIW510,AIX11:AIX510)*$N$5 -> 116.3103902 | AIZ8: =COVAR(AIZ11:AIZ510,AJA11:AJA510)*$N$5 -> 317.4786392 | AJC8: =COVAR(AJC11:AJC510,AJD11:AJD510)*$N$5 -> 157.3647765 | AJF8: =COVAR(AJF11:AJF510,AJG11:AJG510)*$N$5 -> 325.3417706 | AJI8: =COVAR(AJI11:AJI510,AJJ11:AJJ510)*$N$5 -> 349.5203294 | AJL8: =COVAR(AJL11:AJL510,AJM11:AJM510)*$N$5 -> 340.9581941 | AJO8: =COVAR(AJO11:AJO510,AJP11:AJP510)*$N$5 -> 123.8705412 | AJR8: =COVAR(AJR11:AJR510,AJS11:AJS510)*$N$5 -> 130.1110471 | AJU8: =COVAR(AJU11:AJU510,AJV11:AJV510)*$N$5 -> 313.8103941 | AJX8: =COVAR(AJX11:AJX510,AJY11:AJY510)*$N$5 -> 335.281551 | AKA8: =COVAR(AKA11:AKA510,AKB11:AKB510)*$N$5 -> 328.4408784 | AKD8: =COVAR(AKD11:AKD510,AKE11:AKE510)*$N$5 -> 145.6428941 | AKG8: =COVAR(AKG11:AKG510,AKH11:AKH510)*$N$5 -> 123.5406373 | AKJ8: =COVAR(AKJ11:AKJ510,AKK11:AKK510)*$N$5 -> 137.7079235 | AKM8: =COVAR(AKM11:AKM510,AKN11:AKN510)*$N$5 -> 315.5407902 | AKP8: =COVAR(AKP11:AKP510,AKQ11:AKQ510)*$N$5 -> 522.6634902 | AKS8: =COVAR(AKS11:AKS510,AKT11:AKT510)*$N$5 -> 339.2430196 | AKV8: =COVAR(AKV11:AKV510,AKW11:AKW510)*$N$5 -> 93.5744098 | AKY8: =COVAR(AKY11:AKY510,AKZ11:AKZ510)*$N$5 -> 126.7333294 | ALB8: =COVAR(ALB11:ALB510,ALC11:ALC510)*$N$5 -> 108.1661118 | ALE8: =COVAR(ALE11:ALE510,ALF11:ALF510)*$N$5 -> 738.2667373 | ALH8: =COVAR(ALH11:ALH510,ALI11:ALI510)*$N$5 -> 582.871998 | ALK8: =COVAR(ALK11:ALK510,ALL11:ALL510)*$N$5 -> 121.5277 | ALN8: =COVAR(ALN11:ALN510,ALO11:ALO510)*$N$5 -> 513.1924824 | ALQ8: =COVAR(ALQ11:ALQ510,ALR11:ALR510)*$N$5 -> 190.1380235 | ALT8: =COVAR(ALT11:ALT510,ALU11:ALU510)*$N$5 -> 725.4268882 | ALW8: =COVAR(ALW11:ALW510,ALX11:ALX510)*$N$5 -> 356.1623569 | ALZ8: =COVAR(ALZ11:ALZ510,AMA11:AMA510)*$N$5 -> 312.7014725 | AMC8: =COVAR(AMC11:AMC510,AMD11:AMD510)*$N$5 -> 183.1613647 | AMF8: =COVAR(AMF11:AMF510,AMG11:AMG510)*$N$5 -> 156.5065118 | AMI8: =COVAR(AMI11:AMI510,AMJ11:AMJ510)*$N$5 -> 136.2284235 | AML8: =COVAR(AML11:AML510,AMM11:AMM510)*$N$5 -> 147.9687706 | AMO8: =COVAR(AMO11:AMO510,AMP11:AMP510)*$N$5 -> 152.3149627 | AMR8: =COVAR(AMR11:AMR510,AMS11:AMS510)*$N$5 -> 115.4796098 | AMU8: =COVAR(AMU11:AMU510,AMV11:AMV510)*$N$5 -> 549.2383 | AMX8: =COVAR(AMX11:AMX510,AMY11:AMY510)*$N$5 -> 329.1151824 | ANA8: =COVAR(ANA11:ANA510,ANB11:ANB510)*$N$5 -> 336.2827078 | AND8: =COVAR(AND11:AND510,ANE11:ANE510)*$N$5 -> 572.8605824 | ANG8: =COVAR(ANG11:ANG510,ANH11:ANH510)*$N$5 -> 121.0187941 | ANJ8: =COVAR(ANJ11:ANJ510,ANK11:ANK510)*$N$5 -> 524.8714451 | ANM8: =COVAR(ANM11:ANM510,ANN11:ANN510)*$N$5 -> 305.311051 | ANP8: =COVAR(ANP11:ANP510,ANQ11:ANQ510)*$N$5 -> 318.5907176 | ANS8: =COVAR(ANS11:ANS510,ANT11:ANT510)*$N$5 -> 358.7132059 | ANV8: =COVAR(ANV11:ANV510,ANW11:ANW510)*$N$5 -> 310.6935588 | ANY8: =COVAR(ANY11:ANY510,ANZ11:ANZ510)*$N$5 -> 330.7789588 | AOB8: =COVAR(AOB11:AOB510,AOC11:AOC510)*$N$5 -> 344.1886294 | AOE8: =COVAR(AOE11:AOE510,AOF11:AOF510)*$N$5 -> 136.0465275 | AOH8: =COVAR(AOH11:AOH510,AOI11:AOI510)*$N$5 -> 136.6877529 | AOK8: =COVAR(AOK11:AOK510,AOL11:AOL510)*$N$5 -> 340.1691353 | AON8: =COVAR(AON11:AON510,AOO11:AOO510)*$N$5 -> 546.0456216 | AOQ8: =COVAR(AOQ11:AOQ510,AOR11:AOR510)*$N$5 -> 343.4829333 | AOT8: =COVAR(AOT11:AOT510,AOU11:AOU510)*$N$5 -> 742.0713471 | AOW8: =COVAR(AOW11:AOW510,AOX11:AOX510)*$N$5 -> 117.764 | AOZ8: =COVAR(AOZ11:AOZ510,APA11:APA510)*$N$5 -> 357.3831412 | APC8: =COVAR(APC11:APC510,APD11:APD510)*$N$5 -> 504.3012196 | APF8: =COVAR(APF11:APF510,APG11:APG510)*$N$5 -> 147.7319039 | API8: =COVAR(API11:API510,APJ11:APJ510)*$N$5 -> 324.8653588 | APL8: =COVAR(APL11:APL510,APM11:APM510)*$N$5 -> 338.9503765 | APO8: =COVAR(APO11:APO510,APP11:APP510)*$N$5 -> 79.9914549 | APR8: =COVAR(APR11:APR510,APS11:APS510)*$N$5 -> 333.8622804 | APU8: =COVAR(APU11:APU510,APV11:APV510)*$N$5 -> 299.1578373 | APX8: =COVAR(APX11:APX510,APY11:APY510)*$N$5 -> 308.9223235 | AQA8: =COVAR(AQA11:AQA510,AQB11:AQB510)*$N$5 -> 328.8019471 | AQD8: =COVAR(AQD11:AQD510,AQE11:AQE510)*$N$5 -> 497.4481118 | AQG8: =COVAR(AQG11:AQG510,AQH11:AQH510)*$N$5 -> 286.9574039 | AQJ8: =COVAR(AQJ11:AQJ510,AQK11:AQK510)*$N$5 -> 167.0523 | AQM8: =COVAR(AQM11:AQM510,AQN11:AQN510)*$N$5 -> 151.6040725 | AQP8: =COVAR(AQP11:AQP510,AQQ11:AQQ510)*$N$5 -> 96.50831176 | AQS8: =COVAR(AQS11:AQS510,AQT11:AQT510)*$N$5 -> 353.2031529 | AQV8: =COVAR(AQV11:AQV510,AQW11:AQW510)*$N$5 -> 331.7575235 | AQY8: =COVAR(AQY11:AQY510,AQZ11:AQZ510)*$N$5 -> 345.4126255 | ARB8: =COVAR(ARB11:ARB510,ARC11:ARC510)*$N$5 -> 156.1068176 | ARE8: =COVAR(ARE11:ARE510,ARF11:ARF510)*$N$5 -> 471.693202 | ARH8: =COVAR(ARH11:ARH510,ARI11:ARI510)*$N$5 -> 325.0227333 | ARK8: =COVAR(ARK11:ARK510,ARL11:ARL510)*$N$5 -> 905.3319294 | ARN8: =COVAR(ARN11:ARN510,ARO11:ARO510)*$N$5 -> 116.1382725 | ARQ8: =COVAR(ARQ11:ARQ510,ARR11:ARR510)*$N$5 -> 120.5024176 | ART8: =COVAR(ART11:ART510,ARU11:ARU510)*$N$5 -> 723.1885373 | ARW8: =COVAR(ARW11:ARW510,ARX11:ARX510)*$N$5 -> 334.7718549 | ARZ8: =COVAR(ARZ11:ARZ510,ASA11:ASA510)*$N$5 -> 327.0047078 | ASC8: =COVAR(ASC11:ASC510,ASD11:ASD510)*$N$5 -> 305.6693608 | ASF8: =COVAR(ASF11:ASF510,ASG11:ASG510)*$N$5 -> 321.6811137 | ASI8: =COVAR(ASI11:ASI510,ASJ11:ASJ510)*$N$5 -> 106.9113216 | ASL8: =COVAR(ASL11:ASL510,ASM11:ASM510)*$N$5 -> 347.5556176 | ASO8: =COVAR(ASO11:ASO510,ASP11:ASP510)*$N$5 -> 107.1755843 | ASR8: =COVAR(ASR11:ASR510,ASS11:ASS510)*$N$5 -> 349.6887235 | ASU8: =COVAR(ASU11:ASU510,ASV11:ASV510)*$N$5 -> 311.8068137 | ASX8: =COVAR(ASX11:ASX510,ASY11:ASY510)*$N$5 -> 153.780749 | ATA8: =COVAR(ATA11:ATA510,ATB11:ATB510)*$N$5 -> 292.5995137 | ATD8: =COVAR(ATD11:ATD510,ATE11:ATE510)*$N$5 -> 323.2248275 | ATG8: =COVAR(ATG11:ATG510,ATH11:ATH510)*$N$5 -> 316.4835804 | ATJ8: =COVAR(ATJ11:ATJ510,ATK11:ATK510)*$N$5 -> 131.1102824 | ATM8: =COVAR(ATM11:ATM510,ATN11:ATN510)*$N$5 -> 336.9012314 | ATP8: =COVAR(ATP11:ATP510,ATQ11:ATQ510)*$N$5 -> 158.4193529 | ATS8: =COVAR(ATS11:ATS510,ATT11:ATT510)*$N$5 -> 319.3384059 | ATV8: =COVAR(ATV11:ATV510,ATW11:ATW510)*$N$5 -> 355.3521647 | ATY8: =COVAR(ATY11:ATY510,ATZ11:ATZ510)*$N$5 -> 310.0644333 | AUB8: =COVAR(AUB11:AUB510,AUC11:AUC510)*$N$5 -> 710.566602 | AUE8: =COVAR(AUE11:AUE510,AUF11:AUF510)*$N$5 -> 120.0139824 | AUH8: =COVAR(AUH11:AUH510,AUI11:AUI510)*$N$5 -> 555.6392706 | AUK8: =COVAR(AUK11:AUK510,AUL11:AUL510)*$N$5 -> 542.2484118 | AUN8: =COVAR(AUN11:AUN510,AUO11:AUO510)*$N$5 -> 514.1923549 | AUQ8: =COVAR(AUQ11:AUQ510,AUR11:AUR510)*$N$5 -> 110.3359647 | AUT8: =COVAR(AUT11:AUT510,AUU11:AUU510)*$N$5 -> 309.9098608 | AUW8: =COVAR(AUW11:AUW510,AUX11:AUX510)*$N$5 -> 96.18843333 | AUZ8: =COVAR(AUZ11:AUZ510,AVA11:AVA510)*$N$5 -> 119.5763333 | AVC8: =COVAR(AVC11:AVC510,AVD11:AVD510)*$N$5 -> 511.3867431 | AVF8: =COVAR(AVF11:AVF510,AVG11:AVG510)*$N$5 -> 357.1613745 | AVI8: =COVAR(AVI11:AVI510,AVJ11:AVJ510)*$N$5 -> 323.7990039 | AVL8: =COVAR(AVL11:AVL510,AVM11:AVM510)*$N$5 -> 501.1186804 | AVO8: =COVAR(AVO11:AVO510,AVP11:AVP510)*$N$5 -> 335.8514882 | AVR8: =COVAR(AVR11:AVR510,AVS11:AVS510)*$N$5 -> 359.8094804 | AVU8: =COVAR(AVU11:AVU510,AVV11:AVV510)*$N$5 -> 326.8857784 | AVX8: =COVAR(AVX11:AVX510,AVY11:AVY510)*$N$5 -> 325.6276 | AWA8: =COVAR(AWA11:AWA510,AWB11:AWB510)*$N$5 -> 375.4166667 | AWD8: =COVAR(AWD11:AWD510,AWE11:AWE510)*$N$5 -> 522.7319059 | AWG8: =COVAR(AWG11:AWG510,AWH11:AWH510)*$N$5 -> 512.4341922 | AWJ8: =COVAR(AWJ11:AWJ510,AWK11:AWK510)*$N$5 -> 295.0587647 | AWM8: =COVAR(AWM11:AWM510,AWN11:AWN510)*$N$5 -> 328.6518 | AWP8: =COVAR(AWP11:AWP510,AWQ11:AWQ510)*$N$5 -> 159.7534 | AWS8: =COVAR(AWS11:AWS510,AWT11:AWT510)*$N$5 -> 320.1468333 | AWV8: =COVAR(AWV11:AWV510,AWW11:AWW510)*$N$5 -> 749.7068941 | AWY8: =COVAR(AWY11:AWY510,AWZ11:AWZ510)*$N$5 -> 129.9716 | AXB8: =COVAR(AXB11:AXB510,AXC11:AXC510)*$N$5 -> 106.9629824 | AXE8: =COVAR(AXE11:AXE510,AXF11:AXF510)*$N$5 -> 368.4748529 | AXH8: =COVAR(AXH11:AXH510,AXI11:AXI510)*$N$5 -> 323.2940882 | AXK8: =COVAR(AXK11:AXK510,AXL11:AXL510)*$N$5 -> 327.9033471 | AXN8: =COVAR(AXN11:AXN510,AXO11:AXO510)*$N$5 -> 124.6334412 | AXQ8: =COVAR(AXQ11:AXQ510,AXR11:AXR510)*$N$5 -> 534.3544941 | AXT8: =COVAR(AXT11:AXT510,AXU11:AXU510)*$N$5 -> 520.2036922 | AXW8: =COVAR(AXW11:AXW510,AXX11:AXX510)*$N$5 -> 128.8306941 | AXZ8: =COVAR(AXZ11:AXZ510,AYA11:AYA510)*$N$5 -> 335.1278902 | AYC8: =COVAR(AYC11:AYC510,AYD11:AYD510)*$N$5 -> 353.9729314 | AYF8: =COVAR(AYF11:AYF510,AYG11:AYG510)*$N$5 -> 116.7394882 | AYI8: =COVAR(AYI11:AYI510,AYJ11:AYJ510)*$N$5 -> 127.4463863 | AYL8: =COVAR(AYL11:AYL510,AYM11:AYM510)*$N$5 -> 545.2614471 | AYO8: =COVAR(AYO11:AYO510,AYP11:AYP510)*$N$5 -> 156.3450588 | AYR8: =COVAR(AYR11:AYR510,AYS11:AYS510)*$N$5 -> 526.6663 | AYU8: =COVAR(AYU11:AYU510,AYV11:AYV510)*$N$5 -> 551.6159725 | AYX8: =COVAR(AYX11:AYX510,AYY11:AYY510)*$N$5 -> 317.642849 | AZA8: =COVAR(AZA11:AZA510,AZB11:AZB510)*$N$5 -> 511.7900941 | AZD8: =COVAR(AZD11:AZD510,AZE11:AZE510)*$N$5 -> 496.9092157 | AZG8: =COVAR(AZG11:AZG510,AZH11:AZH510)*$N$5 -> 116.7921431 | AZJ8: =COVAR(AZJ11:AZJ510,AZK11:AZK510)*$N$5 -> 303.3975686 | AZM8: =COVAR(AZM11:AZM510,AZN11:AZN510)*$N$5 -> 131.2480529 | AZP8: =COVAR(AZP11:AZP510,AZQ11:AZQ510)*$N$5 -> 320.3945 | AZS8: =COVAR(AZS11:AZS510,AZT11:AZT510)*$N$5 -> 321.6927373 | AZV8: =COVAR(AZV11:AZV510,AZW11:AZW510)*$N$5 -> 322.3533333 | AZY8: =COVAR(AZY11:AZY510,AZZ11:AZZ510)*$N$5 -> 150.3303588 | BAB8: =COVAR(BAB11:BAB510,BAC11:BAC510)*$N$5 -> 321.6674941 | BAE8: =COVAR(BAE11:BAE510,BAF11:BAF510)*$N$5 -> 511.0009471 | BAH8: =COVAR(BAH11:BAH510,BAI11:BAI510)*$N$5 -> 708.5004451 | BAK8: =COVAR(BAK11:BAK510,BAL11:BAL510)*$N$5 -> 335.3211216 | BAN8: =COVAR(BAN11:BAN510,BAO11:BAO510)*$N$5 -> 110.3810588 | BAQ8: =COVAR(BAQ11:BAQ510,BAR11:BAR510)*$N$5 -> 361.3465039 | BAT8: =COVAR(BAT11:BAT510,BAU11:BAU510)*$N$5 -> 337.9286529 | BAW8: =COVAR(BAW11:BAW510,BAX11:BAX510)*$N$5 -> 511.7076471 | BAZ8: =COVAR(BAZ11:BAZ510,BBA11:BBA510)*$N$5 -> 96.05017647 | BBC8: =COVAR(BBC11:BBC510,BBD11:BBD510)*$N$5 -> 490.7686314 | BBF8: =COVAR(BBF11:BBF510,BBG11:BBG510)*$N$5 -> 544.0165392 | BBI8: =COVAR(BBI11:BBI510,BBJ11:BBJ510)*$N$5 -> 312.8316647 | BBL8: =COVAR(BBL11:BBL510,BBM11:BBM510)*$N$5 -> 482.3118235 | BBO8: =COVAR(BBO11:BBO510,BBP11:BBP510)*$N$5 -> 324.986049 | BBR8: =COVAR(BBR11:BBR510,BBS11:BBS510)*$N$5 -> 90.43372941 | BBU8: =COVAR(BBU11:BBU510,BBV11:BBV510)*$N$5 -> 396.5128294 | BBX8: =COVAR(BBX11:BBX510,BBY11:BBY510)*$N$5 -> 294.9455745 | BCA8: =COVAR(BCA11:BCA510,BCB11:BCB510)*$N$5 -> 354.4958882 | BCD8: =COVAR(BCD11:BCD510,BCE11:BCE510)*$N$5 -> 526.2700373 | BCG8: =COVAR(BCG11:BCG510,BCH11:BCH510)*$N$5 -> 695.3619902 | BCJ8: =COVAR(BCJ11:BCJ510,BCK11:BCK510)*$N$5 -> 513.9909647 | BCM8: =COVAR(BCM11:BCM510,BCN11:BCN510)*$N$5 -> 143.9346765 | BCP8: =COVAR(BCP11:BCP510,BCQ11:BCQ510)*$N$5 -> 314.4738882 | BCS8: =COVAR(BCS11:BCS510,BCT11:BCT510)*$N$5 -> 507.0307863 | BCV8: =COVAR(BCV11:BCV510,BCW11:BCW510)*$N$5 -> 367.8998529 | BCY8: =COVAR(BCY11:BCY510,BCZ11:BCZ510)*$N$5 -> 311.6794 | BDB8: =COVAR(BDB11:BDB510,BDC11:BDC510)*$N$5 -> 131.9575196 | BDE8: =COVAR(BDE11:BDE510,BDF11:BDF510)*$N$5 -> 129.208049 | BDH8: =COVAR(BDH11:BDH510,BDI11:BDI510)*$N$5 -> 176.3044961 | BDK8: =COVAR(BDK11:BDK510,BDL11:BDL510)*$N$5 -> 132.7672 | BDN8: =COVAR(BDN11:BDN510,BDO11:BDO510)*$N$5 -> 152.4490529 | BDQ8: =COVAR(BDQ11:BDQ510,BDR11:BDR510)*$N$5 -> 847.3140647 | BDT8: =COVAR(BDT11:BDT510,BDU11:BDU510)*$N$5 -> 130.4307686 | BDW8: =COVAR(BDW11:BDW510,BDX11:BDX510)*$N$5 -> 347.8478392 | BDZ8: =COVAR(BDZ11:BDZ510,BEA11:BEA510)*$N$5 -> 117.8259 | BEC8: =COVAR(BEC11:BEC510,BED11:BED510)*$N$5 -> 535.8117882 | BEF8: =COVAR(BEF11:BEF510,BEG11:BEG510)*$N$5 -> 128.4968314 | BEI8: =COVAR(BEI11:BEI510,BEJ11:BEJ510)*$N$5 -> 299.0921431 | BEL8: =COVAR(BEL11:BEL510,BEM11:BEM510)*$N$5 -> 366.4369176 | BEO8: =COVAR(BEO11:BEO510,BEP11:BEP510)*$N$5 -> 345.8557 | BER8: =COVAR(BER11:BER510,BES11:BES510)*$N$5 -> 133.2517373 | BEU8: =COVAR(BEU11:BEU510,BEV11:BEV510)*$N$5 -> 109.8899667 | BEX8: =COVAR(BEX11:BEX510,BEY11:BEY510)*$N$5 -> 522.3982647 | BFA8: =COVAR(BFA11:BFA510,BFB11:BFB510)*$N$5 -> 343.3829941 | BFD8: =COVAR(BFD11:BFD510,BFE11:BFE510)*$N$5 -> 181.133549 | BFG8: =COVAR(BFG11:BFG510,BFH11:BFH510)*$N$5 -> 117.8961725 | BFJ8: =COVAR(BFJ11:BFJ510,BFK11:BFK510)*$N$5 -> 309.5817431 | BFM8: =COVAR(BFM11:BFM510,BFN11:BFN510)*$N$5 -> 339.420749 | BFP8: =COVAR(BFP11:BFP510,BFQ11:BFQ510)*$N$5 -> 128.4363784 | BFS8: =COVAR(BFS11:BFS510,BFT11:BFT510)*$N$5 -> 106.789102 | BFV8: =COVAR(BFV11:BFV510,BFW11:BFW510)*$N$5 -> 692.8958235 | BFY8: =COVAR(BFY11:BFY510,BFZ11:BFZ510)*$N$5 -> 370.5090784 | BGB8: =COVAR(BGB11:BGB510,BGC11:BGC510)*$N$5 -> 129.8857176 | BGE8: =COVAR(BGE11:BGE510,BGF11:BGF510)*$N$5 -> 553.4551804 | BGH8: =COVAR(BGH11:BGH510,BGI11:BGI510)*$N$5 -> 703.301649 | BGK8: =COVAR(BGK11:BGK510,BGL11:BGL510)*$N$5 -> 112.2172333 | BGN8: =COVAR(BGN11:BGN510,BGO11:BGO510)*$N$5 -> 153.5606471 | BGQ8: =COVAR(BGQ11:BGQ510,BGR11:BGR510)*$N$5 -> 567.7725235 | BGT8: =COVAR(BGT11:BGT510,BGU11:BGU510)*$N$5 -> 526.771
C9: 5 | D9: 0.32 | E9: 0.91 | H9: 0 | I9: 0 | K9: 変動計数：=SD/n＊100 | M9: =M8/M6*100 -> 104.2236126 | N9: =N8/N6*100 -> 72.65857078 | O9: =O8/O6*100 ->  | P9: =P8/P6*100 ->  | U9: 7.42 | V9: 50 | W9: 3 | X9: 5.86 | Y9: 45 | Z9: 8 | AD9: -3.923978499 | AE9: -0.8245849584 | AF9: -2.637593834 | AG9: 1.085570544 | AN9: 48 | AO9: 47 | AS9: =IF(D9<>"",(D9+E9)/2,"") -> 0.615 | AT9: 0.59 | AV9: 0.615 | AW9: 0.59 | BA9: Sｘｘ・Sｙｙ= | BB9: =DEVSQ(BB11:BB510) -> 992.8466627 | BC9: =DEVSQ(BC11:BC510) -> 558.9432353 | BE9: =DEVSQ(BE11:BE510) -> 101.2415686 | BF9: =DEVSQ(BF11:BF510) -> 136.0121922 | BH9: =DEVSQ(BH11:BH510) -> 159.7811922 | BI9: =DEVSQ(BI11:BI510) -> 153.7562627 | BK9: =DEVSQ(BK11:BK510) -> 115.5054353 | BL9: =DEVSQ(BL11:BL510) -> 153.0764157 | BN9: =DEVSQ(BN11:BN510) -> 454.154698 | BO9: =DEVSQ(BO11:BO510) -> 320.4924 | BQ9: =DEVSQ(BQ11:BQ510) -> 149.350251 | BR9: =DEVSQ(BR11:BR510) -> 203.6946824 | BT9: =DEVSQ(BT11:BT510) -> 141.9486627 | BU9: =DEVSQ(BU11:BU510) -> 202.5846353 | BW9: =DEVSQ(BW11:BW510) -> 132.5897333 | BX9: =DEVSQ(BX11:BX510) -> 175.5765686 | BZ9: =DEVSQ(BZ11:BZ510) -> 769.7632157 | CA9: =DEVSQ(CA11:CA510) -> 456.3394157 | CC9: =DEVSQ(CC11:CC510) -> 119.8168824 | CD9: =DEVSQ(CD11:CD510) -> 123.4777176 | CF9: =DEVSQ(CF11:CF510) -> 710.9413294 | CG9: =DEVSQ(CG11:CG510) -> 444.5192824 | CI9: =DEVSQ(CI11:CI510) -> 125.4456039 | CJ9: =DEVSQ(CJ11:CJ510) -> 164.2903294 | CL9: =DEVSQ(CL11:CL510) -> 466.8343294 | CM9: =DEVSQ(CM11:CM510) -> 334.313498 | CO9: =DEVSQ(CO11:CO510) -> 430.0873686 | CP9: =DEVSQ(CP11:CP510) -> 307.4084745 | CR9: =DEVSQ(CR11:CR510) -> 431.8255333 | CS9: =DEVSQ(CS11:CS510) -> 313.1000627 | CU9: =DEVSQ(CU11:CU510) -> 711.4050039 | CV9: =DEVSQ(CV11:CV510) -> 436.7861922 | CX9: =DEVSQ(CX11:CX510) -> 449.525498 | CY9: =DEVSQ(CY11:CY510) -> 320.0125922 | DA9: =DEVSQ(DA11:DA510) -> 467.5261333 | DB9: =DEVSQ(DB11:DB510) -> 315.8683176 | DD9: =DEVSQ(DD11:DD510) -> 104.1592353 | DE9: =DEVSQ(DE11:DE510) -> 151.5489412 | DG9: =DEVSQ(DG11:DG510) -> 452.0194 | DH9: =DEVSQ(DH11:DH510) -> 277.6889294 | DJ9: =DEVSQ(DJ11:DJ510) -> 425.421498 | DK9: =DEVSQ(DK11:DK510) -> 297.5969176 | DM9: =DEVSQ(DM11:DM510) -> 121.1690157 | DN9: =DEVSQ(DN11:DN510) -> 160.9106824 | DP9: =DEVSQ(DP11:DP510) -> 105.2546706 | DQ9: =DEVSQ(DQ11:DQ510) -> 123.3542824 | DS9: =DEVSQ(DS11:DS510) -> 172.680251 | DT9: =DEVSQ(DT11:DT510) -> 178.1941176 | DV9: =DEVSQ(DV11:DV510) -> 414.472498 | DW9: =DEVSQ(DW11:DW510) -> 303.2687922 | DY9: =DEVSQ(DY11:DY510) -> 364.8840353 | DZ9: =DEVSQ(DZ11:DZ510) -> 241.612851 | EB9: =DEVSQ(EB11:EB510) -> 126.8006745 | EC9: =DEVSQ(EC11:EC510) -> 192.939051 | EE9: =DEVSQ(EE11:EE510) -> 457.0414627 | EF9: =DEVSQ(EF11:EF510) -> 333.9561686 | EH9: =DEVSQ(EH11:EH510) -> 1207.359671 | EI9: =DEVSQ(EI11:EI510) -> 646.8629333 | EK9: =DEVSQ(EK11:EK510) -> 409.8947333 | EL9: =DEVSQ(EL11:EL510) -> 313.9323647 | EN9: =DEVSQ(EN11:EN510) -> 204.895898 | EO9: =DEVSQ(EO11:EO510) -> 210.2221176 | EQ9: =DEVSQ(EQ11:EQ510) -> 136.780051 | ER9: =DEVSQ(ER11:ER510) -> 190.9705294 | ET9: =DEVSQ(ET11:ET510) -> 722.4491176 | EU9: =DEVSQ(EU11:EU510) -> 443.4453176 | EW9: =DEVSQ(EW11:EW510) -> 680.5734157 | EX9: =DEVSQ(EX11:EX510) -> 385.4475922 | EZ9: =DEVSQ(EZ11:EZ510) -> 454.3810706 | FA9: =DEVSQ(FA11:FA510) -> 317.0758627 | FC9: =DEVSQ(FC11:FC510) -> 174.9449176 | FD9: =DEVSQ(FD11:FD510) -> 197.9365686 | FF9: =DEVSQ(FF11:FF510) -> 407.9812627 | FG9: =DEVSQ(FG11:FG510) -> 277.8600157 | FI9: =DEVSQ(FI11:FI510) -> 404.179451 | FJ9: =DEVSQ(FJ11:FJ510) -> 272.5826039 | FL9: =DEVSQ(FL11:FL510) -> 416.2471686 | FM9: =DEVSQ(FM11:FM510) -> 318.1000627 | FO9: =DEVSQ(FO11:FO510) -> 98.65725098 | FP9: =DEVSQ(FP11:FP510) -> 181.7699922 | FR9: =DEVSQ(FR11:FR510) -> 717.7547922 | FS9: =DEVSQ(FS11:FS510) -> 414.279451 | FU9: =DEVSQ(FU11:FU510) -> 405.323451 | FV9: =DEVSQ(FV11:FV510) -> 300.5025922 | FX9: =DEVSQ(FX11:FX510) -> 1527.303404 | FY9: =DEVSQ(FY11:FY510) -> 804.449898 | GA9: =DEVSQ(GA11:GA510) -> 188.111251 | GB9: =DEVSQ(GB11:GB510) -> 186.1526745 | GD9: =DEVSQ(GD11:GD510) -> 729.3873647 | GE9: =DEVSQ(GE11:GE510) -> 410.7286745 | GG9: =DEVSQ(GG11:GG510) -> 99.48400392 | GH9: =DEVSQ(GH11:GH510) -> 168.694498 | GJ9: =DEVSQ(GJ11:GJ510) -> 423.5304627 | GK9: =DEVSQ(GK11:GK510) -> 293.0146745 | GM9: =DEVSQ(GM11:GM510) -> 453.9976745 | GN9: =DEVSQ(GN11:GN510) -> 316.2814824 | GP9: =DEVSQ(GP11:GP510) -> 714.579498 | GQ9: =DEVSQ(GQ11:GQ510) -> 415.3228706 | GS9: =DEVSQ(GS11:GS510) -> 125.6668824 | GT9: =DEVSQ(GT11:GT510) -> 170.6194745 | GV9: =DEVSQ(GV11:GV510) -> 202.759898 | GW9: =DEVSQ(GW11:GW510) -> 197.5625294 | GY9: =DEVSQ(GY11:GY510) -> 963.8288157 | GZ9: =DEVSQ(GZ11:GZ510) -> 518.9967922 | HB9: =DEVSQ(HB11:HB510) -> 405.9188627 | HC9: =DEVSQ(HC11:HC510) -> 318.9127686 | HE9: =DEVSQ(HE11:HE510) -> 722.9824 | HF9: =DEVSQ(HF11:HF510) -> 460.3706157 | HH9: =DEVSQ(HH11:HH510) -> 125.3264 | HI9: =DEVSQ(HI11:HI510) -> 153.328498 | HK9: =DEVSQ(HK11:HK510) -> 434.6343647 | HL9: =DEVSQ(HL11:HL510) -> 309.2965412 | HN9: =DEVSQ(HN11:HN510) -> 110.060451 | HO9: =DEVSQ(HO11:HO510) -> 163.877898 | HQ9: =DEVSQ(HQ11:HQ510) -> 679.3491333 | HR9: =DEVSQ(HR11:HR510) -> 401.3558627 | HT9: =DEVSQ(HT11:HT510) -> 446.2084745 | HU9: =DEVSQ(HU11:HU510) -> 305.7582588 | HW9: =DEVSQ(HW11:HW510) -> 121.665651 | HX9: =DEVSQ(HX11:HX510) -> 145.7969922 | HZ9: =DEVSQ(HZ11:HZ510) -> 420.7724157 | IA9: =DEVSQ(IA11:IA510) -> 297.0958157 | IC9: =DEVSQ(IC11:IC510) -> 402.8910627 | ID9: =DEVSQ(ID11:ID510) -> 295.5172745 | IF9: =DEVSQ(IF11:IF510) -> 454.0739686 | IG9: =DEVSQ(IG11:IG510) -> 319.4204588 | II9: =DEVSQ(II11:II510) -> 437.7930157 | IJ9: =DEVSQ(IJ11:IJ510) -> 280.4671294 | IL9: =DEVSQ(IL11:IL510) -> 1553.102482 | IM9: =DEVSQ(IM11:IM510) -> 797.9269686 | IO9: =DEVSQ(IO11:IO510) -> 777.7971412 | IP9: =DEVSQ(IP11:IP510) -> 446.6066745 | IR9: =DEVSQ(IR11:IR510) -> 456.2642353 | IS9: =DEVSQ(IS11:IS510) -> 324.9934824 | IU9: =DEVSQ(IU11:IU510) -> 117.315098 | IV9: =DEVSQ(IV11:IV510) -> 144.1213922 | IX9: =DEVSQ(IX11:IX510) -> 695.7982157 | IY9: =DEVSQ(IY11:IY510) -> 430.9494039 | JA9: =DEVSQ(JA11:JA510) -> 707.4814824 | JB9: =DEVSQ(JB11:JB510) -> 441.5043686 | JD9: =DEVSQ(JD11:JD510) -> 427.5742745 | JE9: =DEVSQ(JE11:JE510) -> 267.3699333 | JG9: =DEVSQ(JG11:JG510) -> 432.166098 | JH9: =DEVSQ(JH11:JH510) -> 294.2315686 | JJ9: =DEVSQ(JJ11:JJ510) -> 430.5804706 | JK9: =DEVSQ(JK11:JK510) -> 333.070498 | JM9: =DEVSQ(JM11:JM510) -> 428.5572706 | JN9: =DEVSQ(JN11:JN510) -> 312.9163294 | JP9: =DEVSQ(JP11:JP510) -> 694.2677686 | JQ9: =DEVSQ(JQ11:JQ510) -> 435.5608157 | JS9: =DEVSQ(JS11:JS510) -> 446.6632745 | JT9: =DEVSQ(JT11:JT510) -> 321.5770627 | JV9: =DEVSQ(JV11:JV510) -> 395.6835412 | JW9: =DEVSQ(JW11:JW510) -> 277.7467412 | JY9: =DEVSQ(JY11:JY510) -> 697.7042039 | JZ9: =DEVSQ(JZ11:JZ510) -> 453.2255294 | KB9: =DEVSQ(KB11:KB510) -> 469.4176157 | KC9: =DEVSQ(KC11:KC510) -> 319.8721647 | KE9: =DEVSQ(KE11:KE510) -> 416.627451 | KF9: =DEVSQ(KF11:KF510) -> 290.3871333 | KH9: =DEVSQ(KH11:KH510) -> 160.4975176 | KI9: =DEVSQ(KI11:KI510) -> 214.531898 | KK9: =DEVSQ(KK11:KK510) -> 415.3352706 | KL9: =DEVSQ(KL11:KL510) -> 304.651298 | KN9: =DEVSQ(KN11:KN510) -> 452.7492353 | KO9: =DEVSQ(KO11:KO510) -> 293.8528745 | KQ9: =DEVSQ(KQ11:KQ510) -> 410.3583686 | KR9: =DEVSQ(KR11:KR510) -> 309.238651 | KT9: =DEVSQ(KT11:KT510) -> 141.391298 | KU9: =DEVSQ(KU11:KU510) -> 171.5949922 | KW9: =DEVSQ(KW11:KW510) -> 133.2577922 | KX9: =DEVSQ(KX11:KX510) -> 169.0784157 | KZ9: =DEVSQ(KZ11:KZ510) -> 708.7066588 | LA9: =DEVSQ(LA11:LA510) -> 445.4546039 | LC9: =DEVSQ(LC11:LC510) -> 149.0500353 | LD9: =DEVSQ(LD11:LD510) -> 169.996451 | LF9: =DEVSQ(LF11:LF510) -> 165.9582157 | LG9: =DEVSQ(LG11:LG510) -> 198.192698 | LI9: =DEVSQ(LI11:LI510) -> 730.926098 | LJ9: =DEVSQ(LJ11:LJ510) -> 462.4339333 | LL9: =DEVSQ(LL11:LL510) -> 186.6571686 | LM9: =DEVSQ(LM11:LM510) -> 177.4435686 | LO9: =DEVSQ(LO11:LO510) -> 708.9524627 | LP9: =DEVSQ(LP11:LP510) -> 417.7391294 | LR9: =DEVSQ(LR11:LR510) -> 109.0461922 | LS9: =DEVSQ(LS11:LS510) -> 140.1168745 | LU9: =DEVSQ(LU11:LU510) -> 401.1591412 | LV9: =DEVSQ(LV11:LV510) -> 295.4948627 | LX9: =DEVSQ(LX11:LX510) -> 130.6754745 | LY9: =DEVSQ(LY11:LY510) -> 191.4774 | MA9: =DEVSQ(MA11:MA510) -> 110.3859922 | MB9: =DEVSQ(MB11:MB510) -> 162.415251 | MD9: =DEVSQ(MD11:MD510) -> 788.4775922 | ME9: =DEVSQ(ME11:ME510) -> 477.0192157 | MG9: =DEVSQ(MG11:MG510) -> 102.6752706 | MH9: =DEVSQ(MH11:MH510) -> 146.9678039 | MJ9: =DEVSQ(MJ11:MJ510) -> 144.9147333 | MK9: =DEVSQ(MK11:MK510) -> 155.4300824 | MM9: =DEVSQ(MM11:MM510) -> 733.0116039 | MN9: =DEVSQ(MN11:MN510) -> 393.9088588 | MP9: =DEVSQ(MP11:MP510) -> 433.8402745 | MQ9: =DEVSQ(MQ11:MQ510) -> 291.557698 | MS9: =DEVSQ(MS11:MS510) -> 706.0748824 | MT9: =DEVSQ(MT11:MT510) -> 431.1236745 | MV9: =DEVSQ(MV11:MV510) -> 442.1273647 | MW9: =DEVSQ(MW11:MW510) -> 289.0520353 | MY9: =DEVSQ(MY11:MY510) -> 139.173851 | MZ9: =DEVSQ(MZ11:MZ510) -> 165.7145412 | NB9: =DEVSQ(NB11:NB510) -> 123.9989686 | NC9: =DEVSQ(NC11:NC510) -> 180.5655412 | NE9: =DEVSQ(NE11:NE510) -> 458.031851 | NF9: =DEVSQ(NF11:NF510) -> 300.4449333 | NH9: =DEVSQ(NH11:NH510) -> 435.7600157 | NI9: =DEVSQ(NI11:NI510) -> 285.1012588 | NK9: =DEVSQ(NK11:NK510) -> 137.64 | NL9: =DEVSQ(NL11:NL510) -> 155.7916157 | NN9: =DEVSQ(NN11:NN510) -> 751.706451 | NO9: =DEVSQ(NO11:NO510) -> 469.4382039 | NQ9: =DEVSQ(NQ11:NQ510) -> 437.8426039 | NR9: =DEVSQ(NR11:NR510) -> 318.1387176 | NT9: =DEVSQ(NT11:NT510) -> 416.2481176 | NU9: =DEVSQ(NU11:NU510) -> 321.7868588 | NW9: =DEVSQ(NW11:NW510) -> 104.4089294 | NX9: =DEVSQ(NX11:NX510) -> 123.0336627 | NZ9: =DEVSQ(NZ11:NZ510) -> 708.0071686 | OA9: =DEVSQ(OA11:OA510) -> 404.9052039 | OC9: =DEVSQ(OC11:OC510) -> 150.709498 | OD9: =DEVSQ(OD11:OD510) -> 192.8020039 | OF9: =DEVSQ(OF11:OF510) -> 459.2161176 | OG9: =DEVSQ(OG11:OG510) -> 341.3091333 | OI9: =DEVSQ(OI11:OI510) -> 150.6548824 | OJ9: =DEVSQ(OJ11:OJ510) -> 173.3935686 | OL9: =DEVSQ(OL11:OL510) -> 784.5171647 | OM9: =DEVSQ(OM11:OM510) -> 449.8996039 | OO9: =DEVSQ(OO11:OO510) -> 713.388251 | OP9: =DEVSQ(OP11:OP510) -> 440.6746627 | OR9: =DEVSQ(OR11:OR510) -> 427.4749922 | OS9: =DEVSQ(OS11:OS510) -> 265.5869176 | OU9: =DEVSQ(OU11:OU510) -> 128.2386353 | OV9: =DEVSQ(OV11:OV510) -> 145.991651 | OX9: =DEVSQ(OX11:OX510) -> 123.1000039 | OY9: =DEVSQ(OY11:OY510) -> 167.6667412 | PA9: =DEVSQ(PA11:PA510) -> 404.854898 | PB9: =DEVSQ(PB11:PB510) -> 282.7139647 | PD9: =DEVSQ(PD11:PD510) -> 132.0122588 | PE9: =DEVSQ(PE11:PE510) -> 146.1094157 | PG9: =DEVSQ(PG11:PG510) -> 741.5484039 | PH9: =DEVSQ(PH11:PH510) -> 423.5538039 | PJ9: =DEVSQ(PJ11:PJ510) -> 134.3857686 | PK9: =DEVSQ(PK11:PK510) -> 159.2162588 | PM9: =DEVSQ(PM11:PM510) -> 150.3944157 | PN9: =DEVSQ(PN11:PN510) -> 176.8144745 | PP9: =DEVSQ(PP11:PP510) -> 422.8072627 | PQ9: =DEVSQ(PQ11:PQ510) -> 295.0678824 | PS9: =DEVSQ(PS11:PS510) -> 738.8167922 | PT9: =DEVSQ(PT11:PT510) -> 429.0991412 | PV9: =DEVSQ(PV11:PV510) -> 165.5830745 | PW9: =DEVSQ(PW11:PW510) -> 185.9412745 | PY9: =DEVSQ(PY11:PY510) -> 428.5272588 | PZ9: =DEVSQ(PZ11:PZ510) -> 292.4677412 | QB9: =DEVSQ(QB11:QB510) -> 394.9234039 | QC9: =DEVSQ(QC11:QC510) -> 281.3291333 | QE9: =DEVSQ(QE11:QE510) -> 424.7878745 | QF9: =DEVSQ(QF11:QF510) -> 307.8897686 | QH9: =DEVSQ(QH11:QH510) -> 1007.744129 | QI9: =DEVSQ(QI11:QI510) -> 559.8845922 | QK9: =DEVSQ(QK11:QK510) -> 720.0524745 | QL9: =DEVSQ(QL11:QL510) -> 411.584098 | QN9: =DEVSQ(QN11:QN510) -> 450.2433686 | QO9: =DEVSQ(QO11:QO510) -> 274.7058353 | QQ9: =DEVSQ(QQ11:QQ510) -> 170.3899686 | QR9: =DEVSQ(QR11:QR510) -> 185.5526039 | QT9: =DEVSQ(QT11:QT510) -> 452.4016588 | QU9: =DEVSQ(QU11:QU510) -> 262.4201647 | QW9: =DEVSQ(QW11:QW510) -> 441.3785647 | QX9: =DEVSQ(QX11:QX510) -> 289.6715922 | QZ9: =DEVSQ(QZ11:QZ510) -> 437.7377333 | RA9: =DEVSQ(RA11:RA510) -> 324.3148 | RC9: =DEVSQ(RC11:RC510) -> 106.4340157 | RD9: =DEVSQ(RD11:RD510) -> 128.270251 | RF9: =DEVSQ(RF11:RF510) -> 727.9392588 | RG9: =DEVSQ(RG11:RG510) -> 414.795051 | RI9: =DEVSQ(RI11:RI510) -> 105.1523686 | RJ9: =DEVSQ(RJ11:RJ510) -> 141.4415412 | RL9: =DEVSQ(RL11:RL510) -> 426.3201176 | RM9: =DEVSQ(RM11:RM510) -> 297.0832157 | RO9: =DEVSQ(RO11:RO510) -> 116.3900039 | RP9: =DEVSQ(RP11:RP510) -> 172.1733333 | RR9: =DEVSQ(RR11:RR510) -> 95.30041569 | RS9: =DEVSQ(RS11:RS510) -> 133.0030745 | RU9: =DEVSQ(RU11:RU510) -> 132.4412824 | RV9: =DEVSQ(RV11:RV510) -> 128.2712588 | RX9: =DEVSQ(RX11:RX510) -> 1013.102592 | RY9: =DEVSQ(RY11:RY510) -> 558.751451 | SA9: =DEVSQ(SA11:SA510) -> 443.705298 | SB9: =DEVSQ(SB11:SB510) -> 295.0396039 | SD9: =DEVSQ(SD11:SD510) -> 117.4333333 | SE9: =DEVSQ(SE11:SE510) -> 159.2383922 | SG9: =DEVSQ(SG11:SG510) -> 121.6377647 | SH9: =DEVSQ(SH11:SH510) -> 120.8604745 | SJ9: =DEVSQ(SJ11:SJ510) -> 432.6406745 | SK9: =DEVSQ(SK11:SK510) -> 294.6422157 | SM9: =DEVSQ(SM11:SM510) -> 474.373251 | SN9: =DEVSQ(SN11:SN510) -> 345.8187412 | SP9: =DEVSQ(SP11:SP510) -> 438.207851 | SQ9: =DEVSQ(SQ11:SQ510) -> 304.5890039 | SS9: =DEVSQ(SS11:SS510) -> 156.0244157 | ST9: =DEVSQ(ST11:ST510) -> 161.458851 | SV9: =DEVSQ(SV11:SV510) -> 415.2657176 | SW9: =DEVSQ(SW11:SW510) -> 300.9253686 | SY9: =DEVSQ(SY11:SY510) -> 719.8656824 | SZ9: =DEVSQ(SZ11:SZ510) -> 409.2208745 | TB9: =DEVSQ(TB11:TB510) -> 413.5750745 | TC9: =DEVSQ(TC11:TC510) -> 288.8842627 | TE9: =DEVSQ(TE11:TE510) -> 997.8569176 | TF9: =DEVSQ(TF11:TF510) -> 558.388851 | TH9: =DEVSQ(TH11:TH510) -> 419.8067294 | TI9: =DEVSQ(TI11:TI510) -> 285.1297922 | TK9: =DEVSQ(TK11:TK510) -> 464.1539686 | TL9: =DEVSQ(TL11:TL510) -> 344.400698 | TN9: =DEVSQ(TN11:TN510) -> 718.3321922 | TO9: =DEVSQ(TO11:TO510) -> 434.7941176 | TQ9: =DEVSQ(TQ11:TQ510) -> 452.5624627 | TR9: =DEVSQ(TR11:TR510) -> 343.628298 | TT9: =DEVSQ(TT11:TT510) -> 1012.233416 | TU9: =DEVSQ(TU11:TU510) -> 555.421051 | TW9: =DEVSQ(TW11:TW510) -> 433.7830157 | TX9: =DEVSQ(TX11:TX510) -> 331.1975294 | TZ9: =DEVSQ(TZ11:TZ510) -> 702.9037294 | UA9: =DEVSQ(UA11:UA510) -> 427.8918039 | UC9: =DEVSQ(UC11:UC510) -> 426.4340353 | UD9: =DEVSQ(UD11:UD510) -> 293.0812157 | UF9: =DEVSQ(UF11:UF510) -> 402.8548039 | UG9: =DEVSQ(UG11:UG510) -> 289.1569333 | UI9: =DEVSQ(UI11:UI510) -> 457.951051 | UJ9: =DEVSQ(UJ11:UJ510) -> 336.532898 | UL9: =DEVSQ(UL11:UL510) -> 729.821498 | UM9: =DEVSQ(UM11:UM510) -> 429.3597176 | UO9: =DEVSQ(UO11:UO510) -> 392.1990353 | UP9: =DEVSQ(UP11:UP510) -> 241.6941294 | UR9: =DEVSQ(UR11:UR510) -> 104.7650588 | US9: =DEVSQ(US11:US510) -> 151.7064824 | UU9: =DEVSQ(UU11:UU510) -> 454.7168157 | UV9: =DEVSQ(UV11:UV510) -> 298.9558745 | UX9: =DEVSQ(UX11:UX510) -> 135.1094627 | UY9: =DEVSQ(UY11:UY510) -> 145.6931922 | VA9: =DEVSQ(VA11:VA510) -> 436.7507176 | VB9: =DEVSQ(VB11:VB510) -> 291.6040157 | VD9: =DEVSQ(VD11:VD510) -> 107.682698 | VE9: =DEVSQ(VE11:VE510) -> 129.457851 | VG9: =DEVSQ(VG11:VG510) -> 733.5891294 | VH9: =DEVSQ(VH11:VH510) -> 434.8669686 | VJ9: =DEVSQ(VJ11:VJ510) -> 125.7005922 | VK9: =DEVSQ(VK11:VK510) -> 117.0576353 | VM9: =DEVSQ(VM11:VM510) -> 457.595651 | VN9: =DEVSQ(VN11:VN510) -> 310.9152039 | VP9: =DEVSQ(VP11:VP510) -> 89.94114118 | VQ9: =DEVSQ(VQ11:VQ510) -> 149.8645412 | VS9: =DEVSQ(VS11:VS510) -> 413.6773294 | VT9: =DEVSQ(VT11:VT510) -> 321.8813333 | VV9: =DEVSQ(VV11:VV510) -> 435.9931333 | VW9: =DEVSQ(VW11:VW510) -> 305.5352157 | VY9: =DEVSQ(VY11:VY510) -> 1217.593533 | VZ9: =DEVSQ(VZ11:VZ510) -> 634.7765412 | WB9: =DEVSQ(WB11:WB510) -> 134.8580039 | WC9: =DEVSQ(WC11:WC510) -> 169.3917294 | WE9: =DEVSQ(WE11:WE510) -> 445.5408627 | WF9: =DEVSQ(WF11:WF510) -> 301.7222588 | WH9: =DEVSQ(WH11:WH510) -> 134.804098 | WI9: =DEVSQ(WI11:WI510) -> 227.6687294 | WK9: =DEVSQ(WK11:WK510) -> 697.4250627 | WL9: =DEVSQ(WL11:WL510) -> 414.1600745 | WN9: =DEVSQ(WN11:WN510) -> 769.4252745 | WO9: =DEVSQ(WO11:WO510) -> 462.0121686 | WQ9: =DEVSQ(WQ11:WQ510) -> 702.4250157 | WR9: =DEVSQ(WR11:WR510) -> 411.7862039 | WT9: =DEVSQ(WT11:WT510) -> 380.3852353 | WU9: =DEVSQ(WU11:WU510) -> 278.8251412 | WW9: =DEVSQ(WW11:WW510) -> 709.372451 | WX9: =DEVSQ(WX11:WX510) -> 417.4974824 | WZ9: =DEVSQ(WZ11:WZ510) -> 121.6814 | XA9: =DEVSQ(XA11:XA510) -> 166.3381333 | XC9: =DEVSQ(XC11:XC510) -> 183.2682353 | XD9: =DEVSQ(XD11:XD510) -> 163.1865686 | XF9: =DEVSQ(XF11:XF510) -> 1273.530035 | XG9: =DEVSQ(XG11:XG510) -> 680.2605922 | XI9: =DEVSQ(XI11:XI510) -> 99.37856863 | XJ9: =DEVSQ(XJ11:XJ510) -> 159.1892627 | XL9: =DEVSQ(XL11:XL510) -> 712.3315333 | XM9: =DEVSQ(XM11:XM510) -> 417.5367647 | XO9: =DEVSQ(XO11:XO510) -> 994.3807176 | XP9: =DEVSQ(XP11:XP510) -> 581.9635294 | XR9: =DEVSQ(XR11:XR510) -> 691.0105922 | XS9: =DEVSQ(XS11:XS510) -> 402.5953294 | XU9: =DEVSQ(XU11:XU510) -> 698.3446824 | XV9: =DEVSQ(XV11:XV510) -> 399.8576157 | XX9: =DEVSQ(XX11:XX510) -> 124.7553686 | XY9: =DEVSQ(XY11:XY510) -> 151.2798745 | YA9: =DEVSQ(YA11:YA510) -> 121.5950627 | YB9: =DEVSQ(YB11:YB510) -> 165.8041922 | YD9: =DEVSQ(YD11:YD510) -> 125.7042157 | YE9: =DEVSQ(YE11:YE510) -> 190.3870039 | YG9: =DEVSQ(YG11:YG510) -> 410.4743922 | YH9: =DEVSQ(YH11:YH510) -> 327.891851 | YJ9: =DEVSQ(YJ11:YJ510) -> 162.6029686 | YK9: =DEVSQ(YK11:YK510) -> 166.1083922 | YM9: =DEVSQ(YM11:YM510) -> 433.946898 | YN9: =DEVSQ(YN11:YN510) -> 294.8245686 | YP9: =DEVSQ(YP11:YP510) -> 122.5081412 | YQ9: =DEVSQ(YQ11:YQ510) -> 179.8353922 | YS9: =DEVSQ(YS11:YS510) -> 131.877251 | YT9: =DEVSQ(YT11:YT510) -> 169.0120157 | YV9: =DEVSQ(YV11:YV510) -> 136.5586 | YW9: =DEVSQ(YW11:YW510) -> 155.6576353 | YY9: =DEVSQ(YY11:YY510) -> 196.7369294 | YZ9: =DEVSQ(YZ11:YZ510) -> 179.5668157 | ZB9: =DEVSQ(ZB11:ZB510) -> 687.3998157 | ZC9: =DEVSQ(ZC11:ZC510) -> 404.8738627 | ZE9: =DEVSQ(ZE11:ZE510) -> 441.1938745 | ZF9: =DEVSQ(ZF11:ZF510) -> 274.9921176 | ZH9: =DEVSQ(ZH11:ZH510) -> 122.7144157 | ZI9: =DEVSQ(ZI11:ZI510) -> 189.9860627 | ZK9: =DEVSQ(ZK11:ZK510) -> 457.0049686 | ZL9: =DEVSQ(ZL11:ZL510) -> 292.032051 | ZN9: =DEVSQ(ZN11:ZN510) -> 141.3764627 | ZO9: =DEVSQ(ZO11:ZO510) -> 171.0472157 | ZQ9: =DEVSQ(ZQ11:ZQ510) -> 742.0913333 | ZR9: =DEVSQ(ZR11:ZR510) -> 436.917451 | ZT9: =DEVSQ(ZT11:ZT510) -> 440.0402627 | ZU9: =DEVSQ(ZU11:ZU510) -> 340.0434627 | ZW9: =DEVSQ(ZW11:ZW510) -> 1047.090929 | ZX9: =DEVSQ(ZX11:ZX510) -> 579.0824588 | ZZ9: =DEVSQ(ZZ11:ZZ510) -> 723.9141922 | AAA9: =DEVSQ(AAA11:AAA510) -> 473.1266039 | AAC9: =DEVSQ(AAC11:AAC510) -> 124.4080039 | AAD9: =DEVSQ(AAD11:AAD510) -> 140.8581922 | AAF9: =DEVSQ(AAF11:AAF510) -> 126.3176627 | AAG9: =DEVSQ(AAG11:AAG510) -> 173.017898 | AAI9: =DEVSQ(AAI11:AAI510) -> 416.1965176 | AAJ9: =DEVSQ(AAJ11:AAJ510) -> 302.7940824 | AAL9: =DEVSQ(AAL11:AAL510) -> 1046.607592 | AAM9: =DEVSQ(AAM11:AAM510) -> 587.1916353 | AAO9: =DEVSQ(AAO11:AAO510) -> 158.7113294 | AAP9: =DEVSQ(AAP11:AAP510) -> 183.8072157 | AAR9: =DEVSQ(AAR11:AAR510) -> 761.7683686 | AAS9: =DEVSQ(AAS11:AAS510) -> 458.0558745 | AAU9: =DEVSQ(AAU11:AAU510) -> 147.409498 | AAV9: =DEVSQ(AAV11:AAV510) -> 157.843898 | AAX9: =DEVSQ(AAX11:AAX510) -> 415.3466588 | AAY9: =DEVSQ(AAY11:AAY510) -> 322.3335686 | ABA9: =DEVSQ(ABA11:ABA510) -> 960.9756706 | ABB9: =DEVSQ(ABB11:ABB510) -> 524.574851 | ABD9: =DEVSQ(ABD11:ABD510) -> 419.3954157 | ABE9: =DEVSQ(ABE11:ABE510) -> 295.9906039 | ABG9: =DEVSQ(ABG11:ABG510) -> 406.2374745 | ABH9: =DEVSQ(ABH11:ABH510) -> 273.7979294 | ABJ9: =DEVSQ(ABJ11:ABJ510) -> 94.99180392 | ABK9: =DEVSQ(ABK11:ABK510) -> 147.1990627 | ABM9: =DEVSQ(ABM11:ABM510) -> 992.9414157 | ABN9: =DEVSQ(ABN11:ABN510) -> 545.261451 | ABP9: =DEVSQ(ABP11:ABP510) -> 433.3194627 | ABQ9: =DEVSQ(ABQ11:ABQ510) -> 275.5179333 | ABS9: =DEVSQ(ABS11:ABS510) -> 461.7084039 | ABT9: =DEVSQ(ABT11:ABT510) -> 316.4947333 | ABV9: =DEVSQ(ABV11:ABV510) -> 428.8526824 | ABW9: =DEVSQ(ABW11:ABW510) -> 323.9972157 | ABY9: =DEVSQ(ABY11:ABY510) -> 142.7931176 | ABZ9: =DEVSQ(ABZ11:ABZ510) -> 147.2923686 | ACB9: =DEVSQ(ACB11:ACB510) -> 443.0581922 | ACC9: =DEVSQ(ACC11:ACC510) -> 282.7452157 | ACE9: =DEVSQ(ACE11:ACE510) -> 1028.677698 | ACF9: =DEVSQ(ACF11:ACF510) -> 610.8865294 | ACH9: =DEVSQ(ACH11:ACH510) -> 425.8148157 | ACI9: =DEVSQ(ACI11:ACI510) -> 301.5643647 | ACK9: =DEVSQ(ACK11:ACK510) -> 423.1219686 | ACL9: =DEVSQ(ACL11:ACL510) -> 274.5386824 | ACN9: =DEVSQ(ACN11:ACN510) -> 152.1234627 | ACO9: =DEVSQ(ACO11:ACO510) -> 143.556098 | ACQ9: =DEVSQ(ACQ11:ACQ510) -> 438.1776039 | ACR9: =DEVSQ(ACR11:ACR510) -> 298.2314353 | ACT9: =DEVSQ(ACT11:ACT510) -> 430.0697176 | ACU9: =DEVSQ(ACU11:ACU510) -> 300.9929333 | ACW9: =DEVSQ(ACW11:ACW510) -> 133.306698 | ACX9: =DEVSQ(ACX11:ACX510) -> 204.7769294 | ACZ9: =DEVSQ(ACZ11:ACZ510) -> 136.2463922 | ADA9: =DEVSQ(ADA11:ADA510) -> 187.1372588 | ADC9: =DEVSQ(ADC11:ADC510) -> 753.8656157 | ADD9: =DEVSQ(ADD11:ADD510) -> 454.171651 | ADF9: =DEVSQ(ADF11:ADF510) -> 410.9158157 | ADG9: =DEVSQ(ADG11:ADG510) -> 260.505898 | ADI9: =DEVSQ(ADI11:ADI510) -> 181.5788745 | ADJ9: =DEVSQ(ADJ11:ADJ510) -> 196.4727686 | ADL9: =DEVSQ(ADL11:ADL510) -> 449.5114824 | ADM9: =DEVSQ(ADM11:ADM510) -> 302.1534039 | ADO9: =DEVSQ(ADO11:ADO510) -> 459.9441686 | ADP9: =DEVSQ(ADP11:ADP510) -> 335.630251 | ADR9: =DEVSQ(ADR11:ADR510) -> 465.0870627 | ADS9: =DEVSQ(ADS11:ADS510) -> 301.5832824 | ADU9: =DEVSQ(ADU11:ADU510) -> 95.00028235 | ADV9: =DEVSQ(ADV11:ADV510) -> 141.953851 | ADX9: =DEVSQ(ADX11:ADX510) -> 672.8898039 | ADY9: =DEVSQ(ADY11:ADY510) -> 432.0086627 | AEA9: =DEVSQ(AEA11:AEA510) -> 414.4448353 | AEB9: =DEVSQ(AEB11:AEB510) -> 317.5640039 | AED9: =DEVSQ(AED11:AED510) -> 144.5107176 | AEE9: =DEVSQ(AEE11:AEE510) -> 158.9047412 | AEG9: =DEVSQ(AEG11:AEG510) -> 688.7620039 | AEH9: =DEVSQ(AEH11:AEH510) -> 424.9379294 | AEJ9: =DEVSQ(AEJ11:AEJ510) -> 145.8808157 | AEK9: =DEVSQ(AEK11:AEK510) -> 175.175451 | AEM9: =DEVSQ(AEM11:AEM510) -> 93.00166275 | AEN9: =DEVSQ(AEN11:AEN510) -> 123.3479922 | AEP9: =DEVSQ(AEP11:AEP510) -> 467.6740039 | AEQ9: =DEVSQ(AEQ11:AEQ510) -> 324.8350157 | AES9: =DEVSQ(AES11:AES510) -> 432.5163412 | AET9: =DEVSQ(AET11:AET510) -> 313.420498 | AEV9: =DEVSQ(AEV11:AEV510) -> 711.1216039 | AEW9: =DEVSQ(AEW11:AEW510) -> 432.7384706 | AEY9: =DEVSQ(AEY11:AEY510) -> 417.3132588 | AEZ9: =DEVSQ(AEZ11:AEZ510) -> 276.9841176 | AFB9: =DEVSQ(AFB11:AFB510) -> 466.821498 | AFC9: =DEVSQ(AFC11:AFC510) -> 295.8414039 | AFE9: =DEVSQ(AFE11:AFE510) -> 424.5456824 | AFF9: =DEVSQ(AFF11:AFF510) -> 280.0052353 | AFH9: =DEVSQ(AFH11:AFH510) -> 143.8602706 | AFI9: =DEVSQ(AFI11:AFI510) -> 158.568098 | AFK9: =DEVSQ(AFK11:AFK510) -> 119.3939922 | AFL9: =DEVSQ(AFL11:AFL510) -> 154.7896745 | AFN9: =DEVSQ(AFN11:AFN510) -> 126.719098 | AFO9: =DEVSQ(AFO11:AFO510) -> 180.409898 | AFQ9: =DEVSQ(AFQ11:AFQ510) -> 764.9887333 | AFR9: =DEVSQ(AFR11:AFR510) -> 485.467051 | AFT9: =DEVSQ(AFT11:AFT510) -> 981.1938157 | AFU9: =DEVSQ(AFU11:AFU510) -> 538.0930039 | AFW9: =DEVSQ(AFW11:AFW510) -> 689.1856745 | AFX9: =DEVSQ(AFX11:AFX510) -> 394.8040745 | AFZ9: =DEVSQ(AFZ11:AFZ510) -> 174.1236039 | AGA9: =DEVSQ(AGA11:AGA510) -> 164.242898 | AGC9: =DEVSQ(AGC11:AGC510) -> 154.760251 | AGD9: =DEVSQ(AGD11:AGD510) -> 137.9026745 | AGF9: =DEVSQ(AGF11:AGF510) -> 446.7595333 | AGG9: =DEVSQ(AGG11:AGG510) -> 334.2916706 | AGI9: =DEVSQ(AGI11:AGI510) -> 486.9030157 | AGJ9: =DEVSQ(AGJ11:AGJ510) -> 322.7027922 | AGL9: =DEVSQ(AGL11:AGL510) -> 121.5816745 | AGM9: =DEVSQ(AGM11:AGM510) -> 172.5010039 | AGO9: =DEVSQ(AGO11:AGO510) -> 710.8875294 | AGP9: =DEVSQ(AGP11:AGP510) -> 430.9207294 | AGR9: =DEVSQ(AGR11:AGR510) -> 447.470298 | AGS9: =DEVSQ(AGS11:AGS510) -> 286.6679647 | AGU9: =DEVSQ(AGU11:AGU510) -> 107.616251 | AGV9: =DEVSQ(AGV11:AGV510) -> 183.1493333 | AGX9: =DEVSQ(AGX11:AGX510) -> 400.9001686 | AGY9: =DEVSQ(AGY11:AGY510) -> 277.9982039 | AHA9: =DEVSQ(AHA11:AHA510) -> 448.9904039 | AHB9: =DEVSQ(AHB11:AHB510) -> 298.7075686 | AHD9: =DEVSQ(AHD11:AHD510) -> 136.808098 | AHE9: =DEVSQ(AHE11:AHE510) -> 177.3058039 | AHG9: =DEVSQ(AHG11:AHG510) -> 456.1062706 | AHH9: =DEVSQ(AHH11:AHH510) -> 297.1052824 | AHJ9: =DEVSQ(AHJ11:AHJ510) -> 750.0148745 | AHK9: =DEVSQ(AHK11:AHK510) -> 442.3544745 | AHM9: =DEVSQ(AHM11:AHM510) -> 739.5517922 | AHN9: =DEVSQ(AHN11:AHN510) -> 456.3495922 | AHP9: =DEVSQ(AHP11:AHP510) -> 137.8821176 | AHQ9: =DEVSQ(AHQ11:AHQ510) -> 162.2164706 | AHS9: =DEVSQ(AHS11:AHS510) -> 433.116298 | AHT9: =DEVSQ(AHT11:AHT510) -> 278.6294824 | AHV9: =DEVSQ(AHV11:AHV510) -> 474.5097294 | AHW9: =DEVSQ(AHW11:AHW510) -> 339.2574039 | AHY9: =DEVSQ(AHY11:AHY510) -> 931.4493412 | AHZ9: =DEVSQ(AHZ11:AHZ510) -> 512.1897922 | AIB9: =DEVSQ(AIB11:AIB510) -> 745.1862627 | AIC9: =DEVSQ(AIC11:AIC510) -> 443.2263647 | AIE9: =DEVSQ(AIE11:AIE510) -> 126.8915647 | AIF9: =DEVSQ(AIF11:AIF510) -> 145.3956706 | AIH9: =DEVSQ(AIH11:AIH510) -> 689.5480627 | AII9: =DEVSQ(AII11:AII510) -> 416.7779294 | AIK9: =DEVSQ(AIK11:AIK510) -> 94.95086275 | AIL9: =DEVSQ(AIL11:AIL510) -> 135.1647176 | AIN9: =DEVSQ(AIN11:AIN510) -> 105.2635412 | AIO9: =DEVSQ(AIO11:AIO510) -> 167.9842157 | AIQ9: =DEVSQ(AIQ11:AIQ510) -> 146.029298 | AIR9: =DEVSQ(AIR11:AIR510) -> 163.849451 | AIT9: =DEVSQ(AIT11:AIT510) -> 443.0556157 | AIU9: =DEVSQ(AIU11:AIU510) -> 318.1378157 | AIW9: =DEVSQ(AIW11:AIW510) -> 108.9666157 | AIX9: =DEVSQ(AIX11:AIX510) -> 169.8809686 | AIZ9: =DEVSQ(AIZ11:AIZ510) -> 395.9290039 | AJA9: =DEVSQ(AJA11:AJA510) -> 329.8495922 | AJC9: =DEVSQ(AJC11:AJC510) -> 171.3848157 | AJD9: =DEVSQ(AJD11:AJD510) -> 196.4618353 | AJF9: =DEVSQ(AJF11:AJF510) -> 436.4948157 | AJG9: =DEVSQ(AJG11:AJG510) -> 301.3773176 | AJI9: =DEVSQ(AJI11:AJI510) -> 451.0276824 | AJJ9: =DEVSQ(AJJ11:AJJ510) -> 335.600851 | AJL9: =DEVSQ(AJL11:AJL510) -> 465.3303176 | AJM9: =DEVSQ(AJM11:AJM510) -> 314.4398353 | AJO9: =DEVSQ(AJO11:AJO510) -> 144.2580039 | AJP9: =DEVSQ(AJP11:AJP510) -> 140.5782824 | AJR9: =DEVSQ(AJR11:AJR510) -> 126.400898 | AJS9: =DEVSQ(AJS11:AJS510) -> 202.9048706 | AJU9: =DEVSQ(AJU11:AJU510) -> 403.5079294 | AJV9: =DEVSQ(AJV11:AJV510) -> 282.3484745 | AJX9: =DEVSQ(AJX11:AJX510) -> 431.883251 | AJY9: =DEVSQ(AJY11:AJY510) -> 307.510051 | AKA9: =DEVSQ(AKA11:AKA510) -> 435.779098 | AKB9: =DEVSQ(AKB11:AKB510) -> 280.3326627 | AKD9: =DEVSQ(AKD11:AKD510) -> 150.1722588 | AKE9: =DEVSQ(AKE11:AKE510) -> 187.6848039 | AKG9: =DEVSQ(AKG11:AKG510) -> 117.2206745 | AKH9: =DEVSQ(AKH11:AKH510) -> 185.1175686 | AKJ9: =DEVSQ(AKJ11:AKJ510) -> 147.6075686 | AKK9: =DEVSQ(AKK11:AKK510) -> 162.1126824 | AKM9: =DEVSQ(AKM11:AKM510) -> 428.1603922 | AKN9: =DEVSQ(AKN11:AKN510) -> 287.8984627 | AKP9: =DEVSQ(AKP11:AKP510) -> 729.638051 | AKQ9: =DEVSQ(AKQ11:AKQ510) -> 405.996298 | AKS9: =DEVSQ(AKS11:AKS510) -> 447.173051 | AKT9: =DEVSQ(AKT11:AKT510) -> 311.3441922 | AKV9: =DEVSQ(AKV11:AKV510) -> 85.42869804 | AKW9: =DEVSQ(AKW11:AKW510) -> 143.620251 | AKY9: =DEVSQ(AKY11:AKY510) -> 122.1412745 | AKZ9: =DEVSQ(AKZ11:AKZ510) -> 182.9180353 | ALB9: =DEVSQ(ALB11:ALB510) -> 124.9166706 | ALC9: =DEVSQ(ALC11:ALC510) -> 123.4783686 | ALE9: =DEVSQ(ALE11:ALE510) -> 1021.488569 | ALF9: =DEVSQ(ALF11:ALF510) -> 562.5410745 | ALH9: =DEVSQ(ALH11:ALH510) -> 793.920898 | ALI9: =DEVSQ(ALI11:ALI510) -> 473.085098 | ALK9: =DEVSQ(ALK11:ALK510) -> 138.2458824 | ALL9: =DEVSQ(ALL11:ALL510) -> 148.2269333 | ALN9: =DEVSQ(ALN11:ALN510) -> 702.7934824 | ALO9: =DEVSQ(ALO11:ALO510) -> 461.1100157 | ALQ9: =DEVSQ(ALQ11:ALQ510) -> 224.7360157 | ALR9: =DEVSQ(ALR11:ALR510) -> 199.1472353 | ALT9: =DEVSQ(ALT11:ALT510) -> 1007.386682 | ALU9: =DEVSQ(ALU11:ALU510) -> 560.2885922 | ALW9: =DEVSQ(ALW11:ALW510) -> 459.7161922 | ALX9: =DEVSQ(ALX11:ALX510) -> 303.6154627 | ALZ9: =DEVSQ(ALZ11:ALZ510) -> 415.472851 | AMA9: =DEVSQ(AMA11:AMA510) -> 299.3269686 | AMC9: =DEVSQ(AMC11:AMC510) -> 204.023451 | AMD9: =DEVSQ(AMD11:AMD510) -> 213.6148706 | AMF9: =DEVSQ(AMF11:AMF510) -> 175.9358039 | AMG9: =DEVSQ(AMG11:AMG510) -> 165.9132353 | AMI9: =DEVSQ(AMI11:AMI510) -> 152.6815176 | AMJ9: =DEVSQ(AMJ11:AMJ510) -> 169.689498 | AML9: =DEVSQ(AML11:AML510) -> 167.918851 | AMM9: =DEVSQ(AMM11:AMM510) -> 152.7934824 | AMO9: =DEVSQ(AMO11:AMO510) -> 173.460698 | AMP9: =DEVSQ(AMP11:AMP510) -> 186.0929922 | AMR9: =DEVSQ(AMR11:AMR510) -> 113.0676157 | AMS9: =DEVSQ(AMS11:AMS510) -> 159.9041686 | AMU9: =DEVSQ(AMU11:AMU510) -> 758.6826824 | AMV9: =DEVSQ(AMV11:AMV510) -> 473.6045333 | AMX9: =DEVSQ(AMX11:AMX510) -> 416.6080157 | AMY9: =DEVSQ(AMY11:AMY510) -> 316.2106824 | ANA9: =DEVSQ(ANA11:ANA510) -> 449.9743686 | ANB9: =DEVSQ(ANB11:ANB510) -> 313.422498 | AND9: =DEVSQ(AND11:AND510) -> 765.320451 | ANE9: =DEVSQ(ANE11:ANE510) -> 483.9945176 | ANG9: =DEVSQ(ANG11:ANG510) -> 141.9101647 | ANH9: =DEVSQ(ANH11:ANH510) -> 150.7770157 | ANJ9: =DEVSQ(ANJ11:ANJ510) -> 723.8463686 | ANK9: =DEVSQ(ANK11:ANK510) -> 437.5204039 | ANM9: =DEVSQ(ANM11:ANM510) -> 410.2158039 | ANN9: =DEVSQ(ANN11:ANN510) -> 277.7992627 | ANP9: =DEVSQ(ANP11:ANP510) -> 419.2588039 | ANQ9: =DEVSQ(ANQ11:ANQ510) -> 290.1499294 | ANS9: =DEVSQ(ANS11:ANS510) -> 458.9640039 | ANT9: =DEVSQ(ANT11:ANT510) -> 332.3904588 | ANV9: =DEVSQ(ANV11:ANV510) -> 421.7157412 | ANW9: =DEVSQ(ANW11:ANW510) -> 279.0131412 | ANY9: =DEVSQ(ANY11:ANY510) -> 432.3434588 | ANZ9: =DEVSQ(ANZ11:ANZ510) -> 291.2609922 | AOB9: =DEVSQ(AOB11:AOB510) -> 464.797651 | AOC9: =DEVSQ(AOC11:AOC510) -> 299.5560824 | AOE9: =DEVSQ(AOE11:AOE510) -> 150.3140627 | AOF9: =DEVSQ(AOF11:AOF510) -> 148.4690745 | AOH9: =DEVSQ(AOH11:AOH510) -> 161.1877412 | AOI9: =DEVSQ(AOI11:AOI510) -> 160.5846157 | AOK9: =DEVSQ(AOK11:AOK510) -> 448.0557647 | AOL9: =DEVSQ(AOL11:AOL510) -> 318.4377647 | AON9: =DEVSQ(AON11:AON510) -> 735.8582039 | AOO9: =DEVSQ(AOO11:AOO510) -> 447.5453686 | AOQ9: =DEVSQ(AOQ11:AOQ510) -> 476.9401686 | AOR9: =DEVSQ(AOR11:AOR510) -> 294.4493333 | AOT9: =DEVSQ(AOT11:AOT510) -> 1034.343898 | AOU9: =DEVSQ(AOU11:AOU510) -> 588.0846706 | AOW9: =DEVSQ(AOW11:AOW510) -> 140.4628353 | AOX9: =DEVSQ(AOX11:AOX510) -> 143.1099333 | AOZ9: =DEVSQ(AOZ11:AOZ510) -> 456.4918706 | APA9: =DEVSQ(APA11:APA510) -> 343.1976157 | APC9: =DEVSQ(APC11:APC510) -> 704.5935922 | APD9: =DEVSQ(APD11:APD510) -> 420.432851 | APF9: =DEVSQ(APF11:APF510) -> 171.4656157 | APG9: =DEVSQ(APG11:APG510) -> 160.633051 | API9: =DEVSQ(API11:API510) -> 417.5932157 | APJ9: =DEVSQ(APJ11:APJ510) -> 323.6524706 | APL9: =DEVSQ(APL11:APL510) -> 437.8765647 | APM9: =DEVSQ(APM11:APM510) -> 301.682051 | APO9: =DEVSQ(APO11:APO510) -> 94.73179216 | APP9: =DEVSQ(APP11:APP510) -> 103.0668157 | APR9: =DEVSQ(APR11:APR510) -> 451.3133686 | APS9: =DEVSQ(APS11:APS510) -> 284.9796627 | APU9: =DEVSQ(APU11:APU510) -> 395.3745922 | APV9: =DEVSQ(APV11:APV510) -> 277.153498 | APX9: =DEVSQ(APX11:APX510) -> 410.1800706 | APY9: =DEVSQ(APY11:APY510) -> 275.6089412 | AQA9: =DEVSQ(AQA11:AQA510) -> 426.6967647 | AQB9: =DEVSQ(AQB11:AQB510) -> 328.8270706 | AQD9: =DEVSQ(AQD11:AQD510) -> 697.743651 | AQE9: =DEVSQ(AQE11:AQE510) -> 416.3195412 | AQG9: =DEVSQ(AQG11:AQG510) -> 395.703898 | AQH9: =DEVSQ(AQH11:AQH510) -> 247.7553922 | AQJ9: =DEVSQ(AQJ11:AQJ510) -> 162.8799294 | AQK9: =DEVSQ(AQK11:AQK510) -> 204.0715333 | AQM9: =DEVSQ(AQM11:AQM510) -> 186.6886157 | AQN9: =DEVSQ(AQN11:AQN510) -> 179.604298 | AQP9: =DEVSQ(AQP11:AQP510) -> 98.97132941 | AQQ9: =DEVSQ(AQQ11:AQQ510) -> 157.4625647 | AQS9: =DEVSQ(AQS11:AQS510) -> 461.1978706 | AQT9: =DEVSQ(AQT11:AQT510) -> 326.808098 | AQV9: =DEVSQ(AQV11:AQV510) -> 439.3875176 | AQW9: =DEVSQ(AQW11:AQW510) -> 292.679698 | AQY9: =DEVSQ(AQY11:AQY510) -> 440.924451 | AQZ9: =DEVSQ(AQZ11:AQZ510) -> 345.1912627 | ARB9: =DEVSQ(ARB11:ARB510) -> 173.9391176 | ARC9: =DEVSQ(ARC11:ARC510) -> 166.0399176 | ARE9: =DEVSQ(ARE11:ARE510) -> 677.1792039 | ARF9: =DEVSQ(ARF11:ARF510) -> 375.735451 | ARH9: =DEVSQ(ARH11:ARH510) -> 414.868698 | ARI9: =DEVSQ(ARI11:ARI510) -> 300.2277333 | ARK9: =DEVSQ(ARK11:ARK510) -> 1258.618804 | ARL9: =DEVSQ(ARL11:ARL510) -> 685.9438706 | ARN9: =DEVSQ(ARN11:ARN510) -> 106.1200627 | ARO9: =DEVSQ(ARO11:ARO510) -> 173.2958745 | ARQ9: =DEVSQ(ARQ11:ARQ510) -> 119.9825922 | ARR9: =DEVSQ(ARR11:ARR510) -> 158.9446353 | ART9: =DEVSQ(ART11:ART510) -> 1012.603816 | ARU9: =DEVSQ(ARU11:ARU510) -> 570.912851 | ARW9: =DEVSQ(ARW11:ARW510) -> 449.1549922 | ARX9: =DEVSQ(ARX11:ARX510) -> 312.9618157 | ARZ9: =DEVSQ(ARZ11:ARZ510) -> 444.1266627 | ASA9: =DEVSQ(ASA11:ASA510) -> 298.352251 | ASC9: =DEVSQ(ASC11:ASC510) -> 408.239098 | ASD9: =DEVSQ(ASD11:ASD510) -> 305.7758157 | ASF9: =DEVSQ(ASF11:ASF510) -> 433.342098 | ASG9: =DEVSQ(ASG11:ASG510) -> 292.7072039 | ASI9: =DEVSQ(ASI11:ASI510) -> 103.453851 | ASJ9: =DEVSQ(ASJ11:ASJ510) -> 140.5698745 | ASL9: =DEVSQ(ASL11:ASL510) -> 458.323498 | ASM9: =DEVSQ(ASM11:ASM510) -> 299.8945412 | ASO9: =DEVSQ(ASO11:ASO510) -> 121.5950627 | ASP9: =DEVSQ(ASP11:ASP510) -> 129.6052039 | ASR9: =DEVSQ(ASR11:ASR510) -> 470.9582588 | ASS9: =DEVSQ(ASS11:ASS510) -> 290.5312627 | ASU9: =DEVSQ(ASU11:ASU510) -> 407.493651 | ASV9: =DEVSQ(ASV11:ASV510) -> 287.4155922 | ASX9: =DEVSQ(ASX11:ASX510) -> 148.1901686 | ASY9: =DEVSQ(ASY11:ASY510) -> 207.3949922 | ATA9: =DEVSQ(ATA11:ATA510) -> 393.3547686 | ATB9: =DEVSQ(ATB11:ATB510) -> 277.2866627 | ATD9: =DEVSQ(ATD11:ATD510) -> 430.9377922 | ATE9: =DEVSQ(ATE11:ATE510) -> 286.3762039 | ATG9: =DEVSQ(ATG11:ATG510) -> 433.3824745 | ATH9: =DEVSQ(ATH11:ATH510) -> 274.1474157 | ATJ9: =DEVSQ(ATJ11:ATJ510) -> 136.4843294 | ATK9: =DEVSQ(ATK11:ATK510) -> 183.9918706 | ATM9: =DEVSQ(ATM11:ATM510) -> 446.758851 | ATN9: =DEVSQ(ATN11:ATN510) -> 295.2164039 | ATP9: =DEVSQ(ATP11:ATP510) -> 191.2674627 | ATQ9: =DEVSQ(ATQ11:ATQ510) -> 169.2984353 | ATS9: =DEVSQ(ATS11:ATS510) -> 420.2336824 | ATT9: =DEVSQ(ATT11:ATT510) -> 281.6101647 | ATV9: =DEVSQ(ATV11:ATV510) -> 467.549498 | ATW9: =DEVSQ(ATW11:ATW510) -> 318.2405647 | ATY9: =DEVSQ(ATY11:ATY510) -> 412.5344627 | ATZ9: =DEVSQ(ATZ11:ATZ510) -> 299.4557333 | AUB9: =DEVSQ(AUB11:AUB510) -> 990.7653686 | AUC9: =DEVSQ(AUC11:AUC510) -> 554.0493686 | AUE9: =DEVSQ(AUE11:AUE510) -> 114.3199922 | AUF9: =DEVSQ(AUF11:AUF510) -> 182.2654353 | AUH9: =DEVSQ(AUH11:AUH510) -> 751.1160824 | AUI9: =DEVSQ(AUI11:AUI510) -> 455.0759176 | AUK9: =DEVSQ(AUK11:AUK510) -> 757.9413412 | AUL9: =DEVSQ(AUL11:AUL510) -> 453.6455176 | AUN9: =DEVSQ(AUN11:AUN510) -> 735.434698 | AUO9: =DEVSQ(AUO11:AUO510) -> 427.1852627 | AUQ9: =DEVSQ(AUQ11:AUQ510) -> 109.5652353 | AUR9: =DEVSQ(AUR11:AUR510) -> 161.1303686 | AUT9: =DEVSQ(AUT11:AUT510) -> 428.815898 | AUU9: =DEVSQ(AUU11:AUU510) -> 252.1792157 | AUW9: =DEVSQ(AUW11:AUW510) -> 81.99229804 | AUX9: =DEVSQ(AUX11:AUX510) -> 162.7901333 | AUZ9: =DEVSQ(AUZ11:AUZ510) -> 146.3928627 | AVA9: =DEVSQ(AVA11:AVA510) -> 135.2263333 | AVC9: =DEVSQ(AVC11:AVC510) -> 714.7672039 | AVD9: =DEVSQ(AVD11:AVD510) -> 413.6994745 | AVF9: =DEVSQ(AVF11:AVF510) -> 475.7093686 | AVG9: =DEVSQ(AVG11:AVG510) -> 298.279498 | AVI9: =DEVSQ(AVI11:AVI510) -> 427.923298 | AVJ9: =DEVSQ(AVJ11:AVJ510) -> 295.3713922 | AVL9: =DEVSQ(AVL11:AVL510) -> 690.5754157 | AVM9: =DEVSQ(AVM11:AVM510) -> 426.4504745 | AVO9: =DEVSQ(AVO11:AVO510) -> 429.4139647 | AVP9: =DEVSQ(AVP11:AVP510) -> 336.1968627 | AVR9: =DEVSQ(AVR11:AVR510) -> 466.6064745 | AVS9: =DEVSQ(AVS11:AVS510) -> 327.2262157 | AVU9: =DEVSQ(AVU11:AVU510) -> 430.857498 | AVV9: =DEVSQ(AVV11:AVV510) -> 297.9294627 | AVX9: =DEVSQ(AVX11:AVX510) -> 425.4144353 | AVY9: =DEVSQ(AVY11:AVY510) -> 304.6755333 | AWA9: =DEVSQ(AWA11:AWA510) -> 479.2674627 | AWB9: =DEVSQ(AWB11:AWB510) -> 352.3243333 | AWD9: =DEVSQ(AWD11:AWD510) -> 730.1351412 | AWE9: =DEVSQ(AWE11:AWE510) -> 431.0136627 | AWG9: =DEVSQ(AWG11:AWG510) -> 723.0815686 | AWH9: =DEVSQ(AWH11:AWH510) -> 411.128698 | AWJ9: =DEVSQ(AWJ11:AWJ510) -> 391.8478353 | AWK9: =DEVSQ(AWK11:AWK510) -> 276.4275686 | AWM9: =DEVSQ(AWM11:AWM510) -> 418.5616 | AWN9: =DEVSQ(AWN11:AWN510) -> 308.474451 | AWP9: =DEVSQ(AWP11:AWP510) -> 164.9427333 | AWQ9: =DEVSQ(AWQ11:AWQ510) -> 196.8610824 | AWS9: =DEVSQ(AWS11:AWS510) -> 438.796251 | AWT9: =DEVSQ(AWT11:AWT510) -> 275.2745333 | AWV9: =DEVSQ(AWV11:AWV510) -> 1048.952882 | AWW9: =DEVSQ(AWW11:AWW510) -> 592.6271647 | AWY9: =DEVSQ(AWY11:AWY510) -> 146.8151412 | AWZ9: =DEVSQ(AWZ11:AWZ510) -> 152.169 | AXB9: =DEVSQ(AXB11:AXB510) -> 108.4628745 | AXC9: =DEVSQ(AXC11:AXC510) -> 130.3491647 | AXE9: =DEVSQ(AXE11:AXE510) -> 485.0170745 | AXF9: =DEVSQ(AXF11:AXF510) -> 326.0442824 | AXH9: =DEVSQ(AXH11:AXH510) -> 435.1883647 | AXI9: =DEVSQ(AXI11:AXI510) -> 291.2186627 | AXK9: =DEVSQ(AXK11:AXK510) -> 429.9597647 | AXL9: =DEVSQ(AXL11:AXL510) -> 301.3690039 | AXN9: =DEVSQ(AXN11:AXN510) -> 117.4764824 | AXO9: =DEVSQ(AXO11:AXO510) -> 173.9256706 | AXQ9: =DEVSQ(AXQ11:AXQ510) -> 748.7969294 | AXR9: =DEVSQ(AXR11:AXR510) -> 408.3074745 | AXT9: =DEVSQ(AXT11:AXT510) -> 715.3992627 | AXU9: =DEVSQ(AXU11:AXU510) -> 435.352851 | AXW9: =DEVSQ(AXW11:AXW510) -> 144.8306627 | AXX9: =DEVSQ(AXX11:AXX510) -> 152.3649412 | AXZ9: =DEVSQ(AXZ11:AXZ510) -> 440.2247686 | AYA9: =DEVSQ(AYA11:AYA510) -> 317.3142157 | AYC9: =DEVSQ(AYC11:AYC510) -> 455.8480745 | AYD9: =DEVSQ(AYD11:AYD510) -> 336.4337922 | AYF9: =DEVSQ(AYF11:AYF510) -> 112.8187176 | AYG9: =DEVSQ(AYG11:AYG510) -> 169.8792745 | AYI9: =DEVSQ(AYI11:AYI510) -> 154.1520745 | AYJ9: =DEVSQ(AYJ11:AYJ510) -> 150.4500157 | AYL9: =DEVSQ(AYL11:AYL510) -> 746.1188706 | AYM9: =DEVSQ(AYM11:AYM510) -> 429.811898 | AYO9: =DEVSQ(AYO11:AYO510) -> 157.0276588 | AYP9: =DEVSQ(AYP11:AYP510) -> 211.3768588 | AYR9: =DEVSQ(AYR11:AYR510) -> 727.5182 | AYS9: =DEVSQ(AYS11:AYS510) -> 431.8382627 | AYU9: =DEVSQ(AYU11:AYU510) -> 751.1042627 | AYV9: =DEVSQ(AYV11:AYV510) -> 460.9826745 | AYX9: =DEVSQ(AYX11:AYX510) -> 418.2910157 | AYY9: =DEVSQ(AYY11:AYY510) -> 286.4370157 | AZA9: =DEVSQ(AZA11:AZA510) -> 698.3653176 | AZB9: =DEVSQ(AZB11:AZB510) -> 451.0319686 | AZD9: =DEVSQ(AZD11:AZD510) -> 687.597251 | AZE9: =DEVSQ(AZE11:AZE510) -> 403.267651 | AZG9: =DEVSQ(AZG11:AZG510) -> 129.7217922 | AZH9: =DEVSQ(AZH11:AZH510) -> 132.0956627 | AZJ9: =DEVSQ(AZJ11:AZJ510) -> 402.6284745 | AZK9: =DEVSQ(AZK11:AZK510) -> 280.1049922 | AZM9: =DEVSQ(AZM11:AZM510) -> 135.3757294 | AZN9: =DEVSQ(AZN11:AZN510) -> 172.9149686 | AZP9: =DEVSQ(AZP11:AZP510) -> 437.3504745 | AZQ9: =DEVSQ(AZQ11:AZQ510) -> 300.2862 | AZS9: =DEVSQ(AZS11:AZS510) -> 427.1196157 | AZT9: =DEVSQ(AZT11:AZT510) -> 292.672251 | AZV9: =DEVSQ(AZV11:AZV510) -> 437.1442745 | AZW9: =DEVSQ(AZW11:AZW510) -> 297.4937333 | AZY9: =DEVSQ(AZY11:AZY510) -> 170.7076157 | AZZ9: =DEVSQ(AZZ11:AZZ510) -> 205.2522706 | BAB9: =DEVSQ(BAB11:BAB510) -> 422.124898 | BAC9: =DEVSQ(BAC11:BAC510) -> 302.6480824 | BAE9: =DEVSQ(BAE11:BAE510) -> 702.397698 | BAF9: =DEVSQ(BAF11:BAF510) -> 418.3822706 | BAH9: =DEVSQ(BAH11:BAH510) -> 998.3105922 | BAI9: =DEVSQ(BAI11:BAI510) -> 553.5218157 | BAK9: =DEVSQ(BAK11:BAK510) -> 455.2753686 | BAL9: =DEVSQ(BAL11:BAL510) -> 286.4878039 | BAN9: =DEVSQ(BAN11:BAN510) -> 121.028298 | BAO9: =DEVSQ(BAO11:BAO510) -> 164.8160353 | BAQ9: =DEVSQ(BAQ11:BAQ510) -> 441.557498 | BAR9: =DEVSQ(BAR11:BAR510) -> 391.3181922 | BAT9: =DEVSQ(BAT11:BAT510) -> 437.1075412 | BAU9: =DEVSQ(BAU11:BAU510) -> 318.1550824 | BAW9: =DEVSQ(BAW11:BAW510) -> 727.0842824 | BAX9: =DEVSQ(BAX11:BAX510) -> 400.7138745 | BAZ9: =DEVSQ(BAZ11:BAZ510) -> 94.11071765 | BBA9: =DEVSQ(BBA11:BBA510) -> 165.932898 | BBC9: =DEVSQ(BBC11:BBC510) -> 675.370898 | BBD9: =DEVSQ(BBD11:BBD510) -> 444.141098 | BBF9: =DEVSQ(BBF11:BBF510) -> 736.2150039 | BBG9: =DEVSQ(BBG11:BBG510) -> 445.8399922 | BBI9: =DEVSQ(BBI11:BBI510) -> 422.6000824 | BBJ9: =DEVSQ(BBJ11:BBJ510) -> 297.2314627 | BBL9: =DEVSQ(BBL11:BBL510) -> 684.7111294 | BBM9: =DEVSQ(BBM11:BBM510) -> 379.8453922 | BBO9: =DEVSQ(BBO11:BBO510) -> 422.626651 | BBP9: =DEVSQ(BBP11:BBP510) -> 294.845451 | BBR9: =DEVSQ(BBR11:BBR510) -> 93.40631765 | BBS9: =DEVSQ(BBS11:BBS510) -> 146.2700157 | BBU9: =DEVSQ(BBU11:BBU510) -> 509.672451 | BBV9: =DEVSQ(BBV11:BBV510) -> 368.4674824 | BBX9: =DEVSQ(BBX11:BBX510) -> 388.509251 | BBY9: =DEVSQ(BBY11:BBY510) -> 272.7624627 | BCA9: =DEVSQ(BCA11:BCA510) -> 453.8597686 | BCB9: =DEVSQ(BCB11:BCB510) -> 323.1222706 | BCD9: =DEVSQ(BCD11:BCD510) -> 715.0256157 | BCE9: =DEVSQ(BCE11:BCE510) -> 441.637251 | BCG9: =DEVSQ(BCG11:BCG510) -> 981.8556157 | BCH9: =DEVSQ(BCH11:BCH510) -> 536.6731686 | BCJ9: =DEVSQ(BCJ11:BCJ510) -> 703.7132745 | BCK9: =DEVSQ(BCK11:BCK510) -> 432.0464588 | BCM9: =DEVSQ(BCM11:BCM510) -> 153.1097294 | BCN9: =DEVSQ(BCN11:BCN510) -> 176.7323922 | BCP9: =DEVSQ(BCP11:BCP510) -> 437.8271922 | BCQ9: =DEVSQ(BCQ11:BCQ510) -> 317.9476824 | BCS9: =DEVSQ(BCS11:BCS510) -> 698.5606157 | BCT9: =DEVSQ(BCT11:BCT510) -> 415.3276745 | BCV9: =DEVSQ(BCV11:BCV510) -> 478.4388039 | BCW9: =DEVSQ(BCW11:BCW510) -> 341.3169647 | BCY9: =DEVSQ(BCY11:BCY510) -> 420.3606745 | BCZ9: =DEVSQ(BCZ11:BCZ510) -> 271.286 | BDB9: =DEVSQ(BDB11:BDB510) -> 132.1831922 | BDC9: =DEVSQ(BDC11:BDC510) -> 200.166051 | BDE9: =DEVSQ(BDE11:BDE510) -> 146.037698 | BDF9: =DEVSQ(BDF11:BDF510) -> 136.3618745 | BDH9: =DEVSQ(BDH11:BDH510) -> 203.1002039 | BDI9: =DEVSQ(BDI11:BDI510) -> 203.8344039 | BDK9: =DEVSQ(BDK11:BDK510) -> 156.4907647 | BDL9: =DEVSQ(BDL11:BDL510) -> 155.5445333 | BDN9: =DEVSQ(BDN11:BDN510) -> 158.9729686 | BDO9: =DEVSQ(BDO11:BDO510) -> 192.8981294 | BDQ9: =DEVSQ(BDQ11:BDQ510) -> 1222.188318 | BDR9: =DEVSQ(BDR11:BDR510) -> 657.8826039 | BDT9: =DEVSQ(BDT11:BDT510) -> 131.808451 | BDU9: =DEVSQ(BDU11:BDU510) -> 169.4456039 | BDW9: =DEVSQ(BDW11:BDW510) -> 441.3567686 | BDX9: =DEVSQ(BDX11:BDX510) -> 348.549451 | BDZ9: =DEVSQ(BDZ11:BDZ510) -> 138.6446 | BEA9: =DEVSQ(BEA11:BEA510) -> 153.1803176 | BEC9: =DEVSQ(BEC11:BEC510) -> 738.2179412 | BED9: =DEVSQ(BED11:BED510) -> 437.886851 | BEF9: =DEVSQ(BEF11:BEF510) -> 138.436051 | BEG9: =DEVSQ(BEG11:BEG510) -> 175.6564039 | BEI9: =DEVSQ(BEI11:BEI510) -> 429.7278039 | BEJ9: =DEVSQ(BEJ11:BEJ510) -> 273.9750745 | BEL9: =DEVSQ(BEL11:BEL510) -> 476.2280039 | BEM9: =DEVSQ(BEM11:BEM510) -> 326.9559294 | BEO9: =DEVSQ(BEO11:BEO510) -> 435.0519176 | BEP9: =DEVSQ(BEP11:BEP510) -> 319.7716 | BER9: =DEVSQ(BER11:BER510) -> 121.2894627 | BES9: =DEVSQ(BES11:BES510) -> 197.4132627 | BEU9: =DEVSQ(BEU11:BEU510) -> 101.5355686 | BEV9: =DEVSQ(BEV11:BEV510) -> 164.8495333 | BEX9: =DEVSQ(BEX11:BEX510) -> 702.6568745 | BEY9: =DEVSQ(BEY11:BEY510) -> 442.9024588 | BFA9: =DEVSQ(BFA11:BFA510) -> 453.7845412 | BFB9: =DEVSQ(BFB11:BFB510) -> 311.3842627 | BFD9: =DEVSQ(BFD11:BFD510) -> 202.7635686 | BFE9: =DEVSQ(BFE11:BFE510) -> 219.4449922 | BFG9: =DEVSQ(BFG11:BFG510) -> 113.3324039 | BFH9: =DEVSQ(BFH11:BFH510) -> 172.6667922 | BFJ9: =DEVSQ(BFJ11:BFJ510) -> 428.584498 | BFK9: =DEVSQ(BFK11:BFK510) -> 260.943251 | BFM9: =DEVSQ(BFM11:BFM510) -> 449.4035922 | BFN9: =DEVSQ(BFN11:BFN510) -> 318.0205686 | BFP9: =DEVSQ(BFP11:BFP510) -> 129.7922039 | BFQ9: =DEVSQ(BFQ11:BFQ510) -> 169.0099686 | BFS9: =DEVSQ(BFS11:BFS510) -> 116.1223922 | BFT9: =DEVSQ(BFT11:BFT510) -> 142.8198745 | BFV9: =DEVSQ(BFV11:BFV510) -> 994.1566039 | BFW9: =DEVSQ(BFW11:BFW510) -> 566.3243412 | BFY9: =DEVSQ(BFY11:BFY510) -> 469.7663686 | BFZ9: =DEVSQ(BFZ11:BFZ510) -> 329.9180039 | BGB9: =DEVSQ(BGB11:BGB510) -> 139.0620824 | BGC9: =DEVSQ(BGC11:BGC510) -> 168.8602157 | BGE9: =DEVSQ(BGE11:BGE510) -> 742.3298627 | BGF9: =DEVSQ(BGF11:BGF510) -> 464.7465686 | BGH9: =DEVSQ(BGH11:BGH510) -> 989.667851 | BGI9: =DEVSQ(BGI11:BGI510) -> 540.668051 | BGK9: =DEVSQ(BGK11:BGK510) -> 124.6453922 | BGL9: =DEVSQ(BGL11:BGL510) -> 156.0731333 | BGN9: =DEVSQ(BGN11:BGN510) -> 155.7770588 | BGO9: =DEVSQ(BGO11:BGO510) -> 206.1965176 | BGQ9: =DEVSQ(BGQ11:BGQ510) -> 764.8048706 | BGR9: =DEVSQ(BGR11:BGR510) -> 473.4618745 | BGT9: =DEVSQ(BGT11:BGT510) -> 717.5928 | BGU9: =DEVSQ(BGU11:BGU510) -> 434.536298
C10: 6 | D10: 0.38 | E10: 0.96 | H10: 0 | I10: 0 | K10: 最小値 ：=MIN(セル範囲) | M10: =MIN(D5:D1304) -> 0.22 | N10: =MIN(E5:E1304) -> 0.51 | O10: =MIN(F5:F1304) -> 0 | P10: =MIN(G5:G1304) -> 0 | Q10: LAM | R10: =R5/(M7-R5) -> 0 | U10: 9.22 | V10: 50 | W10: 0 | X10: 7.18 | Y10: 50 | Z10: 5 | AD10: -3.82733903 | AE10: -0.6681531967 | AF10: -2.647344611 | AG10: 1.185075224 | AN10: 47 | AO10: 46 | AS10: 0.67 | AT10: 0.58 | AV10: 0.67 | AW10: 0.58 | AY10: 元データ | BIB10: =IF($E10<>"",VLOOKUP(BHZ10,$C$5:$E$504,3,FALSE),"") -> 
C11: 7 | D11: 0.4 | E11: 1.05 | H11: 0 | I11: 0 | K11: 最大値 ：=MAX(セル範囲) | M11: =MAX(D5:D1304) -> 20 | N11: =MAX(E5:E1304) -> 15 | O11: =MAX(F5:F1304) -> 0 | P11: =MAX(G5:G1304) -> 0 | Q11: SYXD | R11: =(N7-(1+R10)*(N7-M29^2))^0.5 -> 1.041928082 | U11: 11.02 | V11: 50 | W11: 0 | X11: 8.5 | Y11: 50 | Z11: 0 | AD11: -3.730699561 | AE11: -0.519240756 | AF11: -2.649576066 | AG11: 1.275575256 | AN11: 46 | AO11: 45 | AS11: 0.725 | AT11: 0.65 | AV11: 0.725 | AW11: 0.65 | AY11: =IF(D5<>"",D5,"") -> 0.22 | AZ11: =IF(E5<>"",E5,"") -> 0.51 | BA11: 8 | BB11: 1.68 | BC11: 1.13 | BD11: 22 | BE11: 2.75 | BF11: 2.4 | BG11: 7 | BH11: 0.4 | BI11: 1.05 | BJ11: 1 | BK11: 0.22 | BL11: 0.51 | BM11: 13 | BN11: 1.24 | BO11: 1.7 | BP11: 7 | BQ11: 0.4 | BR11: 1.05 | BS11: 47 | BT11: 2.34 | BU11: 6.2 | BV11: 49 | BW11: 3.94 | BX11: 6.8 | BY11: 9 | BZ11: 0.6 | CA11: 1.18 | CB11: 28 | CC11: 2.8 | CD11: 3.4 | CE11: 10 | CF11: 1.12 | CG11: 1.2 | CH11: 17 | CI11: 1.3 | CJ11: 1.89 | CK11: 42 | CL11: 2.97 | CM11: 5.3 | CN11: 34 | CO11: 3.4 | CP11: 4 | CQ11: 1 | CR11: 0.22 | CS11: 0.51 | CT11: 14 | CU11: 1.16 | CV11: 1.72 | CW11: 21 | CX11: 1.83 | CY11: 2.32 | CZ11: 38 | DA11: 3.61 | DB11: 4.7 | DC11: 38 | DD11: 3.61 | DE11: 4.7 | DF11: 7 | DG11: 0.4 | DH11: 1.05 | DI11: 20 | DJ11: 2.06 | DK11: 2.23 | DL11: 15 | DM11: 1.3 | DN11: 1.8 | DO11: 46 | DP11: 5.9 | DQ11: 6.1 | DR11: 28 | DS11: 2.8 | DT11: 3.4 | DU11: 22 | DV11: 2.75 | DW11: 2.4 | DX11: 3 | DY11: 0.46 | DZ11: 0.7 | EA11: 16 | EB11: 1.58 | EC11: 1.83 | ED11: 21 | EE11: 1.83 | EF11: 2.32 | EG11: 25 | EH11: 3.68 | EI11: 2.88 | EJ11: 3 | EK11: 0.46 | EL11: 0.7 | EM11: 2 | EN11: 0.22 | EO11: 0.56 | EP11: 43 | EQ11: 3.79 | ER11: 5.65 | ES11: 38 | ET11: 3.61 | EU11: 4.7 | EV11: 27 | EW11: 4.01 | EX11: 3 | EY11: 22 | EZ11: 2.75 | FA11: 2.4 | FB11: 11 | FC11: 0.91 | FD11: 1.3 | FE11: 32 | FF11: 2.83 | FG11: 3.77 | FH11: 50 | FI11: 4.5 | FJ11: 6.8 | FK11: 1 | FL11: 0.22 | FM11: 0.51 | FN11: 9 | FO11: 0.6 | FP11: 1.18 | FQ11: 44 | FR11: 3.4 | FS11: 5.8 | FT11: 8 | FU11: 1.68 | FV11: 1.13 | FW11: 32 | FX11: 2.83 | FY11: 3.77 | FZ11: 30 | GA11: 3.4 | GB11: 3.7 | GC11: 19 | GD11: 1.33 | GE11: 2.06 | GF11: 4 | GG11: 0.32 | GH11: 0.75 | GI11: 17 | GJ11: 1.3 | GK11: 1.89 | GL11: 30 | GM11: 3.4 | GN11: 3.7 | GO11: 18 | GP11: 1.32 | GQ11: 2 | GR11: 50 | GS11: 4.5 | GT11: 6.8 | GU11: 23 | GV11: 1.15 | GW11: 2.5 | GX11: 28 | GY11: 2.8 | GZ11: 3.4 | HA11: 13 | HB11: 1.24 | HC11: 1.7 | HD11: 20 | HE11: 2.06 | HF11: 2.23 | HG11: 28 | HH11: 2.8 | HI11: 3.4 | HJ11: 5 | HK11: 0.32 | HL11: 0.91 | HM11: 38 | HN11: 3.61 | HO11: 4.7 | HP11: 3 | HQ11: 0.46 | HR11: 0.7 | HS11: 21 | HT11: 1.83 | HU11: 2.32 | HV11: 6 | HW11: 0.38 | HX11: 0.96 | HY11: 40 | HZ11: 5.16 | IA11: 4.92 | IB11: 50 | IC11: 4.5 | ID11: 6.8 | IE11: 8 | IF11: 1.68 | IG11: 1.13 | IH11: 38 | II11: 3.61 | IJ11: 4.7 | IK11: 28 | IL11: 2.8 | IM11: 3.4 | IN11: 20 | IO11: 2.06 | IP11: 2.23 | IQ11: 3 | IR11: 0.46 | IS11: 0.7 | IT11: 17 | IU11: 1.3 | IV11: 1.89 | IW11: 25 | IX11: 3.68 | IY11: 2.88 | IZ11: 43 | JA11: 3.79 | JB11: 5.65 | JC11: 36 | JD11: 2.28 | JE11: 4.1 | JF11: 28 | JG11: 2.8 | JH11: 3.4 | JI11: 15 | JJ11: 1.3 | JK11: 1.8 | JL11: 2 | JM11: 0.22 | JN11: 0.56 | JO11: 47 | JP11: 2.34 | JQ11: 6.2 | JR11: 13 | JS11: 1.24 | JT11: 1.7 | JU11: 47 | JV11: 2.34 | JW11: 6.2 | JX11: 1 | JY11: 0.22 | JZ11: 0.51 | KA11: 38 | KB11: 3.61 | KC11: 4.7 | KD11: 29 | KE11: 2.4 | KF11: 3.5 | KG11: 27 | KH11: 4.01 | KI11: 3 | KJ11: 51 | KK11: 20 | KL11: 15 | KM11: 26 | KN11: 2.15 | KO11: 2.91 | KP11: 44 | KQ11: 3.4 | KR11: 5.8 | KS11: 30 | KT11: 3.4 | KU11: 3.7 | KV11: 27 | KW11: 4.01 | KX11: 3 | KY11: 40 | KZ11: 5.16 | LA11: 4.92 | LB11: 41 | LC11: 5.95 | LD11: 5.1 | LE11: 40 | LF11: 5.16 | LG11: 4.92 | LH11: 17 | LI11: 1.3 | LJ11: 1.89 | LK11: 19 | LL11: 1.33 | LM11: 2.06 | LN11: 12 | LO11: 2.16 | LP11: 1.6 | LQ11: 2 | LR11: 0.22 | LS11: 0.56 | LT11: 22 | LU11: 2.75 | LV11: 2.4 | LW11: 18 | LX11: 1.32 | LY11: 2 | LZ11: 15 | MA11: 1.3 | MB11: 1.8 | MC11: 29 | MD11: 2.4 | ME11: 3.5 | MF11: 3 | MG11: 0.46 | MH11: 0.7 | MI11: 3 | MJ11: 0.46 | MK11: 0.7 | ML11: 19 | MM11: 1.33 | MN11: 2.06 | MO11: 41 | MP11: 5.95 | MQ11: 5.1 | MR11: 38 | MS11: 3.61 | MT11: 4.7 | MU11: 51 | MV11: 20 | MW11: 15 | MX11: 4 | MY11: 0.32 | MZ11: 0.75 | NA11: 23 | NB11: 1.15 | NC11: 2.5 | ND11: 11 | NE11: 0.91 | NF11: 1.3 | NG11: 3 | NH11: 0.46 | NI11: 0.7 | NJ11: 16 | NK11: 1.58 | NL11: 1.83 | NM11: 21 | NN11: 1.83 | NO11: 2.32 | NP11: 25 | NQ11: 3.68 | NR11: 2.88 | NS11: 13 | NT11: 1.24 | NU11: 1.7 | NV11: 10 | NW11: 1.12 | NX11: 1.2 | NY11: 47 | NZ11: 2.34 | OA11: 6.2 | OB11: 42 | OC11: 2.97 | OD11: 5.3 | OE11: 47 | OF11: 2.34 | OG11: 6.2 | OH11: 5 | OI11: 0.32 | OJ11: 0.91 | OK11: 20 | OL11: 2.06 | OM11: 2.23 | ON11: 36 | OO11: 2.28 | OP11: 4.1 | OQ11: 32 | OR11: 2.83 | OS11: 3.77 | OT11: 34 | OU11: 3.4 | OV11: 4 | OW11: 27 | OX11: 4.01 | OY11: 3 | OZ11: 46 | PA11: 5.9 | PB11: 6.1 | PC11: 10 | PD11: 1.12 | PE11: 1.2 | PF11: 38 | PG11: 3.61 | PH11: 4.7 | PI11: 14 | PJ11: 1.16 | PK11: 1.72 | PL11: 22 | PM11: 2.75 | PN11: 2.4 | PO11: 34 | PP11: 3.4 | PQ11: 4 | PR11: 26 | PS11: 2.15 | PT11: 2.91 | PU11: 42 | PV11: 2.97 | PW11: 5.3 | PX11: 26 | PY11: 2.15 | PZ11: 2.91 | QA11: 19 | QB11: 1.33 | QC11: 2.06 | QD11: 16 | QE11: 1.58 | QF11: 1.83 | QG11: 31 | QH11: 1.56 | QI11: 3.71 | QJ11: 34 | QK11: 3.4 | QL11: 4 | QM11: 46 | QN11: 5.9 | QO11: 6.1 | QP11: 40 | QQ11: 5.16 | QR11: 4.92 | QS11: 16 | QT11: 1.58 | QU11: 1.83 | QV11: 34 | QW11: 3.4 | QX11: 4 | QY11: 2 | QZ11: 0.22 | RA11: 0.56 | RB11: 40 | RC11: 5.16 | RD11: 4.92 | RE11: 46 | RF11: 5.9 | RG11: 6.1 | RH11: 25 | RI11: 3.68 | RJ11: 2.88 | RK11: 44 | RL11: 3.4 | RM11: 5.8 | RN11: 25 | RO11: 3.68 | RP11: 2.88 | RQ11: 27 | RR11: 4.01 | RS11: 3 | RT11: 21 | RU11: 1.83 | RV11: 2.32 | RW11: 35 | RX11: 2.83 | RY11: 4.02 | RZ11: 12 | SA11: 2.16 | SB11: 1.6 | SC11: 35 | SD11: 2.83 | SE11: 4.02 | SF11: 46 | SG11: 5.9 | SH11: 6.1 | SI11: 4 | SJ11: 0.32 | SK11: 0.75 | SL11: 35 | SM11: 2.83 | SN11: 4.02 | SO11: 1 | SP11: 0.22 | SQ11: 0.51 | SR11: 38 | SS11: 3.61 | ST11: 4.7 | SU11: 43 | SV11: 3.79 | SW11: 5.65 | SX11: 35 | SY11: 2.83 | SZ11: 4.02 | TA11: 25 | TB11: 3.68 | TC11: 2.88 | TD11: 48 | TE11: 7.1 | TF11: 6.2 | TG11: 4 | TH11: 0.32 | TI11: 0.75 | TJ11: 20 | TK11: 2.06 | TL11: 2.23 | TM11: 15 | TN11: 1.3 | TO11: 1.8 | TP11: 38 | TQ11: 3.61 | TR11: 4.7 | TS11: 3 | TT11: 0.46 | TU11: 0.7 | TV11: 8 | TW11: 1.68 | TX11: 1.13 | TY11: 45 | TZ11: 5.2 | UA11: 5.8 | UB11: 33 | UC11: 4.28 | UD11: 3.99 | UE11: 20 | UF11: 2.06 | UG11: 2.23 | UH11: 32 | UI11: 2.83 | UJ11: 3.77 | UK11: 46 | UL11: 5.9 | UM11: 6.1 | UN11: 21 | UO11: 1.83 | UP11: 2.32 | UQ11: 44 | UR11: 3.4 | US11: 5.8 | UT11: 35 | UU11: 2.83 | UV11: 4.02 | UW11: 17 | UX11: 1.3 | UY11: 1.89 | UZ11: 2 | VA11: 0.22 | VB11: 0.56 | VC11: 28 | VD11: 2.8 | VE11: 3.4 | VF11: 23 | VG11: 1.15 | VH11: 2.5 | VI11: 19 | VJ11: 1.33 | VK11: 2.06 | VL11: 40 | VM11: 5.16 | VN11: 4.92 | VO11: 40 | VP11: 5.16 | VQ11: 4.92 | VR11: 15 | VS11: 1.3 | VT11: 1.8 | VU11: 22 | VV11: 2.75 | VW11: 2.4 | VX11: 7 | VY11: 0.4 | VZ11: 1.05 | WA11: 5 | WB11: 0.32 | WC11: 0.91 | WD11: 44 | WE11: 3.4 | WF11: 5.8 | WG11: 11 | WH11: 0.91 | WI11: 1.3 | WJ11: 45 | WK11: 5.2 | WL11: 5.8 | WM11: 18 | WN11: 1.32 | WO11: 2 | WP11: 2 | WQ11: 0.22 | WR11: 0.56 | WS11: 35 | WT11: 2.83 | WU11: 4.02 | WV11: 51 | WW11: 20 | WX11: 15 | WY11: 29 | WZ11: 2.4 | XA11: 3.5 | XB11: 47 | XC11: 2.34 | XD11: 6.2 | XE11: 51 | XF11: 20 | XG11: 15 | XH11: 39 | XI11: 4.19 | XJ11: 4.89 | XK11: 5 | XL11: 0.32 | XM11: 0.91 | XN11: 47 | XO11: 2.34 | XP11: 6.2 | XQ11: 31 | XR11: 1.56 | XS11: 3.71 | XT11: 33 | XU11: 4.28 | XV11: 3.99 | XW11: 24 | XX11: 1.7 | XY11: 2.8 | XZ11: 33 | YA11: 4.28 | YB11: 3.99 | YC11: 11 | YD11: 0.91 | YE11: 1.3 | YF11: 22 | YG11: 2.75 | YH11: 2.4 | YI11: 28 | YJ11: 2.8 | YK11: 3.4 | YL11: 50 | YM11: 4.5 | YN11: 6.8 | YO11: 39 | YP11: 4.19 | YQ11: 4.89 | YR11: 6 | YS11: 0.38 | YT11: 0.96 | YU11: 18 | YV11: 1.32 | YW11: 2 | YX11: 3 | YY11: 0.46 | YZ11: 0.7 | ZA11: 22 | ZB11: 2.75 | ZC11: 2.4 | ZD11: 48 | ZE11: 7.1 | ZF11: 6.2 | ZG11: 12 | ZH11: 2.16 | ZI11: 1.6 | ZJ11: 13 | ZK11: 1.24 | ZL11: 1.7 | ZM11: 34 | ZN11: 3.4 | ZO11: 4 | ZP11: 21 | ZQ11: 1.83 | ZR11: 2.32 | ZS11: 38 | ZT11: 3.61 | ZU11: 4.7 | ZV11: 11 | ZW11: 0.91 | ZX11: 1.3 | ZY11: 8 | ZZ11: 1.68 | AAA11: 1.13 | AAB11: 16 | AAC11: 1.58 | AAD11: 1.83 | AAE11: 36 | AAF11: 2.28 | AAG11: 4.1 | AAH11: 40 | AAI11: 5.16 | AAJ11: 4.92 | AAK11: 43 | AAL11: 3.79 | AAM11: 5.65 | AAN11: 31 | AAO11: 1.56 | AAP11: 3.71 | AAQ11: 9 | AAR11: 0.6 | AAS11: 1.18 | AAT11: 6 | AAU11: 0.38 | AAV11: 0.96 | AAW11: 47 | AAX11: 2.34 | AAY11: 6.2 | AAZ11: 29 | ABA11: 2.4 | ABB11: 3.5 | ABC11: 24 | ABD11: 1.7 | ABE11: 2.8 | ABF11: 30 | ABG11: 3.4 | ABH11: 3.7 | ABI11: 42 | ABJ11: 2.97 | ABK11: 5.3 | ABL11: 35 | ABM11: 2.83 | ABN11: 4.02 | ABO11: 8 | ABP11: 1.68 | ABQ11: 1.13 | ABR11: 42 | ABS11: 2.97 | ABT11: 5.3 | ABU11: 13 | ABV11: 1.24 | ABW11: 1.7 | ABX11: 38 | ABY11: 3.61 | ABZ11: 4.7 | ACA11: 3 | ACB11: 0.46 | ACC11: 0.7 | ACD11: 35 | ACE11: 2.83 | ACF11: 4.02 | ACG11: 8 | ACH11: 1.68 | ACI11: 1.13 | ACJ11: 37 | ACK11: 3.7 | ACL11: 4.2 | ACM11: 13 | ACN11: 1.24 | ACO11: 1.7 | ACP11: 17 | ACQ11: 1.3 | ACR11: 1.89 | ACS11: 36 | ACT11: 2.28 | ACU11: 4.1 | ACV11: 45 | ACW11: 5.2 | ACX11: 5.8 | ACY11: 2 | ACZ11: 0.22 | ADA11: 0.56 | ADB11: 7 | ADC11: 0.4 | ADD11: 1.05 | ADE11: 18 | ADF11: 1.32 | ADG11: 2 | ADH11: 37 | ADI11: 3.7 | ADJ11: 4.2 | ADK11: 50 | ADL11: 4.5 | ADM11: 6.8 | ADN11: 36 | ADO11: 2.28 | ADP11: 4.1 | ADQ11: 41 | ADR11: 5.95 | ADS11: 5.1 | ADT11: 1 | ADU11: 0.22 | ADV11: 0.51 | ADW11: 46 | ADX11: 5.9 | ADY11: 6.1 | ADZ11: 48 | AEA11: 7.1 | AEB11: 6.2 | AEC11: 49 | AED11: 3.94 | AEE11: 6.8 | AEF11: 37 | AEG11: 3.7 | AEH11: 4.2 | AEI11: 44 | AEJ11: 3.4 | AEK11: 5.8 | AEL11: 50 | AEM11: 4.5 | AEN11: 6.8 | AEO11: 3 | AEP11: 0.46 | AEQ11: 0.7 | AER11: 8 | AES11: 1.68 | AET11: 1.13 | AEU11: 10 | AEV11: 1.12 | AEW11: 1.2 | AEX11: 8 | AEY11: 1.68 | AEZ11: 1.13 | AFA11: 26 | AFB11: 2.15 | AFC11: 2.91 | AFD11: 39 | AFE11: 4.19 | AFF11: 4.89 | AFG11: 23 | AFH11: 1.15 | AFI11: 2.5 | AFJ11: 8 | AFK11: 1.68 | AFL11: 1.13 | AFM11: 1 | AFN11: 0.22 | AFO11: 0.51 | AFP11: 18 | AFQ11: 1.32 | AFR11: 2 | AFS11: 22 | AFT11: 2.75 | AFU11: 2.4 | AFV11: 41 | AFW11: 5.95 | AFX11: 5.1 | AFY11: 27 | AFZ11: 4.01 | AGA11: 3 | AGB11: 45 | AGC11: 5.2 | AGD11: 5.8 | AGE11: 13 | AGF11: 1.24 | AGG11: 1.7 | AGH11: 14 | AGI11: 1.16 | AGJ11: 1.72 | AGK11: 11 | AGL11: 0.91 | AGM11: 1.3 | AGN11: 31 | AGO11: 1.56 | AGP11: 3.71 | AGQ11: 9 | AGR11: 0.6 | AGS11: 1.18 | AGT11: 47 | AGU11: 2.34 | AGV11: 6.2 | AGW11: 27 | AGX11: 4.01 | AGY11: 3 | AGZ11: 4 | AHA11: 0.32 | AHB11: 0.75 | AHC11: 41 | AHD11: 5.95 | AHE11: 5.1 | AHF11: 19 | AHG11: 1.33 | AHH11: 2.06 | AHI11: 9 | AHJ11: 0.6 | AHK11: 1.18 | AHL11: 51 | AHM11: 20 | AHN11: 15 | AHO11: 48 | AHP11: 7.1 | AHQ11: 6.2 | AHR11: 27 | AHS11: 4.01 | AHT11: 3 | AHU11: 4 | AHV11: 0.32 | AHW11: 0.75 | AHX11: 20 | AHY11: 2.06 | AHZ11: 2.23 | AIA11: 33 | AIB11: 4.28 | AIC11: 3.99 | AID11: 25 | AIE11: 3.68 | AIF11: 2.88 | AIG11: 22 | AIH11: 2.75 | AII11: 2.4 | AIJ11: 27 | AIK11: 4.01 | AIL11: 3 | AIM11: 13 | AIN11: 1.24 | AIO11: 1.7 | AIP11: 33 | AIQ11: 4.28 | AIR11: 3.99 | AIS11: 34 | AIT11: 3.4 | AIU11: 4 | AIV11: 45 | AIW11: 5.2 | AIX11: 5.8 | AIY11: 16 | AIZ11: 1.58 | AJA11: 1.83 | AJB11: 33 | AJC11: 4.28 | AJD11: 3.99 | AJE11: 26 | AJF11: 2.15 | AJG11: 2.91 | AJH11: 12 | AJI11: 2.16 | AJJ11: 1.6 | AJK11: 34 | AJL11: 3.4 | AJM11: 4 | AJN11: 17 | AJO11: 1.3 | AJP11: 1.89 | AJQ11: 44 | AJR11: 3.4 | AJS11: 5.8 | AJT11: 28 | AJU11: 2.8 | AJV11: 3.4 | AJW11: 17 | AJX11: 1.3 | AJY11: 1.89 | AJZ11: 44 | AKA11: 3.4 | AKB11: 5.8 | AKC11: 48 | AKD11: 7.1 | AKE11: 6.2 | AKF11: 7 | AKG11: 0.4 | AKH11: 1.05 | AKI11: 34 | AKJ11: 3.4 | AKK11: 4 | AKL11: 31 | AKM11: 1.56 | AKN11: 3.71 | AKO11: 9 | AKP11: 0.6 | AKQ11: 1.18 | AKR11: 23 | AKS11: 1.15 | AKT11: 2.5 | AKU11: 12 | AKV11: 2.16 | AKW11: 1.6 | AKX11: 10 | AKY11: 1.12 | AKZ11: 1.2 | ALA11: 14 | ALB11: 1.16 | ALC11: 1.72 | ALD11: 14 | ALE11: 1.16 | ALF11: 1.72 | ALG11: 43 | ALH11: 3.79 | ALI11: 5.65 | ALJ11: 26 | ALK11: 2.15 | ALL11: 2.91 | ALM11: 8 | ALN11: 1.68 | ALO11: 1.13 | ALP11: 31 | ALQ11: 1.56 | ALR11: 3.71 | ALS11: 28 | ALT11: 2.8 | ALU11: 3.4 | ALV11: 34 | ALW11: 3.4 | ALX11: 4 | ALY11: 1 | ALZ11: 0.22 | AMA11: 0.51 | AMB11: 35 | AMC11: 2.83 | AMD11: 4.02 | AME11: 35 | AMF11: 2.83 | AMG11: 4.02 | AMH11: 3 | AMI11: 0.46 | AMJ11: 0.7 | AMK11: 16 | AML11: 1.58 | AMM11: 1.83 | AMN11: 2 | AMO11: 0.22 | AMP11: 0.56 | AMQ11: 41 | AMR11: 5.95 | AMS11: 5.1 | AMT11: 15 | AMU11: 1.3 | AMV11: 1.8 | AMW11: 36 | AMX11: 2.28 | AMY11: 4.1 | AMZ11: 20 | ANA11: 2.06 | ANB11: 2.23 | ANC11: 37 | AND11: 3.7 | ANE11: 4.2 | ANF11: 14 | ANG11: 1.16 | ANH11: 1.72 | ANI11: 9 | ANJ11: 0.6 | ANK11: 1.18 | ANL11: 40 | ANM11: 5.16 | ANN11: 4.92 | ANO11: 27 | ANP11: 4.01 | ANQ11: 3 | ANR11: 6 | ANS11: 0.38 | ANT11: 0.96 | ANU11: 45 | ANV11: 5.2 | ANW11: 5.8 | ANX11: 22 | ANY11: 2.75 | ANZ11: 2.4 | AOA11: 26 | AOB11: 2.15 | AOC11: 2.91 | AOD11: 11 | AOE11: 0.91 | AOF11: 1.3 | AOG11: 15 | AOH11: 1.3 | AOI11: 1.8 | AOJ11: 44 | AOK11: 3.4 | AOL11: 5.8 | AOM11: 13 | AON11: 1.24 | AOO11: 1.7 | AOP11: 9 | AOQ11: 0.6 | AOR11: 1.18 | AOS11: 4 | AOT11: 0.32 | AOU11: 0.75 | AOV11: 43 | AOW11: 3.79 | AOX11: 5.65 | AOY11: 30 | AOZ11: 3.4 | APA11: 3.7 | APB11: 46 | APC11: 5.9 | APD11: 6.1 | APE11: 10 | APF11: 1.12 | APG11: 1.2 | APH11: 17 | API11: 1.3 | APJ11: 1.89 | APK11: 27 | APL11: 4.01 | APM11: 3 | APN11: 25 | APO11: 3.68 | APP11: 2.88 | APQ11: 42 | APR11: 2.97 | APS11: 5.3 | APT11: 32 | APU11: 2.83 | APV11: 3.77 | APW11: 23 | APX11: 1.15 | APY11: 2.5 | APZ11: 18 | AQA11: 1.32 | AQB11: 2 | AQC11: 21 | AQD11: 1.83 | AQE11: 2.32 | AQF11: 11 | AQG11: 0.91 | AQH11: 1.3 | AQI11: 45 | AQJ11: 5.2 | AQK11: 5.8 | AQL11: 6 | AQM11: 0.38 | AQN11: 0.96 | AQO11: 33 | AQP11: 4.28 | AQQ11: 3.99 | AQR11: 43 | AQS11: 3.79 | AQT11: 5.65 | AQU11: 33 | AQV11: 4.28 | AQW11: 3.99 | AQX11: 32 | AQY11: 2.83 | AQZ11: 3.77 | ARA11: 24 | ARB11: 1.7 | ARC11: 2.8 | ARD11: 27 | ARE11: 4.01 | ARF11: 3 | ARG11: 42 | ARH11: 2.97 | ARI11: 5.3 | ARJ11: 2 | ARK11: 0.22 | ARL11: 0.56 | ARM11: 3 | ARN11: 0.46 | ARO11: 0.7 | ARP11: 27 | ARQ11: 4.01 | ARR11: 3 | ARS11: 36 | ART11: 2.28 | ARU11: 4.1 | ARV11: 37 | ARW11: 3.7 | ARX11: 4.2 | ARY11: 45 | ARZ11: 5.2 | ASA11: 5.8 | ASB11: 16 | ASC11: 1.58 | ASD11: 1.83 | ASE11: 45 | ASF11: 5.2 | ASG11: 5.8 | ASH11: 17 | ASI11: 1.3 | ASJ11: 1.89 | ASK11: 32 | ASL11: 2.83 | ASM11: 3.77 | ASN11: 35 | ASO11: 2.83 | ASP11: 4.02 | ASQ11: 9 | ASR11: 0.6 | ASS11: 1.18 | AST11: 36 | ASU11: 2.28 | ASV11: 4.1 | ASW11: 11 | ASX11: 0.91 | ASY11: 1.3 | ASZ11: 31 | ATA11: 1.56 | ATB11: 3.71 | ATC11: 32 | ATD11: 2.83 | ATE11: 3.77 | ATF11: 51 | ATG11: 20 | ATH11: 15 | ATI11: 44 | ATJ11: 3.4 | ATK11: 5.8 | ATL11: 18 | ATM11: 1.32 | ATN11: 2 | ATO11: 28 | ATP11: 2.8 | ATQ11: 3.4 | ATR11: 30 | ATS11: 3.4 | ATT11: 3.7 | ATU11: 50 | ATV11: 4.5 | ATW11: 6.8 | ATX11: 22 | ATY11: 2.75 | ATZ11: 2.4 | AUA11: 28 | AUB11: 2.8 | AUC11: 3.4 | AUD11: 4 | AUE11: 0.32 | AUF11: 0.75 | AUG11: 15 | AUH11: 1.3 | AUI11: 1.8 | AUJ11: 30 | AUK11: 3.4 | AUL11: 3.7 | AUM11: 21 | AUN11: 1.83 | AUO11: 2.32 | AUP11: 20 | AUQ11: 2.06 | AUR11: 2.23 | AUS11: 37 | AUT11: 3.7 | AUU11: 4.2 | AUV11: 42 | AUW11: 2.97 | AUX11: 5.3 | AUY11: 10 | AUZ11: 1.12 | AVA11: 1.2 | AVB11: 31 | AVC11: 1.56 | AVD11: 3.71 | AVE11: 23 | AVF11: 1.15 | AVG11: 2.5 | AVH11: 20 | AVI11: 2.06 | AVJ11: 2.23 | AVK11: 13 | AVL11: 1.24 | AVM11: 1.7 | AVN11: 8 | AVO11: 1.68 | AVP11: 1.13 | AVQ11: 49 | AVR11: 3.94 | AVS11: 6.8 | AVT11: 41 | AVU11: 5.95 | AVV11: 5.1 | AVW11: 6 | AVX11: 0.38 | AVY11: 0.96 | AVZ11: 32 | AWA11: 2.83 | AWB11: 3.77 | AWC11: 45 | AWD11: 5.2 | AWE11: 5.8 | AWF11: 41 | AWG11: 5.95 | AWH11: 5.1 | AWI11: 31 | AWJ11: 1.56 | AWK11: 3.71 | AWL11: 47 | AWM11: 2.34 | AWN11: 6.2 | AWO11: 11 | AWP11: 0.91 | AWQ11: 1.3 | AWR11: 21 | AWS11: 1.83 | AWT11: 2.32 | AWU11: 41 | AWV11: 5.95 | AWW11: 5.1 | AWX11: 8 | AWY11: 1.68 | AWZ11: 1.13 | AXA11: 6 | AXB11: 0.38 | AXC11: 0.96 | AXD11: 44 | AXE11: 3.4 | AXF11: 5.8 | AXG11: 1 | AXH11: 0.22 | AXI11: 0.51 | AXJ11: 36 | AXK11: 2.28 | AXL11: 4.1 | AXM11: 2 | AXN11: 0.22 | AXO11: 0.56 | AXP11: 35 | AXQ11: 2.83 | AXR11: 4.02 | AXS11: 42 | AXT11: 2.97 | AXU11: 5.3 | AXV11: 11 | AXW11: 0.91 | AXX11: 1.3 | AXY11: 34 | AXZ11: 3.4 | AYA11: 4 | AYB11: 31 | AYC11: 1.56 | AYD11: 3.71 | AYE11: 1 | AYF11: 0.22 | AYG11: 0.51 | AYH11: 28 | AYI11: 2.8 | AYJ11: 3.4 | AYK11: 48 | AYL11: 7.1 | AYM11: 6.2 | AYN11: 33 | AYO11: 4.28 | AYP11: 3.99 | AYQ11: 35 | AYR11: 2.83 | AYS11: 4.02 | AYT11: 43 | AYU11: 3.79 | AYV11: 5.65 | AYW11: 4 | AYX11: 0.32 | AYY11: 0.75 | AYZ11: 2 | AZA11: 0.22 | AZB11: 0.56 | AZC11: 7 | AZD11: 0.4 | AZE11: 1.05 | AZF11: 25 | AZG11: 3.68 | AZH11: 2.88 | AZI11: 25 | AZJ11: 3.68 | AZK11: 2.88 | AZL11: 17 | AZM11: 1.3 | AZN11: 1.89 | AZO11: 47 | AZP11: 2.34 | AZQ11: 6.2 | AZR11: 5 | AZS11: 0.32 | AZT11: 0.91 | AZU11: 45 | AZV11: 5.2 | AZW11: 5.8 | AZX11: 12 | AZY11: 2.16 | AZZ11: 1.6 | BAA11: 45 | BAB11: 5.2 | BAC11: 5.8 | BAD11: 28 | BAE11: 2.8 | BAF11: 3.4 | BAG11: 9 | BAH11: 0.6 | BAI11: 1.18 | BAJ11: 39 | BAK11: 4.19 | BAL11: 4.89 | BAM11: 4 | BAN11: 0.32 | BAO11: 0.75 | BAP11: 49 | BAQ11: 3.94 | BAR11: 6.8 | BAS11: 30 | BAT11: 3.4 | BAU11: 3.7 | BAV11: 9 | BAW11: 0.6 | BAX11: 1.18 | BAY11: 42 | BAZ11: 2.97 | BBA11: 5.3 | BBB11: 38 | BBC11: 3.61 | BBD11: 4.7 | BBE11: 28 | BBF11: 2.8 | BBG11: 3.4 | BBH11: 50 | BBI11: 4.5 | BBJ11: 6.8 | BBK11: 35 | BBL11: 2.83 | BBM11: 4.02 | BBN11: 26 | BBO11: 2.15 | BBP11: 2.91 | BBQ11: 39 | BBR11: 4.19 | BBS11: 4.89 | BBT11: 47 | BBU11: 2.34 | BBV11: 6.2 | BBW11: 24 | BBX11: 1.7 | BBY11: 2.8 | BBZ11: 7 | BCA11: 0.4 | BCB11: 1.05 | BCC11: 8 | BCD11: 1.68 | BCE11: 1.13 | BCF11: 51 | BCG11: 20 | BCH11: 15 | BCI11: 13 | BCJ11: 1.24 | BCK11: 1.7 | BCL11: 38 | BCM11: 3.61 | BCN11: 4.7 | BCO11: 47 | BCP11: 2.34 | BCQ11: 6.2 | BCR11: 25 | BCS11: 3.68 | BCT11: 2.88 | BCU11: 19 | BCV11: 1.33 | BCW11: 2.06 | BCX11: 37 | BCY11: 3.7 | BCZ11: 4.2 | BDA11: 25 | BDB11: 3.68 | BDC11: 2.88 | BDD11: 45 | BDE11: 5.2 | BDF11: 5.8 | BDG11: 18 | BDH11: 1.32 | BDI11: 2 | BDJ11: 37 | BDK11: 3.7 | BDL11: 4.2 | BDM11: 30 | BDN11: 3.4 | BDO11: 3.7 | BDP11: 47 | BDQ11: 2.34 | BDR11: 6.2 | BDS11: 1 | BDT11: 0.22 | BDU11: 0.51 | BDV11: 29 | BDW11: 2.4 | BDX11: 3.5 | BDY11: 6 | BDZ11: 0.38 | BEA11: 0.96 | BEB11: 32 | BEC11: 2.83 | BED11: 3.77 | BEE11: 24 | BEF11: 1.7 | BEG11: 2.8 | BEH11: 23 | BEI11: 1.15 | BEJ11: 2.5 | BEK11: 15 | BEL11: 1.3 | BEM11: 1.8 | BEN11: 13 | BEO11: 1.24 | BEP11: 1.7 | BEQ11: 50 | BER11: 4.5 | BES11: 6.8 | BET11: 36 | BEU11: 2.28 | BEV11: 4.1 | BEW11: 28 | BEX11: 2.8 | BEY11: 3.4 | BEZ11: 15 | BFA11: 1.3 | BFB11: 1.8 | BFC11: 8 | BFD11: 1.68 | BFE11: 1.13 | BFF11: 49 | BFG11: 3.94 | BFH11: 6.8 | BFI11: 30 | BFJ11: 3.4 | BFK11: 3.7 | BFL11: 26 | BFM11: 2.15 | BFN11: 2.91 | BFO11: 40 | BFP11: 5.16 | BFQ11: 4.92 | BFR11: 6 | BFS11: 0.38 | BFT11: 0.96 | BFU11: 17 | BFV11: 1.3 | BFW11: 1.89 | BFX11: 46 | BFY11: 5.9 | BFZ11: 6.1 | BGA11: 48 | BGB11: 7.1 | BGC11: 6.2 | BGD11: 16 | BGE11: 1.58 | BGF11: 1.83 | BGG11: 50 | BGH11: 4.5 | BGI11: 6.8 | BGJ11: 37 | BGK11: 3.7 | BGL11: 4.2 | BGM11: 48 | BGN11: 7.1 | BGO11: 6.2 | BGP11: 45 | BGQ11: 5.2 | BGR11: 5.8 | BGS11: 50 | BGT11: 4.5 | BGU11: 6.8
